Workbook

Sheet Index
A1: Index and File Details
B3: Index | H3: File Details
B5: Inputs | D5: Inputs / Calculations | F5: Outputs | I5: Model | J5: Transgrid | VNI West (CPA 1) Capex Forecast Model
I6: Author | J6: Transgrid
B7: Notes & Assumptions | D7: Calculations | F7: ='Outputs|Models'!$A$1 -> Outputs | Models | I7: Revision | J7: 2023-22-01
B8: Inputs | I8: Status | J8: Final CPA
B12: Model Checks | H12: Instructions
B14: Worksheet | I14: Input Sheets
B15: Inputs | D15: =Inputs!$B$2 -> 0 | I15: Fill in any cells marked as input cells as seen on the right => | K15: user input
B16: =D7 -> Calculations | D16: =SUM(Calculations!A2:A210) -> 0 | I16: Historical / Not applicable
B17: =D7 -> Calculations | D17: =SUM(Calculations!A3:A213) -> 0 | I17: Cells not marked as inputs should not be modified.
B18: =F7 -> Outputs | Models | D18: =SUM('Outputs|Models'!A2:A147) -> 0 | I18: Transgrid information request 03
I19: AER Decision
B20: Total Error Check | D20: =IF(SUM(D15:D18)=0,0,1) -> 0

Sheet Notes & Assumptions
A1: Assumptions & Notes
E3: User inputs in cells coloured like this
C4: * | E4: 1. Inputs are in $. Outputs are $million.
C5: * | E5: 2. Financial years are recorded in the Capex Forecast Model as tax years (e.g. 2017/18 is shown as 2018, 2018/19 is shown as 2019)
C6: * | E6: 3. Escalation is treated as follows:
E7: a. CPI escalation and Labour escalation are treated separately.
E8: b. Escalation is applied to Expenditure Components (i.e. Labour)
A10: Modifications
A11: Date | B11: Version | D11: Who | E11: Notes
A12: 2023-08-30 | B12: v1.1 | E12: Initial model development
A13: 2024-01-22 | B13: v1.2 | C13: Transgrid | E13: Updated model to reflect as incurred depreciation for biodiversity offsets and as commissioned for all other asset classes
A14: 2024-05-01 | C14: AER | E14: Contingent project determination May 2024

Sheet Inputs
A1: Inputs
A2: Worksheet check: | B2: =SUM(Z74:AI74,AJ37:AJ50) -> 0 | C2: Transgrid IR03
C3: AER Decision
A4: Output Reporting Format and Year
A5: Real
A6: 2023
A8: =IF(Real_or_Nom="Real", "Real $" & Report_Year, "$ Nominal") -> Real $2023
A10: Inflation and Labour Escalation
A13: Forecasts | K13: Rates
A14: Item | B14: Source | C14: Units | K14: =K$20 -> 2018 | L14: 2019 | M14: 2020 | N14: 2021 | O14: 2022 | P14: 2023 | Q14: 2024 | R14: 2025 | S14: 2026 | T14: 2027 | U14: 2028
A15: Actual / Forecast Inflation | B15: ABS December to December as per AER Final Decision 2023–28 / RBA Forecast | C15: % | K15: 0.01909090909 | L15: 0.0178412132 | M15: 0.01840490798 | N15: 0.008605851979 | O15: 0.03498293515 | P15: 0.07831821929 | Q15: 0.02919304851 | R15: 0.02919304851 | S15: 0.02919304851 | T15: 0.02919304851 | U15: 0.02919304851 | V15: ◄ Actual December year on year inflation used for 2019 to 2022. Forecast inflation for 2024 to 2028 as per the AER's final decision for the 2023-28 period.
A16: Real labour escalation | B16: AER Final Determination / Transgrid proposal | C16: % | Q16: 0.003904656476 | R16: 0.01307648255 | S16: 0.01154643895 | T16: 0.004330457586 | U16: 0.003009413338 | V16: ◄ Labour escalation as per AER's final decision for the 2023-28 period.
A19: Cumulative Factors | K19: Cumulative factors
A20: Item | B20: Source | C20: Units | K20: =L20-1 -> 2018 | L20: =M20-1 -> 2019 | M20: 2020 | N20: =M20+1 -> 2021 | O20: 2022 | P20: 2023 | Q20: 2024 | R20: 2025 | S20: 2026 | T20: 2027 | U20: 2028 | V20: Nominal
A21: Inflation based to 2019 | B21: Calculated | C21: Factor | K21: =L21/(1+L15) -> 0.9824715162 | L21: 1 | M21: =L21*(1+M15) -> 1.018404908 | N21: 1.02716915 | O21: 1.063102542 | P21: 1.14636284 | Q21: 1.179828666 | R21: 1.214271461 | S21: 1.249719747 | T21: 1.286202876 | U21: 1.323751059
A22: Labour based to 2023 | B22: Calculated | C22: Factor | K22: 1 | L22: =K22*(1+L16) -> 1 | M22: =L22*(1+M16) -> 1 | N22: 1 | O22: 1 | P22: 1 | Q22: 1.003904656 | R22: 1.017032198 | S22: 1.028775298 | T22: 1.033230366 | U22: 1.036339783
A24: Indexation | K24: Indexation
A25: Item | B25: Source | C25: Units | K25: =K$20 -> 2018 | L25: 2019 | M25: 2020 | N25: 2021 | O25: 2022 | P25: 2023 | Q25: 2024 | R25: 2025 | S25: 2026 | T25: 2027 | U25: 2028
A26: Real 2023 End Period to Nominal Mid Period | B26: Calculated | C26: Factor | K26: =K21/$P$21/(1+K$15)^0.5 -> 0.8489681644 | L26: 0.8646450997 | M26: 0.8803150815 | N26: 0.8921936458 | O26: 0.9115625241 | P26: 0.9630005351 | Q26: 1.014491522 | R26: 1.044107622 | S26: 1.074588307 | T26: 1.105958815 | U26: 1.138245125
A27: Real 2019 End Period to Nominal Mid Period | B27: Calculated | C27: Factor | K27: =K26*$Q$21 -> 1.001636977 | L27: 1.020133074 | M27: 1.038620968 | N27: 1.052635639 | O27: 1.075487596 | P27: 1.136175636 | Q27: 1.196926179 | R27: 1.231868103 | S27: 1.267830088 | T27: 1.304841913 | U27: 1.342934227
A28: Nominal Mid Period to Real 2023 End Period | B28: Calculated | C28: Factor | K28: =1/K26 -> 1.17790047 | L28: 1.156543882 | M28: 1.13595691 | N28: 1.12083291 | O28: 1.097017455 | P28: 1.038421022 | Q28: 0.9857154823 | R28: 0.9577556744 | S28: 0.9305889462 | T28: 0.9041928018 | U28: 0.8785453838
A30: Capital Expenditure
A32: Direct Non-Labour Costs
A35: Direct Non-Labour Costs | By Category | E35: Conversion | H35: Expenditure | K35: Spend Profile Assumption | X35: ="$ Spend Profile (June "&$F$37&" dollars)" -> $ Spend Profile (June 2023 dollars) | AK35: Commissioning Profile Assumption | AX35: ="$ Commissioning Profile (June "&$F$37&" dollars)" -> $ Commissioning Profile (June 2023 dollars)
A36: Category | B36: Source | C36: Units | E36: Dollar Yr From | F36: Dollar Yr To | H36: Value | I36: Capex Category | K36: =K$20 -> 2018 | L36: 2019 | M36: 2020 | N36: 2021 | O36: 2022 | P36: 2023 | Q36: 2024 | R36: 2025 | S36: 2026 | T36: 2027 | U36: 2028 | V36: Total | X36: =K36 -> 2018 | Y36: 2019 | Z36: 2020 | AA36: 2021 | AB36: 2022 | AC36: 2023 | AD36: 2024 | AE36: 2025 | AF36: 2026 | AG36: 2027 | AH36: 2028 | AI36: Total | AK36: =K36 -> 2018 | AL36: =L36 -> 2019 | AM36: 2020 | AN36: 2021 | AO36: 2022 | AP36: 2023 | AQ36: 2024 | AR36: 2025 | AS36: 2026 | AT36: 2027 | AU36: 2028 | AV36: Total | AX36: =AK36 -> 2018 | AY36: 2019 | AZ36: 2020 | BA36: 2021 | BB36: 2022 | BC36: 2023 | BD36: 2024 | BE36: 2025 | BF36: 2026 | BG36: 2027 | BH36: 2028 | BI36: Total
A37: Pre-Construction Development Costs | Substation | B37: Project Team Input | C37: $Millions | E37: 2021 | F37: =Report_Year -> 2023 | H37: 14.80703208 | I37: Substations | O37: 0.03247056349 | P37: 0 | Q37: 0.3916304019 | R37: 0.5758990346 | S37: 0 | T37: 0 | U37: 0 | V37: =SUM(M37:U37) -> 1 | X37: =IFERROR($H37*K37 *IF($E37="Nominal",K$28, INDEX($K$21:$U$21,,MATCH($F37,Years,0)) /INDEX($K$21:$U$21,,MATCH($E37,Years,0))),0) -> 0 | Y37: =IFERROR($H37*L37 *IF($E37="Nominal",L$28, INDEX($K$21:$U$21,,MATCH($F37,Years,0)) /INDEX($K$21:$U$21,,MATCH($E37,Years,0))),0) -> 0 | Z37: =IFERROR($H37*M37 *IF($E37="Nominal",M$28, INDEX($K$21:$U$21,,MATCH($F37,Years,0)) /INDEX($K$21:$U$21,,MATCH($E37,Years,0))),0) -> 0 | AA37: =IFERROR($H37*N37 *IF($E37="Nominal",N$28, INDEX($K$21:$U$21,,MATCH($F37,Years,0)) /INDEX($K$21:$U$21,,MATCH($E37,Years,0))),0) -> 0 | AB37: =IFERROR($H37*O37 *IF($E37="Nominal",O$28, INDEX($K$21:$U$21,,MATCH($F37,Years,0)) /INDEX($K$21:$U$21,,MATCH($E37,Years,0))),0) -> 0.5365843169 | AC37: =IFERROR($H37*P37 *IF($E37="Nominal",P$28, INDEX($K$21:$U$21,,MATCH($F37,Years,0)) /INDEX($K$21:$U$21,,MATCH($E37,Years,0))),0) -> 0 | AD37: =IFERROR($H37*Q37 *IF($E37="Nominal",Q$28, INDEX($K$21:$U$21,,MATCH($F37,Years,0)) /INDEX($K$21:$U$21,,MATCH($E37,Years,0))),0) -> 6.471791958 | AE37: =IFERROR($H37*R37 *IF($E37="Nominal",R$28, INDEX($K$21:$U$21,,MATCH($F37,Years,0)) /INDEX($K$21:$U$21,,MATCH($E37,Years,0))),0) -> 9.516877961 | AF37: =IFERROR($H37*S37 *IF($E37="Nominal",S$28, INDEX($K$21:$U$21,,MATCH($F37,Years,0)) /INDEX($K$21:$U$21,,MATCH($E37,Years,0))),0) -> 0 | AG37: =IFERROR($H37*T37 *IF($E37="Nominal",T$28, INDEX($K$21:$U$21,,MATCH($F37,Years,0)) /INDEX($K$21:$U$21,,MATCH($E37,Years,0))),0) -> 0 | AH37: =IFERROR($H37*U37 *IF($E37="Nominal",U$28, INDEX($K$21:$U$21,,MATCH($F37,Years,0)) /INDEX($K$21:$U$21,,MATCH($E37,Years,0))),0) -> 0 | AI37: =SUM(X37:AH37) -> 16.52525424 | AJ37: =IF(AND(H37>0,V37<>1),1,0) -> 0 | AO37: 0 | AP37: 0 | AQ37: 0 | AR37: 1 | AS37: 0 | AT37: 0 | AU37: 0 | AV37: =SUM(AM37:AU37) -> 1 | AX37: =$AI37*AK37 -> 0 | AY37: =$AI37*AL37 -> 0 | AZ37: =$AI37*AM37 -> 0 | BA37: =$AI37*AN37 -> 0 | BB37: =$AI37*AO37 -> 0 | BC37: =$AI37*AP37 -> 0 | BD37: =$AI37*AQ37 -> 0 | BE37: =$AI37*AR37 -> 16.52525424 | BF37: =$AI37*AS37 -> 0 | BG37: =$AI37*AT37 -> 0 | BH37: =$AI37*AU37 -> 0 | BI37: =SUM(AX37:BH37) -> 16.52525424
A38: Pre-Construction Development Costs | Transmission Lines | B38: Project Team Input | C38: $Millions | E38: 2021 | F38: =$F$37 -> 2023 | H38: 28.80903632 | I38: Transmission Lines | O38: 0.03247056349 | P38: 0 | Q38: 0.3916304019 | R38: 0.5758990346 | S38: 0 | T38: 0 | U38: 0 | V38: 1 | X38: =IFERROR($H38*K38 *IF($E38="Nominal",K$28, INDEX($K$21:$U$21,,MATCH($F38,Years,0)) /INDEX($K$21:$U$21,,MATCH($E38,Years,0))),0) -> 0 | Y38: =IFERROR($H38*L38 *IF($E38="Nominal",L$28, INDEX($K$21:$U$21,,MATCH($F38,Years,0)) /INDEX($K$21:$U$21,,MATCH($E38,Years,0))),0) -> 0 | Z38: =IFERROR($H38*M38 *IF($E38="Nominal",M$28, INDEX($K$21:$U$21,,MATCH($F38,Years,0)) /INDEX($K$21:$U$21,,MATCH($E38,Years,0))),0) -> 0 | AA38: =IFERROR($H38*N38 *IF($E38="Nominal",N$28, INDEX($K$21:$U$21,,MATCH($F38,Years,0)) /INDEX($K$21:$U$21,,MATCH($E38,Years,0))),0) -> 0 | AB38: =IFERROR($H38*O38 *IF($E38="Nominal",O$28, INDEX($K$21:$U$21,,MATCH($F38,Years,0)) /INDEX($K$21:$U$21,,MATCH($E38,Years,0))),0) -> 1.043995649 | AC38: =IFERROR($H38*P38 *IF($E38="Nominal",P$28, INDEX($K$21:$U$21,,MATCH($F38,Years,0)) /INDEX($K$21:$U$21,,MATCH($E38,Years,0))),0) -> 0 | AD38: =IFERROR($H38*Q38 *IF($E38="Nominal",Q$28, INDEX($K$21:$U$21,,MATCH($F38,Years,0)) /INDEX($K$21:$U$21,,MATCH($E38,Years,0))),0) -> 12.59172591 | AE38: =IFERROR($H38*R38 *IF($E38="Nominal",R$28, INDEX($K$21:$U$21,,MATCH($F38,Years,0)) /INDEX($K$21:$U$21,,MATCH($E38,Years,0))),0) -> 18.51634286 | AF38: =IFERROR($H38*S38 *IF($E38="Nominal",S$28, INDEX($K$21:$U$21,,MATCH($F38,Years,0)) /INDEX($K$21:$U$21,,MATCH($E38,Years,0))),0) -> 0 | AG38: =IFERROR($H38*T38 *IF($E38="Nominal",T$28, INDEX($K$21:$U$21,,MATCH($F38,Years,0)) /INDEX($K$21:$U$21,,MATCH($E38,Years,0))),0) -> 0 | AH38: =IFERROR($H38*U38 *IF($E38="Nominal",U$28, INDEX($K$21:$U$21,,MATCH($F38,Years,0)) /INDEX($K$21:$U$21,,MATCH($E38,Years,0))),0) -> 0 | AI38: 32.15206443 | AJ38: 0 | AO38: 0 | AP38: 0 | AQ38: 0 | AR38: 1 | AS38: 0 | AT38: 0 | AU38: 0 | AV38: 1 | AX38: =$AI38*AK38 -> 0 | AY38: 0 | AZ38: 0 | BA38: 0 | BB38: 0 | BC38: 0 | BD38: 0 | BE38: 32.15206443 | BF38: 0 | BG38: 0 | BH38: 0 | BI38: 32.15206443
A39: Long Lead Equipment | Transformers | B39: Project Team Input | C39: $Millions | E39: 2023 | F39: =$F$37 -> 2023 | H39: 31.99019973 | I39: Substations | O39: 0 | P39: 0 | Q39: 0.5255690612 | R39: 0.407069691 | S39: 0.06736124778 | T39: 0 | U39: 0 | V39: 1 | X39: =IFERROR($H39*K39 *IF($E39="Nominal",K$28, INDEX($K$21:$U$21,,MATCH($F39,Years,0)) /INDEX($K$21:$U$21,,MATCH($E39,Years,0))),0) -> 0 | Y39: =IFERROR($H39*L39 *IF($E39="Nominal",L$28, INDEX($K$21:$U$21,,MATCH($F39,Years,0)) /INDEX($K$21:$U$21,,MATCH($E39,Years,0))),0) -> 0 | Z39: =IFERROR($H39*M39 *IF($E39="Nominal",M$28, INDEX($K$21:$U$21,,MATCH($F39,Years,0)) /INDEX($K$21:$U$21,,MATCH($E39,Years,0))),0) -> 0 | AA39: =IFERROR($H39*N39 *IF($E39="Nominal",N$28, INDEX($K$21:$U$21,,MATCH($F39,Years,0)) /INDEX($K$21:$U$21,,MATCH($E39,Years,0))),0) -> 0 | AB39: =IFERROR($H39*O39 *IF($E39="Nominal",O$28, INDEX($K$21:$U$21,,MATCH($F39,Years,0)) /INDEX($K$21:$U$21,,MATCH($E39,Years,0))),0) -> 0 | AC39: =IFERROR($H39*P39 *IF($E39="Nominal",P$28, INDEX($K$21:$U$21,,MATCH($F39,Years,0)) /INDEX($K$21:$U$21,,MATCH($E39,Years,0))),0) -> 0 | AD39: =IFERROR($H39*Q39 *IF($E39="Nominal",Q$28, INDEX($K$21:$U$21,,MATCH($F39,Years,0)) /INDEX($K$21:$U$21,,MATCH($E39,Years,0))),0) -> 16.81305924 | AE39: =IFERROR($H39*R39 *IF($E39="Nominal",R$28, INDEX($K$21:$U$21,,MATCH($F39,Years,0)) /INDEX($K$21:$U$21,,MATCH($E39,Years,0))),0) -> 13.02224072 | AF39: =IFERROR($H39*S39 *IF($E39="Nominal",S$28, INDEX($K$21:$U$21,,MATCH($F39,Years,0)) /INDEX($K$21:$U$21,,MATCH($E39,Years,0))),0) -> 2.15489977 | AG39: =IFERROR($H39*T39 *IF($E39="Nominal",T$28, INDEX($K$21:$U$21,,MATCH($F39,Years,0)) /INDEX($K$21:$U$21,,MATCH($E39,Years,0))),0) -> 0 | AH39: =IFERROR($H39*U39 *IF($E39="Nominal",U$28, INDEX($K$21:$U$21,,MATCH($F39,Years,0)) /INDEX($K$21:$U$21,,MATCH($E39,Years,0))),0) -> 0 | AI39: 31.99019973 | AJ39: 0 | AO39: 0 | AP39: 0 | AQ39: 0 | AR39: 0 | AS39: 1 | AT39: 0 | AU39: 0 | AV39: 1 | AX39: 0 | AY39: 0 | AZ39: 0 | BA39: 0 | BB39: 0 | BC39: 0 | BD39: 0 | BE39: 0 | BF39: 31.99019973 | BG39: 0 | BH39: 0 | BI39: 31.99019973
A40: Long Lead Equipment | Reactors | B40: Project Team Input | C40: $Millions | E40: 2023 | F40: =$F$37 -> 2023 | H40: 27.303054 | I40: Substations | O40: 0 | P40: 0 | Q40: 0.5255690612 | R40: 0.407069691 | S40: 0.06736124778 | T40: 0 | U40: 0 | V40: 1 | X40: =IFERROR($H40*K40 *IF($E40="Nominal",K$28, INDEX($K$21:$U$21,,MATCH($F40,Years,0)) /INDEX($K$21:$U$21,,MATCH($E40,Years,0))),0) -> 0 | Y40: =IFERROR($H40*L40 *IF($E40="Nominal",L$28, INDEX($K$21:$U$21,,MATCH($F40,Years,0)) /INDEX($K$21:$U$21,,MATCH($E40,Years,0))),0) -> 0 | Z40: =IFERROR($H40*M40 *IF($E40="Nominal",M$28, INDEX($K$21:$U$21,,MATCH($F40,Years,0)) /INDEX($K$21:$U$21,,MATCH($E40,Years,0))),0) -> 0 | AA40: =IFERROR($H40*N40 *IF($E40="Nominal",N$28, INDEX($K$21:$U$21,,MATCH($F40,Years,0)) /INDEX($K$21:$U$21,,MATCH($E40,Years,0))),0) -> 0 | AB40: =IFERROR($H40*O40 *IF($E40="Nominal",O$28, INDEX($K$21:$U$21,,MATCH($F40,Years,0)) /INDEX($K$21:$U$21,,MATCH($E40,Years,0))),0) -> 0 | AC40: =IFERROR($H40*P40 *IF($E40="Nominal",P$28, INDEX($K$21:$U$21,,MATCH($F40,Years,0)) /INDEX($K$21:$U$21,,MATCH($E40,Years,0))),0) -> 0 | AD40: =IFERROR($H40*Q40 *IF($E40="Nominal",Q$28, INDEX($K$21:$U$21,,MATCH($F40,Years,0)) /INDEX($K$21:$U$21,,MATCH($E40,Years,0))),0) -> 14.34964046 | AE40: =IFERROR($H40*R40 *IF($E40="Nominal",R$28, INDEX($K$21:$U$21,,MATCH($F40,Years,0)) /INDEX($K$21:$U$21,,MATCH($E40,Years,0))),0) -> 11.11424576 | AF40: =IFERROR($H40*S40 *IF($E40="Nominal",S$28, INDEX($K$21:$U$21,,MATCH($F40,Years,0)) /INDEX($K$21:$U$21,,MATCH($E40,Years,0))),0) -> 1.839167786 | AG40: =IFERROR($H40*T40 *IF($E40="Nominal",T$28, INDEX($K$21:$U$21,,MATCH($F40,Years,0)) /INDEX($K$21:$U$21,,MATCH($E40,Years,0))),0) -> 0 | AH40: =IFERROR($H40*U40 *IF($E40="Nominal",U$28, INDEX($K$21:$U$21,,MATCH($F40,Years,0)) /INDEX($K$21:$U$21,,MATCH($E40,Years,0))),0) -> 0 | AI40: 27.303054 | AJ40: 0 | AO40: 0 | AP40: 0 | AQ40: 0 | AR40: 0 | AS40: 1 | AT40: 0 | AU40: 0 | AV40: 1 | AX40: 0 | AY40: 0 | AZ40: 0 | BA40: 0 | BB40: 0 | BC40: 0 | BD40: 0 | BE40: 0 | BF40: 27.303054 | BG40: 0 | BH40: 0 | BI40: 27.303054
A41: Long Lead Equipment | Conductor and Steel | B41: Project Team Input | C41: $Millions | E41: 2023 | F41: 2023 | H41: 82.197268 | I41: Transmission Lines | O41: 0 | P41: 0 | Q41: 0.25 | R41: 0.1 | S41: 0.65 | T41: 0 | U41: 0 | V41: 1 | X41: =IFERROR($H41*K41 *IF($E41="Nominal",K$28, INDEX($K$21:$U$21,,MATCH($F41,Years,0)) /INDEX($K$21:$U$21,,MATCH($E41,Years,0))),0) -> 0 | Y41: =IFERROR($H41*L41 *IF($E41="Nominal",L$28, INDEX($K$21:$U$21,,MATCH($F41,Years,0)) /INDEX($K$21:$U$21,,MATCH($E41,Years,0))),0) -> 0 | Z41: =IFERROR($H41*M41 *IF($E41="Nominal",M$28, INDEX($K$21:$U$21,,MATCH($F41,Years,0)) /INDEX($K$21:$U$21,,MATCH($E41,Years,0))),0) -> 0 | AA41: =IFERROR($H41*N41 *IF($E41="Nominal",N$28, INDEX($K$21:$U$21,,MATCH($F41,Years,0)) /INDEX($K$21:$U$21,,MATCH($E41,Years,0))),0) -> 0 | AB41: =IFERROR($H41*O41 *IF($E41="Nominal",O$28, INDEX($K$21:$U$21,,MATCH($F41,Years,0)) /INDEX($K$21:$U$21,,MATCH($E41,Years,0))),0) -> 0 | AC41: =IFERROR($H41*P41 *IF($E41="Nominal",P$28, INDEX($K$21:$U$21,,MATCH($F41,Years,0)) /INDEX($K$21:$U$21,,MATCH($E41,Years,0))),0) -> 0 | AD41: =IFERROR($H41*Q41 *IF($E41="Nominal",Q$28, INDEX($K$21:$U$21,,MATCH($F41,Years,0)) /INDEX($K$21:$U$21,,MATCH($E41,Years,0))),0) -> 20.549317 | AE41: =IFERROR($H41*R41 *IF($E41="Nominal",R$28, INDEX($K$21:$U$21,,MATCH($F41,Years,0)) /INDEX($K$21:$U$21,,MATCH($E41,Years,0))),0) -> 8.2197268 | AF41: =IFERROR($H41*S41 *IF($E41="Nominal",S$28, INDEX($K$21:$U$21,,MATCH($F41,Years,0)) /INDEX($K$21:$U$21,,MATCH($E41,Years,0))),0) -> 53.4282242 | AG41: =IFERROR($H41*T41 *IF($E41="Nominal",T$28, INDEX($K$21:$U$21,,MATCH($F41,Years,0)) /INDEX($K$21:$U$21,,MATCH($E41,Years,0))),0) -> 0 | AH41: =IFERROR($H41*U41 *IF($E41="Nominal",U$28, INDEX($K$21:$U$21,,MATCH($F41,Years,0)) /INDEX($K$21:$U$21,,MATCH($E41,Years,0))),0) -> 0 | AI41: 82.197268 | AJ41: 0 | AO41: 0 | AP41: 0 | AQ41: 0 | AR41: 0 | AS41: 1 | AT41: 0 | AU41: 0 | AV41: 1 | AX41: 0 | AY41: 0 | AZ41: 0 | BA41: 0 | BB41: 0 | BC41: 0 | BD41: 0 | BE41: 0 | BF41: 82.197268 | BG41: 0 | BH41: 0 | BI41: 82.197268
A42: Long Lead Equipment | Power Flow Controllers | B42: Project Team Input | C42: $Millions | E42: 2023 | F42: 2023 | H42: 87.4 | I42: Substations | O42: 0 | P42: 0 | Q42: 0.5255690612 | R42: 0.407069691 | S42: 0.06736124778 | T42: 0 | U42: 0 | V42: 1 | X42: =IFERROR($H42*K42 *IF($E42="Nominal",K$28, INDEX($K$21:$U$21,,MATCH($F42,Years,0)) /INDEX($K$21:$U$21,,MATCH($E42,Years,0))),0) -> 0 | Y42: =IFERROR($H42*L42 *IF($E42="Nominal",L$28, INDEX($K$21:$U$21,,MATCH($F42,Years,0)) /INDEX($K$21:$U$21,,MATCH($E42,Years,0))),0) -> 0 | Z42: =IFERROR($H42*M42 *IF($E42="Nominal",M$28, INDEX($K$21:$U$21,,MATCH($F42,Years,0)) /INDEX($K$21:$U$21,,MATCH($E42,Years,0))),0) -> 0 | AA42: =IFERROR($H42*N42 *IF($E42="Nominal",N$28, INDEX($K$21:$U$21,,MATCH($F42,Years,0)) /INDEX($K$21:$U$21,,MATCH($E42,Years,0))),0) -> 0 | AB42: =IFERROR($H42*O42 *IF($E42="Nominal",O$28, INDEX($K$21:$U$21,,MATCH($F42,Years,0)) /INDEX($K$21:$U$21,,MATCH($E42,Years,0))),0) -> 0 | AC42: =IFERROR($H42*P42 *IF($E42="Nominal",P$28, INDEX($K$21:$U$21,,MATCH($F42,Years,0)) /INDEX($K$21:$U$21,,MATCH($E42,Years,0))),0) -> 0 | AD42: =IFERROR($H42*Q42 *IF($E42="Nominal",Q$28, INDEX($K$21:$U$21,,MATCH($F42,Years,0)) /INDEX($K$21:$U$21,,MATCH($E42,Years,0))),0) -> 45.93473595 | AE42: =IFERROR($H42*R42 *IF($E42="Nominal",R$28, INDEX($K$21:$U$21,,MATCH($F42,Years,0)) /INDEX($K$21:$U$21,,MATCH($E42,Years,0))),0) -> 35.57789099 | AF42: =IFERROR($H42*S42 *IF($E42="Nominal",S$28, INDEX($K$21:$U$21,,MATCH($F42,Years,0)) /INDEX($K$21:$U$21,,MATCH($E42,Years,0))),0) -> 5.887373056 | AG42: =IFERROR($H42*T42 *IF($E42="Nominal",T$28, INDEX($K$21:$U$21,,MATCH($F42,Years,0)) /INDEX($K$21:$U$21,,MATCH($E42,Years,0))),0) -> 0 | AH42: =IFERROR($H42*U42 *IF($E42="Nominal",U$28, INDEX($K$21:$U$21,,MATCH($F42,Years,0)) /INDEX($K$21:$U$21,,MATCH($E42,Years,0))),0) -> 0 | AI42: 87.4 | AJ42: 0 | AO42: 0 | AP42: 0 | AQ42: 0 | AR42: 0 | AS42: 1 | AT42: 0 | AU42: 0 | AV42: 1 | AX42: 0 | AY42: 0 | AZ42: 0 | BA42: 0 | BB42: 0 | BC42: 0 | BD42: 0 | BE42: 0 | BF42: 87.4 | BG42: 0 | BH42: 0 | BI42: 87.4
A43: PEC | Dinawan to Wagga Wagga Transmission Line Upgrade | B43: Project Team Input | C43: $Millions | E43: Nominal | F43: 2023 | H43: 293.196495 | I43: Transmission Lines | O43: 0 | P43: 0.009750790896 | Q43: 0.6537484987 | R43: 0.3365007104 | S43: 0 | T43: 0 | U43: 0 | V43: 1 | X43: =IFERROR($H43*K43 *IF($E43="Nominal",K$28, INDEX($K$21:$U$21,,MATCH($F43,Years,0)) /INDEX($K$21:$U$21,,MATCH($E43,Years,0))),0) -> 0 | Y43: =IFERROR($H43*L43 *IF($E43="Nominal",L$28, INDEX($K$21:$U$21,,MATCH($F43,Years,0)) /INDEX($K$21:$U$21,,MATCH($E43,Years,0))),0) -> 0 | Z43: =IFERROR($H43*M43 *IF($E43="Nominal",M$28, INDEX($K$21:$U$21,,MATCH($F43,Years,0)) /INDEX($K$21:$U$21,,MATCH($E43,Years,0))),0) -> 0 | AA43: =IFERROR($H43*N43 *IF($E43="Nominal",N$28, INDEX($K$21:$U$21,,MATCH($F43,Years,0)) /INDEX($K$21:$U$21,,MATCH($E43,Years,0))),0) -> 0 | AB43: =IFERROR($H43*O43 *IF($E43="Nominal",O$28, INDEX($K$21:$U$21,,MATCH($F43,Years,0)) /INDEX($K$21:$U$21,,MATCH($E43,Years,0))),0) -> 0 | AC43: =IFERROR($H43*P43 *IF($E43="Nominal",P$28, INDEX($K$21:$U$21,,MATCH($F43,Years,0)) /INDEX($K$21:$U$21,,MATCH($E43,Years,0))),0) -> 2.968739487 | AD43: =IFERROR($H43*Q43 *IF($E43="Nominal",Q$28, INDEX($K$21:$U$21,,MATCH($F43,Years,0)) /INDEX($K$21:$U$21,,MATCH($E43,Years,0))),0) -> 188.9387582 | AE43: =IFERROR($H43*R43 *IF($E43="Nominal",R$28, INDEX($K$21:$U$21,,MATCH($F43,Years,0)) /INDEX($K$21:$U$21,,MATCH($E43,Years,0))),0) -> 94.4929687 | AF43: =IFERROR($H43*S43 *IF($E43="Nominal",S$28, INDEX($K$21:$U$21,,MATCH($F43,Years,0)) /INDEX($K$21:$U$21,,MATCH($E43,Years,0))),0) -> 0 | AG43: =IFERROR($H43*T43 *IF($E43="Nominal",T$28, INDEX($K$21:$U$21,,MATCH($F43,Years,0)) /INDEX($K$21:$U$21,,MATCH($E43,Years,0))),0) -> 0 | AH43: =IFERROR($H43*U43 *IF($E43="Nominal",U$28, INDEX($K$21:$U$21,,MATCH($F43,Years,0)) /INDEX($K$21:$U$21,,MATCH($E43,Years,0))),0) -> 0 | AI43: 286.4004664 | AJ43: 0 | AO43: 0 | AP43: 0 | AQ43: 0.3182777221 | AR43: 0.6817222779 | AS43: 0 | AT43: 0 | AU43: 0 | AV43: 1 | AX43: 0 | AY43: 0 | AZ43: 0 | BA43: 0 | BB43: 0 | BC43: 0 | BD43: 91.15488806 | BE43: 195.2455784 | BF43: 0 | BG43: 0 | BH43: 0 | BI43: 286.4004664
A44: PEC | Dinawan to Wagga Wagga Transmission Line Upgrade | B44: Project Team Input | C44: $Millions | E44: Nominal | F44: 2023 | H44: 23.0597628 | I44: Land and Easements | O44: 0 | P44: 0.5008724548 | Q44: 0.4991275452 | R44: 0 | S44: 0 | T44: 0 | U44: 0 | V44: 1 | X44: =IFERROR($H44*K44 *IF($E44="Nominal",K$28, INDEX($K$21:$U$21,,MATCH($F44,Years,0)) /INDEX($K$21:$U$21,,MATCH($E44,Years,0))),0) -> 0 | Y44: =IFERROR($H44*L44 *IF($E44="Nominal",L$28, INDEX($K$21:$U$21,,MATCH($F44,Years,0)) /INDEX($K$21:$U$21,,MATCH($E44,Years,0))),0) -> 0 | Z44: =IFERROR($H44*M44 *IF($E44="Nominal",M$28, INDEX($K$21:$U$21,,MATCH($F44,Years,0)) /INDEX($K$21:$U$21,,MATCH($E44,Years,0))),0) -> 0 | AA44: =IFERROR($H44*N44 *IF($E44="Nominal",N$28, INDEX($K$21:$U$21,,MATCH($F44,Years,0)) /INDEX($K$21:$U$21,,MATCH($E44,Years,0))),0) -> 0 | AB44: =IFERROR($H44*O44 *IF($E44="Nominal",O$28, INDEX($K$21:$U$21,,MATCH($F44,Years,0)) /INDEX($K$21:$U$21,,MATCH($E44,Years,0))),0) -> 0 | AC44: =IFERROR($H44*P44 *IF($E44="Nominal",P$28, INDEX($K$21:$U$21,,MATCH($F44,Years,0)) /INDEX($K$21:$U$21,,MATCH($E44,Years,0))),0) -> 11.99376281 | AD44: =IFERROR($H44*Q44 *IF($E44="Nominal",Q$28, INDEX($K$21:$U$21,,MATCH($F44,Years,0)) /INDEX($K$21:$U$21,,MATCH($E44,Years,0))),0) -> 11.34535139 | AE44: =IFERROR($H44*R44 *IF($E44="Nominal",R$28, INDEX($K$21:$U$21,,MATCH($F44,Years,0)) /INDEX($K$21:$U$21,,MATCH($E44,Years,0))),0) -> 0 | AF44: =IFERROR($H44*S44 *IF($E44="Nominal",S$28, INDEX($K$21:$U$21,,MATCH($F44,Years,0)) /INDEX($K$21:$U$21,,MATCH($E44,Years,0))),0) -> 0 | AG44: =IFERROR($H44*T44 *IF($E44="Nominal",T$28, INDEX($K$21:$U$21,,MATCH($F44,Years,0)) /INDEX($K$21:$U$21,,MATCH($E44,Years,0))),0) -> 0 | AH44: =IFERROR($H44*U44 *IF($E44="Nominal",U$28, INDEX($K$21:$U$21,,MATCH($F44,Years,0)) /INDEX($K$21:$U$21,,MATCH($E44,Years,0))),0) -> 0 | AI44: 23.3391142 | AJ44: 0 | AO44: 0 | AP44: 0.236582545 | AQ44: 0.763417455 | AR44: 0 | AS44: 0 | AT44: 0 | AU44: 0 | AV44: 1 | AX44: 0 | AY44: 0 | AZ44: 0 | BA44: 0 | BB44: 0 | BC44: 5.521627034 | BD44: 17.81748716 | BE44: 0 | BF44: 0 | BG44: 0 | BH44: 0 | BI44: 23.3391142
A45: PEC | Dinawan to Wagga Wagga Transmission Line Upgrade | B45: Project Team Input | C45: $Millions | E45: Nominal | F45: 2023 | H45: 0 | I45: Biodiversity Offsets (Direct payments and other costs) | O45: 0 | P45: 0.03450095704 | Q45: 0.965499043 | R45: 0 | S45: 0 | T45: 0 | U45: 0 | V45: 1 | X45: =IFERROR($H45*K45 *IF($E45="Nominal",K$28, INDEX($K$21:$U$21,,MATCH($F45,Years,0)) /INDEX($K$21:$U$21,,MATCH($E45,Years,0))),0) -> 0 | Y45: =IFERROR($H45*L45 *IF($E45="Nominal",L$28, INDEX($K$21:$U$21,,MATCH($F45,Years,0)) /INDEX($K$21:$U$21,,MATCH($E45,Years,0))),0) -> 0 | Z45: =IFERROR($H45*M45 *IF($E45="Nominal",M$28, INDEX($K$21:$U$21,,MATCH($F45,Years,0)) /INDEX($K$21:$U$21,,MATCH($E45,Years,0))),0) -> 0 | AA45: =IFERROR($H45*N45 *IF($E45="Nominal",N$28, INDEX($K$21:$U$21,,MATCH($F45,Years,0)) /INDEX($K$21:$U$21,,MATCH($E45,Years,0))),0) -> 0 | AB45: =IFERROR($H45*O45 *IF($E45="Nominal",O$28, INDEX($K$21:$U$21,,MATCH($F45,Years,0)) /INDEX($K$21:$U$21,,MATCH($E45,Years,0))),0) -> 0 | AC45: =IFERROR($H45*P45 *IF($E45="Nominal",P$28, INDEX($K$21:$U$21,,MATCH($F45,Years,0)) /INDEX($K$21:$U$21,,MATCH($E45,Years,0))),0) -> 0 | AD45: =IFERROR($H45*Q45 *IF($E45="Nominal",Q$28, INDEX($K$21:$U$21,,MATCH($F45,Years,0)) /INDEX($K$21:$U$21,,MATCH($E45,Years,0))),0) -> 0 | AE45: =IFERROR($H45*R45 *IF($E45="Nominal",R$28, INDEX($K$21:$U$21,,MATCH($F45,Years,0)) /INDEX($K$21:$U$21,,MATCH($E45,Years,0))),0) -> 0 | AF45: =IFERROR($H45*S45 *IF($E45="Nominal",S$28, INDEX($K$21:$U$21,,MATCH($F45,Years,0)) /INDEX($K$21:$U$21,,MATCH($E45,Years,0))),0) -> 0 | AG45: =IFERROR($H45*T45 *IF($E45="Nominal",T$28, INDEX($K$21:$U$21,,MATCH($F45,Years,0)) /INDEX($K$21:$U$21,,MATCH($E45,Years,0))),0) -> 0 | AH45: =IFERROR($H45*U45 *IF($E45="Nominal",U$28, INDEX($K$21:$U$21,,MATCH($F45,Years,0)) /INDEX($K$21:$U$21,,MATCH($E45,Years,0))),0) -> 0 | AI45: 0 | AJ45: 0 | AO45: 0 | AP45: 0 | AQ45: 1 | AR45: 0 | AS45: 0 | AT45: 0 | AU45: 0 | AV45: 1 | AX45: 0 | AY45: 0 | AZ45: 0 | BA45: 0 | BB45: 0 | BC45: 0 | BD45: 0 | BE45: 0 | BF45: 0 | BG45: 0 | BH45: 0 | BI45: 0
A46: Humelink | Guga Substation Upgrade | B46: Project Team Input | C46: $Millions | E46: 2023 | F46: 2023 | H46: 128.4401783 | I46: Substations | O46: 0 | P46: 0 | Q46: 0.4545454545 | R46: 0.5454545455 | S46: 0 | T46: 0 | U46: 0 | V46: 1 | X46: =IFERROR($H46*K46 *IF($E46="Nominal",K$28, INDEX($K$21:$U$21,,MATCH($F46,Years,0)) /INDEX($K$21:$U$21,,MATCH($E46,Years,0))),0) -> 0 | Y46: =IFERROR($H46*L46 *IF($E46="Nominal",L$28, INDEX($K$21:$U$21,,MATCH($F46,Years,0)) /INDEX($K$21:$U$21,,MATCH($E46,Years,0))),0) -> 0 | Z46: =IFERROR($H46*M46 *IF($E46="Nominal",M$28, INDEX($K$21:$U$21,,MATCH($F46,Years,0)) /INDEX($K$21:$U$21,,MATCH($E46,Years,0))),0) -> 0 | AA46: =IFERROR($H46*N46 *IF($E46="Nominal",N$28, INDEX($K$21:$U$21,,MATCH($F46,Years,0)) /INDEX($K$21:$U$21,,MATCH($E46,Years,0))),0) -> 0 | AB46: =IFERROR($H46*O46 *IF($E46="Nominal",O$28, INDEX($K$21:$U$21,,MATCH($F46,Years,0)) /INDEX($K$21:$U$21,,MATCH($E46,Years,0))),0) -> 0 | AC46: =IFERROR($H46*P46 *IF($E46="Nominal",P$28, INDEX($K$21:$U$21,,MATCH($F46,Years,0)) /INDEX($K$21:$U$21,,MATCH($E46,Years,0))),0) -> 0 | AD46: =IFERROR($H46*Q46 *IF($E46="Nominal",Q$28, INDEX($K$21:$U$21,,MATCH($F46,Years,0)) /INDEX($K$21:$U$21,,MATCH($E46,Years,0))),0) -> 58.38189925 | AE46: =IFERROR($H46*R46 *IF($E46="Nominal",R$28, INDEX($K$21:$U$21,,MATCH($F46,Years,0)) /INDEX($K$21:$U$21,,MATCH($E46,Years,0))),0) -> 70.05827909 | AF46: =IFERROR($H46*S46 *IF($E46="Nominal",S$28, INDEX($K$21:$U$21,,MATCH($F46,Years,0)) /INDEX($K$21:$U$21,,MATCH($E46,Years,0))),0) -> 0 | AG46: =IFERROR($H46*T46 *IF($E46="Nominal",T$28, INDEX($K$21:$U$21,,MATCH($F46,Years,0)) /INDEX($K$21:$U$21,,MATCH($E46,Years,0))),0) -> 0 | AH46: =IFERROR($H46*U46 *IF($E46="Nominal",U$28, INDEX($K$21:$U$21,,MATCH($F46,Years,0)) /INDEX($K$21:$U$21,,MATCH($E46,Years,0))),0) -> 0 | AI46: 128.4401783 | AJ46: 0 | AO46: 0 | AP46: 0 | AQ46: 0 | AR46: 0.01538194226 | AS46: 0.9846180577 | AT46: 0 | AU46: 0 | AV46: 1 | AX46: 0 | AY46: 0 | AZ46: 0 | BA46: 0 | BB46: 0 | BC46: 0 | BD46: 0 | BE46: 1.975659407 | BF46: 126.4645189 | BG46: 0 | BH46: 0 | BI46: 128.4401783
A47: Humelink | Guga Substation Upgrade | Land | B47: Project Team Input | C47: $Millions | E47: 2023 | F47: 2023 | H47: 2.674407924 | I47: Land and Easements | O47: 0 | P47: 0 | Q47: 0.4545454545 | R47: 0.5454545455 | S47: 0 | T47: 0 | U47: 0 | V47: =SUM(M47:U47) -> 1 | X47: =IFERROR($H47*K47 *IF($E47="Nominal",K$28, INDEX($K$21:$U$21,,MATCH($F47,Years,0)) /INDEX($K$21:$U$21,,MATCH($E47,Years,0))),0) -> 0 | Y47: =IFERROR($H47*L47 *IF($E47="Nominal",L$28, INDEX($K$21:$U$21,,MATCH($F47,Years,0)) /INDEX($K$21:$U$21,,MATCH($E47,Years,0))),0) -> 0 | Z47: =IFERROR($H47*M47 *IF($E47="Nominal",M$28, INDEX($K$21:$U$21,,MATCH($F47,Years,0)) /INDEX($K$21:$U$21,,MATCH($E47,Years,0))),0) -> 0 | AA47: =IFERROR($H47*N47 *IF($E47="Nominal",N$28, INDEX($K$21:$U$21,,MATCH($F47,Years,0)) /INDEX($K$21:$U$21,,MATCH($E47,Years,0))),0) -> 0 | AB47: =IFERROR($H47*O47 *IF($E47="Nominal",O$28, INDEX($K$21:$U$21,,MATCH($F47,Years,0)) /INDEX($K$21:$U$21,,MATCH($E47,Years,0))),0) -> 0 | AC47: =IFERROR($H47*P47 *IF($E47="Nominal",P$28, INDEX($K$21:$U$21,,MATCH($F47,Years,0)) /INDEX($K$21:$U$21,,MATCH($E47,Years,0))),0) -> 0 | AD47: =IFERROR($H47*Q47 *IF($E47="Nominal",Q$28, INDEX($K$21:$U$21,,MATCH($F47,Years,0)) /INDEX($K$21:$U$21,,MATCH($E47,Years,0))),0) -> 1.215639965 | AE47: =IFERROR($H47*R47 *IF($E47="Nominal",R$28, INDEX($K$21:$U$21,,MATCH($F47,Years,0)) /INDEX($K$21:$U$21,,MATCH($E47,Years,0))),0) -> 1.458767958 | AF47: =IFERROR($H47*S47 *IF($E47="Nominal",S$28, INDEX($K$21:$U$21,,MATCH($F47,Years,0)) /INDEX($K$21:$U$21,,MATCH($E47,Years,0))),0) -> 0 | AG47: =IFERROR($H47*T47 *IF($E47="Nominal",T$28, INDEX($K$21:$U$21,,MATCH($F47,Years,0)) /INDEX($K$21:$U$21,,MATCH($E47,Years,0))),0) -> 0 | AH47: =IFERROR($H47*U47 *IF($E47="Nominal",U$28, INDEX($K$21:$U$21,,MATCH($F47,Years,0)) /INDEX($K$21:$U$21,,MATCH($E47,Years,0))),0) -> 0 | AI47: =SUM(X47:AH47) -> 2.674407924 | AJ47: =IF(AND(H47>0,V47<>1),1,0) -> 0 | AO47: 0 | AP47: 0 | AQ47: 0.4545454545 | AR47: 0.5454545455 | AS47: 0 | AT47: 0 | AU47: 0 | AV47: =SUM(AM47:AU47) -> 1 | AX47: 0 | AY47: 0 | AZ47: 0 | BA47: 0 | BB47: 0 | BC47: 0 | BD47: 1.215639965 | BE47: 1.458767958 | BF47: 0 | BG47: 0 | BH47: 0 | BI47: =SUM(AX47:BH47) -> 2.674407924
A48: Biodiversity Offsets | B48: Project Team Input | C48: $Millions | E48: 2023 | F48: 2023 | H48: 10 | I48: Biodiversity Offsets (Stewardship sites) | O48: 0 | P48: 0 | Q48: 0.09084981859 | R48: 0.8183003628 | S48: 0.09084981859 | T48: 0 | U48: 0 | V48: 1 | X48: =IFERROR($H48*K48 *IF($E48="Nominal",K$28, INDEX($K$21:$U$21,,MATCH($F48,Years,0)) /INDEX($K$21:$U$21,,MATCH($E48,Years,0))),0) -> 0 | Y48: =IFERROR($H48*L48 *IF($E48="Nominal",L$28, INDEX($K$21:$U$21,,MATCH($F48,Years,0)) /INDEX($K$21:$U$21,,MATCH($E48,Years,0))),0) -> 0 | Z48: =IFERROR($H48*M48 *IF($E48="Nominal",M$28, INDEX($K$21:$U$21,,MATCH($F48,Years,0)) /INDEX($K$21:$U$21,,MATCH($E48,Years,0))),0) -> 0 | AA48: =IFERROR($H48*N48 *IF($E48="Nominal",N$28, INDEX($K$21:$U$21,,MATCH($F48,Years,0)) /INDEX($K$21:$U$21,,MATCH($E48,Years,0))),0) -> 0 | AB48: =IFERROR($H48*O48 *IF($E48="Nominal",O$28, INDEX($K$21:$U$21,,MATCH($F48,Years,0)) /INDEX($K$21:$U$21,,MATCH($E48,Years,0))),0) -> 0 | AC48: =IFERROR($H48*P48 *IF($E48="Nominal",P$28, INDEX($K$21:$U$21,,MATCH($F48,Years,0)) /INDEX($K$21:$U$21,,MATCH($E48,Years,0))),0) -> 0 | AD48: =IFERROR($H48*Q48 *IF($E48="Nominal",Q$28, INDEX($K$21:$U$21,,MATCH($F48,Years,0)) /INDEX($K$21:$U$21,,MATCH($E48,Years,0))),0) -> 0.9084981859 | AE48: =IFERROR($H48*R48 *IF($E48="Nominal",R$28, INDEX($K$21:$U$21,,MATCH($F48,Years,0)) /INDEX($K$21:$U$21,,MATCH($E48,Years,0))),0) -> 8.183003628 | AF48: =IFERROR($H48*S48 *IF($E48="Nominal",S$28, INDEX($K$21:$U$21,,MATCH($F48,Years,0)) /INDEX($K$21:$U$21,,MATCH($E48,Years,0))),0) -> 0.9084981859 | AG48: =IFERROR($H48*T48 *IF($E48="Nominal",T$28, INDEX($K$21:$U$21,,MATCH($F48,Years,0)) /INDEX($K$21:$U$21,,MATCH($E48,Years,0))),0) -> 0 | AH48: =IFERROR($H48*U48 *IF($E48="Nominal",U$28, INDEX($K$21:$U$21,,MATCH($F48,Years,0)) /INDEX($K$21:$U$21,,MATCH($E48,Years,0))),0) -> 0 | AI48: 10 | AJ48: 0 | AO48: 0 | AP48: 0 | AQ48: 0.09084981859 | AR48: 0.8183003628 | AS48: 0.09084981859 | AT48: 0 | AU48: 0 | AV48: =SUM(AM48:AU48) -> 1 | AX48: 0 | AY48: 0 | AZ48: 0 | BA48: 0 | BB48: 0 | BC48: 0 | BD48: 0.9084981859 | BE48: 8.183003628 | BF48: 0.9084981859 | BG48: 0 | BH48: 0 | BI48: =SUM(AX48:BH48) -> 10
A49: Biodiversity Offsets (depreciating) | B49: Project Team Input | C49: $Millions | E49: 2023 | F49: =$F$37 -> 2023 | H49: 0 | I49: Biodiversity Offsets (Direct payments and other costs) | O49: 0 | P49: 0 | Q49: 0.09084981859 | R49: 0.8183003628 | S49: 0.09084981859 | T49: 0 | U49: 0 | V49: 1 | X49: =IFERROR($H49*K49 *IF($E49="Nominal",K$28, INDEX($K$21:$U$21,,MATCH($F49,Years,0)) /INDEX($K$21:$U$21,,MATCH($E49,Years,0))),0) -> 0 | Y49: =IFERROR($H49*L49 *IF($E49="Nominal",L$28, INDEX($K$21:$U$21,,MATCH($F49,Years,0)) /INDEX($K$21:$U$21,,MATCH($E49,Years,0))),0) -> 0 | Z49: =IFERROR($H49*M49 *IF($E49="Nominal",M$28, INDEX($K$21:$U$21,,MATCH($F49,Years,0)) /INDEX($K$21:$U$21,,MATCH($E49,Years,0))),0) -> 0 | AA49: =IFERROR($H49*N49 *IF($E49="Nominal",N$28, INDEX($K$21:$U$21,,MATCH($F49,Years,0)) /INDEX($K$21:$U$21,,MATCH($E49,Years,0))),0) -> 0 | AB49: =IFERROR($H49*O49 *IF($E49="Nominal",O$28, INDEX($K$21:$U$21,,MATCH($F49,Years,0)) /INDEX($K$21:$U$21,,MATCH($E49,Years,0))),0) -> 0 | AC49: =IFERROR($H49*P49 *IF($E49="Nominal",P$28, INDEX($K$21:$U$21,,MATCH($F49,Years,0)) /INDEX($K$21:$U$21,,MATCH($E49,Years,0))),0) -> 0 | AD49: =IFERROR($H49*Q49 *IF($E49="Nominal",Q$28, INDEX($K$21:$U$21,,MATCH($F49,Years,0)) /INDEX($K$21:$U$21,,MATCH($E49,Years,0))),0) -> 0 | AE49: =IFERROR($H49*R49 *IF($E49="Nominal",R$28, INDEX($K$21:$U$21,,MATCH($F49,Years,0)) /INDEX($K$21:$U$21,,MATCH($E49,Years,0))),0) -> 0 | AF49: =IFERROR($H49*S49 *IF($E49="Nominal",S$28, INDEX($K$21:$U$21,,MATCH($F49,Years,0)) /INDEX($K$21:$U$21,,MATCH($E49,Years,0))),0) -> 0 | AG49: =IFERROR($H49*T49 *IF($E49="Nominal",T$28, INDEX($K$21:$U$21,,MATCH($F49,Years,0)) /INDEX($K$21:$U$21,,MATCH($E49,Years,0))),0) -> 0 | AH49: =IFERROR($H49*U49 *IF($E49="Nominal",U$28, INDEX($K$21:$U$21,,MATCH($F49,Years,0)) /INDEX($K$21:$U$21,,MATCH($E49,Years,0))),0) -> 0 | AI49: 0 | AJ49: 0 | AO49: 0 | AP49: 0 | AQ49: 0.09084981859 | AR49: 0.8183003628 | AS49: 0.09084981859 | AT49: 0 | AU49: 0 | AV49: =SUM(AM49:AU49) -> 1 | AX49: 0 | AY49: 0 | AZ49: 0 | BA49: 0 | BB49: 0 | BC49: 0 | BD49: 0 | BE49: 0 | BF49: 0 | BG49: 0 | BH49: 0 | BI49: =SUM(AX49:BH49) -> 0
A50: Land and Easement Acquisition | B50: Project Team Input | C50: $Millions | E50: 2023 | F50: =$F$37 -> 2023 | H50: 30.7302 | I50: Land and Easements | O50: 0 | P50: 0 | Q50: 1 | R50: 0 | S50: 0 | T50: 0 | U50: 0 | V50: 1 | X50: =IFERROR($H50*K50 *IF($E50="Nominal",K$28, INDEX($K$21:$U$21,,MATCH($F50,Years,0)) /INDEX($K$21:$U$21,,MATCH($E50,Years,0))),0) -> 0 | Y50: =IFERROR($H50*L50 *IF($E50="Nominal",L$28, INDEX($K$21:$U$21,,MATCH($F50,Years,0)) /INDEX($K$21:$U$21,,MATCH($E50,Years,0))),0) -> 0 | Z50: =IFERROR($H50*M50 *IF($E50="Nominal",M$28, INDEX($K$21:$U$21,,MATCH($F50,Years,0)) /INDEX($K$21:$U$21,,MATCH($E50,Years,0))),0) -> 0 | AA50: =IFERROR($H50*N50 *IF($E50="Nominal",N$28, INDEX($K$21:$U$21,,MATCH($F50,Years,0)) /INDEX($K$21:$U$21,,MATCH($E50,Years,0))),0) -> 0 | AB50: =IFERROR($H50*O50 *IF($E50="Nominal",O$28, INDEX($K$21:$U$21,,MATCH($F50,Years,0)) /INDEX($K$21:$U$21,,MATCH($E50,Years,0))),0) -> 0 | AC50: =IFERROR($H50*P50 *IF($E50="Nominal",P$28, INDEX($K$21:$U$21,,MATCH($F50,Years,0)) /INDEX($K$21:$U$21,,MATCH($E50,Years,0))),0) -> 0 | AD50: =IFERROR($H50*Q50 *IF($E50="Nominal",Q$28, INDEX($K$21:$U$21,,MATCH($F50,Years,0)) /INDEX($K$21:$U$21,,MATCH($E50,Years,0))),0) -> 30.7302 | AE50: =IFERROR($H50*R50 *IF($E50="Nominal",R$28, INDEX($K$21:$U$21,,MATCH($F50,Years,0)) /INDEX($K$21:$U$21,,MATCH($E50,Years,0))),0) -> 0 | AF50: =IFERROR($H50*S50 *IF($E50="Nominal",S$28, INDEX($K$21:$U$21,,MATCH($F50,Years,0)) /INDEX($K$21:$U$21,,MATCH($E50,Years,0))),0) -> 0 | AG50: =IFERROR($H50*T50 *IF($E50="Nominal",T$28, INDEX($K$21:$U$21,,MATCH($F50,Years,0)) /INDEX($K$21:$U$21,,MATCH($E50,Years,0))),0) -> 0 | AH50: =IFERROR($H50*U50 *IF($E50="Nominal",U$28, INDEX($K$21:$U$21,,MATCH($F50,Years,0)) /INDEX($K$21:$U$21,,MATCH($E50,Years,0))),0) -> 0 | AI50: 30.7302 | AJ50: 0 | AO50: 0 | AP50: 0.236582545 | AQ50: 0.763417455 | AR50: 0 | AS50: 0 | AT50: 0 | AU50: 0 | AV50: =SUM(AM50:AU50) -> 1 | AX50: 0 | AY50: 0 | AZ50: 0 | BA50: 0 | BB50: 0 | BC50: 7.270228925 | BD50: 23.45997108 | BE50: 0 | BF50: 0 | BG50: 0 | BH50: 0 | BI50: =SUM(AX50:BH50) -> 30.7302
H52: =SUM(H37:H50) -> 760.6076342 | I52: ◄ Notional sum with various dollar basis for cross check only | V52: Total | X52: =SUM(X37:X50) -> 0 | Y52: 0 | Z52: 0 | AA52: 0 | AB52: 1.580579966 | AC52: 14.96250229 | AD52: 408.2306176 | AE52: 270.1603445 | AF52: 64.218163 | AG52: 0 | AH52: 0 | AI52: 759.1522073 | AV52: Total | AX52: =SUM(AX37:AX50) -> 0 | AY52: 0 | AZ52: 0 | BA52: 0 | BB52: 0 | BC52: 12.79185596 | BD52: 134.5564845 | BE52: 255.540328 | BF52: 356.2635388 | BG52: 0 | BH52: 0 | BI52: 759.1522073
A54: Direct Non-Labour Costs | By RAB asset class | X54: ="Expenditure (June "&$F$37&" dollars)" -> Expenditure (June 2023 dollars) | AX54: ="Expenditure (June "&$F$37&" dollars)" -> Expenditure (June 2023 dollars)
A55: Category | B55: Source | C55: Units | X55: =X$36 -> 2018 | Y55: =Y$36 -> 2019 | Z55: 2020 | AA55: 2021 | AB55: 2022 | AC55: 2023 | AD55: 2024 | AE55: 2025 | AF55: 2026 | AG55: 2027 | AH55: 2028 | AI55: Total | AX55: =AX$36 -> 2018 | AY55: =AY$36 -> 2019 | AZ55: 2020 | BA55: 2021 | BB55: 2022 | BC55: 2023 | BD55: 2024 | BE55: 2025 | BF55: 2026 | BG55: 2027 | BH55: 2028 | BI55: Total
A56: =A191 -> Transmission Lines | B56: Calculated | C56: $Millions | X56: =SUM(X$37:X$50*($I$37:$I$50=$A56)) -> 0 | Y56: =SUM(Y$37:Y$50*($I$37:$I$50=$A56)) -> 0 | Z56: =SUM(Z$37:Z$50*($I$37:$I$50=$A56)) -> 0 | AA56: =SUM(AA$37:AA$50*($I$37:$I$50=$A56)) -> 0 | AB56: =SUM(AB$37:AB$50*($I$37:$I$50=$A56)) -> 1.043995649 | AC56: =SUM(AC$37:AC$50*($I$37:$I$50=$A56)) -> 2.968739487 | AD56: =SUM(AD$37:AD$50*($I$37:$I$50=$A56)) -> 222.0798012 | AE56: =SUM(AE$37:AE$50*($I$37:$I$50=$A56)) -> 121.2290384 | AF56: =SUM(AF$37:AF$50*($I$37:$I$50=$A56)) -> 53.4282242 | AG56: =SUM(AG$37:AG$50*($I$37:$I$50=$A56)) -> 0 | AH56: =SUM(AH$37:AH$50*($I$37:$I$50=$A56)) -> 0 | AI56: =SUM(X56:AH56) -> 400.7497989 | AX56: =SUM(AX$37:AX$50*($I$37:$I$50=$A56)) -> 0 | AY56: =SUM(AY$37:AY$50*($I$37:$I$50=$A56)) -> 0 | AZ56: =SUM(AZ$37:AZ$50*($I$37:$I$50=$A56)) -> 0 | BA56: =SUM(BA$37:BA$50*($I$37:$I$50=$A56)) -> 0 | BB56: =SUM(BB$37:BB$50*($I$37:$I$50=$A56)) -> 0 | BC56: =SUM(BC$37:BC$50*($I$37:$I$50=$A56)) -> 0 | BD56: =SUM(BD$37:BD$50*($I$37:$I$50=$A56)) -> 91.15488806 | BE56: =SUM(BE$37:BE$50*($I$37:$I$50=$A56)) -> 227.3976428 | BF56: =SUM(BF$37:BF$50*($I$37:$I$50=$A56)) -> 82.197268 | BG56: =SUM(BG$37:BG$50*($I$37:$I$50=$A56)) -> 0 | BH56: =SUM(BH$37:BH$50*($I$37:$I$50=$A56)) -> 0 | BI56: =SUM(AX56:BH56) -> 400.7497989
A57: Underground Cables | B57: Calculated | C57: $Millions | X57: =SUM(X$37:X$50*($I$37:$I$50=$A57)) -> 0 | Y57: =SUM(Y$37:Y$50*($I$37:$I$50=$A57)) -> 0 | Z57: =SUM(Z$37:Z$50*($I$37:$I$50=$A57)) -> 0 | AA57: =SUM(AA$37:AA$50*($I$37:$I$50=$A57)) -> 0 | AB57: =SUM(AB$37:AB$50*($I$37:$I$50=$A57)) -> 0 | AC57: =SUM(AC$37:AC$50*($I$37:$I$50=$A57)) -> 0 | AD57: =SUM(AD$37:AD$50*($I$37:$I$50=$A57)) -> 0 | AE57: =SUM(AE$37:AE$50*($I$37:$I$50=$A57)) -> 0 | AF57: =SUM(AF$37:AF$50*($I$37:$I$50=$A57)) -> 0 | AG57: =SUM(AG$37:AG$50*($I$37:$I$50=$A57)) -> 0 | AH57: =SUM(AH$37:AH$50*($I$37:$I$50=$A57)) -> 0 | AI57: 0 | AX57: =SUM(AX$37:AX$50*($I$37:$I$50=$A57)) -> 0 | AY57: =SUM(AY$37:AY$50*($I$37:$I$50=$A57)) -> 0 | AZ57: =SUM(AZ$37:AZ$50*($I$37:$I$50=$A57)) -> 0 | BA57: =SUM(BA$37:BA$50*($I$37:$I$50=$A57)) -> 0 | BB57: =SUM(BB$37:BB$50*($I$37:$I$50=$A57)) -> 0 | BC57: =SUM(BC$37:BC$50*($I$37:$I$50=$A57)) -> 0 | BD57: =SUM(BD$37:BD$50*($I$37:$I$50=$A57)) -> 0 | BE57: =SUM(BE$37:BE$50*($I$37:$I$50=$A57)) -> 0 | BF57: =SUM(BF$37:BF$50*($I$37:$I$50=$A57)) -> 0 | BG57: =SUM(BG$37:BG$50*($I$37:$I$50=$A57)) -> 0 | BH57: =SUM(BH$37:BH$50*($I$37:$I$50=$A57)) -> 0 | BI57: 0
A58: Substations | B58: Calculated | C58: $Millions | X58: =SUM(X$37:X$50*($I$37:$I$50=$A58)) -> 0 | Y58: =SUM(Y$37:Y$50*($I$37:$I$50=$A58)) -> 0 | Z58: =SUM(Z$37:Z$50*($I$37:$I$50=$A58)) -> 0 | AA58: =SUM(AA$37:AA$50*($I$37:$I$50=$A58)) -> 0 | AB58: =SUM(AB$37:AB$50*($I$37:$I$50=$A58)) -> 0.5365843169 | AC58: =SUM(AC$37:AC$50*($I$37:$I$50=$A58)) -> 0 | AD58: =SUM(AD$37:AD$50*($I$37:$I$50=$A58)) -> 141.9511269 | AE58: =SUM(AE$37:AE$50*($I$37:$I$50=$A58)) -> 139.2895345 | AF58: =SUM(AF$37:AF$50*($I$37:$I$50=$A58)) -> 9.881440612 | AG58: =SUM(AG$37:AG$50*($I$37:$I$50=$A58)) -> 0 | AH58: =SUM(AH$37:AH$50*($I$37:$I$50=$A58)) -> 0 | AI58: 291.6586863 | AX58: =SUM(AX$37:AX$50*($I$37:$I$50=$A58)) -> 0 | AY58: =SUM(AY$37:AY$50*($I$37:$I$50=$A58)) -> 0 | AZ58: =SUM(AZ$37:AZ$50*($I$37:$I$50=$A58)) -> 0 | BA58: =SUM(BA$37:BA$50*($I$37:$I$50=$A58)) -> 0 | BB58: =SUM(BB$37:BB$50*($I$37:$I$50=$A58)) -> 0 | BC58: =SUM(BC$37:BC$50*($I$37:$I$50=$A58)) -> 0 | BD58: =SUM(BD$37:BD$50*($I$37:$I$50=$A58)) -> 0 | BE58: =SUM(BE$37:BE$50*($I$37:$I$50=$A58)) -> 18.50091364 | BF58: =SUM(BF$37:BF$50*($I$37:$I$50=$A58)) -> 273.1577727 | BG58: =SUM(BG$37:BG$50*($I$37:$I$50=$A58)) -> 0 | BH58: =SUM(BH$37:BH$50*($I$37:$I$50=$A58)) -> 0 | BI58: 291.6586863
A59: Secondary Systems | B59: Calculated | C59: $Millions | X59: =SUM(X$37:X$50*($I$37:$I$50=$A59)) -> 0 | Y59: =SUM(Y$37:Y$50*($I$37:$I$50=$A59)) -> 0 | Z59: =SUM(Z$37:Z$50*($I$37:$I$50=$A59)) -> 0 | AA59: =SUM(AA$37:AA$50*($I$37:$I$50=$A59)) -> 0 | AB59: =SUM(AB$37:AB$50*($I$37:$I$50=$A59)) -> 0 | AC59: =SUM(AC$37:AC$50*($I$37:$I$50=$A59)) -> 0 | AD59: =SUM(AD$37:AD$50*($I$37:$I$50=$A59)) -> 0 | AE59: =SUM(AE$37:AE$50*($I$37:$I$50=$A59)) -> 0 | AF59: =SUM(AF$37:AF$50*($I$37:$I$50=$A59)) -> 0 | AG59: =SUM(AG$37:AG$50*($I$37:$I$50=$A59)) -> 0 | AH59: =SUM(AH$37:AH$50*($I$37:$I$50=$A59)) -> 0 | AI59: 0 | AX59: =SUM(AX$37:AX$50*($I$37:$I$50=$A59)) -> 0 | AY59: =SUM(AY$37:AY$50*($I$37:$I$50=$A59)) -> 0 | AZ59: =SUM(AZ$37:AZ$50*($I$37:$I$50=$A59)) -> 0 | BA59: =SUM(BA$37:BA$50*($I$37:$I$50=$A59)) -> 0 | BB59: =SUM(BB$37:BB$50*($I$37:$I$50=$A59)) -> 0 | BC59: =SUM(BC$37:BC$50*($I$37:$I$50=$A59)) -> 0 | BD59: =SUM(BD$37:BD$50*($I$37:$I$50=$A59)) -> 0 | BE59: =SUM(BE$37:BE$50*($I$37:$I$50=$A59)) -> 0 | BF59: =SUM(BF$37:BF$50*($I$37:$I$50=$A59)) -> 0 | BG59: =SUM(BG$37:BG$50*($I$37:$I$50=$A59)) -> 0 | BH59: =SUM(BH$37:BH$50*($I$37:$I$50=$A59)) -> 0 | BI59: 0
A60: Communications (short life) | B60: Calculated | C60: $Millions | X60: =SUM(X$37:X$50*($I$37:$I$50=$A60)) -> 0 | Y60: =SUM(Y$37:Y$50*($I$37:$I$50=$A60)) -> 0 | Z60: =SUM(Z$37:Z$50*($I$37:$I$50=$A60)) -> 0 | AA60: =SUM(AA$37:AA$50*($I$37:$I$50=$A60)) -> 0 | AB60: =SUM(AB$37:AB$50*($I$37:$I$50=$A60)) -> 0 | AC60: =SUM(AC$37:AC$50*($I$37:$I$50=$A60)) -> 0 | AD60: =SUM(AD$37:AD$50*($I$37:$I$50=$A60)) -> 0 | AE60: =SUM(AE$37:AE$50*($I$37:$I$50=$A60)) -> 0 | AF60: =SUM(AF$37:AF$50*($I$37:$I$50=$A60)) -> 0 | AG60: =SUM(AG$37:AG$50*($I$37:$I$50=$A60)) -> 0 | AH60: =SUM(AH$37:AH$50*($I$37:$I$50=$A60)) -> 0 | AI60: 0 | AX60: =SUM(AX$37:AX$50*($I$37:$I$50=$A60)) -> 0 | AY60: =SUM(AY$37:AY$50*($I$37:$I$50=$A60)) -> 0 | AZ60: =SUM(AZ$37:AZ$50*($I$37:$I$50=$A60)) -> 0 | BA60: =SUM(BA$37:BA$50*($I$37:$I$50=$A60)) -> 0 | BB60: =SUM(BB$37:BB$50*($I$37:$I$50=$A60)) -> 0 | BC60: =SUM(BC$37:BC$50*($I$37:$I$50=$A60)) -> 0 | BD60: =SUM(BD$37:BD$50*($I$37:$I$50=$A60)) -> 0 | BE60: =SUM(BE$37:BE$50*($I$37:$I$50=$A60)) -> 0 | BF60: =SUM(BF$37:BF$50*($I$37:$I$50=$A60)) -> 0 | BG60: =SUM(BG$37:BG$50*($I$37:$I$50=$A60)) -> 0 | BH60: =SUM(BH$37:BH$50*($I$37:$I$50=$A60)) -> 0 | BI60: 0
A61: Business IT | B61: Calculated | C61: $Millions | X61: =SUM(X$37:X$50*($I$37:$I$50=$A61)) -> 0 | Y61: =SUM(Y$37:Y$50*($I$37:$I$50=$A61)) -> 0 | Z61: =SUM(Z$37:Z$50*($I$37:$I$50=$A61)) -> 0 | AA61: =SUM(AA$37:AA$50*($I$37:$I$50=$A61)) -> 0 | AB61: =SUM(AB$37:AB$50*($I$37:$I$50=$A61)) -> 0 | AC61: =SUM(AC$37:AC$50*($I$37:$I$50=$A61)) -> 0 | AD61: =SUM(AD$37:AD$50*($I$37:$I$50=$A61)) -> 0 | AE61: =SUM(AE$37:AE$50*($I$37:$I$50=$A61)) -> 0 | AF61: =SUM(AF$37:AF$50*($I$37:$I$50=$A61)) -> 0 | AG61: =SUM(AG$37:AG$50*($I$37:$I$50=$A61)) -> 0 | AH61: =SUM(AH$37:AH$50*($I$37:$I$50=$A61)) -> 0 | AI61: 0 | AX61: =SUM(AX$37:AX$50*($I$37:$I$50=$A61)) -> 0 | AY61: =SUM(AY$37:AY$50*($I$37:$I$50=$A61)) -> 0 | AZ61: =SUM(AZ$37:AZ$50*($I$37:$I$50=$A61)) -> 0 | BA61: =SUM(BA$37:BA$50*($I$37:$I$50=$A61)) -> 0 | BB61: =SUM(BB$37:BB$50*($I$37:$I$50=$A61)) -> 0 | BC61: =SUM(BC$37:BC$50*($I$37:$I$50=$A61)) -> 0 | BD61: =SUM(BD$37:BD$50*($I$37:$I$50=$A61)) -> 0 | BE61: =SUM(BE$37:BE$50*($I$37:$I$50=$A61)) -> 0 | BF61: =SUM(BF$37:BF$50*($I$37:$I$50=$A61)) -> 0 | BG61: =SUM(BG$37:BG$50*($I$37:$I$50=$A61)) -> 0 | BH61: =SUM(BH$37:BH$50*($I$37:$I$50=$A61)) -> 0 | BI61: 0
A62: Minor Plant, Motor Vehicles & Mobile Plant | B62: Calculated | C62: $Millions | X62: =SUM(X$37:X$50*($I$37:$I$50=$A62)) -> 0 | Y62: =SUM(Y$37:Y$50*($I$37:$I$50=$A62)) -> 0 | Z62: =SUM(Z$37:Z$50*($I$37:$I$50=$A62)) -> 0 | AA62: =SUM(AA$37:AA$50*($I$37:$I$50=$A62)) -> 0 | AB62: =SUM(AB$37:AB$50*($I$37:$I$50=$A62)) -> 0 | AC62: =SUM(AC$37:AC$50*($I$37:$I$50=$A62)) -> 0 | AD62: =SUM(AD$37:AD$50*($I$37:$I$50=$A62)) -> 0 | AE62: =SUM(AE$37:AE$50*($I$37:$I$50=$A62)) -> 0 | AF62: =SUM(AF$37:AF$50*($I$37:$I$50=$A62)) -> 0 | AG62: =SUM(AG$37:AG$50*($I$37:$I$50=$A62)) -> 0 | AH62: =SUM(AH$37:AH$50*($I$37:$I$50=$A62)) -> 0 | AI62: 0 | AX62: =SUM(AX$37:AX$50*($I$37:$I$50=$A62)) -> 0 | AY62: =SUM(AY$37:AY$50*($I$37:$I$50=$A62)) -> 0 | AZ62: =SUM(AZ$37:AZ$50*($I$37:$I$50=$A62)) -> 0 | BA62: =SUM(BA$37:BA$50*($I$37:$I$50=$A62)) -> 0 | BB62: =SUM(BB$37:BB$50*($I$37:$I$50=$A62)) -> 0 | BC62: =SUM(BC$37:BC$50*($I$37:$I$50=$A62)) -> 0 | BD62: =SUM(BD$37:BD$50*($I$37:$I$50=$A62)) -> 0 | BE62: =SUM(BE$37:BE$50*($I$37:$I$50=$A62)) -> 0 | BF62: =SUM(BF$37:BF$50*($I$37:$I$50=$A62)) -> 0 | BG62: =SUM(BG$37:BG$50*($I$37:$I$50=$A62)) -> 0 | BH62: =SUM(BH$37:BH$50*($I$37:$I$50=$A62)) -> 0 | BI62: 0
A63: Transmission Line Life Extension | B63: Calculated | C63: $Millions | X63: =SUM(X$37:X$50*($I$37:$I$50=$A63)) -> 0 | Y63: =SUM(Y$37:Y$50*($I$37:$I$50=$A63)) -> 0 | Z63: =SUM(Z$37:Z$50*($I$37:$I$50=$A63)) -> 0 | AA63: =SUM(AA$37:AA$50*($I$37:$I$50=$A63)) -> 0 | AB63: =SUM(AB$37:AB$50*($I$37:$I$50=$A63)) -> 0 | AC63: =SUM(AC$37:AC$50*($I$37:$I$50=$A63)) -> 0 | AD63: =SUM(AD$37:AD$50*($I$37:$I$50=$A63)) -> 0 | AE63: =SUM(AE$37:AE$50*($I$37:$I$50=$A63)) -> 0 | AF63: =SUM(AF$37:AF$50*($I$37:$I$50=$A63)) -> 0 | AG63: =SUM(AG$37:AG$50*($I$37:$I$50=$A63)) -> 0 | AH63: =SUM(AH$37:AH$50*($I$37:$I$50=$A63)) -> 0 | AI63: 0 | AX63: =SUM(AX$37:AX$50*($I$37:$I$50=$A63)) -> 0 | AY63: =SUM(AY$37:AY$50*($I$37:$I$50=$A63)) -> 0 | AZ63: =SUM(AZ$37:AZ$50*($I$37:$I$50=$A63)) -> 0 | BA63: =SUM(BA$37:BA$50*($I$37:$I$50=$A63)) -> 0 | BB63: =SUM(BB$37:BB$50*($I$37:$I$50=$A63)) -> 0 | BC63: =SUM(BC$37:BC$50*($I$37:$I$50=$A63)) -> 0 | BD63: =SUM(BD$37:BD$50*($I$37:$I$50=$A63)) -> 0 | BE63: =SUM(BE$37:BE$50*($I$37:$I$50=$A63)) -> 0 | BF63: =SUM(BF$37:BF$50*($I$37:$I$50=$A63)) -> 0 | BG63: =SUM(BG$37:BG$50*($I$37:$I$50=$A63)) -> 0 | BH63: =SUM(BH$37:BH$50*($I$37:$I$50=$A63)) -> 0 | BI63: 0
A64: Land and Easements | B64: Calculated | C64: $Millions | X64: =SUM(X$37:X$50*($I$37:$I$50=$A64)) -> 0 | Y64: =SUM(Y$37:Y$50*($I$37:$I$50=$A64)) -> 0 | Z64: =SUM(Z$37:Z$50*($I$37:$I$50=$A64)) -> 0 | AA64: =SUM(AA$37:AA$50*($I$37:$I$50=$A64)) -> 0 | AB64: =SUM(AB$37:AB$50*($I$37:$I$50=$A64)) -> 0 | AC64: =SUM(AC$37:AC$50*($I$37:$I$50=$A64)) -> 11.99376281 | AD64: =SUM(AD$37:AD$50*($I$37:$I$50=$A64)) -> 43.29119135 | AE64: =SUM(AE$37:AE$50*($I$37:$I$50=$A64)) -> 1.458767958 | AF64: =SUM(AF$37:AF$50*($I$37:$I$50=$A64)) -> 0 | AG64: =SUM(AG$37:AG$50*($I$37:$I$50=$A64)) -> 0 | AH64: =SUM(AH$37:AH$50*($I$37:$I$50=$A64)) -> 0 | AI64: 56.74372212 | AX64: =SUM(AX$37:AX$50*($I$37:$I$50=$A64)) -> 0 | AY64: =SUM(AY$37:AY$50*($I$37:$I$50=$A64)) -> 0 | AZ64: =SUM(AZ$37:AZ$50*($I$37:$I$50=$A64)) -> 0 | BA64: =SUM(BA$37:BA$50*($I$37:$I$50=$A64)) -> 0 | BB64: =SUM(BB$37:BB$50*($I$37:$I$50=$A64)) -> 0 | BC64: =SUM(BC$37:BC$50*($I$37:$I$50=$A64)) -> 12.79185596 | BD64: =SUM(BD$37:BD$50*($I$37:$I$50=$A64)) -> 42.4930982 | BE64: =SUM(BE$37:BE$50*($I$37:$I$50=$A64)) -> 1.458767958 | BF64: =SUM(BF$37:BF$50*($I$37:$I$50=$A64)) -> 0 | BG64: =SUM(BG$37:BG$50*($I$37:$I$50=$A64)) -> 0 | BH64: =SUM(BH$37:BH$50*($I$37:$I$50=$A64)) -> 0 | BI64: 56.74372212
A65: Synchronous Condensers | B65: Calculated | C65: $Millions | X65: =SUM(X$37:X$50*($I$37:$I$50=$A65)) -> 0 | Y65: =SUM(Y$37:Y$50*($I$37:$I$50=$A65)) -> 0 | Z65: =SUM(Z$37:Z$50*($I$37:$I$50=$A65)) -> 0 | AA65: =SUM(AA$37:AA$50*($I$37:$I$50=$A65)) -> 0 | AB65: =SUM(AB$37:AB$50*($I$37:$I$50=$A65)) -> 0 | AC65: =SUM(AC$37:AC$50*($I$37:$I$50=$A65)) -> 0 | AD65: =SUM(AD$37:AD$50*($I$37:$I$50=$A65)) -> 0 | AE65: =SUM(AE$37:AE$50*($I$37:$I$50=$A65)) -> 0 | AF65: =SUM(AF$37:AF$50*($I$37:$I$50=$A65)) -> 0 | AG65: =SUM(AG$37:AG$50*($I$37:$I$50=$A65)) -> 0 | AH65: =SUM(AH$37:AH$50*($I$37:$I$50=$A65)) -> 0 | AI65: 0 | AX65: =SUM(AX$37:AX$50*($I$37:$I$50=$A65)) -> 0 | AY65: =SUM(AY$37:AY$50*($I$37:$I$50=$A65)) -> 0 | AZ65: =SUM(AZ$37:AZ$50*($I$37:$I$50=$A65)) -> 0 | BA65: =SUM(BA$37:BA$50*($I$37:$I$50=$A65)) -> 0 | BB65: =SUM(BB$37:BB$50*($I$37:$I$50=$A65)) -> 0 | BC65: =SUM(BC$37:BC$50*($I$37:$I$50=$A65)) -> 0 | BD65: =SUM(BD$37:BD$50*($I$37:$I$50=$A65)) -> 0 | BE65: =SUM(BE$37:BE$50*($I$37:$I$50=$A65)) -> 0 | BF65: =SUM(BF$37:BF$50*($I$37:$I$50=$A65)) -> 0 | BG65: =SUM(BG$37:BG$50*($I$37:$I$50=$A65)) -> 0 | BH65: =SUM(BH$37:BH$50*($I$37:$I$50=$A65)) -> 0 | BI65: 0
A66: Leasehold Land and Property | B66: Calculated | C66: $Millions | X66: =SUM(X$37:X$50*($I$37:$I$50=$A66)) -> 0 | Y66: =SUM(Y$37:Y$50*($I$37:$I$50=$A66)) -> 0 | Z66: =SUM(Z$37:Z$50*($I$37:$I$50=$A66)) -> 0 | AA66: =SUM(AA$37:AA$50*($I$37:$I$50=$A66)) -> 0 | AB66: =SUM(AB$37:AB$50*($I$37:$I$50=$A66)) -> 0 | AC66: =SUM(AC$37:AC$50*($I$37:$I$50=$A66)) -> 0 | AD66: =SUM(AD$37:AD$50*($I$37:$I$50=$A66)) -> 0 | AE66: =SUM(AE$37:AE$50*($I$37:$I$50=$A66)) -> 0 | AF66: =SUM(AF$37:AF$50*($I$37:$I$50=$A66)) -> 0 | AG66: =SUM(AG$37:AG$50*($I$37:$I$50=$A66)) -> 0 | AH66: =SUM(AH$37:AH$50*($I$37:$I$50=$A66)) -> 0 | AI66: 0 | AX66: =SUM(AX$37:AX$50*($I$37:$I$50=$A66)) -> 0 | AY66: =SUM(AY$37:AY$50*($I$37:$I$50=$A66)) -> 0 | AZ66: =SUM(AZ$37:AZ$50*($I$37:$I$50=$A66)) -> 0 | BA66: =SUM(BA$37:BA$50*($I$37:$I$50=$A66)) -> 0 | BB66: =SUM(BB$37:BB$50*($I$37:$I$50=$A66)) -> 0 | BC66: =SUM(BC$37:BC$50*($I$37:$I$50=$A66)) -> 0 | BD66: =SUM(BD$37:BD$50*($I$37:$I$50=$A66)) -> 0 | BE66: =SUM(BE$37:BE$50*($I$37:$I$50=$A66)) -> 0 | BF66: =SUM(BF$37:BF$50*($I$37:$I$50=$A66)) -> 0 | BG66: =SUM(BG$37:BG$50*($I$37:$I$50=$A66)) -> 0 | BH66: =SUM(BH$37:BH$50*($I$37:$I$50=$A66)) -> 0 | BI66: 0
A67: Biodiversity Offsets (Stewardship sites) | B67: Calculated | C67: $Millions | X67: =SUM(X$37:X$50*($I$37:$I$50=$A67)) -> 0 | Y67: =SUM(Y$37:Y$50*($I$37:$I$50=$A67)) -> 0 | Z67: =SUM(Z$37:Z$50*($I$37:$I$50=$A67)) -> 0 | AA67: =SUM(AA$37:AA$50*($I$37:$I$50=$A67)) -> 0 | AB67: =SUM(AB$37:AB$50*($I$37:$I$50=$A67)) -> 0 | AC67: =SUM(AC$37:AC$50*($I$37:$I$50=$A67)) -> 0 | AD67: =SUM(AD$37:AD$50*($I$37:$I$50=$A67)) -> 0.9084981859 | AE67: =SUM(AE$37:AE$50*($I$37:$I$50=$A67)) -> 8.183003628 | AF67: =SUM(AF$37:AF$50*($I$37:$I$50=$A67)) -> 0.9084981859 | AG67: =SUM(AG$37:AG$50*($I$37:$I$50=$A67)) -> 0 | AH67: =SUM(AH$37:AH$50*($I$37:$I$50=$A67)) -> 0 | AI67: 10 | AX67: =SUM(AX$37:AX$50*($I$37:$I$50=$A67)) -> 0 | AY67: =SUM(AY$37:AY$50*($I$37:$I$50=$A67)) -> 0 | AZ67: =SUM(AZ$37:AZ$50*($I$37:$I$50=$A67)) -> 0 | BA67: =SUM(BA$37:BA$50*($I$37:$I$50=$A67)) -> 0 | BB67: =SUM(BB$37:BB$50*($I$37:$I$50=$A67)) -> 0 | BC67: =SUM(BC$37:BC$50*($I$37:$I$50=$A67)) -> 0 | BD67: =SUM(BD$37:BD$50*($I$37:$I$50=$A67)) -> 0.9084981859 | BE67: =SUM(BE$37:BE$50*($I$37:$I$50=$A67)) -> 8.183003628 | BF67: =SUM(BF$37:BF$50*($I$37:$I$50=$A67)) -> 0.9084981859 | BG67: =SUM(BG$37:BG$50*($I$37:$I$50=$A67)) -> 0 | BH67: =SUM(BH$37:BH$50*($I$37:$I$50=$A67)) -> 0 | BI67: 10
A68: Biodiversity Offsets (Direct payments and other costs) | B68: Calculated | C68: $Millions | X68: =SUM(X$37:X$50*($I$37:$I$50=$A68)) -> 0 | Y68: =SUM(Y$37:Y$50*($I$37:$I$50=$A68)) -> 0 | Z68: =SUM(Z$37:Z$50*($I$37:$I$50=$A68)) -> 0 | AA68: =SUM(AA$37:AA$50*($I$37:$I$50=$A68)) -> 0 | AB68: =SUM(AB$37:AB$50*($I$37:$I$50=$A68)) -> 0 | AC68: =SUM(AC$37:AC$50*($I$37:$I$50=$A68)) -> 0 | AD68: =SUM(AD$37:AD$50*($I$37:$I$50=$A68)) -> 0 | AE68: =SUM(AE$37:AE$50*($I$37:$I$50=$A68)) -> 0 | AF68: =SUM(AF$37:AF$50*($I$37:$I$50=$A68)) -> 0 | AG68: =SUM(AG$37:AG$50*($I$37:$I$50=$A68)) -> 0 | AH68: =SUM(AH$37:AH$50*($I$37:$I$50=$A68)) -> 0 | AI68: =SUM(X68:AH68) -> 0 | AX68: =SUM(AX$37:AX$50*($I$37:$I$50=$A68)) -> 0 | AY68: =SUM(AY$37:AY$50*($I$37:$I$50=$A68)) -> 0 | AZ68: =SUM(AZ$37:AZ$50*($I$37:$I$50=$A68)) -> 0 | BA68: =SUM(BA$37:BA$50*($I$37:$I$50=$A68)) -> 0 | BB68: =SUM(BB$37:BB$50*($I$37:$I$50=$A68)) -> 0 | BC68: =SUM(BC$37:BC$50*($I$37:$I$50=$A68)) -> 0 | BD68: =SUM(BD$37:BD$50*($I$37:$I$50=$A68)) -> 0 | BE68: =SUM(BE$37:BE$50*($I$37:$I$50=$A68)) -> 0 | BF68: =SUM(BF$37:BF$50*($I$37:$I$50=$A68)) -> 0 | BG68: =SUM(BG$37:BG$50*($I$37:$I$50=$A68)) -> 0 | BH68: =SUM(BH$37:BH$50*($I$37:$I$50=$A68)) -> 0 | BI68: =SUM(AX68:BH68) -> 0
A69: =A204 -> Buildings - capital works | B69: Calculated | C69: $Millions | X69: =SUM(X$37:X$50*($I$37:$I$50=$A69)) -> 0 | Y69: =SUM(Y$37:Y$50*($I$37:$I$50=$A69)) -> 0 | Z69: =SUM(Z$37:Z$50*($I$37:$I$50=$A69)) -> 0 | AA69: =SUM(AA$37:AA$50*($I$37:$I$50=$A69)) -> 0 | AB69: =SUM(AB$37:AB$50*($I$37:$I$50=$A69)) -> 0 | AC69: =SUM(AC$37:AC$50*($I$37:$I$50=$A69)) -> 0 | AD69: =SUM(AD$37:AD$50*($I$37:$I$50=$A69)) -> 0 | AE69: =SUM(AE$37:AE$50*($I$37:$I$50=$A69)) -> 0 | AF69: =SUM(AF$37:AF$50*($I$37:$I$50=$A69)) -> 0 | AG69: =SUM(AG$37:AG$50*($I$37:$I$50=$A69)) -> 0 | AH69: =SUM(AH$37:AH$50*($I$37:$I$50=$A69)) -> 0 | AI69: 0 | AX69: =SUM(AX$37:AX$50*($I$37:$I$50=$A69)) -> 0 | AY69: =SUM(AY$37:AY$50*($I$37:$I$50=$A69)) -> 0 | AZ69: =SUM(AZ$37:AZ$50*($I$37:$I$50=$A69)) -> 0 | BA69: =SUM(BA$37:BA$50*($I$37:$I$50=$A69)) -> 0 | BB69: =SUM(BB$37:BB$50*($I$37:$I$50=$A69)) -> 0 | BC69: =SUM(BC$37:BC$50*($I$37:$I$50=$A69)) -> 0 | BD69: =SUM(BD$37:BD$50*($I$37:$I$50=$A69)) -> 0 | BE69: =SUM(BE$37:BE$50*($I$37:$I$50=$A69)) -> 0 | BF69: =SUM(BF$37:BF$50*($I$37:$I$50=$A69)) -> 0 | BG69: =SUM(BG$37:BG$50*($I$37:$I$50=$A69)) -> 0 | BH69: =SUM(BH$37:BH$50*($I$37:$I$50=$A69)) -> 0 | BI69: =SUM(AX69:BH69) -> 0
A70: =A205 -> In-house software | B70: Calculated | C70: $Millions | X70: =SUM(X$37:X$50*($I$37:$I$50=$A70)) -> 0 | Y70: =SUM(Y$37:Y$50*($I$37:$I$50=$A70)) -> 0 | Z70: =SUM(Z$37:Z$50*($I$37:$I$50=$A70)) -> 0 | AA70: =SUM(AA$37:AA$50*($I$37:$I$50=$A70)) -> 0 | AB70: =SUM(AB$37:AB$50*($I$37:$I$50=$A70)) -> 0 | AC70: =SUM(AC$37:AC$50*($I$37:$I$50=$A70)) -> 0 | AD70: =SUM(AD$37:AD$50*($I$37:$I$50=$A70)) -> 0 | AE70: =SUM(AE$37:AE$50*($I$37:$I$50=$A70)) -> 0 | AF70: =SUM(AF$37:AF$50*($I$37:$I$50=$A70)) -> 0 | AG70: =SUM(AG$37:AG$50*($I$37:$I$50=$A70)) -> 0 | AH70: =SUM(AH$37:AH$50*($I$37:$I$50=$A70)) -> 0 | AI70: 0 | AX70: =SUM(AX$37:AX$50*($I$37:$I$50=$A70)) -> 0 | AY70: =SUM(AY$37:AY$50*($I$37:$I$50=$A70)) -> 0 | AZ70: =SUM(AZ$37:AZ$50*($I$37:$I$50=$A70)) -> 0 | BA70: =SUM(BA$37:BA$50*($I$37:$I$50=$A70)) -> 0 | BB70: =SUM(BB$37:BB$50*($I$37:$I$50=$A70)) -> 0 | BC70: =SUM(BC$37:BC$50*($I$37:$I$50=$A70)) -> 0 | BD70: =SUM(BD$37:BD$50*($I$37:$I$50=$A70)) -> 0 | BE70: =SUM(BE$37:BE$50*($I$37:$I$50=$A70)) -> 0 | BF70: =SUM(BF$37:BF$50*($I$37:$I$50=$A70)) -> 0 | BG70: =SUM(BG$37:BG$50*($I$37:$I$50=$A70)) -> 0 | BH70: =SUM(BH$37:BH$50*($I$37:$I$50=$A70)) -> 0 | BI70: =SUM(AX70:BH70) -> 0
A71: =A206 -> [Spare] | B71: Calculated | C71: $Millions | X71: =SUM(X$37:X$50*($I$37:$I$50=$A71)) -> 0 | Y71: =SUM(Y$37:Y$50*($I$37:$I$50=$A71)) -> 0 | Z71: =SUM(Z$37:Z$50*($I$37:$I$50=$A71)) -> 0 | AA71: =SUM(AA$37:AA$50*($I$37:$I$50=$A71)) -> 0 | AB71: =SUM(AB$37:AB$50*($I$37:$I$50=$A71)) -> 0 | AC71: =SUM(AC$37:AC$50*($I$37:$I$50=$A71)) -> 0 | AD71: =SUM(AD$37:AD$50*($I$37:$I$50=$A71)) -> 0 | AE71: =SUM(AE$37:AE$50*($I$37:$I$50=$A71)) -> 0 | AF71: =SUM(AF$37:AF$50*($I$37:$I$50=$A71)) -> 0 | AG71: =SUM(AG$37:AG$50*($I$37:$I$50=$A71)) -> 0 | AH71: =SUM(AH$37:AH$50*($I$37:$I$50=$A71)) -> 0 | AI71: 0 | AX71: =SUM(AX$37:AX$50*($I$37:$I$50=$A71)) -> 0 | AY71: =SUM(AY$37:AY$50*($I$37:$I$50=$A71)) -> 0 | AZ71: =SUM(AZ$37:AZ$50*($I$37:$I$50=$A71)) -> 0 | BA71: =SUM(BA$37:BA$50*($I$37:$I$50=$A71)) -> 0 | BB71: =SUM(BB$37:BB$50*($I$37:$I$50=$A71)) -> 0 | BC71: =SUM(BC$37:BC$50*($I$37:$I$50=$A71)) -> 0 | BD71: =SUM(BD$37:BD$50*($I$37:$I$50=$A71)) -> 0 | BE71: =SUM(BE$37:BE$50*($I$37:$I$50=$A71)) -> 0 | BF71: =SUM(BF$37:BF$50*($I$37:$I$50=$A71)) -> 0 | BG71: =SUM(BG$37:BG$50*($I$37:$I$50=$A71)) -> 0 | BH71: =SUM(BH$37:BH$50*($I$37:$I$50=$A71)) -> 0 | BI71: =SUM(AX71:BH71) -> 0
W73: Total | X73: =SUM(X56:X71) -> 0 | Y73: 0 | Z73: 0 | AA73: 0 | AB73: 1.580579966 | AC73: 14.96250229 | AD73: 408.2306176 | AE73: 270.1603445 | AF73: 64.218163 | AG73: 0 | AH73: 0 | AI73: =SUM(AI56:AI71) -> 759.1522073 | AX73: =SUM(AX56:AX71) -> 0 | AY73: 0 | AZ73: 0 | BA73: 0 | BB73: 0 | BC73: 12.79185596 | BD73: 134.5564845 | BE73: 255.540328 | BF73: 356.2635388 | BG73: 0 | BH73: 0 | BI73: =SUM(BI56:BI71) -> 759.1522073
X74: =IF(ROUND(X52-X73,3)=0,0,1) -> 0 | Y74: =IF(ROUND(Y52-Y73,3)=0,0,1) -> 0 | Z74: =IF(ROUND(Z52-Z73,3)=0,0,1) -> 0 | AA74: =IF(ROUND(AA52-AA73,3)=0,0,1) -> 0 | AB74: 0 | AC74: 0 | AD74: 0 | AE74: 0 | AF74: 0 | AG74: 0 | AH74: 0 | AI74: 0 | AX74: =IF(ROUND(AX52-AX73,3)=0,0,1) -> 0 | AY74: =IF(ROUND(AY52-AY73,3)=0,0,1) -> 0 | AZ74: =IF(ROUND(AZ52-AZ73,3)=0,0,1) -> 0 | BA74: =IF(ROUND(BA52-BA73,3)=0,0,1) -> 0 | BB74: 0 | BC74: 0 | BD74: 0 | BE74: 0 | BF74: 0 | BG74: 0 | BH74: 0 | BI74: 0
A76: Labour Costs
A78: Labour Costs | E78: Conversion | H78: Mapping | K78: ="Expenditure (June "&$E$80&" dollars, unescalated)" -> Expenditure (June 2023 dollars, unescalated)
A79: Component | B79: Source | C79: Units | E79: Dollar Year | F79: Escalation Year | K79: =K$20 -> 2018 | L79: 2019 | M79: 2020 | N79: 2021 | O79: 2022 | P79: 2023 | Q79: 2024 | R79: 2025 | S79: 2026 | T79: 2027 | U79: 2028 | V79: Total
A80: Actuals (to 31 May 2023) | E80: 2023 | F80: 2023
A81: ="Labour - VNI - "&A210 -> Labour - VNI - Project Management | B81: Transgrid | C81: $Millions | H81: =A210 -> Project Management | K81: 0 | L81: 0 | M81: 0 | N81: 0 | O81: 1.27277105 | P81: 3.205397967 | V81: =SUM(K81:U81) -> 4.478169017
A82: ="Labour - VNI - "&A211 -> Labour - VNI - Project Development | B82: Transgrid | C82: $Millions | H82: =A211 -> Project Development | K82: 0.002751266362 | L82: 0 | M82: 0.1453421691 | N82: 0.000207745095 | O82: 0.3073427336 | P82: 0.03405528815 | V82: 0.4896992023
A83: Labour - VNI - Transaction Procurement Support | B83: Transgrid | C83: $Millions | H83: Transaction Procurement Support | K83: 0 | L83: 0 | M83: 0 | N83: 0 | O83: 0 | P83: 0 | V83: 0
A84: Labour - VNI - Community and Stakeholder Engagement | B84: Transgrid | C84: $Millions | H84: Community and Stakeholder Engagement | K84: 0 | L84: 0 | M84: 0 | N84: 0 | O84: 0.171955919 | P84: 1.181373452 | V84: 1.353329371
A85: Labour - VNI - Land and Environment | B85: Transgrid | C85: $Millions | H85: Land and Environment | K85: 0 | L85: 0 | M85: 0 | N85: 0 | O85: 0.03987797857 | P85: 0.604029823 | V85: 0.6439078016
A86: Labour - VNI - Regulatory Approvals | B86: Transgrid | C86: $Millions | H86: Regulatory Approvals | K86: 0 | L86: 0 | M86: 0 | N86: 0 | O86: 0 | P86: 0.1025486163 | V86: 0.1025486163
A87: Labour - VNI - Other Support & Corporate Roles | B87: Transgrid | C87: $Millions | H87: Other Support & Corporate Roles | K87: 0 | L87: 0 | M87: 0.0003980111585 | N87: 0 | O87: 0.1896226682 | P87: 1.660836707 | V87: 1.850857386
A88: ="Labour - VNI - "&A217 -> Labour - VNI - Indirect - Proportion of labour and labour-related costs | B88: Transgrid | C88: $Millions | H88: Indirect - Proportion of labour and labour-related costs | K88: 0 | L88: 0 | M88: 0 | N88: 0 | O88: 0 | P88: 0 | V88: 0
A89: ="Labour - PEC - "&$A$210 -> Labour - PEC - Project Management | B89: Transgrid | C89: $Millions | H89: =H81 -> Project Management | K89: 0 | L89: 0 | M89: 0 | N89: 0 | O89: 0 | P89: 0.09688734096 | V89: 0.09688734096
A90: ="Labour - PEC - "&$A$211 -> Labour - PEC - Project Development | B90: Transgrid | C90: $Millions | H90: =H82 -> Project Development | K90: 0 | L90: 0 | M90: 0 | N90: 0 | O90: 0 | P90: 0.2057646467 | V90: 0.2057646467
A91: ="Labour - PEC - "&$A$213 -> Labour - PEC - Community and Stakeholder Engagement | B91: Transgrid | C91: $Millions | H91: =H84 -> Community and Stakeholder Engagement | K91: 0 | L91: 0 | M91: 0 | N91: 0 | O91: 0 | P91: 0 | V91: 0
A92: ="Labour - PEC - "&$A$214 -> Labour - PEC - Land and Environment | B92: Transgrid | C92: $Millions | H92: =H85 -> Land and Environment | K92: 0 | L92: 0 | M92: 0 | N92: 0 | O92: 0.006668315635 | P92: 0 | V92: 0.006668315635
A93: ="Labour - PEC - "&$A$215 -> Labour - PEC - Regulatory Approvals | B93: Transgrid | C93: $Millions | H93: =H86 -> Regulatory Approvals | K93: 0 | L93: 0 | M93: 0 | N93: 0 | O93: 0 | P93: 0 | V93: 0
A94: ="Labour - PEC - "&$A$217 -> Labour - PEC - Indirect - Proportion of labour and labour-related costs | B94: Transgrid | C94: $Millions | H94: Indirect - Proportion of labour and labour-related costs | K94: 0 | L94: 0 | M94: 0 | N94: 0 | O94: 0 | P94: 0 | V94: 0
A95: ="Labour - HL - "&$A$210 -> Labour - HL - Project Management | B95: Transgrid | C95: $Millions | H95: Project Management | K95: 0 | L95: 0 | M95: 0 | N95: 0 | O95: 0 | P95: 0 | V95: 0
A96: ="Labour - HL - "&$A$211 -> Labour - HL - Project Development | B96: Transgrid | C96: $Millions | H96: Project Development | K96: 0 | L96: 0 | M96: 0 | N96: 0 | O96: 0 | P96: 0 | V96: 0
A97: ="Labour - HL - "&$A$213 -> Labour - HL - Community and Stakeholder Engagement | B97: Transgrid | C97: $Millions | H97: Community and Stakeholder Engagement | K97: 0 | L97: 0 | M97: 0 | N97: 0 | O97: 0 | P97: 0 | V97: 0
A98: ="Labour - HL - "&$A$214 -> Labour - HL - Land and Environment | B98: Transgrid | C98: $Millions | H98: Land and Environment | K98: 0 | L98: 0 | M98: 0 | N98: 0 | O98: 0 | P98: 0 | V98: 0
A99: ="Labour - HL - "&$A$216 -> Labour - HL - Other Support & Corporate Roles | B99: Transgrid | C99: $Millions | H99: Other Support & Corporate Roles | K99: 0 | L99: 0 | M99: 0 | N99: 0 | O99: 0 | P99: 0 | V99: 0
A100: ="Labour - HL - "&$A$217 -> Labour - HL - Indirect - Proportion of labour and labour-related costs | B100: Transgrid | C100: $Millions | H100: Indirect - Proportion of labour and labour-related costs | K100: 0 | L100: 0 | M100: 0 | N100: 0 | O100: 0 | P100: 0 | V100: 0
A101: Forecasts (from 01 June 2023)
A102: =A81 -> Labour - VNI - Project Management | B102: Transgrid | C102: $Millions | H102: =H81 -> Project Management | P102: 0 | Q102: 7.39389723 | R102: 6.432869296 | S102: 0 | V102: =SUM(K102:U102) -> 13.82676653
A103: Labour - VNI - Project Development | B103: Transgrid | C103: $Millions | H103: Project Development | P103: 0 | Q103: 2.166058918 | R103: 0.9646554727 | S103: 0 | V103: 3.130714391
A104: Labour - VNI - Transaction Procurement Support | B104: Transgrid | C104: $Millions | H104: Transaction Procurement Support | P104: 0 | Q104: 0.113659657 | R104: 0.3268086958 | S104: 0 | V104: 0.4404683529
A105: Labour - VNI - Community and Stakeholder Engagement | B105: Transgrid | C105: $Millions | H105: Community and Stakeholder Engagement | P105: 0 | Q105: 4.116973592 | R105: 3.358281485 | S105: 0 | V105: 7.475255077
A106: Labour - VNI - Land and Environment | B106: Transgrid | C106: $Millions | H106: Land and Environment | P106: 0 | Q106: 2.839069997 | R106: 2.595550671 | S106: 0 | V106: 5.434620667
A107: Labour - VNI - Regulatory Approvals | B107: Transgrid | C107: $Millions | H107: Regulatory Approvals | P107: 0 | Q107: 0.1542624978 | R107: 0.3856562444 | S107: 0 | V107: 0.5399187422
A108: Labour - VNI - Other Support & Corporate Roles | B108: Transgrid | C108: $Millions | H108: Other Support & Corporate Roles | P108: 0 | Q108: 0.3037908119 | R108: 0.3244423433 | S108: 0 | V108: 0.6282331552
A109: Labour - VNI - Indirect - Proportion of labour and labour-related costs | B109: Transgrid | C109: $Millions | H109: Indirect - Proportion of labour and labour-related costs | P109: 0 | Q109: 7.323305444 | R109: 6.166398946 | S109: 0 | V109: 13.48970439
A110: Labour - PEC - Project Management | B110: Transgrid | C110: $Millions | H110: Project Management | P110: 0 | Q110: 1.260614996 | R110: 0.8400817306 | S110: 0 | V110: 2.100696727
A111: Labour - PEC - Project Development | B111: Transgrid | C111: $Millions | H111: Project Development | P111: 0 | Q111: 1.300816188 | R111: 1.040033203 | S111: 0 | V111: 2.340849391
A112: Labour - PEC - Community and Stakeholder Engagement | B112: Transgrid | C112: $Millions | H112: Community and Stakeholder Engagement | P112: 0 | Q112: 0.25322668 | R112: 0.20349224 | S112: 0 | V112: 0.45671892
A113: Labour - PEC - Land and Environment | B113: Transgrid | C113: $Millions | H113: Land and Environment | P113: 0 | Q113: 0.11545289 | R113: 0.03040912 | S113: 0 | V113: 0.14586201
A114: Labour - PEC - Regulatory Approvals | B114: Transgrid | C114: $Millions | H114: Regulatory Approvals | P114: 0 | Q114: 0.1394904 | R114: 0.0697452 | S114: 0 | V114: 0.2092356
A115: Labour - PEC - Indirect - Proportion of labour and labour-related costs | B115: Transgrid | C115: $Millions | H115: Indirect - Proportion of labour and labour-related costs | P115: 0 | Q115: 1.315543352 | R115: 0.935897783 | S115: 0 | V115: 2.251441135
A116: Labour - HL - Project Management | B116: Transgrid | C116: $Millions | H116: Project Management | P116: 0 | Q116: 0.2135215669 | R116: 0.1779346391 | S116: 0 | V116: 0.3914562059
A117: Labour - HL - Project Development | B117: Transgrid | C117: $Millions | H117: Project Development | P117: 0 | Q117: 0.403982109 | R117: 0.3366517575 | S117: 0 | V117: 0.7406338664
A118: Labour - HL - Community and Stakeholder Engagement | B118: Transgrid | C118: $Millions | H118: Community and Stakeholder Engagement | P118: 0 | Q118: 0.02579889312 | R118: 0.0214990776 | S118: 0 | V118: 0.04729797072
A119: Labour - HL - Land and Environment | B119: Transgrid | C119: $Millions | H119: Land and Environment | P119: 0 | Q119: 0.0259028805 | R119: 0.02158573375 | S119: 0 | V119: 0.04748861425
A120: Labour - HL - Other Support & Corporate Roles | B120: Transgrid | C120: $Millions | H120: Other Support & Corporate Roles | P120: 0 | Q120: 0.07299914076 | R120: 0.0608326173 | S120: 0 | V120: 0.1338317581
A121: Labour - HL - Indirect - Proportion of labour and labour-related costs | B121: Transgrid | C121: $Millions | H121: Indirect - Proportion of labour and labour-related costs | P121: 0 | Q121: 0.3180876815 | R121: 0.2650730679 | S121: 0 | V121: 0.5831607494
A122: Total
A123: Labour | E123: Contingency | K123: =SUM(K81:K100,K102:K121) -> 0.002751266362 | L123: =SUM(L81:L100,L102:L121) -> 0 | M123: 0.1457401803 | N123: 0.000207745095 | O123: 1.988238665 | P123: 7.090893841 | Q123: 29.85645493 | R123: 24.55789932 | S123: 0 | T123: 0 | U123: 0 | V123: 63.64218595
A124: PEC - Contingency | B124: Transgrid | C124: $Millions | H124: Contingency | K124: =SUMIF($A$102:$A$121,"*PEC*",K$102:K$121)*$E124 -> 0 | L124: =SUMIF($A$102:$A$121,"*PEC*",L$102:L$121)*$E124 -> 0 | M124: 0 | N124: 0 | O124: 0 | P124: 0 | Q124: 0 | R124: 0 | S124: 0 | T124: 0 | U124: 0 | V124: 0
A125: Humelink - Contingency | B125: Transgrid | C125: $Millions | H125: Contingency | K125: =SUMIF($A$102:$A$121,"*HL*",K$102:K$121)*$E125 -> 0 | L125: =SUMIF($A$102:$A$121,"*HL*",L$102:L$121)*$E125 -> 0 | M125: 0 | N125: 0 | O125: 0 | P125: 0 | Q125: 0 | R125: 0 | S125: 0 | T125: 0 | U125: 0 | V125: 0
A126: Labour + Conginecy | B126: Transgrid | C126: $Millions | K126: =SUM(K123:K125) -> 0.002751266362 | L126: =SUM(L123:L125) -> 0 | M126: 0.1457401803 | N126: 0.000207745095 | O126: 1.988238665 | P126: 7.090893841 | Q126: 29.85645493 | R126: 24.55789932 | S126: 0 | T126: 0 | U126: 0 | V126: =SUM(K126:U126) -> 63.64218595
A128: Note: Direct labour costs for each year are pro-rated across escalated capex by asset class for that year | J128: Total | K128: =K126 -> 0.002751266362 | L128: =L126 -> 0 | M128: =M126 -> 0.1457401803 | N128: 0.000207745095 | O128: 1.988238665 | P128: 7.090893841 | Q128: 29.85645493 | R128: 24.55789932 | S128: 0 | T128: 0 | U128: 0 | V128: =SUM(K128:U128) -> 63.64218595
J129: ="Total ("&$A$8&")" -> Total (Real $2023) | K129: =K128*INDEX($K$21:$U$21,MATCH(Report_Year,Years,0))/INDEX($K$21:$U$21,MATCH(Inputs!$E$80,Years,0)) -> 0.002751266362 | L129: =L128*INDEX($K$21:$U$21,MATCH(Report_Year,Years,0))/INDEX($K$21:$U$21,MATCH(Inputs!$E$80,Years,0)) -> 0 | M129: =M128*INDEX($K$21:$U$21,MATCH(Report_Year,Years,0))/INDEX($K$21:$U$21,MATCH(Inputs!$E$80,Years,0)) -> 0.1457401803 | N129: =N128*INDEX($K$21:$U$21,MATCH(Report_Year,Years,0))/INDEX($K$21:$U$21,MATCH(Inputs!$E$80,Years,0)) -> 0.000207745095 | O129: =O128*INDEX($K$21:$U$21,MATCH(Report_Year,Years,0))/INDEX($K$21:$U$21,MATCH(Inputs!$E$80,Years,0)) -> 1.988238665 | P129: =P128*INDEX($K$21:$U$21,MATCH(Report_Year,Years,0))/INDEX($K$21:$U$21,MATCH(Inputs!$E$80,Years,0)) -> 7.090893841 | Q129: =Q128*INDEX($K$21:$U$21,MATCH(Report_Year,Years,0))/INDEX($K$21:$U$21,MATCH(Inputs!$E$80,Years,0)) -> 29.85645493 | R129: =R128*INDEX($K$21:$U$21,MATCH(Report_Year,Years,0))/INDEX($K$21:$U$21,MATCH(Inputs!$E$80,Years,0)) -> 24.55789932 | S129: =S128*INDEX($K$21:$U$21,MATCH(Report_Year,Years,0))/INDEX($K$21:$U$21,MATCH(Inputs!$E$80,Years,0)) -> 0 | T129: =T128*INDEX($K$21:$U$21,MATCH(Report_Year,Years,0))/INDEX($K$21:$U$21,MATCH(Inputs!$E$80,Years,0)) -> 0 | U129: =U128*INDEX($K$21:$U$21,MATCH(Report_Year,Years,0))/INDEX($K$21:$U$21,MATCH(Inputs!$E$80,Years,0)) -> 0 | V129: =SUM(K129:U129) -> 63.64218595
J130: ="Total including escalation ("&$A$8&")" -> Total including escalation (Real $2023) | K130: =IF(K$79<=$F$80,K129, K129*K$22/INDEX(Inputs!$K$22:$U$22,MATCH(Inputs!$F$80,Years,0))) -> 0.002751266362 | L130: =IF(L$79<=$F$80,L129, L129*L$22/INDEX(Inputs!$K$22:$U$22,MATCH(Inputs!$F$80,Years,0))) -> 0 | M130: =IF(M$79<=$F$80,M129, M129*M$22/INDEX(Inputs!$K$22:$U$22,MATCH(Inputs!$F$80,Years,0))) -> 0.1457401803 | N130: =IF(N$79<=$F$80,N129, N129*N$22/INDEX(Inputs!$K$22:$U$22,MATCH(Inputs!$F$80,Years,0))) -> 0.000207745095 | O130: =IF(O$79<=$F$80,O129, O129*O$22/INDEX(Inputs!$K$22:$U$22,MATCH(Inputs!$F$80,Years,0))) -> 1.988238665 | P130: =IF(P$79<=$F$80,P129, P129*P$22/INDEX(Inputs!$K$22:$U$22,MATCH(Inputs!$F$80,Years,0))) -> 7.090893841 | Q130: =IF(Q$79<=$F$80,Q129, Q129*Q$22/INDEX(Inputs!$K$22:$U$22,MATCH(Inputs!$F$80,Years,0))) -> 29.97303413 | R130: =IF(R$79<=$F$80,R129, R129*R$22/INDEX(Inputs!$K$22:$U$22,MATCH(Inputs!$F$80,Years,0))) -> 24.97617433 | S130: =IF(S$79<=$F$80,S129, S129*S$22/INDEX(Inputs!$K$22:$U$22,MATCH(Inputs!$F$80,Years,0))) -> 0 | T130: =IF(T$79<=$F$80,T129, T129*T$22/INDEX(Inputs!$K$22:$U$22,MATCH(Inputs!$F$80,Years,0))) -> 0 | U130: =IF(U$79<=$F$80,U129, U129*U$22/INDEX(Inputs!$K$22:$U$22,MATCH(Inputs!$F$80,Years,0))) -> 0 | V130: =SUM(K130:U130) -> 64.17704016
A132: Non-Labour Costs
A134: Indirect Costs | E134: Conversion | H134: Mapping | K134: ="Expenditure (June "&$E$136&" dollars, unescalated)" -> Expenditure (June 2023 dollars, unescalated)
A135: Component | B135: Source | C135: Units | E135: Dollar Year | K135: =K$20 -> 2018 | L135: 2019 | M135: 2020 | N135: 2021 | O135: 2022 | P135: 2023 | Q135: 2024 | R135: 2025 | S135: 2026 | T135: 2027 | U135: 2028 | V135: Total
A136: =A80 -> Actuals (to 31 May 2023) | E136: 2023
A137: ="Non Labour - VNI - "&A210 -> Non Labour - VNI - Project Management | B137: Transgrid | C137: $Millions | H137: =H81 -> Project Management | K137: 0 | L137: 0 | M137: 0 | N137: 0 | O137: 0.6432791958 | P137: 0.4465076319 | V137: =SUM(K137:U137) -> 1.089786828
A138: Non Labour - VNI - Project Development | B138: Transgrid | C138: $Millions | H138: Project Development | K138: 0 | L138: 0 | M138: 0 | N138: 0 | O138: 1.884143246 | P138: 1.204466206 | V138: 3.088609452
A139: Non Labour - VNI - Transaction Procurement Support | B139: Transgrid | C139: $Millions | H139: Transaction Procurement Support | K139: 0 | L139: 0 | M139: 0 | N139: 0 | O139: 0 | P139: 0 | V139: 0
A140: Non Labour - VNI - Community and Stakeholder Engagement | B140: Transgrid | C140: $Millions | H140: Community and Stakeholder Engagement | K140: 0 | L140: 0 | M140: 0 | N140: 0 | O140: 0.233925304 | P140: 0.5788559398 | V140: 0.8127812438
A141: Non Labour - VNI - Land and Environment | B141: Transgrid | C141: $Millions | H141: Land and Environment | K141: 0 | L141: 0 | M141: 0 | N141: 0 | O141: 0 | P141: 0.5358624238 | V141: 0.5358624238
A142: Non Labour - VNI - Regulatory Approvals | B142: Transgrid | C142: $Millions | H142: Regulatory Approvals | K142: 0 | L142: 0 | M142: 0 | N142: 0 | O142: 0 | P142: 0 | V142: 0
A143: Non Labour - VNI - Other Support & Corporate Roles | B143: Transgrid | C143: $Millions | H143: Other Support & Corporate Roles | K143: 0 | L143: 0 | M143: 0 | N143: 0 | O143: 1.632815023 | P143: 5.015472602 | V143: 6.648287625
A144: ="Non Labour - VNI - "&A217 -> Non Labour - VNI - Indirect - Proportion of labour and labour-related costs | B144: Transgrid | C144: $Millions | V144: 0
A145: ="Non Labour - PEC - "&A210 -> Non Labour - PEC - Project Management | B145: Transgrid | C145: $Millions | H145: =H89 -> Project Management | K145: 0 | L145: 0 | M145: 0 | N145: 0 | O145: 0 | P145: 0 | V145: 0
A146: ="Non Labour - PEC - "&A211 -> Non Labour - PEC - Project Development | B146: Transgrid | C146: $Millions | H146: =H90 -> Project Development | K146: 0 | L146: 0 | M146: 0 | N146: 0 | O146: 0 | P146: 0 | V146: 0
A147: ="Non Labour - PEC - "&A213 -> Non Labour - PEC - Community and Stakeholder Engagement | B147: Transgrid | C147: $Millions | H147: =H91 -> Community and Stakeholder Engagement | K147: 0 | L147: 0 | M147: 0 | N147: 0 | O147: 0 | P147: 0 | V147: 0
A148: ="Non Labour - PEC - "&A214 -> Non Labour - PEC - Land and Environment | B148: Transgrid | C148: $Millions | H148: =H92 -> Land and Environment | K148: 0 | L148: 0 | M148: 0 | N148: 0 | O148: 0.1941627513 | P148: 0.07806759926 | V148: 0.2722303505
A149: ="Non Labour - PEC - "&A215 -> Non Labour - PEC - Regulatory Approvals | B149: Transgrid | C149: $Millions | H149: =H93 -> Regulatory Approvals | K149: 0 | L149: 0 | M149: 0 | N149: 0 | O149: 0 | P149: 0 | V149: 0
A150: ="Non Labour - PEC - "&A218 -> Non Labour - PEC - Contingency | B150: Transgrid | C150: $Millions | V150: 0
A151: ="Non Labour - HL - "&$A$210 -> Non Labour - HL - Project Management | B151: Transgrid | C151: $Millions | H151: Project Management | K151: 0 | L151: 0 | M151: 0 | N151: 0 | O151: 0 | P151: 0 | V151: 0
A152: ="Non Labour - HL - "&$A$211 -> Non Labour - HL - Project Development | B152: Transgrid | C152: $Millions | H152: Project Development | K152: 0 | L152: 0 | M152: 0 | N152: 0 | O152: 0 | P152: 0 | V152: 0
A153: ="Non Labour - HL - "&$A$213 -> Non Labour - HL - Community and Stakeholder Engagement | B153: Transgrid | C153: $Millions | H153: Community and Stakeholder Engagement | K153: 0 | L153: 0 | M153: 0 | N153: 0 | O153: 0 | P153: 0 | V153: 0
A154: ="Non Labour - HL - "&$A$214 -> Non Labour - HL - Land and Environment | B154: Transgrid | C154: $Millions | H154: Land and Environment | K154: 0 | L154: 0 | M154: 0 | N154: 0 | O154: 0 | P154: 0 | V154: 0
A155: ="Non Labour - HL - "&$A$216 -> Non Labour - HL - Other Support & Corporate Roles | B155: Transgrid | C155: $Millions | H155: Other Support & Corporate Roles | K155: 0 | L155: 0 | M155: 0 | N155: 0 | O155: 0 | P155: 0 | V155: 0
A156: ="Non Labour - HL - "&$A$217 -> Non Labour - HL - Indirect - Proportion of labour and labour-related costs | B156: Transgrid | C156: $Millions | V156: 0
A157: =A101 -> Forecasts (from 01 June 2023)
A158: =A137 -> Non Labour - VNI - Project Management | B158: Transgrid | C158: $Millions | H158: =H137 -> Project Management | P158: 0 | Q158: 0.17451 | R158: 0.1252083333 | S158: 0 | V158: =SUM(K158:U158) -> 0.2997183333
A159: Non Labour - VNI - Project Development | B159: Transgrid | C159: $Millions | H159: Project Development | P159: 0 | Q159: 9.225415616 | R159: 24.8279602 | S159: 0 | V159: 34.05337582
A160: Non Labour - VNI - Transaction Procurement Support | B160: Transgrid | C160: $Millions | H160: Transaction Procurement Support | P160: 0 | Q160: 1.981494 | R160: 20.706033 | S160: 0 | V160: 22.687527
A161: Non Labour - VNI - Community and Stakeholder Engagement | B161: Transgrid | C161: $Millions | H161: Community and Stakeholder Engagement | P161: 0 | Q161: 0.3944199611 | R161: 0.2870086407 | S161: 0 | V161: 0.6814286019
A162: Non Labour - VNI - Land and Environment | B162: Transgrid | C162: $Millions | H162: Land and Environment | P162: 0 | Q162: 7.99259667 | R162: 9.077483372 | S162: 0 | V162: 17.07008004
A163: Non Labour - VNI - Regulatory Approvals | B163: Transgrid | C163: $Millions | H163: Regulatory Approvals | P163: 0 | Q163: 0.397866 | R163: 5.846319619 | S163: 0 | V163: 6.244185619
A164: Non Labour - VNI - Other Support & Corporate Roles | B164: Transgrid | C164: $Millions | H164: Other Support & Corporate Roles | P164: 0 | Q164: 14.93511943 | R164: 11.51481639 | S164: 0 | V164: 26.44993582
A165: Non Labour - VNI - Indirect - Proportion of labour and labour-related costs | B165: Transgrid | C165: $Millions | V165: 0
A166: Non Labour - PEC - Project Management | B166: Transgrid | C166: $Millions | H166: Project Management | P166: 0 | Q166: 0.88 | R166: 0.48 | S166: 0 | V166: 1.36
A167: Non Labour - PEC - Project Development | B167: Transgrid | C167: $Millions | H167: Project Development | P167: 0 | Q167: 0 | R167: 0 | S167: 0 | V167: 0
A168: Non Labour - PEC - Community and Stakeholder Engagement | B168: Transgrid | C168: $Millions | H168: Community and Stakeholder Engagement | P168: 0 | Q168: 0 | R168: 0 | S168: 0 | V168: 0
A169: Non Labour - PEC - Land and Environment | B169: Transgrid | C169: $Millions | H169: Land and Environment | P169: 0 | Q169: 0 | R169: 0 | S169: 0 | V169: 0
A170: Non Labour - PEC - Regulatory Approvals | B170: Transgrid | C170: $Millions | H170: Regulatory Approvals | P170: 0 | Q170: 0 | R170: 0 | S170: 0 | V170: 0
A171: Non Labour - PEC - Contingency | B171: Transgrid | C171: $Millions | V171: 0
A172: =A151 -> Non Labour - HL - Project Management | H172: =H151 -> Project Management | P172: 0 | Q172: 2.30025 | R172: 1.916875 | S172: 0 | V172: 4.217125
A173: Non Labour - HL - Project Development | H173: =H152 -> Project Development | P173: 0 | Q173: 0 | R173: 0 | S173: 0 | V173: 0
A174: Non Labour - HL - Community and Stakeholder Engagement | H174: =H153 -> Community and Stakeholder Engagement | P174: 0 | Q174: 0 | R174: 0 | S174: 0 | V174: 0
A175: Non Labour - HL - Land and Environment | H175: =H154 -> Land and Environment | P175: 0 | Q175: 0 | R175: 0 | S175: 0 | V175: 0
A176: Non Labour - HL - Other Support & Corporate Roles | H176: =H155 -> Other Support & Corporate Roles | P176: 0 | Q176: 0 | R176: 0 | S176: 0 | V176: 0
A177: Non Labour - HL - Indirect - Proportion of labour and labour-related costs | V177: 0
A178: =A122 -> Total
A179: Non-Labour | E179: Contingency | K179: =SUM(K137:K156,K158:K177) -> 0 | L179: =SUM(L137:L156,L158:L177) -> 0 | M179: 0 | N179: 0 | O179: 4.58832552 | P179: 7.859232402 | Q179: 38.28167168 | R179: 74.78170456 | S179: 0 | T179: 0 | U179: 0 | V179: 125.5109342
A180: PEC - Contingency | B180: Transgrid | C180: $Millions | H180: Contingency | K180: =SUMIF($A$158:$A$177,"*PEC*",K$158:K$177)*$E180 -> 0 | L180: =SUMIF($A$158:$A$177,"*PEC*",L$158:L$177)*$E180 -> 0 | M180: 0 | N180: 0 | O180: 0 | P180: 0 | Q180: 0 | R180: 0 | S180: 0 | T180: 0 | U180: 0 | V180: 0
A181: Humelink - Contingency | B181: Transgrid | C181: $Millions | H181: Contingency | K181: =SUMIF($A$158:$A$177,"*HL*",K$158:K$177)*$E181 -> 0 | L181: =SUMIF($A$158:$A$177,"*HL*",L$158:L$177)*$E181 -> 0 | M181: 0 | N181: 0 | O181: 0 | P181: 0 | Q181: 0 | R181: 0 | S181: 0 | T181: 0 | U181: 0 | V181: 0
A182: Non-Labour + Contingency | B182: Transgrid | C182: $Millions | K182: =SUM(K179:K181) -> 0 | L182: 0 | M182: 0 | N182: 0 | O182: 4.58832552 | P182: 7.859232402 | Q182: 38.28167168 | R182: 74.78170456 | S182: 0 | T182: 0 | U182: 0 | V182: 125.5109342
A184: Note: Indirect costs for each year are pro-rated across escalated capex (including direct labour costs) by asset class for that year | J184: Total | K184: =K182 -> 0 | L184: =L182 -> 0 | M184: =M182 -> 0 | N184: =N182 -> 0 | O184: 4.58832552 | P184: 7.859232402 | Q184: 38.28167168 | R184: 74.78170456 | S184: 0 | T184: 0 | U184: 0 | V184: =SUM(K184:U184) -> 125.5109342
J185: ="Total ("&$A$8&")" -> Total (Real $2023) | K185: =K184*INDEX($K$21:$U$21,MATCH(Report_Year,Years,0))/INDEX($K$21:$U$21,MATCH(Inputs!$E$136,Years,0)) -> 0 | L185: =L184*INDEX($K$21:$U$21,MATCH(Report_Year,Years,0))/INDEX($K$21:$U$21,MATCH(Inputs!$E$136,Years,0)) -> 0 | M185: =M184*INDEX($K$21:$U$21,MATCH(Report_Year,Years,0))/INDEX($K$21:$U$21,MATCH(Inputs!$E$136,Years,0)) -> 0 | N185: =N184*INDEX($K$21:$U$21,MATCH(Report_Year,Years,0))/INDEX($K$21:$U$21,MATCH(Inputs!$E$136,Years,0)) -> 0 | O185: =O184*INDEX($K$21:$U$21,MATCH(Report_Year,Years,0))/INDEX($K$21:$U$21,MATCH(Inputs!$E$136,Years,0)) -> 4.58832552 | P185: =P184*INDEX($K$21:$U$21,MATCH(Report_Year,Years,0))/INDEX($K$21:$U$21,MATCH(Inputs!$E$136,Years,0)) -> 7.859232402 | Q185: =Q184*INDEX($K$21:$U$21,MATCH(Report_Year,Years,0))/INDEX($K$21:$U$21,MATCH(Inputs!$E$136,Years,0)) -> 38.28167168 | R185: =R184*INDEX($K$21:$U$21,MATCH(Report_Year,Years,0))/INDEX($K$21:$U$21,MATCH(Inputs!$E$136,Years,0)) -> 74.78170456 | S185: =S184*INDEX($K$21:$U$21,MATCH(Report_Year,Years,0))/INDEX($K$21:$U$21,MATCH(Inputs!$E$136,Years,0)) -> 0 | T185: =T184*INDEX($K$21:$U$21,MATCH(Report_Year,Years,0))/INDEX($K$21:$U$21,MATCH(Inputs!$E$136,Years,0)) -> 0 | U185: =U184*INDEX($K$21:$U$21,MATCH(Report_Year,Years,0))/INDEX($K$21:$U$21,MATCH(Inputs!$E$136,Years,0)) -> 0 | V185: =SUM(K185:U185) -> 125.5109342
A187: Lookup tables and mapping
A189: PTRM and RFM models | C189: Standard Life
A190: RAB Asset Classes | C190: Years
A191: Transmission Lines | C191: 50
A192: Underground Cables | C192: 45
A193: Substations | C193: 40
A194: Secondary Systems | C194: 15
A195: Communications (short life) | C195: 10
A196: Business IT | C196: 4
A197: Minor Plant, Motor Vehicles & Mobile Plant | C197: 8
A198: Transmission Line Life Extension | C198: 35
A199: Land and Easements | C199: n/a
A200: Synchronous Condensers | C200: 40
A201: Leasehold Land and Property | C201: 5
A202: Biodiversity Offsets (Stewardship sites) | E202: ◄ Calculated as the weighted average standard life of other depreciating assets
A203: Biodiversity Offsets (Direct payments and other costs) | E203: ◄ Calculated as the weighted average standard life of other depreciating assets
A204: Buildings - capital works | C204: 40
A205: In-house software | C205: 15
A206: [Spare]
A208: Cost categories
A210: Project Management
A211: Project Development
A212: Transaction Procurement Support
A213: Community and Stakeholder Engagement
A214: Land and Environment
A215: Regulatory Approvals
A216: Other Support & Corporate Roles
A217: Indirect - Proportion of labour and labour-related costs
A218: Contingency
A220: End

Sheet Calculations
A1: Calculations | E1: =Inputs!$A$8 -> Real $2023
B3: Incremental Capital Expenditure (Excluding Equity Raising Costs) by RAB asset class | E3: As Incurred | P3: Total | R3: As Commissioned | AC3: Total
B4: Capex category | C4: Dollar basis | D4: Units | E4: =Inputs!K$20 -> 2018 | F4: =Inputs!L$20 -> 2019 | G4: =Inputs!M$20 -> 2020 | H4: =Inputs!N$20 -> 2021 | I4: =Inputs!O$20 -> 2022 | J4: =Inputs!P$20 -> 2023 | K4: =Inputs!Q$20 -> 2024 | L4: =Inputs!R$20 -> 2025 | M4: =Inputs!S$20 -> 2026 | N4: =Inputs!T$20 -> 2027 | O4: =Inputs!U$20 -> 2028 | R4: =E4 -> 2018 | S4: =F4 -> 2019 | T4: 2020 | U4: 2021 | V4: 2022 | W4: 2023 | X4: 2024 | Y4: 2025 | Z4: 2026 | AA4: 2027 | AB4: 2028
B6: Direct Non-Labour Costs
B7: =Inputs!$A$56 -> Transmission Lines | C7: =Inputs!$A$8 -> Real $2023 | D7: $Million | E7: =Inputs!X56 -> 0 | F7: =Inputs!Y56 -> 0 | G7: =Inputs!Z56 -> 0 | H7: =Inputs!AA56 -> 0 | I7: =Inputs!AB56 -> 1.043995649 | J7: =Inputs!AC56 -> 2.968739487 | K7: =Inputs!AD56 -> 222.0798012 | L7: =Inputs!AE56 -> 121.2290384 | M7: =Inputs!AF56 -> 53.4282242 | N7: =Inputs!AG56 -> 0 | O7: =Inputs!AH56 -> 0 | P7: =SUM(E7:O7) -> 400.7497989 | R7: =Inputs!AX56 -> 0 | S7: =Inputs!AY56 -> 0 | T7: =Inputs!AZ56 -> 0 | U7: =Inputs!BA56 -> 0 | V7: =Inputs!BB56 -> 0 | W7: =Inputs!BC56 -> 0 | X7: =Inputs!BD56 -> 91.15488806 | Y7: =Inputs!BE56 -> 227.3976428 | Z7: =Inputs!BF56 -> 82.197268 | AA7: =Inputs!BG56 -> 0 | AB7: =Inputs!BH56 -> 0 | AC7: =SUM(R7:AB7) -> 400.7497989
B8: =Inputs!$A$57 -> Underground Cables | C8: =Inputs!$A$8 -> Real $2023 | D8: $Million | E8: =Inputs!X57 -> 0 | F8: =Inputs!Y57 -> 0 | G8: =Inputs!Z57 -> 0 | H8: =Inputs!AA57 -> 0 | I8: =Inputs!AB57 -> 0 | J8: =Inputs!AC57 -> 0 | K8: =Inputs!AD57 -> 0 | L8: =Inputs!AE57 -> 0 | M8: =Inputs!AF57 -> 0 | N8: =Inputs!AG57 -> 0 | O8: =Inputs!AH57 -> 0 | P8: 0 | R8: =Inputs!AX57 -> 0 | S8: =Inputs!AY57 -> 0 | T8: =Inputs!AZ57 -> 0 | U8: =Inputs!BA57 -> 0 | V8: =Inputs!BB57 -> 0 | W8: =Inputs!BC57 -> 0 | X8: =Inputs!BD57 -> 0 | Y8: =Inputs!BE57 -> 0 | Z8: =Inputs!BF57 -> 0 | AA8: =Inputs!BG57 -> 0 | AB8: =Inputs!BH57 -> 0 | AC8: 0
B9: =Inputs!$A$58 -> Substations | C9: =Inputs!$A$8 -> Real $2023 | D9: $Million | E9: =Inputs!X58 -> 0 | F9: =Inputs!Y58 -> 0 | G9: =Inputs!Z58 -> 0 | H9: =Inputs!AA58 -> 0 | I9: =Inputs!AB58 -> 0.5365843169 | J9: =Inputs!AC58 -> 0 | K9: =Inputs!AD58 -> 141.9511269 | L9: =Inputs!AE58 -> 139.2895345 | M9: =Inputs!AF58 -> 9.881440612 | N9: =Inputs!AG58 -> 0 | O9: =Inputs!AH58 -> 0 | P9: 291.6586863 | R9: =Inputs!AX58 -> 0 | S9: =Inputs!AY58 -> 0 | T9: =Inputs!AZ58 -> 0 | U9: =Inputs!BA58 -> 0 | V9: =Inputs!BB58 -> 0 | W9: =Inputs!BC58 -> 0 | X9: =Inputs!BD58 -> 0 | Y9: =Inputs!BE58 -> 18.50091364 | Z9: =Inputs!BF58 -> 273.1577727 | AA9: =Inputs!BG58 -> 0 | AB9: =Inputs!BH58 -> 0 | AC9: 291.6586863
B10: =Inputs!$A$59 -> Secondary Systems | C10: =Inputs!$A$8 -> Real $2023 | D10: $Million | E10: =Inputs!X59 -> 0 | F10: =Inputs!Y59 -> 0 | G10: =Inputs!Z59 -> 0 | H10: =Inputs!AA59 -> 0 | I10: =Inputs!AB59 -> 0 | J10: =Inputs!AC59 -> 0 | K10: =Inputs!AD59 -> 0 | L10: =Inputs!AE59 -> 0 | M10: =Inputs!AF59 -> 0 | N10: =Inputs!AG59 -> 0 | O10: =Inputs!AH59 -> 0 | P10: 0 | R10: =Inputs!AX59 -> 0 | S10: =Inputs!AY59 -> 0 | T10: =Inputs!AZ59 -> 0 | U10: =Inputs!BA59 -> 0 | V10: =Inputs!BB59 -> 0 | W10: =Inputs!BC59 -> 0 | X10: =Inputs!BD59 -> 0 | Y10: =Inputs!BE59 -> 0 | Z10: =Inputs!BF59 -> 0 | AA10: =Inputs!BG59 -> 0 | AB10: =Inputs!BH59 -> 0 | AC10: 0
B11: =Inputs!$A$60 -> Communications (short life) | C11: =Inputs!$A$8 -> Real $2023 | D11: $Million | E11: =Inputs!X60 -> 0 | F11: =Inputs!Y60 -> 0 | G11: =Inputs!Z60 -> 0 | H11: =Inputs!AA60 -> 0 | I11: =Inputs!AB60 -> 0 | J11: =Inputs!AC60 -> 0 | K11: =Inputs!AD60 -> 0 | L11: =Inputs!AE60 -> 0 | M11: =Inputs!AF60 -> 0 | N11: =Inputs!AG60 -> 0 | O11: =Inputs!AH60 -> 0 | P11: 0 | R11: =Inputs!AX60 -> 0 | S11: =Inputs!AY60 -> 0 | T11: =Inputs!AZ60 -> 0 | U11: =Inputs!BA60 -> 0 | V11: =Inputs!BB60 -> 0 | W11: =Inputs!BC60 -> 0 | X11: =Inputs!BD60 -> 0 | Y11: =Inputs!BE60 -> 0 | Z11: =Inputs!BF60 -> 0 | AA11: =Inputs!BG60 -> 0 | AB11: =Inputs!BH60 -> 0 | AC11: 0
B12: =Inputs!$A$61 -> Business IT | C12: =Inputs!$A$8 -> Real $2023 | D12: $Million | E12: =Inputs!X61 -> 0 | F12: =Inputs!Y61 -> 0 | G12: =Inputs!Z61 -> 0 | H12: =Inputs!AA61 -> 0 | I12: =Inputs!AB61 -> 0 | J12: =Inputs!AC61 -> 0 | K12: =Inputs!AD61 -> 0 | L12: =Inputs!AE61 -> 0 | M12: =Inputs!AF61 -> 0 | N12: =Inputs!AG61 -> 0 | O12: =Inputs!AH61 -> 0 | P12: 0 | R12: =Inputs!AX61 -> 0 | S12: =Inputs!AY61 -> 0 | T12: =Inputs!AZ61 -> 0 | U12: =Inputs!BA61 -> 0 | V12: =Inputs!BB61 -> 0 | W12: =Inputs!BC61 -> 0 | X12: =Inputs!BD61 -> 0 | Y12: =Inputs!BE61 -> 0 | Z12: =Inputs!BF61 -> 0 | AA12: =Inputs!BG61 -> 0 | AB12: =Inputs!BH61 -> 0 | AC12: 0
B13: =Inputs!$A$62 -> Minor Plant, Motor Vehicles & Mobile Plant | C13: =Inputs!$A$8 -> Real $2023 | D13: $Million | E13: =Inputs!X62 -> 0 | F13: =Inputs!Y62 -> 0 | G13: =Inputs!Z62 -> 0 | H13: =Inputs!AA62 -> 0 | I13: =Inputs!AB62 -> 0 | J13: =Inputs!AC62 -> 0 | K13: =Inputs!AD62 -> 0 | L13: =Inputs!AE62 -> 0 | M13: =Inputs!AF62 -> 0 | N13: =Inputs!AG62 -> 0 | O13: =Inputs!AH62 -> 0 | P13: 0 | R13: =Inputs!AX62 -> 0 | S13: =Inputs!AY62 -> 0 | T13: =Inputs!AZ62 -> 0 | U13: =Inputs!BA62 -> 0 | V13: =Inputs!BB62 -> 0 | W13: =Inputs!BC62 -> 0 | X13: =Inputs!BD62 -> 0 | Y13: =Inputs!BE62 -> 0 | Z13: =Inputs!BF62 -> 0 | AA13: =Inputs!BG62 -> 0 | AB13: =Inputs!BH62 -> 0 | AC13: 0
B14: =Inputs!$A$63 -> Transmission Line Life Extension | C14: =Inputs!$A$8 -> Real $2023 | D14: $Million | E14: =Inputs!X63 -> 0 | F14: =Inputs!Y63 -> 0 | G14: =Inputs!Z63 -> 0 | H14: =Inputs!AA63 -> 0 | I14: =Inputs!AB63 -> 0 | J14: =Inputs!AC63 -> 0 | K14: =Inputs!AD63 -> 0 | L14: =Inputs!AE63 -> 0 | M14: =Inputs!AF63 -> 0 | N14: =Inputs!AG63 -> 0 | O14: =Inputs!AH63 -> 0 | P14: 0 | R14: =Inputs!AX63 -> 0 | S14: =Inputs!AY63 -> 0 | T14: =Inputs!AZ63 -> 0 | U14: =Inputs!BA63 -> 0 | V14: =Inputs!BB63 -> 0 | W14: =Inputs!BC63 -> 0 | X14: =Inputs!BD63 -> 0 | Y14: =Inputs!BE63 -> 0 | Z14: =Inputs!BF63 -> 0 | AA14: =Inputs!BG63 -> 0 | AB14: =Inputs!BH63 -> 0 | AC14: 0
B15: =Inputs!$A$64 -> Land and Easements | C15: =Inputs!$A$8 -> Real $2023 | D15: $Million | E15: =Inputs!X64 -> 0 | F15: =Inputs!Y64 -> 0 | G15: =Inputs!Z64 -> 0 | H15: =Inputs!AA64 -> 0 | I15: =Inputs!AB64 -> 0 | J15: =Inputs!AC64 -> 11.99376281 | K15: =Inputs!AD64 -> 43.29119135 | L15: =Inputs!AE64 -> 1.458767958 | M15: =Inputs!AF64 -> 0 | N15: =Inputs!AG64 -> 0 | O15: =Inputs!AH64 -> 0 | P15: 56.74372212 | R15: =Inputs!AX64 -> 0 | S15: =Inputs!AY64 -> 0 | T15: =Inputs!AZ64 -> 0 | U15: =Inputs!BA64 -> 0 | V15: =Inputs!BB64 -> 0 | W15: =Inputs!BC64 -> 12.79185596 | X15: =Inputs!BD64 -> 42.4930982 | Y15: =Inputs!BE64 -> 1.458767958 | Z15: =Inputs!BF64 -> 0 | AA15: =Inputs!BG64 -> 0 | AB15: =Inputs!BH64 -> 0 | AC15: 56.74372212
B16: =Inputs!$A$65 -> Synchronous Condensers | C16: =Inputs!$A$8 -> Real $2023 | D16: $Million | E16: =Inputs!X65 -> 0 | F16: =Inputs!Y65 -> 0 | G16: =Inputs!Z65 -> 0 | H16: =Inputs!AA65 -> 0 | I16: =Inputs!AB65 -> 0 | J16: =Inputs!AC65 -> 0 | K16: =Inputs!AD65 -> 0 | L16: =Inputs!AE65 -> 0 | M16: =Inputs!AF65 -> 0 | N16: =Inputs!AG65 -> 0 | O16: =Inputs!AH65 -> 0 | P16: 0 | R16: =Inputs!AX65 -> 0 | S16: =Inputs!AY65 -> 0 | T16: =Inputs!AZ65 -> 0 | U16: =Inputs!BA65 -> 0 | V16: =Inputs!BB65 -> 0 | W16: =Inputs!BC65 -> 0 | X16: =Inputs!BD65 -> 0 | Y16: =Inputs!BE65 -> 0 | Z16: =Inputs!BF65 -> 0 | AA16: =Inputs!BG65 -> 0 | AB16: =Inputs!BH65 -> 0 | AC16: 0
B17: =Inputs!$A$66 -> Leasehold Land and Property | C17: =Inputs!$A$8 -> Real $2023 | D17: $Million | E17: =Inputs!X66 -> 0 | F17: =Inputs!Y66 -> 0 | G17: =Inputs!Z66 -> 0 | H17: =Inputs!AA66 -> 0 | I17: =Inputs!AB66 -> 0 | J17: =Inputs!AC66 -> 0 | K17: =Inputs!AD66 -> 0 | L17: =Inputs!AE66 -> 0 | M17: =Inputs!AF66 -> 0 | N17: =Inputs!AG66 -> 0 | O17: =Inputs!AH66 -> 0 | P17: 0 | R17: =Inputs!AX66 -> 0 | S17: =Inputs!AY66 -> 0 | T17: =Inputs!AZ66 -> 0 | U17: =Inputs!BA66 -> 0 | V17: =Inputs!BB66 -> 0 | W17: =Inputs!BC66 -> 0 | X17: =Inputs!BD66 -> 0 | Y17: =Inputs!BE66 -> 0 | Z17: =Inputs!BF66 -> 0 | AA17: =Inputs!BG66 -> 0 | AB17: =Inputs!BH66 -> 0 | AC17: 0
B18: =Inputs!$A$67 -> Biodiversity Offsets (Stewardship sites) | C18: =Inputs!$A$8 -> Real $2023 | D18: $Million | E18: =Inputs!X67 -> 0 | F18: =Inputs!Y67 -> 0 | G18: =Inputs!Z67 -> 0 | H18: =Inputs!AA67 -> 0 | I18: =Inputs!AB67 -> 0 | J18: =Inputs!AC67 -> 0 | K18: =Inputs!AD67 -> 0.9084981859 | L18: =Inputs!AE67 -> 8.183003628 | M18: =Inputs!AF67 -> 0.9084981859 | N18: =Inputs!AG67 -> 0 | O18: =Inputs!AH67 -> 0 | P18: 10 | R18: =E18 -> 0 | S18: 0 | T18: 0 | U18: 0 | V18: 0 | W18: 0 | X18: 0.9084981859 | Y18: 8.183003628 | Z18: 0.9084981859 | AA18: 0 | AB18: 0 | AC18: 10 | AE18: ← Bio offsets commissioning profile set to match as incurred profile
B19: =Inputs!$A$68 -> Biodiversity Offsets (Direct payments and other costs) | C19: =Inputs!$A$8 -> Real $2023 | D19: $Million | E19: =Inputs!X68 -> 0 | F19: =Inputs!Y68 -> 0 | G19: =Inputs!Z68 -> 0 | H19: =Inputs!AA68 -> 0 | I19: =Inputs!AB68 -> 0 | J19: =Inputs!AC68 -> 0 | K19: =Inputs!AD68 -> 0 | L19: =Inputs!AE68 -> 0 | M19: =Inputs!AF68 -> 0 | N19: =Inputs!AG68 -> 0 | O19: =Inputs!AH68 -> 0 | P19: =SUM(E19:O19) -> 0 | R19: 0 | S19: 0 | T19: 0 | U19: 0 | V19: 0 | W19: 0 | X19: 0 | Y19: 0 | Z19: 0 | AA19: 0 | AB19: 0 | AC19: =SUM(R19:AB19) -> 0
B20: =Inputs!$A$69 -> Buildings - capital works | C20: =Inputs!$A$8 -> Real $2023 | D20: $Million | E20: =Inputs!X69 -> 0 | F20: =Inputs!Y69 -> 0 | G20: =Inputs!Z69 -> 0 | H20: =Inputs!AA69 -> 0 | I20: =Inputs!AB69 -> 0 | J20: =Inputs!AC69 -> 0 | K20: =Inputs!AD69 -> 0 | L20: =Inputs!AE69 -> 0 | M20: =Inputs!AF69 -> 0 | N20: =Inputs!AG69 -> 0 | O20: =Inputs!AH69 -> 0 | P20: 0 | R20: =Inputs!AX69 -> 0 | S20: =Inputs!AY69 -> 0 | T20: =Inputs!AZ69 -> 0 | U20: =Inputs!BA69 -> 0 | V20: =Inputs!BB69 -> 0 | W20: =Inputs!BC69 -> 0 | X20: =Inputs!BD69 -> 0 | Y20: =Inputs!BE69 -> 0 | Z20: =Inputs!BF69 -> 0 | AA20: =Inputs!BG69 -> 0 | AB20: =Inputs!BH69 -> 0 | AC20: 0
B21: =Inputs!$A$70 -> In-house software | C21: =Inputs!$A$8 -> Real $2023 | D21: $Million | E21: =Inputs!X70 -> 0 | F21: =Inputs!Y70 -> 0 | G21: =Inputs!Z70 -> 0 | H21: =Inputs!AA70 -> 0 | I21: =Inputs!AB70 -> 0 | J21: =Inputs!AC70 -> 0 | K21: =Inputs!AD70 -> 0 | L21: =Inputs!AE70 -> 0 | M21: =Inputs!AF70 -> 0 | N21: =Inputs!AG70 -> 0 | O21: =Inputs!AH70 -> 0 | P21: 0 | R21: =Inputs!AX70 -> 0 | S21: =Inputs!AY70 -> 0 | T21: =Inputs!AZ70 -> 0 | U21: =Inputs!BA70 -> 0 | V21: =Inputs!BB70 -> 0 | W21: =Inputs!BC70 -> 0 | X21: =Inputs!BD70 -> 0 | Y21: =Inputs!BE70 -> 0 | Z21: =Inputs!BF70 -> 0 | AA21: =Inputs!BG70 -> 0 | AB21: =Inputs!BH70 -> 0 | AC21: 0
B22: =Inputs!$A$71 -> [Spare] | C22: =Inputs!$A$8 -> Real $2023 | D22: $Million | E22: =Inputs!X71 -> 0 | F22: =Inputs!Y71 -> 0 | G22: =Inputs!Z71 -> 0 | H22: =Inputs!AA71 -> 0 | I22: =Inputs!AB71 -> 0 | J22: =Inputs!AC71 -> 0 | K22: =Inputs!AD71 -> 0 | L22: =Inputs!AE71 -> 0 | M22: =Inputs!AF71 -> 0 | N22: =Inputs!AG71 -> 0 | O22: =Inputs!AH71 -> 0 | P22: 0 | R22: =Inputs!AX71 -> 0 | S22: =Inputs!AY71 -> 0 | T22: =Inputs!AZ71 -> 0 | U22: =Inputs!BA71 -> 0 | V22: =Inputs!BB71 -> 0 | W22: =Inputs!BC71 -> 0 | X22: =Inputs!BD71 -> 0 | Y22: =Inputs!BE71 -> 0 | Z22: =Inputs!BF71 -> 0 | AA22: =Inputs!BG71 -> 0 | AB22: =Inputs!BH71 -> 0 | AC22: 0
B23: Sub-Total | C23: =Inputs!$A$8 -> Real $2023 | D23: $Million | E23: =SUM(E7:E22) -> 0 | F23: =SUM(F7:F22) -> 0 | G23: =SUM(G7:G22) -> 0 | H23: 0 | I23: 1.580579966 | J23: 14.96250229 | K23: 408.2306176 | L23: 270.1603445 | M23: 64.218163 | N23: 0 | O23: 0 | P23: 759.1522073 | R23: =SUM(R7:R22) -> 0 | S23: =SUM(S7:S22) -> 0 | T23: =SUM(T7:T22) -> 0 | U23: 0 | V23: 0 | W23: 12.79185596 | X23: 134.5564845 | Y23: 255.540328 | Z23: 356.2635388 | AA23: 0 | AB23: 0 | AC23: =SUM(AC7:AC22) -> 759.1522073
B25: Labour Costs | AE25: ← This value is pro-rated over the escalated capital forecast by year and asset class
B26: =Inputs!$A$56 -> Transmission Lines | C26: =Inputs!$A$8 -> Real $2023 | D26: $Million | E26: =IFERROR( (Inputs!K$130-SUM(E$37:E$38)) *IF(E$23=0,$P7/($P$23-SUM($P$18:$P$19)),E7/(E$23-SUM(E$18:E$19))),0) -> 0.001340579257 | F26: =IFERROR( (Inputs!L$130-SUM(F$37:F$38)) *IF(F$23=0,$P7/($P$23-SUM($P$18:$P$19)),F7/(F$23-SUM(F$18:F$19))),0) -> 0 | G26: =IFERROR( (Inputs!M$130-SUM(G$37:G$38)) *IF(G$23=0,$P7/($P$23-SUM($P$18:$P$19)),G7/(G$23-SUM(G$18:G$19))),0) -> 0.07101321245 | H26: =IFERROR( (Inputs!N$130-SUM(H$37:H$38)) *IF(H$23=0,$P7/($P$23-SUM($P$18:$P$19)),H7/(H$23-SUM(H$18:H$19))),0) -> 0.0001012256643 | I26: =IFERROR( (Inputs!O$130-SUM(I$37:I$38)) *IF(I$23=0,$P7/($P$23-SUM($P$18:$P$19)),I7/(I$23-SUM(I$18:I$19))),0) -> 1.313260044 | J26: =IFERROR( (Inputs!P$130-SUM(J$37:J$38)) *IF(J$23=0,$P7/($P$23-SUM($P$18:$P$19)),J7/(J$23-SUM(J$18:J$19))),0) -> 1.367202761 | K26: =IFERROR( (Inputs!Q$130-SUM(K$37:K$38)) *IF(K$23=0,$P7/($P$23-SUM($P$18:$P$19)),K7/(K$23-SUM(K$18:K$19))),0) -> 15.70524453 | L26: =IFERROR( (Inputs!R$130-SUM(L$37:L$38)) *IF(L$23=0,$P7/($P$23-SUM($P$18:$P$19)),L7/(L$23-SUM(L$18:L$19))),0) -> 9.719951211 | M26: =IFERROR( (Inputs!S$130-SUM(M$37:M$38)) *IF(M$23=0,$P7/($P$23-SUM($P$18:$P$19)),M7/(M$23-SUM(M$18:M$19))),0) -> 0 | N26: =IFERROR( (Inputs!T$130-SUM(N$37:N$38)) *IF(N$23=0,$P7/($P$23-SUM($P$18:$P$19)),N7/(N$23-SUM(N$18:N$19))),0) -> 0 | O26: =IFERROR( (Inputs!U$130-SUM(O$37:O$38)) *IF(O$23=0,$P7/($P$23-SUM($P$18:$P$19)),O7/(O$23-SUM(O$18:O$19))),0) -> 0 | P26: =SUM(E26:O26) -> 28.17811356 | R26: =IFERROR($P26*R7/$AC7,0) -> 0 | S26: =IFERROR($P26*S7/$AC7,0) -> 0 | T26: 0 | U26: 0 | V26: 0 | W26: 0 | X26: 6.409417533 | Y26: 15.98911995 | Z26: 5.779576081 | AA26: 0 | AB26: 0 | AC26: =SUM(R26:AB26) -> 28.17811356
B27: =Inputs!$A$57 -> Underground Cables | C27: =Inputs!$A$8 -> Real $2023 | D27: $Million | E27: =IFERROR( (Inputs!K$130-SUM(E$37:E$38)) *IF(E$23=0,$P8/($P$23-SUM($P$18:$P$19)),E8/(E$23-SUM(E$18:E$19))),0) -> 0 | F27: =IFERROR( (Inputs!L$130-SUM(F$37:F$38)) *IF(F$23=0,$P8/($P$23-SUM($P$18:$P$19)),F8/(F$23-SUM(F$18:F$19))),0) -> 0 | G27: =IFERROR( (Inputs!M$130-SUM(G$37:G$38)) *IF(G$23=0,$P8/($P$23-SUM($P$18:$P$19)),G8/(G$23-SUM(G$18:G$19))),0) -> 0 | H27: =IFERROR( (Inputs!N$130-SUM(H$37:H$38)) *IF(H$23=0,$P8/($P$23-SUM($P$18:$P$19)),H8/(H$23-SUM(H$18:H$19))),0) -> 0 | I27: =IFERROR( (Inputs!O$130-SUM(I$37:I$38)) *IF(I$23=0,$P8/($P$23-SUM($P$18:$P$19)),I8/(I$23-SUM(I$18:I$19))),0) -> 0 | J27: =IFERROR( (Inputs!P$130-SUM(J$37:J$38)) *IF(J$23=0,$P8/($P$23-SUM($P$18:$P$19)),J8/(J$23-SUM(J$18:J$19))),0) -> 0 | K27: =IFERROR( (Inputs!Q$130-SUM(K$37:K$38)) *IF(K$23=0,$P8/($P$23-SUM($P$18:$P$19)),K8/(K$23-SUM(K$18:K$19))),0) -> 0 | L27: =IFERROR( (Inputs!R$130-SUM(L$37:L$38)) *IF(L$23=0,$P8/($P$23-SUM($P$18:$P$19)),L8/(L$23-SUM(L$18:L$19))),0) -> 0 | M27: =IFERROR( (Inputs!S$130-SUM(M$37:M$38)) *IF(M$23=0,$P8/($P$23-SUM($P$18:$P$19)),M8/(M$23-SUM(M$18:M$19))),0) -> 0 | N27: =IFERROR( (Inputs!T$130-SUM(N$37:N$38)) *IF(N$23=0,$P8/($P$23-SUM($P$18:$P$19)),N8/(N$23-SUM(N$18:N$19))),0) -> 0 | O27: =IFERROR( (Inputs!U$130-SUM(O$37:O$38)) *IF(O$23=0,$P8/($P$23-SUM($P$18:$P$19)),O8/(O$23-SUM(O$18:O$19))),0) -> 0 | P27: 0 | R27: =IFERROR($P27*R8/$AC8,0) -> 0 | S27: 0 | T27: 0 | U27: 0 | V27: 0 | W27: 0 | X27: 0 | Y27: 0 | Z27: 0 | AA27: 0 | AB27: 0 | AC27: 0
B28: =Inputs!$A$58 -> Substations | C28: =Inputs!$A$8 -> Real $2023 | D28: $Million | E28: =IFERROR( (Inputs!K$130-SUM(E$37:E$38)) *IF(E$23=0,$P9/($P$23-SUM($P$18:$P$19)),E9/(E$23-SUM(E$18:E$19))),0) -> 0.0009756501094 | F28: =IFERROR( (Inputs!L$130-SUM(F$37:F$38)) *IF(F$23=0,$P9/($P$23-SUM($P$18:$P$19)),F9/(F$23-SUM(F$18:F$19))),0) -> 0 | G28: =IFERROR( (Inputs!M$130-SUM(G$37:G$38)) *IF(G$23=0,$P9/($P$23-SUM($P$18:$P$19)),G9/(G$23-SUM(G$18:G$19))),0) -> 0.05168217255 | H28: =IFERROR( (Inputs!N$130-SUM(H$37:H$38)) *IF(H$23=0,$P9/($P$23-SUM($P$18:$P$19)),H9/(H$23-SUM(H$18:H$19))),0) -> 7.367026596e-05 | I28: =IFERROR( (Inputs!O$130-SUM(I$37:I$38)) *IF(I$23=0,$P9/($P$23-SUM($P$18:$P$19)),I9/(I$23-SUM(I$18:I$19))),0) -> 0.6749786209 | J28: =IFERROR( (Inputs!P$130-SUM(J$37:J$38)) *IF(J$23=0,$P9/($P$23-SUM($P$18:$P$19)),J9/(J$23-SUM(J$18:J$19))),0) -> 0 | K28: =IFERROR( (Inputs!Q$130-SUM(K$37:K$38)) *IF(K$23=0,$P9/($P$23-SUM($P$18:$P$19)),K9/(K$23-SUM(K$18:K$19))),0) -> 10.03863092 | L28: =IFERROR( (Inputs!R$130-SUM(L$37:L$38)) *IF(L$23=0,$P9/($P$23-SUM($P$18:$P$19)),L9/(L$23-SUM(L$18:L$19))),0) -> 11.16801303 | M28: =IFERROR( (Inputs!S$130-SUM(M$37:M$38)) *IF(M$23=0,$P9/($P$23-SUM($P$18:$P$19)),M9/(M$23-SUM(M$18:M$19))),0) -> 0 | N28: =IFERROR( (Inputs!T$130-SUM(N$37:N$38)) *IF(N$23=0,$P9/($P$23-SUM($P$18:$P$19)),N9/(N$23-SUM(N$18:N$19))),0) -> 0 | O28: =IFERROR( (Inputs!U$130-SUM(O$37:O$38)) *IF(O$23=0,$P9/($P$23-SUM($P$18:$P$19)),O9/(O$23-SUM(O$18:O$19))),0) -> 0 | P28: 21.93435406 | R28: =IFERROR($P28*R9/$AC9,0) -> 0 | S28: 0 | T28: 0 | U28: 0 | V28: 0 | W28: 0 | X28: 0 | Y28: 1.391371522 | Z28: 20.54298254 | AA28: 0 | AB28: 0 | AC28: 21.93435406
B29: =Inputs!$A$59 -> Secondary Systems | C29: =Inputs!$A$8 -> Real $2023 | D29: $Million | E29: =IFERROR( (Inputs!K$130-SUM(E$37:E$38)) *IF(E$23=0,$P10/($P$23-SUM($P$18:$P$19)),E10/(E$23-SUM(E$18:E$19))),0) -> 0 | F29: =IFERROR( (Inputs!L$130-SUM(F$37:F$38)) *IF(F$23=0,$P10/($P$23-SUM($P$18:$P$19)),F10/(F$23-SUM(F$18:F$19))),0) -> 0 | G29: =IFERROR( (Inputs!M$130-SUM(G$37:G$38)) *IF(G$23=0,$P10/($P$23-SUM($P$18:$P$19)),G10/(G$23-SUM(G$18:G$19))),0) -> 0 | H29: =IFERROR( (Inputs!N$130-SUM(H$37:H$38)) *IF(H$23=0,$P10/($P$23-SUM($P$18:$P$19)),H10/(H$23-SUM(H$18:H$19))),0) -> 0 | I29: =IFERROR( (Inputs!O$130-SUM(I$37:I$38)) *IF(I$23=0,$P10/($P$23-SUM($P$18:$P$19)),I10/(I$23-SUM(I$18:I$19))),0) -> 0 | J29: =IFERROR( (Inputs!P$130-SUM(J$37:J$38)) *IF(J$23=0,$P10/($P$23-SUM($P$18:$P$19)),J10/(J$23-SUM(J$18:J$19))),0) -> 0 | K29: =IFERROR( (Inputs!Q$130-SUM(K$37:K$38)) *IF(K$23=0,$P10/($P$23-SUM($P$18:$P$19)),K10/(K$23-SUM(K$18:K$19))),0) -> 0 | L29: =IFERROR( (Inputs!R$130-SUM(L$37:L$38)) *IF(L$23=0,$P10/($P$23-SUM($P$18:$P$19)),L10/(L$23-SUM(L$18:L$19))),0) -> 0 | M29: =IFERROR( (Inputs!S$130-SUM(M$37:M$38)) *IF(M$23=0,$P10/($P$23-SUM($P$18:$P$19)),M10/(M$23-SUM(M$18:M$19))),0) -> 0 | N29: =IFERROR( (Inputs!T$130-SUM(N$37:N$38)) *IF(N$23=0,$P10/($P$23-SUM($P$18:$P$19)),N10/(N$23-SUM(N$18:N$19))),0) -> 0 | O29: =IFERROR( (Inputs!U$130-SUM(O$37:O$38)) *IF(O$23=0,$P10/($P$23-SUM($P$18:$P$19)),O10/(O$23-SUM(O$18:O$19))),0) -> 0 | P29: 0 | R29: =IFERROR($P29*R10/$AC10,0) -> 0 | S29: 0 | T29: 0 | U29: 0 | V29: 0 | W29: 0 | X29: 0 | Y29: 0 | Z29: 0 | AA29: 0 | AB29: 0 | AC29: 0
B30: =Inputs!$A$60 -> Communications (short life) | C30: =Inputs!$A$8 -> Real $2023 | D30: $Million | E30: =IFERROR( (Inputs!K$130-SUM(E$37:E$38)) *IF(E$23=0,$P11/($P$23-SUM($P$18:$P$19)),E11/(E$23-SUM(E$18:E$19))),0) -> 0 | F30: =IFERROR( (Inputs!L$130-SUM(F$37:F$38)) *IF(F$23=0,$P11/($P$23-SUM($P$18:$P$19)),F11/(F$23-SUM(F$18:F$19))),0) -> 0 | G30: =IFERROR( (Inputs!M$130-SUM(G$37:G$38)) *IF(G$23=0,$P11/($P$23-SUM($P$18:$P$19)),G11/(G$23-SUM(G$18:G$19))),0) -> 0 | H30: =IFERROR( (Inputs!N$130-SUM(H$37:H$38)) *IF(H$23=0,$P11/($P$23-SUM($P$18:$P$19)),H11/(H$23-SUM(H$18:H$19))),0) -> 0 | I30: =IFERROR( (Inputs!O$130-SUM(I$37:I$38)) *IF(I$23=0,$P11/($P$23-SUM($P$18:$P$19)),I11/(I$23-SUM(I$18:I$19))),0) -> 0 | J30: =IFERROR( (Inputs!P$130-SUM(J$37:J$38)) *IF(J$23=0,$P11/($P$23-SUM($P$18:$P$19)),J11/(J$23-SUM(J$18:J$19))),0) -> 0 | K30: =IFERROR( (Inputs!Q$130-SUM(K$37:K$38)) *IF(K$23=0,$P11/($P$23-SUM($P$18:$P$19)),K11/(K$23-SUM(K$18:K$19))),0) -> 0 | L30: =IFERROR( (Inputs!R$130-SUM(L$37:L$38)) *IF(L$23=0,$P11/($P$23-SUM($P$18:$P$19)),L11/(L$23-SUM(L$18:L$19))),0) -> 0 | M30: =IFERROR( (Inputs!S$130-SUM(M$37:M$38)) *IF(M$23=0,$P11/($P$23-SUM($P$18:$P$19)),M11/(M$23-SUM(M$18:M$19))),0) -> 0 | N30: =IFERROR( (Inputs!T$130-SUM(N$37:N$38)) *IF(N$23=0,$P11/($P$23-SUM($P$18:$P$19)),N11/(N$23-SUM(N$18:N$19))),0) -> 0 | O30: =IFERROR( (Inputs!U$130-SUM(O$37:O$38)) *IF(O$23=0,$P11/($P$23-SUM($P$18:$P$19)),O11/(O$23-SUM(O$18:O$19))),0) -> 0 | P30: 0 | R30: =IFERROR($P30*R11/$AC11,0) -> 0 | S30: 0 | T30: 0 | U30: 0 | V30: 0 | W30: 0 | X30: 0 | Y30: 0 | Z30: 0 | AA30: 0 | AB30: 0 | AC30: 0
B31: =Inputs!$A$61 -> Business IT | C31: =Inputs!$A$8 -> Real $2023 | D31: $Million | E31: =IFERROR( (Inputs!K$130-SUM(E$37:E$38)) *IF(E$23=0,$P12/($P$23-SUM($P$18:$P$19)),E12/(E$23-SUM(E$18:E$19))),0) -> 0 | F31: =IFERROR( (Inputs!L$130-SUM(F$37:F$38)) *IF(F$23=0,$P12/($P$23-SUM($P$18:$P$19)),F12/(F$23-SUM(F$18:F$19))),0) -> 0 | G31: =IFERROR( (Inputs!M$130-SUM(G$37:G$38)) *IF(G$23=0,$P12/($P$23-SUM($P$18:$P$19)),G12/(G$23-SUM(G$18:G$19))),0) -> 0 | H31: =IFERROR( (Inputs!N$130-SUM(H$37:H$38)) *IF(H$23=0,$P12/($P$23-SUM($P$18:$P$19)),H12/(H$23-SUM(H$18:H$19))),0) -> 0 | I31: =IFERROR( (Inputs!O$130-SUM(I$37:I$38)) *IF(I$23=0,$P12/($P$23-SUM($P$18:$P$19)),I12/(I$23-SUM(I$18:I$19))),0) -> 0 | J31: =IFERROR( (Inputs!P$130-SUM(J$37:J$38)) *IF(J$23=0,$P12/($P$23-SUM($P$18:$P$19)),J12/(J$23-SUM(J$18:J$19))),0) -> 0 | K31: =IFERROR( (Inputs!Q$130-SUM(K$37:K$38)) *IF(K$23=0,$P12/($P$23-SUM($P$18:$P$19)),K12/(K$23-SUM(K$18:K$19))),0) -> 0 | L31: =IFERROR( (Inputs!R$130-SUM(L$37:L$38)) *IF(L$23=0,$P12/($P$23-SUM($P$18:$P$19)),L12/(L$23-SUM(L$18:L$19))),0) -> 0 | M31: =IFERROR( (Inputs!S$130-SUM(M$37:M$38)) *IF(M$23=0,$P12/($P$23-SUM($P$18:$P$19)),M12/(M$23-SUM(M$18:M$19))),0) -> 0 | N31: =IFERROR( (Inputs!T$130-SUM(N$37:N$38)) *IF(N$23=0,$P12/($P$23-SUM($P$18:$P$19)),N12/(N$23-SUM(N$18:N$19))),0) -> 0 | O31: =IFERROR( (Inputs!U$130-SUM(O$37:O$38)) *IF(O$23=0,$P12/($P$23-SUM($P$18:$P$19)),O12/(O$23-SUM(O$18:O$19))),0) -> 0 | P31: 0 | R31: =IFERROR($P31*R12/$AC12,0) -> 0 | S31: 0 | T31: 0 | U31: 0 | V31: 0 | W31: 0 | X31: 0 | Y31: 0 | Z31: 0 | AA31: 0 | AB31: 0 | AC31: 0
B32: =Inputs!$A$62 -> Minor Plant, Motor Vehicles & Mobile Plant | C32: =Inputs!$A$8 -> Real $2023 | D32: $Million | E32: =IFERROR( (Inputs!K$130-SUM(E$37:E$38)) *IF(E$23=0,$P13/($P$23-SUM($P$18:$P$19)),E13/(E$23-SUM(E$18:E$19))),0) -> 0 | F32: =IFERROR( (Inputs!L$130-SUM(F$37:F$38)) *IF(F$23=0,$P13/($P$23-SUM($P$18:$P$19)),F13/(F$23-SUM(F$18:F$19))),0) -> 0 | G32: =IFERROR( (Inputs!M$130-SUM(G$37:G$38)) *IF(G$23=0,$P13/($P$23-SUM($P$18:$P$19)),G13/(G$23-SUM(G$18:G$19))),0) -> 0 | H32: =IFERROR( (Inputs!N$130-SUM(H$37:H$38)) *IF(H$23=0,$P13/($P$23-SUM($P$18:$P$19)),H13/(H$23-SUM(H$18:H$19))),0) -> 0 | I32: =IFERROR( (Inputs!O$130-SUM(I$37:I$38)) *IF(I$23=0,$P13/($P$23-SUM($P$18:$P$19)),I13/(I$23-SUM(I$18:I$19))),0) -> 0 | J32: =IFERROR( (Inputs!P$130-SUM(J$37:J$38)) *IF(J$23=0,$P13/($P$23-SUM($P$18:$P$19)),J13/(J$23-SUM(J$18:J$19))),0) -> 0 | K32: =IFERROR( (Inputs!Q$130-SUM(K$37:K$38)) *IF(K$23=0,$P13/($P$23-SUM($P$18:$P$19)),K13/(K$23-SUM(K$18:K$19))),0) -> 0 | L32: =IFERROR( (Inputs!R$130-SUM(L$37:L$38)) *IF(L$23=0,$P13/($P$23-SUM($P$18:$P$19)),L13/(L$23-SUM(L$18:L$19))),0) -> 0 | M32: =IFERROR( (Inputs!S$130-SUM(M$37:M$38)) *IF(M$23=0,$P13/($P$23-SUM($P$18:$P$19)),M13/(M$23-SUM(M$18:M$19))),0) -> 0 | N32: =IFERROR( (Inputs!T$130-SUM(N$37:N$38)) *IF(N$23=0,$P13/($P$23-SUM($P$18:$P$19)),N13/(N$23-SUM(N$18:N$19))),0) -> 0 | O32: =IFERROR( (Inputs!U$130-SUM(O$37:O$38)) *IF(O$23=0,$P13/($P$23-SUM($P$18:$P$19)),O13/(O$23-SUM(O$18:O$19))),0) -> 0 | P32: 0 | R32: =IFERROR($P32*R13/$AC13,0) -> 0 | S32: 0 | T32: 0 | U32: 0 | V32: 0 | W32: 0 | X32: 0 | Y32: 0 | Z32: 0 | AA32: 0 | AB32: 0 | AC32: 0
B33: =Inputs!$A$63 -> Transmission Line Life Extension | C33: =Inputs!$A$8 -> Real $2023 | D33: $Million | E33: =IFERROR( (Inputs!K$130-SUM(E$37:E$38)) *IF(E$23=0,$P14/($P$23-SUM($P$18:$P$19)),E14/(E$23-SUM(E$18:E$19))),0) -> 0 | F33: =IFERROR( (Inputs!L$130-SUM(F$37:F$38)) *IF(F$23=0,$P14/($P$23-SUM($P$18:$P$19)),F14/(F$23-SUM(F$18:F$19))),0) -> 0 | G33: =IFERROR( (Inputs!M$130-SUM(G$37:G$38)) *IF(G$23=0,$P14/($P$23-SUM($P$18:$P$19)),G14/(G$23-SUM(G$18:G$19))),0) -> 0 | H33: =IFERROR( (Inputs!N$130-SUM(H$37:H$38)) *IF(H$23=0,$P14/($P$23-SUM($P$18:$P$19)),H14/(H$23-SUM(H$18:H$19))),0) -> 0 | I33: =IFERROR( (Inputs!O$130-SUM(I$37:I$38)) *IF(I$23=0,$P14/($P$23-SUM($P$18:$P$19)),I14/(I$23-SUM(I$18:I$19))),0) -> 0 | J33: =IFERROR( (Inputs!P$130-SUM(J$37:J$38)) *IF(J$23=0,$P14/($P$23-SUM($P$18:$P$19)),J14/(J$23-SUM(J$18:J$19))),0) -> 0 | K33: =IFERROR( (Inputs!Q$130-SUM(K$37:K$38)) *IF(K$23=0,$P14/($P$23-SUM($P$18:$P$19)),K14/(K$23-SUM(K$18:K$19))),0) -> 0 | L33: =IFERROR( (Inputs!R$130-SUM(L$37:L$38)) *IF(L$23=0,$P14/($P$23-SUM($P$18:$P$19)),L14/(L$23-SUM(L$18:L$19))),0) -> 0 | M33: =IFERROR( (Inputs!S$130-SUM(M$37:M$38)) *IF(M$23=0,$P14/($P$23-SUM($P$18:$P$19)),M14/(M$23-SUM(M$18:M$19))),0) -> 0 | N33: =IFERROR( (Inputs!T$130-SUM(N$37:N$38)) *IF(N$23=0,$P14/($P$23-SUM($P$18:$P$19)),N14/(N$23-SUM(N$18:N$19))),0) -> 0 | O33: =IFERROR( (Inputs!U$130-SUM(O$37:O$38)) *IF(O$23=0,$P14/($P$23-SUM($P$18:$P$19)),O14/(O$23-SUM(O$18:O$19))),0) -> 0 | P33: 0 | R33: =IFERROR($P33*R14/$AC14,0) -> 0 | S33: 0 | T33: 0 | U33: 0 | V33: 0 | W33: 0 | X33: 0 | Y33: 0 | Z33: 0 | AA33: 0 | AB33: 0 | AC33: 0
B34: =Inputs!$A$64 -> Land and Easements | C34: =Inputs!$A$8 -> Real $2023 | D34: $Million | E34: =IFERROR( (Inputs!K$130-SUM(E$37:E$38)) *IF(E$23=0,$P15/($P$23-SUM($P$18:$P$19)),E15/(E$23-SUM(E$18:E$19))),0) -> 0.0001898178292 | F34: =IFERROR( (Inputs!L$130-SUM(F$37:F$38)) *IF(F$23=0,$P15/($P$23-SUM($P$18:$P$19)),F15/(F$23-SUM(F$18:F$19))),0) -> 0 | G34: =IFERROR( (Inputs!M$130-SUM(G$37:G$38)) *IF(G$23=0,$P15/($P$23-SUM($P$18:$P$19)),G15/(G$23-SUM(G$18:G$19))),0) -> 0.01005503685 | H34: =IFERROR( (Inputs!N$130-SUM(H$37:H$38)) *IF(H$23=0,$P15/($P$23-SUM($P$18:$P$19)),H15/(H$23-SUM(H$18:H$19))),0) -> 1.433293537e-05 | I34: =IFERROR( (Inputs!O$130-SUM(I$37:I$38)) *IF(I$23=0,$P15/($P$23-SUM($P$18:$P$19)),I15/(I$23-SUM(I$18:I$19))),0) -> 0 | J34: =IFERROR( (Inputs!P$130-SUM(J$37:J$38)) *IF(J$23=0,$P15/($P$23-SUM($P$18:$P$19)),J15/(J$23-SUM(J$18:J$19))),0) -> 5.523524613 | K34: =IFERROR( (Inputs!Q$130-SUM(K$37:K$38)) *IF(K$23=0,$P15/($P$23-SUM($P$18:$P$19)),K15/(K$23-SUM(K$18:K$19))),0) -> 3.061506461 | L34: =IFERROR( (Inputs!R$130-SUM(L$37:L$38)) *IF(L$23=0,$P15/($P$23-SUM($P$18:$P$19)),L15/(L$23-SUM(L$18:L$19))),0) -> 0.1169616915 | M34: =IFERROR( (Inputs!S$130-SUM(M$37:M$38)) *IF(M$23=0,$P15/($P$23-SUM($P$18:$P$19)),M15/(M$23-SUM(M$18:M$19))),0) -> 0 | N34: =IFERROR( (Inputs!T$130-SUM(N$37:N$38)) *IF(N$23=0,$P15/($P$23-SUM($P$18:$P$19)),N15/(N$23-SUM(N$18:N$19))),0) -> 0 | O34: =IFERROR( (Inputs!U$130-SUM(O$37:O$38)) *IF(O$23=0,$P15/($P$23-SUM($P$18:$P$19)),O15/(O$23-SUM(O$18:O$19))),0) -> 0 | P34: 8.712251953 | R34: =IFERROR($P34*R15/$AC15,0) -> 0 | S34: 0 | T34: 0 | U34: 0 | V34: 0 | W34: 1.96402118 | X34: 6.524256146 | Y34: 0.223974627 | Z34: 0 | AA34: 0 | AB34: 0 | AC34: 8.712251953
B35: =Inputs!$A$65 -> Synchronous Condensers | C35: =Inputs!$A$8 -> Real $2023 | D35: $Million | E35: =IFERROR( (Inputs!K$130-SUM(E$37:E$38)) *IF(E$23=0,$P16/($P$23-SUM($P$18:$P$19)),E16/(E$23-SUM(E$18:E$19))),0) -> 0 | F35: =IFERROR( (Inputs!L$130-SUM(F$37:F$38)) *IF(F$23=0,$P16/($P$23-SUM($P$18:$P$19)),F16/(F$23-SUM(F$18:F$19))),0) -> 0 | G35: =IFERROR( (Inputs!M$130-SUM(G$37:G$38)) *IF(G$23=0,$P16/($P$23-SUM($P$18:$P$19)),G16/(G$23-SUM(G$18:G$19))),0) -> 0 | H35: =IFERROR( (Inputs!N$130-SUM(H$37:H$38)) *IF(H$23=0,$P16/($P$23-SUM($P$18:$P$19)),H16/(H$23-SUM(H$18:H$19))),0) -> 0 | I35: =IFERROR( (Inputs!O$130-SUM(I$37:I$38)) *IF(I$23=0,$P16/($P$23-SUM($P$18:$P$19)),I16/(I$23-SUM(I$18:I$19))),0) -> 0 | J35: =IFERROR( (Inputs!P$130-SUM(J$37:J$38)) *IF(J$23=0,$P16/($P$23-SUM($P$18:$P$19)),J16/(J$23-SUM(J$18:J$19))),0) -> 0 | K35: =IFERROR( (Inputs!Q$130-SUM(K$37:K$38)) *IF(K$23=0,$P16/($P$23-SUM($P$18:$P$19)),K16/(K$23-SUM(K$18:K$19))),0) -> 0 | L35: =IFERROR( (Inputs!R$130-SUM(L$37:L$38)) *IF(L$23=0,$P16/($P$23-SUM($P$18:$P$19)),L16/(L$23-SUM(L$18:L$19))),0) -> 0 | M35: =IFERROR( (Inputs!S$130-SUM(M$37:M$38)) *IF(M$23=0,$P16/($P$23-SUM($P$18:$P$19)),M16/(M$23-SUM(M$18:M$19))),0) -> 0 | N35: =IFERROR( (Inputs!T$130-SUM(N$37:N$38)) *IF(N$23=0,$P16/($P$23-SUM($P$18:$P$19)),N16/(N$23-SUM(N$18:N$19))),0) -> 0 | O35: =IFERROR( (Inputs!U$130-SUM(O$37:O$38)) *IF(O$23=0,$P16/($P$23-SUM($P$18:$P$19)),O16/(O$23-SUM(O$18:O$19))),0) -> 0 | P35: 0 | R35: =IFERROR($P35*R16/$AC16,0) -> 0 | S35: 0 | T35: 0 | U35: 0 | V35: 0 | W35: 0 | X35: 0 | Y35: 0 | Z35: 0 | AA35: 0 | AB35: 0 | AC35: 0
B36: =Inputs!$A$66 -> Leasehold Land and Property | C36: =Inputs!$A$8 -> Real $2023 | D36: $Million | E36: =IFERROR( (Inputs!K$130-SUM(E$37:E$38)) *IF(E$23=0,$P17/($P$23-SUM($P$18:$P$19)),E17/(E$23-SUM(E$18:E$19))),0) -> 0 | F36: =IFERROR( (Inputs!L$130-SUM(F$37:F$38)) *IF(F$23=0,$P17/($P$23-SUM($P$18:$P$19)),F17/(F$23-SUM(F$18:F$19))),0) -> 0 | G36: =IFERROR( (Inputs!M$130-SUM(G$37:G$38)) *IF(G$23=0,$P17/($P$23-SUM($P$18:$P$19)),G17/(G$23-SUM(G$18:G$19))),0) -> 0 | H36: =IFERROR( (Inputs!N$130-SUM(H$37:H$38)) *IF(H$23=0,$P17/($P$23-SUM($P$18:$P$19)),H17/(H$23-SUM(H$18:H$19))),0) -> 0 | I36: =IFERROR( (Inputs!O$130-SUM(I$37:I$38)) *IF(I$23=0,$P17/($P$23-SUM($P$18:$P$19)),I17/(I$23-SUM(I$18:I$19))),0) -> 0 | J36: =IFERROR( (Inputs!P$130-SUM(J$37:J$38)) *IF(J$23=0,$P17/($P$23-SUM($P$18:$P$19)),J17/(J$23-SUM(J$18:J$19))),0) -> 0 | K36: =IFERROR( (Inputs!Q$130-SUM(K$37:K$38)) *IF(K$23=0,$P17/($P$23-SUM($P$18:$P$19)),K17/(K$23-SUM(K$18:K$19))),0) -> 0 | L36: =IFERROR( (Inputs!R$130-SUM(L$37:L$38)) *IF(L$23=0,$P17/($P$23-SUM($P$18:$P$19)),L17/(L$23-SUM(L$18:L$19))),0) -> 0 | M36: =IFERROR( (Inputs!S$130-SUM(M$37:M$38)) *IF(M$23=0,$P17/($P$23-SUM($P$18:$P$19)),M17/(M$23-SUM(M$18:M$19))),0) -> 0 | N36: =IFERROR( (Inputs!T$130-SUM(N$37:N$38)) *IF(N$23=0,$P17/($P$23-SUM($P$18:$P$19)),N17/(N$23-SUM(N$18:N$19))),0) -> 0 | O36: =IFERROR( (Inputs!U$130-SUM(O$37:O$38)) *IF(O$23=0,$P17/($P$23-SUM($P$18:$P$19)),O17/(O$23-SUM(O$18:O$19))),0) -> 0 | P36: 0 | R36: =IFERROR($P36*R17/$AC17,0) -> 0 | S36: 0 | T36: 0 | U36: 0 | V36: 0 | W36: 0 | X36: 0 | Y36: 0 | Z36: 0 | AA36: 0 | AB36: 0 | AC36: 0
B37: =Inputs!$A$67 -> Biodiversity Offsets (Stewardship sites) | C37: =Inputs!$A$8 -> Real $2023 | D37: $Million | E37: 6.185960514e-05 | F37: 0 | G37: 0.00327682922 | H37: 4.670950702e-06 | I37: 0 | J37: 0 | K37: 0.1190307479 | L37: 1.183384603 | M37: 0 | N37: 0 | O37: 0 | P37: 1.305758711 | R37: =E37 -> 6.185960514e-05 | S37: 0 | T37: 0.00327682922 | U37: 4.670950702e-06 | V37: 0 | W37: 0 | X37: 0.1190307479 | Y37: 1.183384603 | Z37: 0 | AA37: 0 | AB37: 0 | AC37: 1.305758711 | AE37: ← Bio offsets commissioning profile set to match as incurred profile
B38: =Inputs!$A$68 -> Biodiversity Offsets (Direct payments and other costs) | C38: =Inputs!$A$8 -> Real $2023 | D38: $Million | E38: 0.0001833595612 | F38: 0 | G38: 0.009712929246 | H38: 1.384527866e-05 | I38: 0 | J38: 0.2001664669 | K38: 1.048621473 | L38: 2.787863801 | M38: 0 | N38: 0 | O38: 0 | P38: =SUM(E38:O38) -> 4.046561875 | R38: 0.0001833595612 | S38: 0 | T38: 0.009712929246 | U38: 1.384527866e-05 | V38: 0 | W38: 0.2001664669 | X38: 1.048621473 | Y38: 2.787863801 | Z38: 0 | AA38: 0 | AB38: 0 | AC38: =SUM(R38:AB38) -> 4.046561875
B39: =Inputs!$A$69 -> Buildings - capital works | C39: =Inputs!$A$8 -> Real $2023 | D39: $Million | E39: =IFERROR( (Inputs!K$130-SUM(E$37:E$38)) *IF(E$23=0,$P20/($P$23-SUM($P$18:$P$19)),E20/(E$23-SUM(E$18:E$19))),0) -> 0 | F39: =IFERROR( (Inputs!L$130-SUM(F$37:F$38)) *IF(F$23=0,$P20/($P$23-SUM($P$18:$P$19)),F20/(F$23-SUM(F$18:F$19))),0) -> 0 | G39: =IFERROR( (Inputs!M$130-SUM(G$37:G$38)) *IF(G$23=0,$P20/($P$23-SUM($P$18:$P$19)),G20/(G$23-SUM(G$18:G$19))),0) -> 0 | H39: =IFERROR( (Inputs!N$130-SUM(H$37:H$38)) *IF(H$23=0,$P20/($P$23-SUM($P$18:$P$19)),H20/(H$23-SUM(H$18:H$19))),0) -> 0 | I39: =IFERROR( (Inputs!O$130-SUM(I$37:I$38)) *IF(I$23=0,$P20/($P$23-SUM($P$18:$P$19)),I20/(I$23-SUM(I$18:I$19))),0) -> 0 | J39: =IFERROR( (Inputs!P$130-SUM(J$37:J$38)) *IF(J$23=0,$P20/($P$23-SUM($P$18:$P$19)),J20/(J$23-SUM(J$18:J$19))),0) -> 0 | K39: =IFERROR( (Inputs!Q$130-SUM(K$37:K$38)) *IF(K$23=0,$P20/($P$23-SUM($P$18:$P$19)),K20/(K$23-SUM(K$18:K$19))),0) -> 0 | L39: =IFERROR( (Inputs!R$130-SUM(L$37:L$38)) *IF(L$23=0,$P20/($P$23-SUM($P$18:$P$19)),L20/(L$23-SUM(L$18:L$19))),0) -> 0 | M39: =IFERROR( (Inputs!S$130-SUM(M$37:M$38)) *IF(M$23=0,$P20/($P$23-SUM($P$18:$P$19)),M20/(M$23-SUM(M$18:M$19))),0) -> 0 | N39: =IFERROR( (Inputs!T$130-SUM(N$37:N$38)) *IF(N$23=0,$P20/($P$23-SUM($P$18:$P$19)),N20/(N$23-SUM(N$18:N$19))),0) -> 0 | O39: =IFERROR( (Inputs!U$130-SUM(O$37:O$38)) *IF(O$23=0,$P20/($P$23-SUM($P$18:$P$19)),O20/(O$23-SUM(O$18:O$19))),0) -> 0 | P39: 0 | R39: =IFERROR($P39*R20/$AC20,0) -> 0 | S39: 0 | T39: 0 | U39: 0 | V39: 0 | W39: 0 | X39: 0 | Y39: 0 | Z39: 0 | AA39: 0 | AB39: 0 | AC39: 0
B40: =Inputs!$A$70 -> In-house software | C40: =Inputs!$A$8 -> Real $2023 | D40: $Million | E40: =IFERROR( (Inputs!K$130-SUM(E$37:E$38)) *IF(E$23=0,$P21/($P$23-SUM($P$18:$P$19)),E21/(E$23-SUM(E$18:E$19))),0) -> 0 | F40: =IFERROR( (Inputs!L$130-SUM(F$37:F$38)) *IF(F$23=0,$P21/($P$23-SUM($P$18:$P$19)),F21/(F$23-SUM(F$18:F$19))),0) -> 0 | G40: =IFERROR( (Inputs!M$130-SUM(G$37:G$38)) *IF(G$23=0,$P21/($P$23-SUM($P$18:$P$19)),G21/(G$23-SUM(G$18:G$19))),0) -> 0 | H40: =IFERROR( (Inputs!N$130-SUM(H$37:H$38)) *IF(H$23=0,$P21/($P$23-SUM($P$18:$P$19)),H21/(H$23-SUM(H$18:H$19))),0) -> 0 | I40: =IFERROR( (Inputs!O$130-SUM(I$37:I$38)) *IF(I$23=0,$P21/($P$23-SUM($P$18:$P$19)),I21/(I$23-SUM(I$18:I$19))),0) -> 0 | J40: =IFERROR( (Inputs!P$130-SUM(J$37:J$38)) *IF(J$23=0,$P21/($P$23-SUM($P$18:$P$19)),J21/(J$23-SUM(J$18:J$19))),0) -> 0 | K40: =IFERROR( (Inputs!Q$130-SUM(K$37:K$38)) *IF(K$23=0,$P21/($P$23-SUM($P$18:$P$19)),K21/(K$23-SUM(K$18:K$19))),0) -> 0 | L40: =IFERROR( (Inputs!R$130-SUM(L$37:L$38)) *IF(L$23=0,$P21/($P$23-SUM($P$18:$P$19)),L21/(L$23-SUM(L$18:L$19))),0) -> 0 | M40: =IFERROR( (Inputs!S$130-SUM(M$37:M$38)) *IF(M$23=0,$P21/($P$23-SUM($P$18:$P$19)),M21/(M$23-SUM(M$18:M$19))),0) -> 0 | N40: =IFERROR( (Inputs!T$130-SUM(N$37:N$38)) *IF(N$23=0,$P21/($P$23-SUM($P$18:$P$19)),N21/(N$23-SUM(N$18:N$19))),0) -> 0 | O40: =IFERROR( (Inputs!U$130-SUM(O$37:O$38)) *IF(O$23=0,$P21/($P$23-SUM($P$18:$P$19)),O21/(O$23-SUM(O$18:O$19))),0) -> 0 | P40: 0 | R40: =IFERROR($P40*R21/$AC21,0) -> 0 | S40: 0 | T40: 0 | U40: 0 | V40: 0 | W40: 0 | X40: 0 | Y40: 0 | Z40: 0 | AA40: 0 | AB40: 0 | AC40: 0
B41: =Inputs!$A$71 -> [Spare] | C41: =Inputs!$A$8 -> Real $2023 | D41: $Million | E41: =IFERROR( (Inputs!K$130-SUM(E$37:E$38)) *IF(E$23=0,$P22/($P$23-SUM($P$18:$P$19)),E22/(E$23-SUM(E$18:E$19))),0) -> 0 | F41: =IFERROR( (Inputs!L$130-SUM(F$37:F$38)) *IF(F$23=0,$P22/($P$23-SUM($P$18:$P$19)),F22/(F$23-SUM(F$18:F$19))),0) -> 0 | G41: =IFERROR( (Inputs!M$130-SUM(G$37:G$38)) *IF(G$23=0,$P22/($P$23-SUM($P$18:$P$19)),G22/(G$23-SUM(G$18:G$19))),0) -> 0 | H41: =IFERROR( (Inputs!N$130-SUM(H$37:H$38)) *IF(H$23=0,$P22/($P$23-SUM($P$18:$P$19)),H22/(H$23-SUM(H$18:H$19))),0) -> 0 | I41: =IFERROR( (Inputs!O$130-SUM(I$37:I$38)) *IF(I$23=0,$P22/($P$23-SUM($P$18:$P$19)),I22/(I$23-SUM(I$18:I$19))),0) -> 0 | J41: =IFERROR( (Inputs!P$130-SUM(J$37:J$38)) *IF(J$23=0,$P22/($P$23-SUM($P$18:$P$19)),J22/(J$23-SUM(J$18:J$19))),0) -> 0 | K41: =IFERROR( (Inputs!Q$130-SUM(K$37:K$38)) *IF(K$23=0,$P22/($P$23-SUM($P$18:$P$19)),K22/(K$23-SUM(K$18:K$19))),0) -> 0 | L41: =IFERROR( (Inputs!R$130-SUM(L$37:L$38)) *IF(L$23=0,$P22/($P$23-SUM($P$18:$P$19)),L22/(L$23-SUM(L$18:L$19))),0) -> 0 | M41: =IFERROR( (Inputs!S$130-SUM(M$37:M$38)) *IF(M$23=0,$P22/($P$23-SUM($P$18:$P$19)),M22/(M$23-SUM(M$18:M$19))),0) -> 0 | N41: =IFERROR( (Inputs!T$130-SUM(N$37:N$38)) *IF(N$23=0,$P22/($P$23-SUM($P$18:$P$19)),N22/(N$23-SUM(N$18:N$19))),0) -> 0 | O41: =IFERROR( (Inputs!U$130-SUM(O$37:O$38)) *IF(O$23=0,$P22/($P$23-SUM($P$18:$P$19)),O22/(O$23-SUM(O$18:O$19))),0) -> 0 | P41: 0 | R41: =IFERROR($P41*R22/$AC22,0) -> 0 | S41: 0 | T41: 0 | U41: 0 | V41: 0 | W41: 0 | X41: 0 | Y41: 0 | Z41: 0 | AA41: 0 | AB41: 0 | AC41: 0
B42: Sub-Total | C42: =Inputs!$A$8 -> Real $2023 | D42: $Million | E42: =SUM(E26:E41) -> 0.002751266362 | F42: =SUM(F26:F41) -> 0 | G42: =SUM(G26:G41) -> 0.1457401803 | H42: 0.000207745095 | I42: 1.988238665 | J42: 7.090893841 | K42: 29.97303413 | L42: 24.97617433 | M42: 0 | N42: 0 | O42: 0 | P42: 64.17704016 | R42: =SUM(R26:R41) -> 0.0002452191664 | S42: =SUM(S26:S41) -> 0 | T42: =SUM(T26:T41) -> 0.01298975847 | U42: 1.851622936e-05 | V42: 0 | W42: 2.164187647 | X42: 14.1013259 | Y42: 21.5757145 | Z42: 26.32255862 | AA42: 0 | AB42: 0 | AC42: 64.17704016
B44: Indirect Non-Labour Costs | AE44: ← This value is pro-rated over the escalated capital forecast (including direct labour costs) by year and asset class
B45: =Inputs!$A$56 -> Transmission Lines | C45: =Inputs!$A$8 -> Real $2023 | D45: $Million | E45: =IFERROR((Inputs!K$182-SUM(E$56:E$57)) *IF(E$23+E$42=0,($P7+$P26)/($P$23+$P$42-SUM($P$18:$P$19,$P$37:$P$38)),(E7+E26)/(E$23+E$42-SUM(E$18:E$19,E$37:E$38))),0) -> 0 | F45: =IFERROR((Inputs!L$182-SUM(F$56:F$57)) *IF(F$23+F$42=0,($P7+$P26)/($P$23+$P$42-SUM($P$18:$P$19,$P$37:$P$38)),(F7+F26)/(F$23+F$42-SUM(F$18:F$19,F$37:F$38))),0) -> 0 | G45: =IFERROR((Inputs!M$182-SUM(G$56:G$57)) *IF(G$23+G$42=0,($P7+$P26)/($P$23+$P$42-SUM($P$18:$P$19,$P$37:$P$38)),(G7+G26)/(G$23+G$42-SUM(G$18:G$19,G$37:G$38))),0) -> 0 | H45: =IFERROR((Inputs!N$182-SUM(H$56:H$57)) *IF(H$23+H$42=0,($P7+$P26)/($P$23+$P$42-SUM($P$18:$P$19,$P$37:$P$38)),(H7+H26)/(H$23+H$42-SUM(H$18:H$19,H$37:H$38))),0) -> 0 | I45: =IFERROR((Inputs!O$182-SUM(I$56:I$57)) *IF(I$23+I$42=0,($P7+$P26)/($P$23+$P$42-SUM($P$18:$P$19,$P$37:$P$38)),(I7+I26)/(I$23+I$42-SUM(I$18:I$19,I$37:I$38))),0) -> 3.030654559 | J45: =IFERROR((Inputs!P$182-SUM(J$56:J$57)) *IF(J$23+J$42=0,($P7+$P26)/($P$23+$P$42-SUM($P$18:$P$19,$P$37:$P$38)),(J7+J26)/(J$23+J$42-SUM(J$18:J$19,J$37:J$38))),0) -> 1.515346934 | K45: =IFERROR((Inputs!Q$182-SUM(K$56:K$57)) *IF(K$23+K$42=0,($P7+$P26)/($P$23+$P$42-SUM($P$18:$P$19,$P$37:$P$38)),(K7+K26)/(K$23+K$42-SUM(K$18:K$19,K$37:K$38))),0) -> 19.8779351 | L45: =IFERROR((Inputs!R$182-SUM(L$56:L$57)) *IF(L$23+L$42=0,($P7+$P26)/($P$23+$P$42-SUM($P$18:$P$19,$P$37:$P$38)),(L7+L26)/(L$23+L$42-SUM(L$18:L$19,L$37:L$38))),0) -> 28.86067973 | M45: =IFERROR((Inputs!S$182-SUM(M$56:M$57)) *IF(M$23+M$42=0,($P7+$P26)/($P$23+$P$42-SUM($P$18:$P$19,$P$37:$P$38)),(M7+M26)/(M$23+M$42-SUM(M$18:M$19,M$37:M$38))),0) -> 0 | N45: =IFERROR((Inputs!T$182-SUM(N$56:N$57)) *IF(N$23+N$42=0,($P7+$P26)/($P$23+$P$42-SUM($P$18:$P$19,$P$37:$P$38)),(N7+N26)/(N$23+N$42-SUM(N$18:N$19,N$37:N$38))),0) -> 0 | O45: =IFERROR((Inputs!U$182-SUM(O$56:O$57)) *IF(O$23+O$42=0,($P7+$P26)/($P$23+$P$42-SUM($P$18:$P$19,$P$37:$P$38)),(O7+O26)/(O$23+O$42-SUM(O$18:O$19,O$37:O$38))),0) -> 0 | P45: =SUM(E45:O45) -> 53.28461633 | R45: =IFERROR($P45*R7/$AC7,0) -> 0 | S45: =IFERROR($P45*S7/$AC7,0) -> 0 | T45: 0 | U45: 0 | V45: 0 | W45: 0 | X45: 12.12016388 | Y45: 30.23531436 | Z45: 10.92913808 | AA45: 0 | AB45: 0 | AC45: =SUM(R45:AB45) -> 53.28461633
B46: =Inputs!$A$57 -> Underground Cables | C46: =Inputs!$A$8 -> Real $2023 | D46: $Million | E46: =IFERROR((Inputs!K$182-SUM(E$56:E$57)) *IF(E$23+E$42=0,($P8+$P27)/($P$23+$P$42-SUM($P$18:$P$19,$P$37:$P$38)),(E8+E27)/(E$23+E$42-SUM(E$18:E$19,E$37:E$38))),0) -> 0 | F46: =IFERROR((Inputs!L$182-SUM(F$56:F$57)) *IF(F$23+F$42=0,($P8+$P27)/($P$23+$P$42-SUM($P$18:$P$19,$P$37:$P$38)),(F8+F27)/(F$23+F$42-SUM(F$18:F$19,F$37:F$38))),0) -> 0 | G46: =IFERROR((Inputs!M$182-SUM(G$56:G$57)) *IF(G$23+G$42=0,($P8+$P27)/($P$23+$P$42-SUM($P$18:$P$19,$P$37:$P$38)),(G8+G27)/(G$23+G$42-SUM(G$18:G$19,G$37:G$38))),0) -> 0 | H46: =IFERROR((Inputs!N$182-SUM(H$56:H$57)) *IF(H$23+H$42=0,($P8+$P27)/($P$23+$P$42-SUM($P$18:$P$19,$P$37:$P$38)),(H8+H27)/(H$23+H$42-SUM(H$18:H$19,H$37:H$38))),0) -> 0 | I46: =IFERROR((Inputs!O$182-SUM(I$56:I$57)) *IF(I$23+I$42=0,($P8+$P27)/($P$23+$P$42-SUM($P$18:$P$19,$P$37:$P$38)),(I8+I27)/(I$23+I$42-SUM(I$18:I$19,I$37:I$38))),0) -> 0 | J46: =IFERROR((Inputs!P$182-SUM(J$56:J$57)) *IF(J$23+J$42=0,($P8+$P27)/($P$23+$P$42-SUM($P$18:$P$19,$P$37:$P$38)),(J8+J27)/(J$23+J$42-SUM(J$18:J$19,J$37:J$38))),0) -> 0 | K46: =IFERROR((Inputs!Q$182-SUM(K$56:K$57)) *IF(K$23+K$42=0,($P8+$P27)/($P$23+$P$42-SUM($P$18:$P$19,$P$37:$P$38)),(K8+K27)/(K$23+K$42-SUM(K$18:K$19,K$37:K$38))),0) -> 0 | L46: =IFERROR((Inputs!R$182-SUM(L$56:L$57)) *IF(L$23+L$42=0,($P8+$P27)/($P$23+$P$42-SUM($P$18:$P$19,$P$37:$P$38)),(L8+L27)/(L$23+L$42-SUM(L$18:L$19,L$37:L$38))),0) -> 0 | M46: =IFERROR((Inputs!S$182-SUM(M$56:M$57)) *IF(M$23+M$42=0,($P8+$P27)/($P$23+$P$42-SUM($P$18:$P$19,$P$37:$P$38)),(M8+M27)/(M$23+M$42-SUM(M$18:M$19,M$37:M$38))),0) -> 0 | N46: =IFERROR((Inputs!T$182-SUM(N$56:N$57)) *IF(N$23+N$42=0,($P8+$P27)/($P$23+$P$42-SUM($P$18:$P$19,$P$37:$P$38)),(N8+N27)/(N$23+N$42-SUM(N$18:N$19,N$37:N$38))),0) -> 0 | O46: =IFERROR((Inputs!U$182-SUM(O$56:O$57)) *IF(O$23+O$42=0,($P8+$P27)/($P$23+$P$42-SUM($P$18:$P$19,$P$37:$P$38)),(O8+O27)/(O$23+O$42-SUM(O$18:O$19,O$37:O$38))),0) -> 0 | P46: 0 | R46: =IFERROR($P46*R8/$AC8,0) -> 0 | S46: 0 | T46: 0 | U46: 0 | V46: 0 | W46: 0 | X46: 0 | Y46: 0 | Z46: 0 | AA46: 0 | AB46: 0 | AC46: 0
B47: =Inputs!$A$58 -> Substations | C47: =Inputs!$A$8 -> Real $2023 | D47: $Million | E47: =IFERROR((Inputs!K$182-SUM(E$56:E$57)) *IF(E$23+E$42=0,($P9+$P28)/($P$23+$P$42-SUM($P$18:$P$19,$P$37:$P$38)),(E9+E28)/(E$23+E$42-SUM(E$18:E$19,E$37:E$38))),0) -> 0 | F47: =IFERROR((Inputs!L$182-SUM(F$56:F$57)) *IF(F$23+F$42=0,($P9+$P28)/($P$23+$P$42-SUM($P$18:$P$19,$P$37:$P$38)),(F9+F28)/(F$23+F$42-SUM(F$18:F$19,F$37:F$38))),0) -> 0 | G47: =IFERROR((Inputs!M$182-SUM(G$56:G$57)) *IF(G$23+G$42=0,($P9+$P28)/($P$23+$P$42-SUM($P$18:$P$19,$P$37:$P$38)),(G9+G28)/(G$23+G$42-SUM(G$18:G$19,G$37:G$38))),0) -> 0 | H47: =IFERROR((Inputs!N$182-SUM(H$56:H$57)) *IF(H$23+H$42=0,($P9+$P28)/($P$23+$P$42-SUM($P$18:$P$19,$P$37:$P$38)),(H9+H28)/(H$23+H$42-SUM(H$18:H$19,H$37:H$38))),0) -> 0 | I47: =IFERROR((Inputs!O$182-SUM(I$56:I$57)) *IF(I$23+I$42=0,($P9+$P28)/($P$23+$P$42-SUM($P$18:$P$19,$P$37:$P$38)),(I9+I28)/(I$23+I$42-SUM(I$18:I$19,I$37:I$38))),0) -> 1.557670961 | J47: =IFERROR((Inputs!P$182-SUM(J$56:J$57)) *IF(J$23+J$42=0,($P9+$P28)/($P$23+$P$42-SUM($P$18:$P$19,$P$37:$P$38)),(J9+J28)/(J$23+J$42-SUM(J$18:J$19,J$37:J$38))),0) -> 0 | K47: =IFERROR((Inputs!Q$182-SUM(K$56:K$57)) *IF(K$23+K$42=0,($P9+$P28)/($P$23+$P$42-SUM($P$18:$P$19,$P$37:$P$38)),(K9+K28)/(K$23+K$42-SUM(K$18:K$19,K$37:K$38))),0) -> 12.70577186 | L47: =IFERROR((Inputs!R$182-SUM(L$56:L$57)) *IF(L$23+L$42=0,($P9+$P28)/($P$23+$P$42-SUM($P$18:$P$19,$P$37:$P$38)),(L9+L28)/(L$23+L$42-SUM(L$18:L$19,L$37:L$38))),0) -> 33.16029476 | M47: =IFERROR((Inputs!S$182-SUM(M$56:M$57)) *IF(M$23+M$42=0,($P9+$P28)/($P$23+$P$42-SUM($P$18:$P$19,$P$37:$P$38)),(M9+M28)/(M$23+M$42-SUM(M$18:M$19,M$37:M$38))),0) -> 0 | N47: =IFERROR((Inputs!T$182-SUM(N$56:N$57)) *IF(N$23+N$42=0,($P9+$P28)/($P$23+$P$42-SUM($P$18:$P$19,$P$37:$P$38)),(N9+N28)/(N$23+N$42-SUM(N$18:N$19,N$37:N$38))),0) -> 0 | O47: =IFERROR((Inputs!U$182-SUM(O$56:O$57)) *IF(O$23+O$42=0,($P9+$P28)/($P$23+$P$42-SUM($P$18:$P$19,$P$37:$P$38)),(O9+O28)/(O$23+O$42-SUM(O$18:O$19,O$37:O$38))),0) -> 0 | P47: 47.42373758 | R47: =IFERROR($P47*R9/$AC9,0) -> 0 | S47: 0 | T47: 0 | U47: 0 | V47: 0 | W47: 0 | X47: 0 | Y47: 3.00825079 | Z47: 44.41548679 | AA47: 0 | AB47: 0 | AC47: 47.42373758
B48: =Inputs!$A$59 -> Secondary Systems | C48: =Inputs!$A$8 -> Real $2023 | D48: $Million | E48: =IFERROR((Inputs!K$182-SUM(E$56:E$57)) *IF(E$23+E$42=0,($P10+$P29)/($P$23+$P$42-SUM($P$18:$P$19,$P$37:$P$38)),(E10+E29)/(E$23+E$42-SUM(E$18:E$19,E$37:E$38))),0) -> 0 | F48: =IFERROR((Inputs!L$182-SUM(F$56:F$57)) *IF(F$23+F$42=0,($P10+$P29)/($P$23+$P$42-SUM($P$18:$P$19,$P$37:$P$38)),(F10+F29)/(F$23+F$42-SUM(F$18:F$19,F$37:F$38))),0) -> 0 | G48: =IFERROR((Inputs!M$182-SUM(G$56:G$57)) *IF(G$23+G$42=0,($P10+$P29)/($P$23+$P$42-SUM($P$18:$P$19,$P$37:$P$38)),(G10+G29)/(G$23+G$42-SUM(G$18:G$19,G$37:G$38))),0) -> 0 | H48: =IFERROR((Inputs!N$182-SUM(H$56:H$57)) *IF(H$23+H$42=0,($P10+$P29)/($P$23+$P$42-SUM($P$18:$P$19,$P$37:$P$38)),(H10+H29)/(H$23+H$42-SUM(H$18:H$19,H$37:H$38))),0) -> 0 | I48: =IFERROR((Inputs!O$182-SUM(I$56:I$57)) *IF(I$23+I$42=0,($P10+$P29)/($P$23+$P$42-SUM($P$18:$P$19,$P$37:$P$38)),(I10+I29)/(I$23+I$42-SUM(I$18:I$19,I$37:I$38))),0) -> 0 | J48: =IFERROR((Inputs!P$182-SUM(J$56:J$57)) *IF(J$23+J$42=0,($P10+$P29)/($P$23+$P$42-SUM($P$18:$P$19,$P$37:$P$38)),(J10+J29)/(J$23+J$42-SUM(J$18:J$19,J$37:J$38))),0) -> 0 | K48: =IFERROR((Inputs!Q$182-SUM(K$56:K$57)) *IF(K$23+K$42=0,($P10+$P29)/($P$23+$P$42-SUM($P$18:$P$19,$P$37:$P$38)),(K10+K29)/(K$23+K$42-SUM(K$18:K$19,K$37:K$38))),0) -> 0 | L48: =IFERROR((Inputs!R$182-SUM(L$56:L$57)) *IF(L$23+L$42=0,($P10+$P29)/($P$23+$P$42-SUM($P$18:$P$19,$P$37:$P$38)),(L10+L29)/(L$23+L$42-SUM(L$18:L$19,L$37:L$38))),0) -> 0 | M48: =IFERROR((Inputs!S$182-SUM(M$56:M$57)) *IF(M$23+M$42=0,($P10+$P29)/($P$23+$P$42-SUM($P$18:$P$19,$P$37:$P$38)),(M10+M29)/(M$23+M$42-SUM(M$18:M$19,M$37:M$38))),0) -> 0 | N48: =IFERROR((Inputs!T$182-SUM(N$56:N$57)) *IF(N$23+N$42=0,($P10+$P29)/($P$23+$P$42-SUM($P$18:$P$19,$P$37:$P$38)),(N10+N29)/(N$23+N$42-SUM(N$18:N$19,N$37:N$38))),0) -> 0 | O48: =IFERROR((Inputs!U$182-SUM(O$56:O$57)) *IF(O$23+O$42=0,($P10+$P29)/($P$23+$P$42-SUM($P$18:$P$19,$P$37:$P$38)),(O10+O29)/(O$23+O$42-SUM(O$18:O$19,O$37:O$38))),0) -> 0 | P48: 0 | R48: =IFERROR($P48*R10/$AC10,0) -> 0 | S48: 0 | T48: 0 | U48: 0 | V48: 0 | W48: 0 | X48: 0 | Y48: 0 | Z48: 0 | AA48: 0 | AB48: 0 | AC48: 0
B49: =Inputs!$A$60 -> Communications (short life) | C49: =Inputs!$A$8 -> Real $2023 | D49: $Million | E49: =IFERROR((Inputs!K$182-SUM(E$56:E$57)) *IF(E$23+E$42=0,($P11+$P30)/($P$23+$P$42-SUM($P$18:$P$19,$P$37:$P$38)),(E11+E30)/(E$23+E$42-SUM(E$18:E$19,E$37:E$38))),0) -> 0 | F49: =IFERROR((Inputs!L$182-SUM(F$56:F$57)) *IF(F$23+F$42=0,($P11+$P30)/($P$23+$P$42-SUM($P$18:$P$19,$P$37:$P$38)),(F11+F30)/(F$23+F$42-SUM(F$18:F$19,F$37:F$38))),0) -> 0 | G49: =IFERROR((Inputs!M$182-SUM(G$56:G$57)) *IF(G$23+G$42=0,($P11+$P30)/($P$23+$P$42-SUM($P$18:$P$19,$P$37:$P$38)),(G11+G30)/(G$23+G$42-SUM(G$18:G$19,G$37:G$38))),0) -> 0 | H49: =IFERROR((Inputs!N$182-SUM(H$56:H$57)) *IF(H$23+H$42=0,($P11+$P30)/($P$23+$P$42-SUM($P$18:$P$19,$P$37:$P$38)),(H11+H30)/(H$23+H$42-SUM(H$18:H$19,H$37:H$38))),0) -> 0 | I49: =IFERROR((Inputs!O$182-SUM(I$56:I$57)) *IF(I$23+I$42=0,($P11+$P30)/($P$23+$P$42-SUM($P$18:$P$19,$P$37:$P$38)),(I11+I30)/(I$23+I$42-SUM(I$18:I$19,I$37:I$38))),0) -> 0 | J49: =IFERROR((Inputs!P$182-SUM(J$56:J$57)) *IF(J$23+J$42=0,($P11+$P30)/($P$23+$P$42-SUM($P$18:$P$19,$P$37:$P$38)),(J11+J30)/(J$23+J$42-SUM(J$18:J$19,J$37:J$38))),0) -> 0 | K49: =IFERROR((Inputs!Q$182-SUM(K$56:K$57)) *IF(K$23+K$42=0,($P11+$P30)/($P$23+$P$42-SUM($P$18:$P$19,$P$37:$P$38)),(K11+K30)/(K$23+K$42-SUM(K$18:K$19,K$37:K$38))),0) -> 0 | L49: =IFERROR((Inputs!R$182-SUM(L$56:L$57)) *IF(L$23+L$42=0,($P11+$P30)/($P$23+$P$42-SUM($P$18:$P$19,$P$37:$P$38)),(L11+L30)/(L$23+L$42-SUM(L$18:L$19,L$37:L$38))),0) -> 0 | M49: =IFERROR((Inputs!S$182-SUM(M$56:M$57)) *IF(M$23+M$42=0,($P11+$P30)/($P$23+$P$42-SUM($P$18:$P$19,$P$37:$P$38)),(M11+M30)/(M$23+M$42-SUM(M$18:M$19,M$37:M$38))),0) -> 0 | N49: =IFERROR((Inputs!T$182-SUM(N$56:N$57)) *IF(N$23+N$42=0,($P11+$P30)/($P$23+$P$42-SUM($P$18:$P$19,$P$37:$P$38)),(N11+N30)/(N$23+N$42-SUM(N$18:N$19,N$37:N$38))),0) -> 0 | O49: =IFERROR((Inputs!U$182-SUM(O$56:O$57)) *IF(O$23+O$42=0,($P11+$P30)/($P$23+$P$42-SUM($P$18:$P$19,$P$37:$P$38)),(O11+O30)/(O$23+O$42-SUM(O$18:O$19,O$37:O$38))),0) -> 0 | P49: 0 | R49: =IFERROR($P49*R11/$AC11,0) -> 0 | S49: 0 | T49: 0 | U49: 0 | V49: 0 | W49: 0 | X49: 0 | Y49: 0 | Z49: 0 | AA49: 0 | AB49: 0 | AC49: 0
B50: =Inputs!$A$61 -> Business IT | C50: =Inputs!$A$8 -> Real $2023 | D50: $Million | E50: =IFERROR((Inputs!K$182-SUM(E$56:E$57)) *IF(E$23+E$42=0,($P12+$P31)/($P$23+$P$42-SUM($P$18:$P$19,$P$37:$P$38)),(E12+E31)/(E$23+E$42-SUM(E$18:E$19,E$37:E$38))),0) -> 0 | F50: =IFERROR((Inputs!L$182-SUM(F$56:F$57)) *IF(F$23+F$42=0,($P12+$P31)/($P$23+$P$42-SUM($P$18:$P$19,$P$37:$P$38)),(F12+F31)/(F$23+F$42-SUM(F$18:F$19,F$37:F$38))),0) -> 0 | G50: =IFERROR((Inputs!M$182-SUM(G$56:G$57)) *IF(G$23+G$42=0,($P12+$P31)/($P$23+$P$42-SUM($P$18:$P$19,$P$37:$P$38)),(G12+G31)/(G$23+G$42-SUM(G$18:G$19,G$37:G$38))),0) -> 0 | H50: =IFERROR((Inputs!N$182-SUM(H$56:H$57)) *IF(H$23+H$42=0,($P12+$P31)/($P$23+$P$42-SUM($P$18:$P$19,$P$37:$P$38)),(H12+H31)/(H$23+H$42-SUM(H$18:H$19,H$37:H$38))),0) -> 0 | I50: =IFERROR((Inputs!O$182-SUM(I$56:I$57)) *IF(I$23+I$42=0,($P12+$P31)/($P$23+$P$42-SUM($P$18:$P$19,$P$37:$P$38)),(I12+I31)/(I$23+I$42-SUM(I$18:I$19,I$37:I$38))),0) -> 0 | J50: =IFERROR((Inputs!P$182-SUM(J$56:J$57)) *IF(J$23+J$42=0,($P12+$P31)/($P$23+$P$42-SUM($P$18:$P$19,$P$37:$P$38)),(J12+J31)/(J$23+J$42-SUM(J$18:J$19,J$37:J$38))),0) -> 0 | K50: =IFERROR((Inputs!Q$182-SUM(K$56:K$57)) *IF(K$23+K$42=0,($P12+$P31)/($P$23+$P$42-SUM($P$18:$P$19,$P$37:$P$38)),(K12+K31)/(K$23+K$42-SUM(K$18:K$19,K$37:K$38))),0) -> 0 | L50: =IFERROR((Inputs!R$182-SUM(L$56:L$57)) *IF(L$23+L$42=0,($P12+$P31)/($P$23+$P$42-SUM($P$18:$P$19,$P$37:$P$38)),(L12+L31)/(L$23+L$42-SUM(L$18:L$19,L$37:L$38))),0) -> 0 | M50: =IFERROR((Inputs!S$182-SUM(M$56:M$57)) *IF(M$23+M$42=0,($P12+$P31)/($P$23+$P$42-SUM($P$18:$P$19,$P$37:$P$38)),(M12+M31)/(M$23+M$42-SUM(M$18:M$19,M$37:M$38))),0) -> 0 | N50: =IFERROR((Inputs!T$182-SUM(N$56:N$57)) *IF(N$23+N$42=0,($P12+$P31)/($P$23+$P$42-SUM($P$18:$P$19,$P$37:$P$38)),(N12+N31)/(N$23+N$42-SUM(N$18:N$19,N$37:N$38))),0) -> 0 | O50: =IFERROR((Inputs!U$182-SUM(O$56:O$57)) *IF(O$23+O$42=0,($P12+$P31)/($P$23+$P$42-SUM($P$18:$P$19,$P$37:$P$38)),(O12+O31)/(O$23+O$42-SUM(O$18:O$19,O$37:O$38))),0) -> 0 | P50: 0 | R50: =IFERROR($P50*R12/$AC12,0) -> 0 | S50: 0 | T50: 0 | U50: 0 | V50: 0 | W50: 0 | X50: 0 | Y50: 0 | Z50: 0 | AA50: 0 | AB50: 0 | AC50: 0
B51: =Inputs!$A$62 -> Minor Plant, Motor Vehicles & Mobile Plant | C51: =Inputs!$A$8 -> Real $2023 | D51: $Million | E51: =IFERROR((Inputs!K$182-SUM(E$56:E$57)) *IF(E$23+E$42=0,($P13+$P32)/($P$23+$P$42-SUM($P$18:$P$19,$P$37:$P$38)),(E13+E32)/(E$23+E$42-SUM(E$18:E$19,E$37:E$38))),0) -> 0 | F51: =IFERROR((Inputs!L$182-SUM(F$56:F$57)) *IF(F$23+F$42=0,($P13+$P32)/($P$23+$P$42-SUM($P$18:$P$19,$P$37:$P$38)),(F13+F32)/(F$23+F$42-SUM(F$18:F$19,F$37:F$38))),0) -> 0 | G51: =IFERROR((Inputs!M$182-SUM(G$56:G$57)) *IF(G$23+G$42=0,($P13+$P32)/($P$23+$P$42-SUM($P$18:$P$19,$P$37:$P$38)),(G13+G32)/(G$23+G$42-SUM(G$18:G$19,G$37:G$38))),0) -> 0 | H51: =IFERROR((Inputs!N$182-SUM(H$56:H$57)) *IF(H$23+H$42=0,($P13+$P32)/($P$23+$P$42-SUM($P$18:$P$19,$P$37:$P$38)),(H13+H32)/(H$23+H$42-SUM(H$18:H$19,H$37:H$38))),0) -> 0 | I51: =IFERROR((Inputs!O$182-SUM(I$56:I$57)) *IF(I$23+I$42=0,($P13+$P32)/($P$23+$P$42-SUM($P$18:$P$19,$P$37:$P$38)),(I13+I32)/(I$23+I$42-SUM(I$18:I$19,I$37:I$38))),0) -> 0 | J51: =IFERROR((Inputs!P$182-SUM(J$56:J$57)) *IF(J$23+J$42=0,($P13+$P32)/($P$23+$P$42-SUM($P$18:$P$19,$P$37:$P$38)),(J13+J32)/(J$23+J$42-SUM(J$18:J$19,J$37:J$38))),0) -> 0 | K51: =IFERROR((Inputs!Q$182-SUM(K$56:K$57)) *IF(K$23+K$42=0,($P13+$P32)/($P$23+$P$42-SUM($P$18:$P$19,$P$37:$P$38)),(K13+K32)/(K$23+K$42-SUM(K$18:K$19,K$37:K$38))),0) -> 0 | L51: =IFERROR((Inputs!R$182-SUM(L$56:L$57)) *IF(L$23+L$42=0,($P13+$P32)/($P$23+$P$42-SUM($P$18:$P$19,$P$37:$P$38)),(L13+L32)/(L$23+L$42-SUM(L$18:L$19,L$37:L$38))),0) -> 0 | M51: =IFERROR((Inputs!S$182-SUM(M$56:M$57)) *IF(M$23+M$42=0,($P13+$P32)/($P$23+$P$42-SUM($P$18:$P$19,$P$37:$P$38)),(M13+M32)/(M$23+M$42-SUM(M$18:M$19,M$37:M$38))),0) -> 0 | N51: =IFERROR((Inputs!T$182-SUM(N$56:N$57)) *IF(N$23+N$42=0,($P13+$P32)/($P$23+$P$42-SUM($P$18:$P$19,$P$37:$P$38)),(N13+N32)/(N$23+N$42-SUM(N$18:N$19,N$37:N$38))),0) -> 0 | O51: =IFERROR((Inputs!U$182-SUM(O$56:O$57)) *IF(O$23+O$42=0,($P13+$P32)/($P$23+$P$42-SUM($P$18:$P$19,$P$37:$P$38)),(O13+O32)/(O$23+O$42-SUM(O$18:O$19,O$37:O$38))),0) -> 0 | P51: 0 | R51: =IFERROR($P51*R13/$AC13,0) -> 0 | S51: 0 | T51: 0 | U51: 0 | V51: 0 | W51: 0 | X51: 0 | Y51: 0 | Z51: 0 | AA51: 0 | AB51: 0 | AC51: 0
B52: =Inputs!$A$63 -> Transmission Line Life Extension | C52: =Inputs!$A$8 -> Real $2023 | D52: $Million | E52: =IFERROR((Inputs!K$182-SUM(E$56:E$57)) *IF(E$23+E$42=0,($P14+$P33)/($P$23+$P$42-SUM($P$18:$P$19,$P$37:$P$38)),(E14+E33)/(E$23+E$42-SUM(E$18:E$19,E$37:E$38))),0) -> 0 | F52: =IFERROR((Inputs!L$182-SUM(F$56:F$57)) *IF(F$23+F$42=0,($P14+$P33)/($P$23+$P$42-SUM($P$18:$P$19,$P$37:$P$38)),(F14+F33)/(F$23+F$42-SUM(F$18:F$19,F$37:F$38))),0) -> 0 | G52: =IFERROR((Inputs!M$182-SUM(G$56:G$57)) *IF(G$23+G$42=0,($P14+$P33)/($P$23+$P$42-SUM($P$18:$P$19,$P$37:$P$38)),(G14+G33)/(G$23+G$42-SUM(G$18:G$19,G$37:G$38))),0) -> 0 | H52: =IFERROR((Inputs!N$182-SUM(H$56:H$57)) *IF(H$23+H$42=0,($P14+$P33)/($P$23+$P$42-SUM($P$18:$P$19,$P$37:$P$38)),(H14+H33)/(H$23+H$42-SUM(H$18:H$19,H$37:H$38))),0) -> 0 | I52: =IFERROR((Inputs!O$182-SUM(I$56:I$57)) *IF(I$23+I$42=0,($P14+$P33)/($P$23+$P$42-SUM($P$18:$P$19,$P$37:$P$38)),(I14+I33)/(I$23+I$42-SUM(I$18:I$19,I$37:I$38))),0) -> 0 | J52: =IFERROR((Inputs!P$182-SUM(J$56:J$57)) *IF(J$23+J$42=0,($P14+$P33)/($P$23+$P$42-SUM($P$18:$P$19,$P$37:$P$38)),(J14+J33)/(J$23+J$42-SUM(J$18:J$19,J$37:J$38))),0) -> 0 | K52: =IFERROR((Inputs!Q$182-SUM(K$56:K$57)) *IF(K$23+K$42=0,($P14+$P33)/($P$23+$P$42-SUM($P$18:$P$19,$P$37:$P$38)),(K14+K33)/(K$23+K$42-SUM(K$18:K$19,K$37:K$38))),0) -> 0 | L52: =IFERROR((Inputs!R$182-SUM(L$56:L$57)) *IF(L$23+L$42=0,($P14+$P33)/($P$23+$P$42-SUM($P$18:$P$19,$P$37:$P$38)),(L14+L33)/(L$23+L$42-SUM(L$18:L$19,L$37:L$38))),0) -> 0 | M52: =IFERROR((Inputs!S$182-SUM(M$56:M$57)) *IF(M$23+M$42=0,($P14+$P33)/($P$23+$P$42-SUM($P$18:$P$19,$P$37:$P$38)),(M14+M33)/(M$23+M$42-SUM(M$18:M$19,M$37:M$38))),0) -> 0 | N52: =IFERROR((Inputs!T$182-SUM(N$56:N$57)) *IF(N$23+N$42=0,($P14+$P33)/($P$23+$P$42-SUM($P$18:$P$19,$P$37:$P$38)),(N14+N33)/(N$23+N$42-SUM(N$18:N$19,N$37:N$38))),0) -> 0 | O52: =IFERROR((Inputs!U$182-SUM(O$56:O$57)) *IF(O$23+O$42=0,($P14+$P33)/($P$23+$P$42-SUM($P$18:$P$19,$P$37:$P$38)),(O14+O33)/(O$23+O$42-SUM(O$18:O$19,O$37:O$38))),0) -> 0 | P52: 0 | R52: =IFERROR($P52*R14/$AC14,0) -> 0 | S52: 0 | T52: 0 | U52: 0 | V52: 0 | W52: 0 | X52: 0 | Y52: 0 | Z52: 0 | AA52: 0 | AB52: 0 | AC52: 0
B53: =Inputs!$A$64 -> Land and Easements | C53: =Inputs!$A$8 -> Real $2023 | D53: $Million | E53: =IFERROR((Inputs!K$182-SUM(E$56:E$57)) *IF(E$23+E$42=0,($P15+$P34)/($P$23+$P$42-SUM($P$18:$P$19,$P$37:$P$38)),(E15+E34)/(E$23+E$42-SUM(E$18:E$19,E$37:E$38))),0) -> 0 | F53: =IFERROR((Inputs!L$182-SUM(F$56:F$57)) *IF(F$23+F$42=0,($P15+$P34)/($P$23+$P$42-SUM($P$18:$P$19,$P$37:$P$38)),(F15+F34)/(F$23+F$42-SUM(F$18:F$19,F$37:F$38))),0) -> 0 | G53: =IFERROR((Inputs!M$182-SUM(G$56:G$57)) *IF(G$23+G$42=0,($P15+$P34)/($P$23+$P$42-SUM($P$18:$P$19,$P$37:$P$38)),(G15+G34)/(G$23+G$42-SUM(G$18:G$19,G$37:G$38))),0) -> 0 | H53: =IFERROR((Inputs!N$182-SUM(H$56:H$57)) *IF(H$23+H$42=0,($P15+$P34)/($P$23+$P$42-SUM($P$18:$P$19,$P$37:$P$38)),(H15+H34)/(H$23+H$42-SUM(H$18:H$19,H$37:H$38))),0) -> 0 | I53: =IFERROR((Inputs!O$182-SUM(I$56:I$57)) *IF(I$23+I$42=0,($P15+$P34)/($P$23+$P$42-SUM($P$18:$P$19,$P$37:$P$38)),(I15+I34)/(I$23+I$42-SUM(I$18:I$19,I$37:I$38))),0) -> 0 | J53: =IFERROR((Inputs!P$182-SUM(J$56:J$57)) *IF(J$23+J$42=0,($P15+$P34)/($P$23+$P$42-SUM($P$18:$P$19,$P$37:$P$38)),(J15+J34)/(J$23+J$42-SUM(J$18:J$19,J$37:J$38))),0) -> 6.12202983 | K53: =IFERROR((Inputs!Q$182-SUM(K$56:K$57)) *IF(K$23+K$42=0,($P15+$P34)/($P$23+$P$42-SUM($P$18:$P$19,$P$37:$P$38)),(K15+K34)/(K$23+K$42-SUM(K$18:K$19,K$37:K$38))),0) -> 3.874911126 | L53: =IFERROR((Inputs!R$182-SUM(L$56:L$57)) *IF(L$23+L$42=0,($P15+$P34)/($P$23+$P$42-SUM($P$18:$P$19,$P$37:$P$38)),(L15+L34)/(L$23+L$42-SUM(L$18:L$19,L$37:L$38))),0) -> 0.3472850681 | M53: =IFERROR((Inputs!S$182-SUM(M$56:M$57)) *IF(M$23+M$42=0,($P15+$P34)/($P$23+$P$42-SUM($P$18:$P$19,$P$37:$P$38)),(M15+M34)/(M$23+M$42-SUM(M$18:M$19,M$37:M$38))),0) -> 0 | N53: =IFERROR((Inputs!T$182-SUM(N$56:N$57)) *IF(N$23+N$42=0,($P15+$P34)/($P$23+$P$42-SUM($P$18:$P$19,$P$37:$P$38)),(N15+N34)/(N$23+N$42-SUM(N$18:N$19,N$37:N$38))),0) -> 0 | O53: =IFERROR((Inputs!U$182-SUM(O$56:O$57)) *IF(O$23+O$42=0,($P15+$P34)/($P$23+$P$42-SUM($P$18:$P$19,$P$37:$P$38)),(O15+O34)/(O$23+O$42-SUM(O$18:O$19,O$37:O$38))),0) -> 0 | P53: 10.34422602 | R53: =IFERROR($P53*R15/$AC15,0) -> 0 | S53: 0 | T53: 0 | U53: 0 | V53: 0 | W53: 2.331920508 | X53: 7.746376089 | Y53: 0.2659294265 | Z53: 0 | AA53: 0 | AB53: 0 | AC53: 10.34422602
B54: =Inputs!$A$65 -> Synchronous Condensers | C54: =Inputs!$A$8 -> Real $2023 | D54: $Million | E54: =IFERROR((Inputs!K$182-SUM(E$56:E$57)) *IF(E$23+E$42=0,($P16+$P35)/($P$23+$P$42-SUM($P$18:$P$19,$P$37:$P$38)),(E16+E35)/(E$23+E$42-SUM(E$18:E$19,E$37:E$38))),0) -> 0 | F54: =IFERROR((Inputs!L$182-SUM(F$56:F$57)) *IF(F$23+F$42=0,($P16+$P35)/($P$23+$P$42-SUM($P$18:$P$19,$P$37:$P$38)),(F16+F35)/(F$23+F$42-SUM(F$18:F$19,F$37:F$38))),0) -> 0 | G54: =IFERROR((Inputs!M$182-SUM(G$56:G$57)) *IF(G$23+G$42=0,($P16+$P35)/($P$23+$P$42-SUM($P$18:$P$19,$P$37:$P$38)),(G16+G35)/(G$23+G$42-SUM(G$18:G$19,G$37:G$38))),0) -> 0 | H54: =IFERROR((Inputs!N$182-SUM(H$56:H$57)) *IF(H$23+H$42=0,($P16+$P35)/($P$23+$P$42-SUM($P$18:$P$19,$P$37:$P$38)),(H16+H35)/(H$23+H$42-SUM(H$18:H$19,H$37:H$38))),0) -> 0 | I54: =IFERROR((Inputs!O$182-SUM(I$56:I$57)) *IF(I$23+I$42=0,($P16+$P35)/($P$23+$P$42-SUM($P$18:$P$19,$P$37:$P$38)),(I16+I35)/(I$23+I$42-SUM(I$18:I$19,I$37:I$38))),0) -> 0 | J54: =IFERROR((Inputs!P$182-SUM(J$56:J$57)) *IF(J$23+J$42=0,($P16+$P35)/($P$23+$P$42-SUM($P$18:$P$19,$P$37:$P$38)),(J16+J35)/(J$23+J$42-SUM(J$18:J$19,J$37:J$38))),0) -> 0 | K54: =IFERROR((Inputs!Q$182-SUM(K$56:K$57)) *IF(K$23+K$42=0,($P16+$P35)/($P$23+$P$42-SUM($P$18:$P$19,$P$37:$P$38)),(K16+K35)/(K$23+K$42-SUM(K$18:K$19,K$37:K$38))),0) -> 0 | L54: =IFERROR((Inputs!R$182-SUM(L$56:L$57)) *IF(L$23+L$42=0,($P16+$P35)/($P$23+$P$42-SUM($P$18:$P$19,$P$37:$P$38)),(L16+L35)/(L$23+L$42-SUM(L$18:L$19,L$37:L$38))),0) -> 0 | M54: =IFERROR((Inputs!S$182-SUM(M$56:M$57)) *IF(M$23+M$42=0,($P16+$P35)/($P$23+$P$42-SUM($P$18:$P$19,$P$37:$P$38)),(M16+M35)/(M$23+M$42-SUM(M$18:M$19,M$37:M$38))),0) -> 0 | N54: =IFERROR((Inputs!T$182-SUM(N$56:N$57)) *IF(N$23+N$42=0,($P16+$P35)/($P$23+$P$42-SUM($P$18:$P$19,$P$37:$P$38)),(N16+N35)/(N$23+N$42-SUM(N$18:N$19,N$37:N$38))),0) -> 0 | O54: =IFERROR((Inputs!U$182-SUM(O$56:O$57)) *IF(O$23+O$42=0,($P16+$P35)/($P$23+$P$42-SUM($P$18:$P$19,$P$37:$P$38)),(O16+O35)/(O$23+O$42-SUM(O$18:O$19,O$37:O$38))),0) -> 0 | P54: 0 | R54: =IFERROR($P54*R16/$AC16,0) -> 0 | S54: 0 | T54: 0 | U54: 0 | V54: 0 | W54: 0 | X54: 0 | Y54: 0 | Z54: 0 | AA54: 0 | AB54: 0 | AC54: 0
B55: =Inputs!$A$66 -> Leasehold Land and Property | C55: =Inputs!$A$8 -> Real $2023 | D55: $Million | E55: =IFERROR((Inputs!K$182-SUM(E$56:E$57)) *IF(E$23+E$42=0,($P17+$P36)/($P$23+$P$42-SUM($P$18:$P$19,$P$37:$P$38)),(E17+E36)/(E$23+E$42-SUM(E$18:E$19,E$37:E$38))),0) -> 0 | F55: =IFERROR((Inputs!L$182-SUM(F$56:F$57)) *IF(F$23+F$42=0,($P17+$P36)/($P$23+$P$42-SUM($P$18:$P$19,$P$37:$P$38)),(F17+F36)/(F$23+F$42-SUM(F$18:F$19,F$37:F$38))),0) -> 0 | G55: =IFERROR((Inputs!M$182-SUM(G$56:G$57)) *IF(G$23+G$42=0,($P17+$P36)/($P$23+$P$42-SUM($P$18:$P$19,$P$37:$P$38)),(G17+G36)/(G$23+G$42-SUM(G$18:G$19,G$37:G$38))),0) -> 0 | H55: =IFERROR((Inputs!N$182-SUM(H$56:H$57)) *IF(H$23+H$42=0,($P17+$P36)/($P$23+$P$42-SUM($P$18:$P$19,$P$37:$P$38)),(H17+H36)/(H$23+H$42-SUM(H$18:H$19,H$37:H$38))),0) -> 0 | I55: =IFERROR((Inputs!O$182-SUM(I$56:I$57)) *IF(I$23+I$42=0,($P17+$P36)/($P$23+$P$42-SUM($P$18:$P$19,$P$37:$P$38)),(I17+I36)/(I$23+I$42-SUM(I$18:I$19,I$37:I$38))),0) -> 0 | J55: =IFERROR((Inputs!P$182-SUM(J$56:J$57)) *IF(J$23+J$42=0,($P17+$P36)/($P$23+$P$42-SUM($P$18:$P$19,$P$37:$P$38)),(J17+J36)/(J$23+J$42-SUM(J$18:J$19,J$37:J$38))),0) -> 0 | K55: =IFERROR((Inputs!Q$182-SUM(K$56:K$57)) *IF(K$23+K$42=0,($P17+$P36)/($P$23+$P$42-SUM($P$18:$P$19,$P$37:$P$38)),(K17+K36)/(K$23+K$42-SUM(K$18:K$19,K$37:K$38))),0) -> 0 | L55: =IFERROR((Inputs!R$182-SUM(L$56:L$57)) *IF(L$23+L$42=0,($P17+$P36)/($P$23+$P$42-SUM($P$18:$P$19,$P$37:$P$38)),(L17+L36)/(L$23+L$42-SUM(L$18:L$19,L$37:L$38))),0) -> 0 | M55: =IFERROR((Inputs!S$182-SUM(M$56:M$57)) *IF(M$23+M$42=0,($P17+$P36)/($P$23+$P$42-SUM($P$18:$P$19,$P$37:$P$38)),(M17+M36)/(M$23+M$42-SUM(M$18:M$19,M$37:M$38))),0) -> 0 | N55: =IFERROR((Inputs!T$182-SUM(N$56:N$57)) *IF(N$23+N$42=0,($P17+$P36)/($P$23+$P$42-SUM($P$18:$P$19,$P$37:$P$38)),(N17+N36)/(N$23+N$42-SUM(N$18:N$19,N$37:N$38))),0) -> 0 | O55: =IFERROR((Inputs!U$182-SUM(O$56:O$57)) *IF(O$23+O$42=0,($P17+$P36)/($P$23+$P$42-SUM($P$18:$P$19,$P$37:$P$38)),(O17+O36)/(O$23+O$42-SUM(O$18:O$19,O$37:O$38))),0) -> 0 | P55: 0 | R55: =IFERROR($P55*R17/$AC17,0) -> 0 | S55: 0 | T55: 0 | U55: 0 | V55: 0 | W55: 0 | X55: 0 | Y55: 0 | Z55: 0 | AA55: 0 | AB55: 0 | AC55: 0
B56: =Inputs!$A$67 -> Biodiversity Offsets (Stewardship sites) | C56: =Inputs!$A$8 -> Real $2023 | D56: $Million | E56: 0 | F56: 0 | G56: 0 | H56: 0 | I56: 0 | J56: 0 | K56: 0.1858425209 | L56: 3.699058379 | M56: 0 | N56: 0 | O56: 0 | P56: 3.8849009 | R56: =E56 -> 0 | S56: 0 | T56: 0 | U56: 0 | V56: 0 | W56: 0 | X56: 0.1858425209 | Y56: 3.699058379 | Z56: 0 | AA56: 0 | AB56: 0 | AC56: 3.8849009 | AE56: ← Bio offsets commissioning profile set to match as incurred profile
B57: =Inputs!$A$68 -> Biodiversity Offsets (Direct payments and other costs) | C57: =Inputs!$A$8 -> Real $2023 | D57: $Million | E57: 0 | F57: 0 | G57: 0 | H57: 0 | I57: 0 | J57: 0.2218556388 | K57: 1.63721107 | L57: 8.714386621 | M57: 0 | N57: 0 | O57: 0 | P57: =SUM(E57:O57) -> 10.57345333 | R57: 0 | S57: 0 | T57: 0 | U57: 0 | V57: 0 | W57: 0.2218556388 | X57: 1.63721107 | Y57: 8.714386621 | Z57: 0 | AA57: 0 | AB57: 0 | AC57: =SUM(R57:AB57) -> 10.57345333
B58: =Inputs!$A$69 -> Buildings - capital works | C58: =Inputs!$A$8 -> Real $2023 | D58: $Million | E58: =IFERROR((Inputs!K$182-SUM(E$56:E$57)) *IF(E$23+E$42=0,($P20+$P39)/($P$23+$P$42-SUM($P$18:$P$19,$P$37:$P$38)),(E20+E39)/(E$23+E$42-SUM(E$18:E$19,E$37:E$38))),0) -> 0 | F58: =IFERROR((Inputs!L$182-SUM(F$56:F$57)) *IF(F$23+F$42=0,($P20+$P39)/($P$23+$P$42-SUM($P$18:$P$19,$P$37:$P$38)),(F20+F39)/(F$23+F$42-SUM(F$18:F$19,F$37:F$38))),0) -> 0 | G58: =IFERROR((Inputs!M$182-SUM(G$56:G$57)) *IF(G$23+G$42=0,($P20+$P39)/($P$23+$P$42-SUM($P$18:$P$19,$P$37:$P$38)),(G20+G39)/(G$23+G$42-SUM(G$18:G$19,G$37:G$38))),0) -> 0 | H58: =IFERROR((Inputs!N$182-SUM(H$56:H$57)) *IF(H$23+H$42=0,($P20+$P39)/($P$23+$P$42-SUM($P$18:$P$19,$P$37:$P$38)),(H20+H39)/(H$23+H$42-SUM(H$18:H$19,H$37:H$38))),0) -> 0 | I58: =IFERROR((Inputs!O$182-SUM(I$56:I$57)) *IF(I$23+I$42=0,($P20+$P39)/($P$23+$P$42-SUM($P$18:$P$19,$P$37:$P$38)),(I20+I39)/(I$23+I$42-SUM(I$18:I$19,I$37:I$38))),0) -> 0 | J58: =IFERROR((Inputs!P$182-SUM(J$56:J$57)) *IF(J$23+J$42=0,($P20+$P39)/($P$23+$P$42-SUM($P$18:$P$19,$P$37:$P$38)),(J20+J39)/(J$23+J$42-SUM(J$18:J$19,J$37:J$38))),0) -> 0 | K58: =IFERROR((Inputs!Q$182-SUM(K$56:K$57)) *IF(K$23+K$42=0,($P20+$P39)/($P$23+$P$42-SUM($P$18:$P$19,$P$37:$P$38)),(K20+K39)/(K$23+K$42-SUM(K$18:K$19,K$37:K$38))),0) -> 0 | L58: =IFERROR((Inputs!R$182-SUM(L$56:L$57)) *IF(L$23+L$42=0,($P20+$P39)/($P$23+$P$42-SUM($P$18:$P$19,$P$37:$P$38)),(L20+L39)/(L$23+L$42-SUM(L$18:L$19,L$37:L$38))),0) -> 0 | M58: =IFERROR((Inputs!S$182-SUM(M$56:M$57)) *IF(M$23+M$42=0,($P20+$P39)/($P$23+$P$42-SUM($P$18:$P$19,$P$37:$P$38)),(M20+M39)/(M$23+M$42-SUM(M$18:M$19,M$37:M$38))),0) -> 0 | N58: =IFERROR((Inputs!T$182-SUM(N$56:N$57)) *IF(N$23+N$42=0,($P20+$P39)/($P$23+$P$42-SUM($P$18:$P$19,$P$37:$P$38)),(N20+N39)/(N$23+N$42-SUM(N$18:N$19,N$37:N$38))),0) -> 0 | O58: =IFERROR((Inputs!U$182-SUM(O$56:O$57)) *IF(O$23+O$42=0,($P20+$P39)/($P$23+$P$42-SUM($P$18:$P$19,$P$37:$P$38)),(O20+O39)/(O$23+O$42-SUM(O$18:O$19,O$37:O$38))),0) -> 0 | P58: 0 | R58: =IFERROR($P58*R20/$AC20,0) -> 0 | S58: 0 | T58: 0 | U58: 0 | V58: 0 | W58: 0 | X58: 0 | Y58: 0 | Z58: 0 | AA58: 0 | AB58: 0 | AC58: 0
B59: =Inputs!$A$70 -> In-house software | C59: =Inputs!$A$8 -> Real $2023 | D59: $Million | E59: =IFERROR((Inputs!K$182-SUM(E$56:E$57)) *IF(E$23+E$42=0,($P21+$P40)/($P$23+$P$42-SUM($P$18:$P$19,$P$37:$P$38)),(E21+E40)/(E$23+E$42-SUM(E$18:E$19,E$37:E$38))),0) -> 0 | F59: =IFERROR((Inputs!L$182-SUM(F$56:F$57)) *IF(F$23+F$42=0,($P21+$P40)/($P$23+$P$42-SUM($P$18:$P$19,$P$37:$P$38)),(F21+F40)/(F$23+F$42-SUM(F$18:F$19,F$37:F$38))),0) -> 0 | G59: =IFERROR((Inputs!M$182-SUM(G$56:G$57)) *IF(G$23+G$42=0,($P21+$P40)/($P$23+$P$42-SUM($P$18:$P$19,$P$37:$P$38)),(G21+G40)/(G$23+G$42-SUM(G$18:G$19,G$37:G$38))),0) -> 0 | H59: =IFERROR((Inputs!N$182-SUM(H$56:H$57)) *IF(H$23+H$42=0,($P21+$P40)/($P$23+$P$42-SUM($P$18:$P$19,$P$37:$P$38)),(H21+H40)/(H$23+H$42-SUM(H$18:H$19,H$37:H$38))),0) -> 0 | I59: =IFERROR((Inputs!O$182-SUM(I$56:I$57)) *IF(I$23+I$42=0,($P21+$P40)/($P$23+$P$42-SUM($P$18:$P$19,$P$37:$P$38)),(I21+I40)/(I$23+I$42-SUM(I$18:I$19,I$37:I$38))),0) -> 0 | J59: =IFERROR((Inputs!P$182-SUM(J$56:J$57)) *IF(J$23+J$42=0,($P21+$P40)/($P$23+$P$42-SUM($P$18:$P$19,$P$37:$P$38)),(J21+J40)/(J$23+J$42-SUM(J$18:J$19,J$37:J$38))),0) -> 0 | K59: =IFERROR((Inputs!Q$182-SUM(K$56:K$57)) *IF(K$23+K$42=0,($P21+$P40)/($P$23+$P$42-SUM($P$18:$P$19,$P$37:$P$38)),(K21+K40)/(K$23+K$42-SUM(K$18:K$19,K$37:K$38))),0) -> 0 | L59: =IFERROR((Inputs!R$182-SUM(L$56:L$57)) *IF(L$23+L$42=0,($P21+$P40)/($P$23+$P$42-SUM($P$18:$P$19,$P$37:$P$38)),(L21+L40)/(L$23+L$42-SUM(L$18:L$19,L$37:L$38))),0) -> 0 | M59: =IFERROR((Inputs!S$182-SUM(M$56:M$57)) *IF(M$23+M$42=0,($P21+$P40)/($P$23+$P$42-SUM($P$18:$P$19,$P$37:$P$38)),(M21+M40)/(M$23+M$42-SUM(M$18:M$19,M$37:M$38))),0) -> 0 | N59: =IFERROR((Inputs!T$182-SUM(N$56:N$57)) *IF(N$23+N$42=0,($P21+$P40)/($P$23+$P$42-SUM($P$18:$P$19,$P$37:$P$38)),(N21+N40)/(N$23+N$42-SUM(N$18:N$19,N$37:N$38))),0) -> 0 | O59: =IFERROR((Inputs!U$182-SUM(O$56:O$57)) *IF(O$23+O$42=0,($P21+$P40)/($P$23+$P$42-SUM($P$18:$P$19,$P$37:$P$38)),(O21+O40)/(O$23+O$42-SUM(O$18:O$19,O$37:O$38))),0) -> 0 | P59: 0 | R59: =IFERROR($P59*R21/$AC21,0) -> 0 | S59: 0 | T59: 0 | U59: 0 | V59: 0 | W59: 0 | X59: 0 | Y59: 0 | Z59: 0 | AA59: 0 | AB59: 0 | AC59: 0
B60: =Inputs!$A$71 -> [Spare] | C60: =Inputs!$A$8 -> Real $2023 | D60: $Million | E60: =IFERROR((Inputs!K$182-SUM(E$56:E$57)) *IF(E$23+E$42=0,($P22+$P41)/($P$23+$P$42-SUM($P$18:$P$19,$P$37:$P$38)),(E22+E41)/(E$23+E$42-SUM(E$18:E$19,E$37:E$38))),0) -> 0 | F60: =IFERROR((Inputs!L$182-SUM(F$56:F$57)) *IF(F$23+F$42=0,($P22+$P41)/($P$23+$P$42-SUM($P$18:$P$19,$P$37:$P$38)),(F22+F41)/(F$23+F$42-SUM(F$18:F$19,F$37:F$38))),0) -> 0 | G60: =IFERROR((Inputs!M$182-SUM(G$56:G$57)) *IF(G$23+G$42=0,($P22+$P41)/($P$23+$P$42-SUM($P$18:$P$19,$P$37:$P$38)),(G22+G41)/(G$23+G$42-SUM(G$18:G$19,G$37:G$38))),0) -> 0 | H60: =IFERROR((Inputs!N$182-SUM(H$56:H$57)) *IF(H$23+H$42=0,($P22+$P41)/($P$23+$P$42-SUM($P$18:$P$19,$P$37:$P$38)),(H22+H41)/(H$23+H$42-SUM(H$18:H$19,H$37:H$38))),0) -> 0 | I60: =IFERROR((Inputs!O$182-SUM(I$56:I$57)) *IF(I$23+I$42=0,($P22+$P41)/($P$23+$P$42-SUM($P$18:$P$19,$P$37:$P$38)),(I22+I41)/(I$23+I$42-SUM(I$18:I$19,I$37:I$38))),0) -> 0 | J60: =IFERROR((Inputs!P$182-SUM(J$56:J$57)) *IF(J$23+J$42=0,($P22+$P41)/($P$23+$P$42-SUM($P$18:$P$19,$P$37:$P$38)),(J22+J41)/(J$23+J$42-SUM(J$18:J$19,J$37:J$38))),0) -> 0 | K60: =IFERROR((Inputs!Q$182-SUM(K$56:K$57)) *IF(K$23+K$42=0,($P22+$P41)/($P$23+$P$42-SUM($P$18:$P$19,$P$37:$P$38)),(K22+K41)/(K$23+K$42-SUM(K$18:K$19,K$37:K$38))),0) -> 0 | L60: =IFERROR((Inputs!R$182-SUM(L$56:L$57)) *IF(L$23+L$42=0,($P22+$P41)/($P$23+$P$42-SUM($P$18:$P$19,$P$37:$P$38)),(L22+L41)/(L$23+L$42-SUM(L$18:L$19,L$37:L$38))),0) -> 0 | M60: =IFERROR((Inputs!S$182-SUM(M$56:M$57)) *IF(M$23+M$42=0,($P22+$P41)/($P$23+$P$42-SUM($P$18:$P$19,$P$37:$P$38)),(M22+M41)/(M$23+M$42-SUM(M$18:M$19,M$37:M$38))),0) -> 0 | N60: =IFERROR((Inputs!T$182-SUM(N$56:N$57)) *IF(N$23+N$42=0,($P22+$P41)/($P$23+$P$42-SUM($P$18:$P$19,$P$37:$P$38)),(N22+N41)/(N$23+N$42-SUM(N$18:N$19,N$37:N$38))),0) -> 0 | O60: =IFERROR((Inputs!U$182-SUM(O$56:O$57)) *IF(O$23+O$42=0,($P22+$P41)/($P$23+$P$42-SUM($P$18:$P$19,$P$37:$P$38)),(O22+O41)/(O$23+O$42-SUM(O$18:O$19,O$37:O$38))),0) -> 0 | P60: 0 | R60: =IFERROR($P60*R22/$AC22,0) -> 0 | S60: 0 | T60: 0 | U60: 0 | V60: 0 | W60: 0 | X60: 0 | Y60: 0 | Z60: 0 | AA60: 0 | AB60: 0 | AC60: 0
B61: Sub-Total | C61: =Inputs!$A$8 -> Real $2023 | D61: $Million | E61: =SUM(E45:E60) -> 0 | F61: =SUM(F45:F60) -> 0 | G61: =SUM(G45:G60) -> 0 | H61: 0 | I61: 4.58832552 | J61: 7.859232402 | K61: 38.28167168 | L61: 74.78170456 | M61: 0 | N61: 0 | O61: 0 | P61: 125.5109342 | R61: =SUM(R45:R60) -> 0 | S61: =SUM(S45:S60) -> 0 | T61: =SUM(T45:T60) -> 0 | U61: 0 | V61: 0 | W61: 2.553776147 | X61: 21.68959356 | Y61: 45.92293958 | Z61: 55.34462487 | AA61: 0 | AB61: 0 | AC61: 125.5109342
B63: Total
B64: =Inputs!$A$56 -> Transmission Lines | C64: =Inputs!$A$8 -> Real $2023 | D64: $Million | E64: =E7+E26+E45 -> 0.001340579257 | F64: 0 | G64: =G7+G26+G45 -> 0.07101321245 | H64: 0.0001012256643 | I64: 5.387910253 | J64: 5.851289182 | K64: 257.6629808 | L64: 159.8096693 | M64: 53.4282242 | N64: 0 | O64: 0 | P64: =SUM(E64:O64) -> 482.2125287 | R64: =R7+R26+R45 -> 0 | S64: 0 | T64: 0 | U64: 0 | V64: 0 | W64: 0 | X64: 109.6844695 | Y64: 273.6220771 | Z64: 98.90598216 | AA64: 0 | AB64: 0 | AC64: =SUM(R64:AB64) -> 482.2125287
B65: =Inputs!$A$57 -> Underground Cables | C65: =Inputs!$A$8 -> Real $2023 | D65: $Million | E65: 0 | F65: 0 | G65: =G8+G27+G46 -> 0 | H65: 0 | I65: 0 | J65: 0 | K65: 0 | L65: 0 | M65: 0 | N65: 0 | O65: 0 | P65: 0 | R65: =R8+R27+R46 -> 0 | S65: 0 | T65: 0 | U65: 0 | V65: 0 | W65: 0 | X65: 0 | Y65: 0 | Z65: 0 | AA65: 0 | AB65: 0 | AC65: 0
B66: =Inputs!$A$58 -> Substations | C66: =Inputs!$A$8 -> Real $2023 | D66: $Million | E66: 0.0009756501094 | F66: 0 | G66: =G9+G28+G47 -> 0.05168217255 | H66: 7.367026596e-05 | I66: 2.769233899 | J66: 0 | K66: 164.6955296 | L66: 183.6178423 | M66: 9.881440612 | N66: 0 | O66: 0 | P66: 361.0167779 | R66: =R9+R28+R47 -> 0 | S66: 0 | T66: 0 | U66: 0 | V66: 0 | W66: 0 | X66: 0 | Y66: 22.90053595 | Z66: 338.116242 | AA66: 0 | AB66: 0 | AC66: 361.0167779
B67: =Inputs!$A$59 -> Secondary Systems | C67: =Inputs!$A$8 -> Real $2023 | D67: $Million | E67: 0 | F67: 0 | G67: =G10+G29+G48 -> 0 | H67: 0 | I67: 0 | J67: 0 | K67: 0 | L67: 0 | M67: 0 | N67: 0 | O67: 0 | P67: 0 | R67: =R10+R29+R48 -> 0 | S67: 0 | T67: 0 | U67: 0 | V67: 0 | W67: 0 | X67: 0 | Y67: 0 | Z67: 0 | AA67: 0 | AB67: 0 | AC67: 0
B68: =Inputs!$A$60 -> Communications (short life) | C68: =Inputs!$A$8 -> Real $2023 | D68: $Million | E68: 0 | F68: 0 | G68: =G11+G30+G49 -> 0 | H68: 0 | I68: 0 | J68: 0 | K68: 0 | L68: 0 | M68: 0 | N68: 0 | O68: 0 | P68: 0 | R68: =R11+R30+R49 -> 0 | S68: 0 | T68: 0 | U68: 0 | V68: 0 | W68: 0 | X68: 0 | Y68: 0 | Z68: 0 | AA68: 0 | AB68: 0 | AC68: 0
B69: =Inputs!$A$61 -> Business IT | C69: =Inputs!$A$8 -> Real $2023 | D69: $Million | E69: 0 | F69: 0 | G69: =G12+G31+G50 -> 0 | H69: 0 | I69: 0 | J69: 0 | K69: 0 | L69: 0 | M69: 0 | N69: 0 | O69: 0 | P69: 0 | R69: =R12+R31+R50 -> 0 | S69: 0 | T69: 0 | U69: 0 | V69: 0 | W69: 0 | X69: 0 | Y69: 0 | Z69: 0 | AA69: 0 | AB69: 0 | AC69: 0
B70: =Inputs!$A$62 -> Minor Plant, Motor Vehicles & Mobile Plant | C70: =Inputs!$A$8 -> Real $2023 | D70: $Million | E70: 0 | F70: 0 | G70: =G13+G32+G51 -> 0 | H70: 0 | I70: 0 | J70: 0 | K70: 0 | L70: 0 | M70: 0 | N70: 0 | O70: 0 | P70: 0 | R70: =R13+R32+R51 -> 0 | S70: 0 | T70: 0 | U70: 0 | V70: 0 | W70: 0 | X70: 0 | Y70: 0 | Z70: 0 | AA70: 0 | AB70: 0 | AC70: 0
B71: =Inputs!$A$63 -> Transmission Line Life Extension | C71: =Inputs!$A$8 -> Real $2023 | D71: $Million | E71: 0 | F71: 0 | G71: =G14+G33+G52 -> 0 | H71: 0 | I71: 0 | J71: 0 | K71: 0 | L71: 0 | M71: 0 | N71: 0 | O71: 0 | P71: 0 | R71: =R14+R33+R52 -> 0 | S71: 0 | T71: 0 | U71: 0 | V71: 0 | W71: 0 | X71: 0 | Y71: 0 | Z71: 0 | AA71: 0 | AB71: 0 | AC71: 0
B72: =Inputs!$A$64 -> Land and Easements | C72: =Inputs!$A$8 -> Real $2023 | D72: $Million | E72: 0.0001898178292 | F72: 0 | G72: =G15+G34+G53 -> 0.01005503685 | H72: 1.433293537e-05 | I72: 0 | J72: 23.63931725 | K72: 50.22760894 | L72: 1.923014718 | M72: 0 | N72: 0 | O72: 0 | P72: 75.8002001 | R72: =R15+R34+R53 -> 0 | S72: 0 | T72: 0 | U72: 0 | V72: 0 | W72: 17.08779765 | X72: 56.76373044 | Y72: 1.948672012 | Z72: 0 | AA72: 0 | AB72: 0 | AC72: 75.8002001
B73: =Inputs!$A$65 -> Synchronous Condensers | C73: =Inputs!$A$8 -> Real $2023 | D73: $Million | E73: 0 | F73: 0 | G73: =G16+G35+G54 -> 0 | H73: 0 | I73: 0 | J73: 0 | K73: 0 | L73: 0 | M73: 0 | N73: 0 | O73: 0 | P73: 0 | R73: =R16+R35+R54 -> 0 | S73: 0 | T73: 0 | U73: 0 | V73: 0 | W73: 0 | X73: 0 | Y73: 0 | Z73: 0 | AA73: 0 | AB73: 0 | AC73: 0
B74: =Inputs!$A$66 -> Leasehold Land and Property | C74: =Inputs!$A$8 -> Real $2023 | D74: $Million | E74: 0 | F74: 0 | G74: =G17+G36+G55 -> 0 | H74: 0 | I74: 0 | J74: 0 | K74: 0 | L74: 0 | M74: 0 | N74: 0 | O74: 0 | P74: 0 | R74: =R17+R36+R55 -> 0 | S74: 0 | T74: 0 | U74: 0 | V74: 0 | W74: 0 | X74: 0 | Y74: 0 | Z74: 0 | AA74: 0 | AB74: 0 | AC74: 0
B75: =Inputs!$A$67 -> Biodiversity Offsets (Stewardship sites) | C75: =Inputs!$A$8 -> Real $2023 | D75: $Million | E75: 6.185960514e-05 | F75: 0 | G75: =G18+G37+G56 -> 0.00327682922 | H75: 4.670950702e-06 | I75: 0 | J75: 0 | K75: 1.213371455 | L75: 13.06544661 | M75: 0.9084981859 | N75: 0 | O75: 0 | P75: 15.19065961 | R75: =R18+R37+R56 -> 6.185960514e-05 | S75: 0 | T75: 0.00327682922 | U75: 4.670950702e-06 | V75: 0 | W75: 0 | X75: 1.213371455 | Y75: 13.06544661 | Z75: 0.9084981859 | AA75: 0 | AB75: 0 | AC75: 15.19065961
B76: =Inputs!$A$68 -> Biodiversity Offsets (Direct payments and other costs) | C76: =Inputs!$A$8 -> Real $2023 | D76: $Million | E76: 0.0001833595612 | F76: 0 | G76: 0.009712929246 | H76: 1.384527866e-05 | I76: 0 | J76: 0.4220221057 | K76: 2.685832543 | L76: 11.50225042 | M76: 0 | N76: 0 | O76: 0 | P76: =SUM(E76:O76) -> 14.6200152 | R76: =R19+R38+R57 -> 0.0001833595612 | S76: 0 | T76: 0.009712929246 | U76: 1.384527866e-05 | V76: 0 | W76: 0.4220221057 | X76: 2.685832543 | Y76: 11.50225042 | Z76: 0 | AA76: 0 | AB76: 0 | AC76: =SUM(R76:AB76) -> 14.6200152
B77: =Inputs!$A$69 -> Buildings - capital works | C77: =Inputs!$A$8 -> Real $2023 | D77: $Million | E77: 0 | F77: 0 | G77: =G20+G39+G58 -> 0 | H77: 0 | I77: 0 | J77: 0 | K77: 0 | L77: 0 | M77: 0 | N77: 0 | O77: 0 | P77: 0 | R77: =R20+R39+R58 -> 0 | S77: 0 | T77: 0 | U77: 0 | V77: 0 | W77: 0 | X77: 0 | Y77: 0 | Z77: 0 | AA77: 0 | AB77: 0 | AC77: =SUM(R77:AB77) -> 0
B78: =Inputs!$A$70 -> In-house software | C78: =Inputs!$A$8 -> Real $2023 | D78: $Million | E78: 0 | F78: 0 | G78: =G21+G40+G59 -> 0 | H78: 0 | I78: 0 | J78: 0 | K78: 0 | L78: 0 | M78: 0 | N78: 0 | O78: 0 | P78: 0 | R78: =R21+R40+R59 -> 0 | S78: 0 | T78: 0 | U78: 0 | V78: 0 | W78: 0 | X78: 0 | Y78: 0 | Z78: 0 | AA78: 0 | AB78: 0 | AC78: =SUM(R78:AB78) -> 0
B79: =Inputs!$A$71 -> [Spare] | C79: =Inputs!$A$8 -> Real $2023 | D79: $Million | E79: 0 | F79: 0 | G79: =G22+G41+G60 -> 0 | H79: 0 | I79: 0 | J79: 0 | K79: 0 | L79: 0 | M79: 0 | N79: 0 | O79: 0 | P79: 0 | R79: =R22+R41+R60 -> 0 | S79: 0 | T79: 0 | U79: 0 | V79: 0 | W79: 0 | X79: 0 | Y79: 0 | Z79: 0 | AA79: 0 | AB79: 0 | AC79: =SUM(R79:AB79) -> 0
B80: Total | C80: =Inputs!$A$8 -> Real $2023 | D80: $Million | E80: =SUM(E64:E79) -> 0.002751266362 | F80: =SUM(F64:F79) -> 0 | G80: =SUM(G64:G79) -> 0.1457401803 | H80: 0.000207745095 | I80: 8.157144152 | J80: 29.91262854 | K80: 476.4853234 | L80: 369.9182234 | M80: 64.218163 | N80: 0 | O80: 0 | P80: 948.8401816 | R80: =SUM(R64:R79) -> 0.0002452191664 | S80: =SUM(S64:S79) -> 0 | T80: =SUM(T64:T79) -> 0.01298975847 | U80: 1.851622936e-05 | V80: 0 | W80: 17.50981975 | X80: 170.3474039 | Y80: 323.0389821 | Z80: 437.9307223 | AA80: 0 | AB80: 0 | AC80: 948.8401816
A82: =IF(SUM(G82:O82)=0,0,1) -> 0 | B82: ="Check "&$B$89 -> Check Direct Non-Labour | E82: =IF(ROUND(E$23-Inputs!X73,3)=0,0,1) -> 0 | F82: =IF(ROUND(F$23-Inputs!Y73,3)=0,0,1) -> 0 | G82: =IF(ROUND(G$23-Inputs!Z73,3)=0,0,1) -> 0 | H82: =IF(ROUND(H$23-Inputs!AA73,3)=0,0,1) -> 0 | I82: =IF(ROUND(I$23-Inputs!AB73,3)=0,0,1) -> 0 | J82: =IF(ROUND(J$23-Inputs!AC73,3)=0,0,1) -> 0 | K82: =IF(ROUND(K$23-Inputs!AD73,3)=0,0,1) -> 0 | L82: =IF(ROUND(L$23-Inputs!AE73,3)=0,0,1) -> 0 | M82: =IF(ROUND(M$23-Inputs!AF73,3)=0,0,1) -> 0 | N82: =IF(ROUND(N$23-Inputs!AG73,3)=0,0,1) -> 0 | O82: =IF(ROUND(O$23-Inputs!AH73,3)=0,0,1) -> 0
A83: =IF(SUM(G83:O83)=0,0,1) -> 0 | B83: ="Check "&$B$93 -> Check Labour Costs | E83: =IF(ROUND(E$42-Inputs!K130,3)=0,0,1) -> 0 | F83: =IF(ROUND(F$42-Inputs!L130,3)=0,0,1) -> 0 | G83: =IF(ROUND(G$42-Inputs!M130,3)=0,0,1) -> 0 | H83: =IF(ROUND(H$42-Inputs!N130,3)=0,0,1) -> 0 | I83: =IF(ROUND(I$42-Inputs!O130,3)=0,0,1) -> 0 | J83: =IF(ROUND(J$42-Inputs!P130,3)=0,0,1) -> 0 | K83: =IF(ROUND(K$42-Inputs!Q130,3)=0,0,1) -> 0 | L83: =IF(ROUND(L$42-Inputs!R130,3)=0,0,1) -> 0 | M83: =IF(ROUND(M$42-Inputs!S130,3)=0,0,1) -> 0 | N83: =IF(ROUND(N$42-Inputs!T130,3)=0,0,1) -> 0 | O83: =IF(ROUND(O$42-Inputs!U130,3)=0,0,1) -> 0
A84: =IF(SUM(G84:O84)=0,0,1) -> 0 | B84: ="Check "&$B$98 -> Check Indirect Non-Labour Costs | E84: =IF(ROUND(E$61-Inputs!K185,3)=0,0,1) -> 0 | F84: =IF(ROUND(F$61-Inputs!L185,3)=0,0,1) -> 0 | G84: =IF(ROUND(G$61-Inputs!M185,3)=0,0,1) -> 0 | H84: =IF(ROUND(H$61-Inputs!N185,3)=0,0,1) -> 0 | I84: =IF(ROUND(I$61-Inputs!O185,3)=0,0,1) -> 0 | J84: =IF(ROUND(J$61-Inputs!P185,3)=0,0,1) -> 0 | K84: =IF(ROUND(K$61-Inputs!Q185,3)=0,0,1) -> 0 | L84: =IF(ROUND(L$61-Inputs!R185,3)=0,0,1) -> 0 | M84: =IF(ROUND(M$61-Inputs!S185,3)=0,0,1) -> 0 | N84: =IF(ROUND(N$61-Inputs!T185,3)=0,0,1) -> 0 | O84: =IF(ROUND(O$61-Inputs!U185,3)=0,0,1) -> 0
B86: Incremental Capital Expenditure (Excluding Equity Raising Costs) by Component | P86: Total
B87: Component | C87: Dollar basis | D87: Units | E87: =Inputs!K$20 -> 2018 | F87: =Inputs!L$20 -> 2019 | G87: =Inputs!M$20 -> 2020 | H87: =Inputs!N$20 -> 2021 | I87: =Inputs!O$20 -> 2022 | J87: =Inputs!P$20 -> 2023 | K87: =Inputs!Q$20 -> 2024 | L87: =Inputs!R$20 -> 2025 | M87: =Inputs!S$20 -> 2026 | N87: =Inputs!T$20 -> 2027 | O87: =Inputs!U$20 -> 2028
B89: Direct Non-Labour
B90: Non-Labour | C90: =Inputs!$A$8 -> Real $2023 | D90: $Million | E90: =Inputs!X73 -> 0 | F90: =Inputs!Y73 -> 0 | G90: =Inputs!Z73 -> 0 | H90: =Inputs!AA73 -> 0 | I90: =Inputs!AB73 -> 1.580579966 | J90: =Inputs!AC73 -> 14.96250229 | K90: =Inputs!AD73 -> 408.2306176 | L90: =Inputs!AE73 -> 270.1603445 | M90: =Inputs!AF73 -> 64.218163 | N90: =Inputs!AG73 -> 0 | O90: =Inputs!AH73 -> 0 | P90: =SUM(E90:O90) -> 759.1522073
B91: Sub-Total | C91: =Inputs!$A$8 -> Real $2023 | D91: $Million | E91: =SUM(E90:E90) -> 0 | F91: =SUM(F90:F90) -> 0 | G91: =SUM(G90:G90) -> 0 | H91: 0 | I91: 1.580579966 | J91: 14.96250229 | K91: 408.2306176 | L91: 270.1603445 | M91: =SUM(M90:M90) -> 64.218163 | N91: =SUM(N90:N90) -> 0 | O91: =SUM(O90:O90) -> 0 | P91: 759.1522073
B93: Labour Costs
B94: Labour | C94: =Inputs!$A$8 -> Real $2023 | D94: $Million | E94: =Inputs!K$129*INDEX(Inputs!$K$21:$U$21,MATCH(Report_Year,Years,0))/INDEX(Inputs!$K$21:$U$21,MATCH(Inputs!$E$80,Years,0)) -> 0.002751266362 | F94: =Inputs!L$129*INDEX(Inputs!$K$21:$U$21,MATCH(Report_Year,Years,0))/INDEX(Inputs!$K$21:$U$21,MATCH(Inputs!$E$80,Years,0)) -> 0 | G94: =Inputs!M$129*INDEX(Inputs!$K$21:$U$21,MATCH(Report_Year,Years,0))/INDEX(Inputs!$K$21:$U$21,MATCH(Inputs!$E$80,Years,0)) -> 0.1457401803 | H94: =Inputs!N$129*INDEX(Inputs!$K$21:$U$21,MATCH(Report_Year,Years,0))/INDEX(Inputs!$K$21:$U$21,MATCH(Inputs!$E$80,Years,0)) -> 0.000207745095 | I94: =Inputs!O$129*INDEX(Inputs!$K$21:$U$21,MATCH(Report_Year,Years,0))/INDEX(Inputs!$K$21:$U$21,MATCH(Inputs!$E$80,Years,0)) -> 1.988238665 | J94: =Inputs!P$129*INDEX(Inputs!$K$21:$U$21,MATCH(Report_Year,Years,0))/INDEX(Inputs!$K$21:$U$21,MATCH(Inputs!$E$80,Years,0)) -> 7.090893841 | K94: =Inputs!Q$129*INDEX(Inputs!$K$21:$U$21,MATCH(Report_Year,Years,0))/INDEX(Inputs!$K$21:$U$21,MATCH(Inputs!$E$80,Years,0)) -> 29.85645493 | L94: =Inputs!R$129*INDEX(Inputs!$K$21:$U$21,MATCH(Report_Year,Years,0))/INDEX(Inputs!$K$21:$U$21,MATCH(Inputs!$E$80,Years,0)) -> 24.55789932 | M94: =Inputs!S$129*INDEX(Inputs!$K$21:$U$21,MATCH(Report_Year,Years,0))/INDEX(Inputs!$K$21:$U$21,MATCH(Inputs!$E$80,Years,0)) -> 0 | N94: =Inputs!T$129*INDEX(Inputs!$K$21:$U$21,MATCH(Report_Year,Years,0))/INDEX(Inputs!$K$21:$U$21,MATCH(Inputs!$E$80,Years,0)) -> 0 | O94: =Inputs!U$129*INDEX(Inputs!$K$21:$U$21,MATCH(Report_Year,Years,0))/INDEX(Inputs!$K$21:$U$21,MATCH(Inputs!$E$80,Years,0)) -> 0 | P94: =SUM(E94:O94) -> 63.64218595
B95: Labour Escalation | C95: =Inputs!$A$8 -> Real $2023 | D95: $Million | E95: =IF(E87<=Inputs!$F$80,Inputs!K$129,E94*Inputs!K$22/INDEX(Inputs!$K$22:$U$22,MATCH(Inputs!$F$80,Years,0)))-E94 -> 0 | F95: =IF(F87<=Inputs!$F$80,Inputs!L$129,F94*Inputs!L$22/INDEX(Inputs!$K$22:$U$22,MATCH(Inputs!$F$80,Years,0)))-F94 -> 0 | G95: =IF(G87<=Inputs!$F$80,Inputs!M$129,G94*Inputs!M$22/INDEX(Inputs!$K$22:$U$22,MATCH(Inputs!$F$80,Years,0)))-G94 -> 0 | H95: =IF(H87<=Inputs!$F$80,Inputs!N$129,H94*Inputs!N$22/INDEX(Inputs!$K$22:$U$22,MATCH(Inputs!$F$80,Years,0)))-H94 -> 0 | I95: =IF(I87<=Inputs!$F$80,Inputs!O$129,I94*Inputs!O$22/INDEX(Inputs!$K$22:$U$22,MATCH(Inputs!$F$80,Years,0)))-I94 -> 0 | J95: =IF(J87<=Inputs!$F$80,Inputs!P$129,J94*Inputs!P$22/INDEX(Inputs!$K$22:$U$22,MATCH(Inputs!$F$80,Years,0)))-J94 -> 0 | K95: =IF(K87<=Inputs!$F$80,Inputs!Q$129,K94*Inputs!Q$22/INDEX(Inputs!$K$22:$U$22,MATCH(Inputs!$F$80,Years,0)))-K94 -> 0.1165792001 | L95: =IF(L87<=Inputs!$F$80,Inputs!R$129,L94*Inputs!R$22/INDEX(Inputs!$K$22:$U$22,MATCH(Inputs!$F$80,Years,0)))-L94 -> 0.4182750085 | M95: =IF(M87<=Inputs!$F$80,Inputs!S$129,M94*Inputs!S$22/INDEX(Inputs!$K$22:$U$22,MATCH(Inputs!$F$80,Years,0)))-M94 -> 0 | N95: =IF(N87<=Inputs!$F$80,Inputs!T$129,N94*Inputs!T$22/INDEX(Inputs!$K$22:$U$22,MATCH(Inputs!$F$80,Years,0)))-N94 -> 0 | O95: =IF(O87<=Inputs!$F$80,Inputs!U$129,O94*Inputs!U$22/INDEX(Inputs!$K$22:$U$22,MATCH(Inputs!$F$80,Years,0)))-O94 -> 0 | P95: =SUM(E95:O95) -> 0.5348542086
B96: Sub-Total | C96: =Inputs!$A$8 -> Real $2023 | D96: $Million | E96: =SUM(E94:E95) -> 0.002751266362 | F96: =SUM(F94:F95) -> 0 | G96: =SUM(G94:G95) -> 0.1457401803 | H96: 0.000207745095 | I96: 1.988238665 | J96: 7.090893841 | K96: 29.97303413 | L96: 24.97617433 | M96: =SUM(M94:M95) -> 0 | N96: =SUM(N94:N95) -> 0 | O96: =SUM(O94:O95) -> 0 | P96: 64.17704016
B98: Indirect Non-Labour Costs
B99: Non-Labour | C99: =Inputs!$A$8 -> Real $2023 | D99: $Million | E99: =Inputs!K$185*INDEX(Inputs!$K$21:$U$21,MATCH(Report_Year,Years,0))/INDEX(Inputs!$K$21:$U$21,MATCH(Inputs!$E$136,Years,0)) -> 0 | F99: =Inputs!L$185*INDEX(Inputs!$K$21:$U$21,MATCH(Report_Year,Years,0))/INDEX(Inputs!$K$21:$U$21,MATCH(Inputs!$E$136,Years,0)) -> 0 | G99: =Inputs!M$185*INDEX(Inputs!$K$21:$U$21,MATCH(Report_Year,Years,0))/INDEX(Inputs!$K$21:$U$21,MATCH(Inputs!$E$136,Years,0)) -> 0 | H99: =Inputs!N$185*INDEX(Inputs!$K$21:$U$21,MATCH(Report_Year,Years,0))/INDEX(Inputs!$K$21:$U$21,MATCH(Inputs!$E$136,Years,0)) -> 0 | I99: =Inputs!O$185*INDEX(Inputs!$K$21:$U$21,MATCH(Report_Year,Years,0))/INDEX(Inputs!$K$21:$U$21,MATCH(Inputs!$E$136,Years,0)) -> 4.58832552 | J99: =Inputs!P$185*INDEX(Inputs!$K$21:$U$21,MATCH(Report_Year,Years,0))/INDEX(Inputs!$K$21:$U$21,MATCH(Inputs!$E$136,Years,0)) -> 7.859232402 | K99: =Inputs!Q$185*INDEX(Inputs!$K$21:$U$21,MATCH(Report_Year,Years,0))/INDEX(Inputs!$K$21:$U$21,MATCH(Inputs!$E$136,Years,0)) -> 38.28167168 | L99: =Inputs!R$185*INDEX(Inputs!$K$21:$U$21,MATCH(Report_Year,Years,0))/INDEX(Inputs!$K$21:$U$21,MATCH(Inputs!$E$136,Years,0)) -> 74.78170456 | M99: =Inputs!S$185*INDEX(Inputs!$K$21:$U$21,MATCH(Report_Year,Years,0))/INDEX(Inputs!$K$21:$U$21,MATCH(Inputs!$E$136,Years,0)) -> 0 | N99: =Inputs!T$185*INDEX(Inputs!$K$21:$U$21,MATCH(Report_Year,Years,0))/INDEX(Inputs!$K$21:$U$21,MATCH(Inputs!$E$136,Years,0)) -> 0 | O99: =Inputs!U$185*INDEX(Inputs!$K$21:$U$21,MATCH(Report_Year,Years,0))/INDEX(Inputs!$K$21:$U$21,MATCH(Inputs!$E$136,Years,0)) -> 0 | P99: =SUM(E99:O99) -> 125.5109342
B100: Sub-Total | C100: =Inputs!$A$8 -> Real $2023 | D100: $Million | E100: =SUM(E99:E99) -> 0 | F100: =SUM(F99:F99) -> 0 | G100: =SUM(G99:G99) -> 0 | H100: 0 | I100: 4.58832552 | J100: 7.859232402 | K100: 38.28167168 | L100: 74.78170456 | M100: =SUM(M99:M99) -> 0 | N100: =SUM(N99:N99) -> 0 | O100: =SUM(O99:O99) -> 0 | P100: 125.5109342
B102: Total
B103: Labour | C103: =Inputs!$A$8 -> Real $2023 | D103: $Million | E103: =E94 -> 0.002751266362 | F103: =F94 -> 0 | G103: =G94 -> 0.1457401803 | H103: 0.000207745095 | I103: 1.988238665 | J103: 7.090893841 | K103: 29.85645493 | L103: 24.55789932 | M103: =M94 -> 0 | N103: 0 | O103: 0 | P103: =SUM(E103:O103) -> 63.64218595
B104: Labour Escalation | C104: =Inputs!$A$8 -> Real $2023 | D104: $Million | E104: =E95 -> 0 | F104: =F95 -> 0 | G104: 0 | H104: 0 | I104: 0 | J104: 0 | K104: 0.1165792001 | L104: 0.4182750085 | M104: 0 | N104: 0 | O104: 0 | P104: =SUM(E104:O104) -> 0.5348542086
B105: Non-Labour | C105: =Inputs!$A$8 -> Real $2023 | D105: $Million | E105: =E90+E99 -> 0 | F105: =F90+F99 -> 0 | G105: =G90+G99 -> 0 | H105: 0 | I105: 6.168905487 | J105: 22.8217347 | K105: 446.5122892 | L105: 344.942049 | M105: 64.218163 | N105: 0 | O105: 0 | P105: =SUM(E105:O105) -> 884.6631414
B106: Total | C106: =Inputs!$A$8 -> Real $2023 | D106: $Million | E106: =SUM(E103:E105) -> 0.002751266362 | F106: =SUM(F103:F105) -> 0 | G106: =SUM(G103:G105) -> 0.1457401803 | H106: 0.000207745095 | I106: 8.157144152 | J106: 29.91262854 | K106: 476.4853234 | L106: 369.9182234 | M106: =SUM(M103:M105) -> 64.218163 | N106: =SUM(N103:N105) -> 0 | O106: =SUM(O103:O105) -> 0 | P106: =SUM(P103:P105) -> 948.8401816
A108: =IF(SUM(G108:O108)=0,0,1) -> 0 | B108: ="Check "&$B$89 -> Check Direct Non-Labour | E108: =IF(ROUND(E$23-E91,3)=0,0,1) -> 0 | F108: =IF(ROUND(F$23-F91,3)=0,0,1) -> 0 | G108: =IF(ROUND(G$23-G91,3)=0,0,1) -> 0 | H108: =IF(ROUND(H$23-H91,3)=0,0,1) -> 0 | I108: 0 | J108: 0 | K108: 0 | L108: 0 | M108: 0 | N108: 0 | O108: 0
A109: =IF(SUM(G109:O109)=0,0,1) -> 0 | B109: ="Check "&$B$93 -> Check Labour Costs | E109: =IF(ROUND(E$42-E96,3)=0,0,1) -> 0 | F109: =IF(ROUND(F$42-F96,3)=0,0,1) -> 0 | G109: =IF(ROUND(G$42-G96,3)=0,0,1) -> 0 | H109: =IF(ROUND(H$42-H96,3)=0,0,1) -> 0 | I109: 0 | J109: 0 | K109: 0 | L109: 0 | M109: 0 | N109: 0 | O109: 0
A110: =IF(SUM(G110:O110)=0,0,1) -> 0 | B110: ="Check "&$B$98 -> Check Indirect Non-Labour Costs | E110: =IF(ROUND(E$61-E100,3)=0,0,1) -> 0 | F110: =IF(ROUND(F$61-F100,3)=0,0,1) -> 0 | G110: =IF(ROUND(G$61-G100,3)=0,0,1) -> 0 | H110: =IF(ROUND(H$61-H100,3)=0,0,1) -> 0 | I110: 0 | J110: 0 | K110: 0 | L110: 0 | M110: 0 | N110: 0 | O110: 0
B112: Incremental Capital Expenditure (Excluding Equity Raising Costs) by Component | P112: Total
B113: Component | C113: Dollar basis | D113: Units | E113: =Inputs!K$20 -> 2018 | F113: =Inputs!L$20 -> 2019 | G113: =Inputs!M$20 -> 2020 | H113: =Inputs!N$20 -> 2021 | I113: =Inputs!O$20 -> 2022 | J113: =Inputs!P$20 -> 2023 | K113: =Inputs!Q$20 -> 2024 | L113: =Inputs!R$20 -> 2025 | M113: =Inputs!S$20 -> 2026 | N113: =Inputs!T$20 -> 2027 | O113: =Inputs!U$20 -> 2028
B115: Direct Non-Labour Cost
B116: =$B$200 -> Project Management | C116: =Inputs!$A$8 -> Real $2023 | D116: $Million | E116: =IFERROR(E$91 *IF((E$161-E$160+E$197-E$196)<>0,(E152+E188)/(E$161-E$160+E$197-E$196),($P152+$P188)/($P$161-$P$160+$P$197-$P$196)),0) -> 0 | F116: =IFERROR(F$91 *IF((F$161-F$160+F$197-F$196)<>0,(F152+F188)/(F$161-F$160+F$197-F$196),($P152+$P188)/($P$161-$P$160+$P$197-$P$196)),0) -> 0 | G116: 0 | H116: 0 | I116: 0.4604943475 | J116: 3.751896275 | K116: 73.31149184 | L116: 27.35207944 | M116: 9.486791159 | N116: 0 | O116: 0 | P116: =SUM(E116:O116) -> 114.3627531
B117: =$B$201 -> Project Development | C117: =Inputs!$A$8 -> Real $2023 | D117: $Million | E117: =IFERROR(E$91 *IF((E$161-E$160+E$197-E$196)<>0,(E153+E189)/(E$161-E$160+E$197-E$196),($P153+$P189)/($P$161-$P$160+$P$197-$P$196)),0) -> 0 | F117: 0 | G117: 0 | H117: 0 | I117: 0.5266912537 | J117: 1.445481753 | K117: 78.41905742 | L117: 73.68682256 | M117: 14.93146272 | N117: 0 | O117: 0 | P117: 169.0095157
B118: =$B$202 -> Transaction Procurement Support | C118: =Inputs!$A$8 -> Real $2023 | D118: $Million | E118: =IFERROR(E$91 *IF((E$161-E$160+E$197-E$196)<>0,(E154+E190)/(E$161-E$160+E$197-E$196),($P154+$P190)/($P$161-$P$160+$P$197-$P$196)),0) -> 0 | F118: 0 | G118: 0 | H118: 0 | I118: 0 | J118: 0 | K118: 12.53374452 | L118: 56.97538487 | M118: 7.83193208 | N118: 0 | O118: 0 | P118: 77.34106147
B119: =$B$203 -> Community and Stakeholder Engagement | C119: =Inputs!$A$8 -> Real $2023 | D119: $Million | E119: =IFERROR(E$91 *IF((E$161-E$160+E$197-E$196)<>0,(E155+E191)/(E$161-E$160+E$197-E$196),($P155+$P191)/($P$161-$P$160+$P$197-$P$196)),0) -> 0 | F119: 0 | G119: 0 | H119: 0 | I119: 0.09754755093 | J119: 1.761686549 | K119: 28.75410507 | L119: 10.646625 | M119: 3.691849858 | N119: 0 | O119: 0 | P119: 44.95181403
B120: =$B$204 -> Land and Environment | C120: =Inputs!$A$8 -> Real $2023 | D120: $Million | E120: =IFERROR(E$91 *IF((E$161-E$160+E$197-E$196)<>0,(E156+E192)/(E$161-E$160+E$197-E$196),($P156+$P192)/($P$161-$P$160+$P$197-$P$196)),0) -> 0 | F120: 0 | G120: 0 | H120: 0 | I120: 0.05785086015 | J120: 1.218968101 | K120: 65.69912613 | L120: 31.87538029 | M120: 8.197374488 | N120: 0 | O120: 0 | P120: 107.0486999
B121: =$B$205 -> Regulatory Approvals | C121: =Inputs!$A$8 -> Real $2023 | D121: $Million | E121: =IFERROR(E$91 *IF((E$161-E$160+E$197-E$196)<>0,(E157+E193)/(E$161-E$160+E$197-E$196),($P157+$P193)/($P$161-$P$160+$P$197-$P$196)),0) -> 0 | F121: 0 | G121: 0 | H121: 0 | I121: 0 | J121: 0.1026335084 | K121: 4.143424964 | L121: 17.08707771 | M121: 2.40530111 | N121: 0 | O121: 0 | P121: 23.73843729
B122: =$B$206 -> Other Support & Corporate Roles | C122: =Inputs!$A$8 -> Real $2023 | D122: $Million | E122: =IFERROR(E$91 *IF((E$161-E$160+E$197-E$196)<>0,(E158+E194)/(E$161-E$160+E$197-E$196),($P158+$P194)/($P$161-$P$160+$P$197-$P$196)),0) -> 0 | F122: 0 | G122: 0 | H122: 0 | I122: 0.4379959541 | J122: 6.681836107 | K122: 91.58915496 | L122: 32.24512818 | M122: 12.09259612 | N122: 0 | O122: 0 | P122: 143.0467113
B123: =$B$207 -> Indirect - Proportion of labour and labour-related costs | C123: =Inputs!$A$8 -> Real $2023 | D123: $Million | E123: =IFERROR(E$91 *IF((E$161-E$160+E$197-E$196)<>0,(E159+E195)/(E$161-E$160+E$197-E$196),($P159+$P195)/($P$161-$P$160+$P$197-$P$196)),0) -> 0 | F123: 0 | G123: 0 | H123: 0 | I123: 0 | J123: 0 | K123: 53.78051266 | L123: 20.29184643 | M123: 5.580855463 | N123: 0 | O123: 0 | P123: 79.65321455
B124: =$B$208 -> Contingency | C124: =Inputs!$A$8 -> Real $2023 | D124: $Million | P124: =SUM(E124:O124) -> 0
B125: Sub-Total | C125: =Inputs!$A$8 -> Real $2023 | D125: $Million | E125: =SUM(E116:E124) -> 0 | F125: 0 | G125: 0 | H125: 0 | I125: 1.580579966 | J125: 14.96250229 | K125: 408.2306176 | L125: 270.1603445 | M125: 64.218163 | N125: 0 | O125: 0 | P125: 759.1522073
B127: Labour Costs - Actual
B128: =$B$200 -> Project Management | C128: =Inputs!$A$8 -> Real $2023 | D128: $Million | E128: =IFERROR(SUMIF(Inputs!$H$81:$H$100,$B128,Inputs!K$81:K$100) *INDEX(Inputs!$K$21:$U$21,MATCH(Report_Year,Years,0))/INDEX(Inputs!$K$21:$U$21,MATCH(Inputs!$E$80,Years,0)),0) -> 0 | F128: =IFERROR(SUMIF(Inputs!$H$81:$H$100,$B128,Inputs!L$81:L$100) *INDEX(Inputs!$K$21:$U$21,MATCH(Report_Year,Years,0))/INDEX(Inputs!$K$21:$U$21,MATCH(Inputs!$E$80,Years,0)),0) -> 0 | G128: =IFERROR(SUMIF(Inputs!$H$81:$H$100,$B128,Inputs!M$81:M$100) *INDEX(Inputs!$K$21:$U$21,MATCH(Report_Year,Years,0))/INDEX(Inputs!$K$21:$U$21,MATCH(Inputs!$E$80,Years,0)),0) -> 0 | H128: =IFERROR(SUMIF(Inputs!$H$81:$H$100,$B128,Inputs!N$81:N$100) *INDEX(Inputs!$K$21:$U$21,MATCH(Report_Year,Years,0))/INDEX(Inputs!$K$21:$U$21,MATCH(Inputs!$E$80,Years,0)),0) -> 0 | I128: =IFERROR(SUMIF(Inputs!$H$81:$H$100,$B128,Inputs!O$81:O$100) *INDEX(Inputs!$K$21:$U$21,MATCH(Report_Year,Years,0))/INDEX(Inputs!$K$21:$U$21,MATCH(Inputs!$E$80,Years,0)),0) -> 1.27277105 | J128: =IFERROR(SUMIF(Inputs!$H$81:$H$100,$B128,Inputs!P$81:P$100) *INDEX(Inputs!$K$21:$U$21,MATCH(Report_Year,Years,0))/INDEX(Inputs!$K$21:$U$21,MATCH(Inputs!$E$80,Years,0)),0) -> 3.302285308 | K128: =IFERROR(SUMIF(Inputs!$H$81:$H$100,$B128,Inputs!Q$81:Q$100) *INDEX(Inputs!$K$21:$U$21,MATCH(Report_Year,Years,0))/INDEX(Inputs!$K$21:$U$21,MATCH(Inputs!$E$80,Years,0)),0) -> 0 | L128: =IFERROR(SUMIF(Inputs!$H$81:$H$100,$B128,Inputs!R$81:R$100) *INDEX(Inputs!$K$21:$U$21,MATCH(Report_Year,Years,0))/INDEX(Inputs!$K$21:$U$21,MATCH(Inputs!$E$80,Years,0)),0) -> 0 | M128: =IFERROR(SUMIF(Inputs!$H$81:$H$100,$B128,Inputs!S$81:S$100) *INDEX(Inputs!$K$21:$U$21,MATCH(Report_Year,Years,0))/INDEX(Inputs!$K$21:$U$21,MATCH(Inputs!$E$80,Years,0)),0) -> 0 | N128: =IFERROR(SUMIF(Inputs!$H$81:$H$100,$B128,Inputs!T$81:T$100) *INDEX(Inputs!$K$21:$U$21,MATCH(Report_Year,Years,0))/INDEX(Inputs!$K$21:$U$21,MATCH(Inputs!$E$80,Years,0)),0) -> 0 | O128: =IFERROR(SUMIF(Inputs!$H$81:$H$100,$B128,Inputs!U$81:U$100) *INDEX(Inputs!$K$21:$U$21,MATCH(Report_Year,Years,0))/INDEX(Inputs!$K$21:$U$21,MATCH(Inputs!$E$80,Years,0)),0) -> 0 | P128: =SUM(E128:O128) -> 4.575056358
B129: =$B$201 -> Project Development | C129: =Inputs!$A$8 -> Real $2023 | D129: $Million | E129: =IFERROR(SUMIF(Inputs!$H$81:$H$100,$B129,Inputs!K$81:K$100) *INDEX(Inputs!$K$21:$U$21,MATCH(Report_Year,Years,0))/INDEX(Inputs!$K$21:$U$21,MATCH(Inputs!$E$80,Years,0)),0) -> 0.002751266362 | F129: =IFERROR(SUMIF(Inputs!$H$81:$H$100,$B129,Inputs!L$81:L$100) *INDEX(Inputs!$K$21:$U$21,MATCH(Report_Year,Years,0))/INDEX(Inputs!$K$21:$U$21,MATCH(Inputs!$E$80,Years,0)),0) -> 0 | G129: =IFERROR(SUMIF(Inputs!$H$81:$H$100,$B129,Inputs!M$81:M$100) *INDEX(Inputs!$K$21:$U$21,MATCH(Report_Year,Years,0))/INDEX(Inputs!$K$21:$U$21,MATCH(Inputs!$E$80,Years,0)),0) -> 0.1453421691 | H129: =IFERROR(SUMIF(Inputs!$H$81:$H$100,$B129,Inputs!N$81:N$100) *INDEX(Inputs!$K$21:$U$21,MATCH(Report_Year,Years,0))/INDEX(Inputs!$K$21:$U$21,MATCH(Inputs!$E$80,Years,0)),0) -> 0.000207745095 | I129: =IFERROR(SUMIF(Inputs!$H$81:$H$100,$B129,Inputs!O$81:O$100) *INDEX(Inputs!$K$21:$U$21,MATCH(Report_Year,Years,0))/INDEX(Inputs!$K$21:$U$21,MATCH(Inputs!$E$80,Years,0)),0) -> 0.3073427336 | J129: =IFERROR(SUMIF(Inputs!$H$81:$H$100,$B129,Inputs!P$81:P$100) *INDEX(Inputs!$K$21:$U$21,MATCH(Report_Year,Years,0))/INDEX(Inputs!$K$21:$U$21,MATCH(Inputs!$E$80,Years,0)),0) -> 0.2398199349 | K129: =IFERROR(SUMIF(Inputs!$H$81:$H$100,$B129,Inputs!Q$81:Q$100) *INDEX(Inputs!$K$21:$U$21,MATCH(Report_Year,Years,0))/INDEX(Inputs!$K$21:$U$21,MATCH(Inputs!$E$80,Years,0)),0) -> 0 | L129: =IFERROR(SUMIF(Inputs!$H$81:$H$100,$B129,Inputs!R$81:R$100) *INDEX(Inputs!$K$21:$U$21,MATCH(Report_Year,Years,0))/INDEX(Inputs!$K$21:$U$21,MATCH(Inputs!$E$80,Years,0)),0) -> 0 | M129: =IFERROR(SUMIF(Inputs!$H$81:$H$100,$B129,Inputs!S$81:S$100) *INDEX(Inputs!$K$21:$U$21,MATCH(Report_Year,Years,0))/INDEX(Inputs!$K$21:$U$21,MATCH(Inputs!$E$80,Years,0)),0) -> 0 | N129: =IFERROR(SUMIF(Inputs!$H$81:$H$100,$B129,Inputs!T$81:T$100) *INDEX(Inputs!$K$21:$U$21,MATCH(Report_Year,Years,0))/INDEX(Inputs!$K$21:$U$21,MATCH(Inputs!$E$80,Years,0)),0) -> 0 | O129: =IFERROR(SUMIF(Inputs!$H$81:$H$100,$B129,Inputs!U$81:U$100) *INDEX(Inputs!$K$21:$U$21,MATCH(Report_Year,Years,0))/INDEX(Inputs!$K$21:$U$21,MATCH(Inputs!$E$80,Years,0)),0) -> 0 | P129: 0.6954638491
B130: =$B$202 -> Transaction Procurement Support | C130: =Inputs!$A$8 -> Real $2023 | D130: $Million | E130: =IFERROR(SUMIF(Inputs!$H$81:$H$100,$B130,Inputs!K$81:K$100) *INDEX(Inputs!$K$21:$U$21,MATCH(Report_Year,Years,0))/INDEX(Inputs!$K$21:$U$21,MATCH(Inputs!$E$80,Years,0)),0) -> 0 | F130: =IFERROR(SUMIF(Inputs!$H$81:$H$100,$B130,Inputs!L$81:L$100) *INDEX(Inputs!$K$21:$U$21,MATCH(Report_Year,Years,0))/INDEX(Inputs!$K$21:$U$21,MATCH(Inputs!$E$80,Years,0)),0) -> 0 | G130: =IFERROR(SUMIF(Inputs!$H$81:$H$100,$B130,Inputs!M$81:M$100) *INDEX(Inputs!$K$21:$U$21,MATCH(Report_Year,Years,0))/INDEX(Inputs!$K$21:$U$21,MATCH(Inputs!$E$80,Years,0)),0) -> 0 | H130: =IFERROR(SUMIF(Inputs!$H$81:$H$100,$B130,Inputs!N$81:N$100) *INDEX(Inputs!$K$21:$U$21,MATCH(Report_Year,Years,0))/INDEX(Inputs!$K$21:$U$21,MATCH(Inputs!$E$80,Years,0)),0) -> 0 | I130: =IFERROR(SUMIF(Inputs!$H$81:$H$100,$B130,Inputs!O$81:O$100) *INDEX(Inputs!$K$21:$U$21,MATCH(Report_Year,Years,0))/INDEX(Inputs!$K$21:$U$21,MATCH(Inputs!$E$80,Years,0)),0) -> 0 | J130: =IFERROR(SUMIF(Inputs!$H$81:$H$100,$B130,Inputs!P$81:P$100) *INDEX(Inputs!$K$21:$U$21,MATCH(Report_Year,Years,0))/INDEX(Inputs!$K$21:$U$21,MATCH(Inputs!$E$80,Years,0)),0) -> 0 | K130: =IFERROR(SUMIF(Inputs!$H$81:$H$100,$B130,Inputs!Q$81:Q$100) *INDEX(Inputs!$K$21:$U$21,MATCH(Report_Year,Years,0))/INDEX(Inputs!$K$21:$U$21,MATCH(Inputs!$E$80,Years,0)),0) -> 0 | L130: =IFERROR(SUMIF(Inputs!$H$81:$H$100,$B130,Inputs!R$81:R$100) *INDEX(Inputs!$K$21:$U$21,MATCH(Report_Year,Years,0))/INDEX(Inputs!$K$21:$U$21,MATCH(Inputs!$E$80,Years,0)),0) -> 0 | M130: =IFERROR(SUMIF(Inputs!$H$81:$H$100,$B130,Inputs!S$81:S$100) *INDEX(Inputs!$K$21:$U$21,MATCH(Report_Year,Years,0))/INDEX(Inputs!$K$21:$U$21,MATCH(Inputs!$E$80,Years,0)),0) -> 0 | N130: =IFERROR(SUMIF(Inputs!$H$81:$H$100,$B130,Inputs!T$81:T$100) *INDEX(Inputs!$K$21:$U$21,MATCH(Report_Year,Years,0))/INDEX(Inputs!$K$21:$U$21,MATCH(Inputs!$E$80,Years,0)),0) -> 0 | O130: =IFERROR(SUMIF(Inputs!$H$81:$H$100,$B130,Inputs!U$81:U$100) *INDEX(Inputs!$K$21:$U$21,MATCH(Report_Year,Years,0))/INDEX(Inputs!$K$21:$U$21,MATCH(Inputs!$E$80,Years,0)),0) -> 0 | P130: 0
B131: =$B$203 -> Community and Stakeholder Engagement | C131: =Inputs!$A$8 -> Real $2023 | D131: $Million | E131: =IFERROR(SUMIF(Inputs!$H$81:$H$100,$B131,Inputs!K$81:K$100) *INDEX(Inputs!$K$21:$U$21,MATCH(Report_Year,Years,0))/INDEX(Inputs!$K$21:$U$21,MATCH(Inputs!$E$80,Years,0)),0) -> 0 | F131: =IFERROR(SUMIF(Inputs!$H$81:$H$100,$B131,Inputs!L$81:L$100) *INDEX(Inputs!$K$21:$U$21,MATCH(Report_Year,Years,0))/INDEX(Inputs!$K$21:$U$21,MATCH(Inputs!$E$80,Years,0)),0) -> 0 | G131: =IFERROR(SUMIF(Inputs!$H$81:$H$100,$B131,Inputs!M$81:M$100) *INDEX(Inputs!$K$21:$U$21,MATCH(Report_Year,Years,0))/INDEX(Inputs!$K$21:$U$21,MATCH(Inputs!$E$80,Years,0)),0) -> 0 | H131: =IFERROR(SUMIF(Inputs!$H$81:$H$100,$B131,Inputs!N$81:N$100) *INDEX(Inputs!$K$21:$U$21,MATCH(Report_Year,Years,0))/INDEX(Inputs!$K$21:$U$21,MATCH(Inputs!$E$80,Years,0)),0) -> 0 | I131: =IFERROR(SUMIF(Inputs!$H$81:$H$100,$B131,Inputs!O$81:O$100) *INDEX(Inputs!$K$21:$U$21,MATCH(Report_Year,Years,0))/INDEX(Inputs!$K$21:$U$21,MATCH(Inputs!$E$80,Years,0)),0) -> 0.171955919 | J131: =IFERROR(SUMIF(Inputs!$H$81:$H$100,$B131,Inputs!P$81:P$100) *INDEX(Inputs!$K$21:$U$21,MATCH(Report_Year,Years,0))/INDEX(Inputs!$K$21:$U$21,MATCH(Inputs!$E$80,Years,0)),0) -> 1.181373452 | K131: =IFERROR(SUMIF(Inputs!$H$81:$H$100,$B131,Inputs!Q$81:Q$100) *INDEX(Inputs!$K$21:$U$21,MATCH(Report_Year,Years,0))/INDEX(Inputs!$K$21:$U$21,MATCH(Inputs!$E$80,Years,0)),0) -> 0 | L131: =IFERROR(SUMIF(Inputs!$H$81:$H$100,$B131,Inputs!R$81:R$100) *INDEX(Inputs!$K$21:$U$21,MATCH(Report_Year,Years,0))/INDEX(Inputs!$K$21:$U$21,MATCH(Inputs!$E$80,Years,0)),0) -> 0 | M131: =IFERROR(SUMIF(Inputs!$H$81:$H$100,$B131,Inputs!S$81:S$100) *INDEX(Inputs!$K$21:$U$21,MATCH(Report_Year,Years,0))/INDEX(Inputs!$K$21:$U$21,MATCH(Inputs!$E$80,Years,0)),0) -> 0 | N131: =IFERROR(SUMIF(Inputs!$H$81:$H$100,$B131,Inputs!T$81:T$100) *INDEX(Inputs!$K$21:$U$21,MATCH(Report_Year,Years,0))/INDEX(Inputs!$K$21:$U$21,MATCH(Inputs!$E$80,Years,0)),0) -> 0 | O131: =IFERROR(SUMIF(Inputs!$H$81:$H$100,$B131,Inputs!U$81:U$100) *INDEX(Inputs!$K$21:$U$21,MATCH(Report_Year,Years,0))/INDEX(Inputs!$K$21:$U$21,MATCH(Inputs!$E$80,Years,0)),0) -> 0 | P131: 1.353329371
B132: =$B$204 -> Land and Environment | C132: =Inputs!$A$8 -> Real $2023 | D132: $Million | E132: =IFERROR(SUMIF(Inputs!$H$81:$H$100,$B132,Inputs!K$81:K$100) *INDEX(Inputs!$K$21:$U$21,MATCH(Report_Year,Years,0))/INDEX(Inputs!$K$21:$U$21,MATCH(Inputs!$E$80,Years,0)),0) -> 0 | F132: =IFERROR(SUMIF(Inputs!$H$81:$H$100,$B132,Inputs!L$81:L$100) *INDEX(Inputs!$K$21:$U$21,MATCH(Report_Year,Years,0))/INDEX(Inputs!$K$21:$U$21,MATCH(Inputs!$E$80,Years,0)),0) -> 0 | G132: =IFERROR(SUMIF(Inputs!$H$81:$H$100,$B132,Inputs!M$81:M$100) *INDEX(Inputs!$K$21:$U$21,MATCH(Report_Year,Years,0))/INDEX(Inputs!$K$21:$U$21,MATCH(Inputs!$E$80,Years,0)),0) -> 0 | H132: =IFERROR(SUMIF(Inputs!$H$81:$H$100,$B132,Inputs!N$81:N$100) *INDEX(Inputs!$K$21:$U$21,MATCH(Report_Year,Years,0))/INDEX(Inputs!$K$21:$U$21,MATCH(Inputs!$E$80,Years,0)),0) -> 0 | I132: =IFERROR(SUMIF(Inputs!$H$81:$H$100,$B132,Inputs!O$81:O$100) *INDEX(Inputs!$K$21:$U$21,MATCH(Report_Year,Years,0))/INDEX(Inputs!$K$21:$U$21,MATCH(Inputs!$E$80,Years,0)),0) -> 0.0465462942 | J132: =IFERROR(SUMIF(Inputs!$H$81:$H$100,$B132,Inputs!P$81:P$100) *INDEX(Inputs!$K$21:$U$21,MATCH(Report_Year,Years,0))/INDEX(Inputs!$K$21:$U$21,MATCH(Inputs!$E$80,Years,0)),0) -> 0.604029823 | K132: =IFERROR(SUMIF(Inputs!$H$81:$H$100,$B132,Inputs!Q$81:Q$100) *INDEX(Inputs!$K$21:$U$21,MATCH(Report_Year,Years,0))/INDEX(Inputs!$K$21:$U$21,MATCH(Inputs!$E$80,Years,0)),0) -> 0 | L132: =IFERROR(SUMIF(Inputs!$H$81:$H$100,$B132,Inputs!R$81:R$100) *INDEX(Inputs!$K$21:$U$21,MATCH(Report_Year,Years,0))/INDEX(Inputs!$K$21:$U$21,MATCH(Inputs!$E$80,Years,0)),0) -> 0 | M132: =IFERROR(SUMIF(Inputs!$H$81:$H$100,$B132,Inputs!S$81:S$100) *INDEX(Inputs!$K$21:$U$21,MATCH(Report_Year,Years,0))/INDEX(Inputs!$K$21:$U$21,MATCH(Inputs!$E$80,Years,0)),0) -> 0 | N132: =IFERROR(SUMIF(Inputs!$H$81:$H$100,$B132,Inputs!T$81:T$100) *INDEX(Inputs!$K$21:$U$21,MATCH(Report_Year,Years,0))/INDEX(Inputs!$K$21:$U$21,MATCH(Inputs!$E$80,Years,0)),0) -> 0 | O132: =IFERROR(SUMIF(Inputs!$H$81:$H$100,$B132,Inputs!U$81:U$100) *INDEX(Inputs!$K$21:$U$21,MATCH(Report_Year,Years,0))/INDEX(Inputs!$K$21:$U$21,MATCH(Inputs!$E$80,Years,0)),0) -> 0 | P132: 0.6505761172
B133: =$B$205 -> Regulatory Approvals | C133: =Inputs!$A$8 -> Real $2023 | D133: $Million | E133: =IFERROR(SUMIF(Inputs!$H$81:$H$100,$B133,Inputs!K$81:K$100) *INDEX(Inputs!$K$21:$U$21,MATCH(Report_Year,Years,0))/INDEX(Inputs!$K$21:$U$21,MATCH(Inputs!$E$80,Years,0)),0) -> 0 | F133: =IFERROR(SUMIF(Inputs!$H$81:$H$100,$B133,Inputs!L$81:L$100) *INDEX(Inputs!$K$21:$U$21,MATCH(Report_Year,Years,0))/INDEX(Inputs!$K$21:$U$21,MATCH(Inputs!$E$80,Years,0)),0) -> 0 | G133: =IFERROR(SUMIF(Inputs!$H$81:$H$100,$B133,Inputs!M$81:M$100) *INDEX(Inputs!$K$21:$U$21,MATCH(Report_Year,Years,0))/INDEX(Inputs!$K$21:$U$21,MATCH(Inputs!$E$80,Years,0)),0) -> 0 | H133: =IFERROR(SUMIF(Inputs!$H$81:$H$100,$B133,Inputs!N$81:N$100) *INDEX(Inputs!$K$21:$U$21,MATCH(Report_Year,Years,0))/INDEX(Inputs!$K$21:$U$21,MATCH(Inputs!$E$80,Years,0)),0) -> 0 | I133: =IFERROR(SUMIF(Inputs!$H$81:$H$100,$B133,Inputs!O$81:O$100) *INDEX(Inputs!$K$21:$U$21,MATCH(Report_Year,Years,0))/INDEX(Inputs!$K$21:$U$21,MATCH(Inputs!$E$80,Years,0)),0) -> 0 | J133: =IFERROR(SUMIF(Inputs!$H$81:$H$100,$B133,Inputs!P$81:P$100) *INDEX(Inputs!$K$21:$U$21,MATCH(Report_Year,Years,0))/INDEX(Inputs!$K$21:$U$21,MATCH(Inputs!$E$80,Years,0)),0) -> 0.1025486163 | K133: =IFERROR(SUMIF(Inputs!$H$81:$H$100,$B133,Inputs!Q$81:Q$100) *INDEX(Inputs!$K$21:$U$21,MATCH(Report_Year,Years,0))/INDEX(Inputs!$K$21:$U$21,MATCH(Inputs!$E$80,Years,0)),0) -> 0 | L133: =IFERROR(SUMIF(Inputs!$H$81:$H$100,$B133,Inputs!R$81:R$100) *INDEX(Inputs!$K$21:$U$21,MATCH(Report_Year,Years,0))/INDEX(Inputs!$K$21:$U$21,MATCH(Inputs!$E$80,Years,0)),0) -> 0 | M133: =IFERROR(SUMIF(Inputs!$H$81:$H$100,$B133,Inputs!S$81:S$100) *INDEX(Inputs!$K$21:$U$21,MATCH(Report_Year,Years,0))/INDEX(Inputs!$K$21:$U$21,MATCH(Inputs!$E$80,Years,0)),0) -> 0 | N133: =IFERROR(SUMIF(Inputs!$H$81:$H$100,$B133,Inputs!T$81:T$100) *INDEX(Inputs!$K$21:$U$21,MATCH(Report_Year,Years,0))/INDEX(Inputs!$K$21:$U$21,MATCH(Inputs!$E$80,Years,0)),0) -> 0 | O133: =IFERROR(SUMIF(Inputs!$H$81:$H$100,$B133,Inputs!U$81:U$100) *INDEX(Inputs!$K$21:$U$21,MATCH(Report_Year,Years,0))/INDEX(Inputs!$K$21:$U$21,MATCH(Inputs!$E$80,Years,0)),0) -> 0 | P133: 0.1025486163
B134: =$B$206 -> Other Support & Corporate Roles | C134: =Inputs!$A$8 -> Real $2023 | D134: $Million | E134: =IFERROR(SUMIF(Inputs!$H$81:$H$100,$B134,Inputs!K$81:K$100) *INDEX(Inputs!$K$21:$U$21,MATCH(Report_Year,Years,0))/INDEX(Inputs!$K$21:$U$21,MATCH(Inputs!$E$80,Years,0)),0) -> 0 | F134: =IFERROR(SUMIF(Inputs!$H$81:$H$100,$B134,Inputs!L$81:L$100) *INDEX(Inputs!$K$21:$U$21,MATCH(Report_Year,Years,0))/INDEX(Inputs!$K$21:$U$21,MATCH(Inputs!$E$80,Years,0)),0) -> 0 | G134: =IFERROR(SUMIF(Inputs!$H$81:$H$100,$B134,Inputs!M$81:M$100) *INDEX(Inputs!$K$21:$U$21,MATCH(Report_Year,Years,0))/INDEX(Inputs!$K$21:$U$21,MATCH(Inputs!$E$80,Years,0)),0) -> 0.0003980111585 | H134: =IFERROR(SUMIF(Inputs!$H$81:$H$100,$B134,Inputs!N$81:N$100) *INDEX(Inputs!$K$21:$U$21,MATCH(Report_Year,Years,0))/INDEX(Inputs!$K$21:$U$21,MATCH(Inputs!$E$80,Years,0)),0) -> 0 | I134: =IFERROR(SUMIF(Inputs!$H$81:$H$100,$B134,Inputs!O$81:O$100) *INDEX(Inputs!$K$21:$U$21,MATCH(Report_Year,Years,0))/INDEX(Inputs!$K$21:$U$21,MATCH(Inputs!$E$80,Years,0)),0) -> 0.1896226682 | J134: =IFERROR(SUMIF(Inputs!$H$81:$H$100,$B134,Inputs!P$81:P$100) *INDEX(Inputs!$K$21:$U$21,MATCH(Report_Year,Years,0))/INDEX(Inputs!$K$21:$U$21,MATCH(Inputs!$E$80,Years,0)),0) -> 1.660836707 | K134: =IFERROR(SUMIF(Inputs!$H$81:$H$100,$B134,Inputs!Q$81:Q$100) *INDEX(Inputs!$K$21:$U$21,MATCH(Report_Year,Years,0))/INDEX(Inputs!$K$21:$U$21,MATCH(Inputs!$E$80,Years,0)),0) -> 0 | L134: =IFERROR(SUMIF(Inputs!$H$81:$H$100,$B134,Inputs!R$81:R$100) *INDEX(Inputs!$K$21:$U$21,MATCH(Report_Year,Years,0))/INDEX(Inputs!$K$21:$U$21,MATCH(Inputs!$E$80,Years,0)),0) -> 0 | M134: =IFERROR(SUMIF(Inputs!$H$81:$H$100,$B134,Inputs!S$81:S$100) *INDEX(Inputs!$K$21:$U$21,MATCH(Report_Year,Years,0))/INDEX(Inputs!$K$21:$U$21,MATCH(Inputs!$E$80,Years,0)),0) -> 0 | N134: =IFERROR(SUMIF(Inputs!$H$81:$H$100,$B134,Inputs!T$81:T$100) *INDEX(Inputs!$K$21:$U$21,MATCH(Report_Year,Years,0))/INDEX(Inputs!$K$21:$U$21,MATCH(Inputs!$E$80,Years,0)),0) -> 0 | O134: =IFERROR(SUMIF(Inputs!$H$81:$H$100,$B134,Inputs!U$81:U$100) *INDEX(Inputs!$K$21:$U$21,MATCH(Report_Year,Years,0))/INDEX(Inputs!$K$21:$U$21,MATCH(Inputs!$E$80,Years,0)),0) -> 0 | P134: 1.850857386
B135: =$B$207 -> Indirect - Proportion of labour and labour-related costs | C135: =Inputs!$A$8 -> Real $2023 | D135: $Million | E135: =IFERROR(SUMIF(Inputs!$H$81:$H$100,$B135,Inputs!K$81:K$100) *INDEX(Inputs!$K$21:$U$21,MATCH(Report_Year,Years,0))/INDEX(Inputs!$K$21:$U$21,MATCH(Inputs!$E$80,Years,0)),0) -> 0 | F135: =IFERROR(SUMIF(Inputs!$H$81:$H$100,$B135,Inputs!L$81:L$100) *INDEX(Inputs!$K$21:$U$21,MATCH(Report_Year,Years,0))/INDEX(Inputs!$K$21:$U$21,MATCH(Inputs!$E$80,Years,0)),0) -> 0 | G135: =IFERROR(SUMIF(Inputs!$H$81:$H$100,$B135,Inputs!M$81:M$100) *INDEX(Inputs!$K$21:$U$21,MATCH(Report_Year,Years,0))/INDEX(Inputs!$K$21:$U$21,MATCH(Inputs!$E$80,Years,0)),0) -> 0 | H135: =IFERROR(SUMIF(Inputs!$H$81:$H$100,$B135,Inputs!N$81:N$100) *INDEX(Inputs!$K$21:$U$21,MATCH(Report_Year,Years,0))/INDEX(Inputs!$K$21:$U$21,MATCH(Inputs!$E$80,Years,0)),0) -> 0 | I135: =IFERROR(SUMIF(Inputs!$H$81:$H$100,$B135,Inputs!O$81:O$100) *INDEX(Inputs!$K$21:$U$21,MATCH(Report_Year,Years,0))/INDEX(Inputs!$K$21:$U$21,MATCH(Inputs!$E$80,Years,0)),0) -> 0 | J135: =IFERROR(SUMIF(Inputs!$H$81:$H$100,$B135,Inputs!P$81:P$100) *INDEX(Inputs!$K$21:$U$21,MATCH(Report_Year,Years,0))/INDEX(Inputs!$K$21:$U$21,MATCH(Inputs!$E$80,Years,0)),0) -> 0 | K135: =IFERROR(SUMIF(Inputs!$H$81:$H$100,$B135,Inputs!Q$81:Q$100) *INDEX(Inputs!$K$21:$U$21,MATCH(Report_Year,Years,0))/INDEX(Inputs!$K$21:$U$21,MATCH(Inputs!$E$80,Years,0)),0) -> 0 | L135: =IFERROR(SUMIF(Inputs!$H$81:$H$100,$B135,Inputs!R$81:R$100) *INDEX(Inputs!$K$21:$U$21,MATCH(Report_Year,Years,0))/INDEX(Inputs!$K$21:$U$21,MATCH(Inputs!$E$80,Years,0)),0) -> 0 | M135: =IFERROR(SUMIF(Inputs!$H$81:$H$100,$B135,Inputs!S$81:S$100) *INDEX(Inputs!$K$21:$U$21,MATCH(Report_Year,Years,0))/INDEX(Inputs!$K$21:$U$21,MATCH(Inputs!$E$80,Years,0)),0) -> 0 | N135: =IFERROR(SUMIF(Inputs!$H$81:$H$100,$B135,Inputs!T$81:T$100) *INDEX(Inputs!$K$21:$U$21,MATCH(Report_Year,Years,0))/INDEX(Inputs!$K$21:$U$21,MATCH(Inputs!$E$80,Years,0)),0) -> 0 | O135: =IFERROR(SUMIF(Inputs!$H$81:$H$100,$B135,Inputs!U$81:U$100) *INDEX(Inputs!$K$21:$U$21,MATCH(Report_Year,Years,0))/INDEX(Inputs!$K$21:$U$21,MATCH(Inputs!$E$80,Years,0)),0) -> 0 | P135: 0
B136: =$B$208 -> Contingency | C136: =Inputs!$A$8 -> Real $2023 | D136: $Million | E136: =IFERROR(SUMIF(Inputs!$H$81:$H$100,$B136,Inputs!K$81:K$100) *INDEX(Inputs!$K$21:$U$21,MATCH(Report_Year,Years,0))/INDEX(Inputs!$K$21:$U$21,MATCH(Inputs!$E$80,Years,0)),0) -> 0 | F136: =IFERROR(SUMIF(Inputs!$H$81:$H$100,$B136,Inputs!L$81:L$100) *INDEX(Inputs!$K$21:$U$21,MATCH(Report_Year,Years,0))/INDEX(Inputs!$K$21:$U$21,MATCH(Inputs!$E$80,Years,0)),0) -> 0 | G136: =IFERROR(SUMIF(Inputs!$H$81:$H$100,$B136,Inputs!M$81:M$100) *INDEX(Inputs!$K$21:$U$21,MATCH(Report_Year,Years,0))/INDEX(Inputs!$K$21:$U$21,MATCH(Inputs!$E$80,Years,0)),0) -> 0 | H136: =IFERROR(SUMIF(Inputs!$H$81:$H$100,$B136,Inputs!N$81:N$100) *INDEX(Inputs!$K$21:$U$21,MATCH(Report_Year,Years,0))/INDEX(Inputs!$K$21:$U$21,MATCH(Inputs!$E$80,Years,0)),0) -> 0 | I136: =IFERROR(SUMIF(Inputs!$H$81:$H$100,$B136,Inputs!O$81:O$100) *INDEX(Inputs!$K$21:$U$21,MATCH(Report_Year,Years,0))/INDEX(Inputs!$K$21:$U$21,MATCH(Inputs!$E$80,Years,0)),0) -> 0 | J136: =IFERROR(SUMIF(Inputs!$H$81:$H$100,$B136,Inputs!P$81:P$100) *INDEX(Inputs!$K$21:$U$21,MATCH(Report_Year,Years,0))/INDEX(Inputs!$K$21:$U$21,MATCH(Inputs!$E$80,Years,0)),0) -> 0 | K136: =IFERROR(SUMIF(Inputs!$H$81:$H$100,$B136,Inputs!Q$81:Q$100) *INDEX(Inputs!$K$21:$U$21,MATCH(Report_Year,Years,0))/INDEX(Inputs!$K$21:$U$21,MATCH(Inputs!$E$80,Years,0)),0) -> 0 | L136: =IFERROR(SUMIF(Inputs!$H$81:$H$100,$B136,Inputs!R$81:R$100) *INDEX(Inputs!$K$21:$U$21,MATCH(Report_Year,Years,0))/INDEX(Inputs!$K$21:$U$21,MATCH(Inputs!$E$80,Years,0)),0) -> 0 | M136: =IFERROR(SUMIF(Inputs!$H$81:$H$100,$B136,Inputs!S$81:S$100) *INDEX(Inputs!$K$21:$U$21,MATCH(Report_Year,Years,0))/INDEX(Inputs!$K$21:$U$21,MATCH(Inputs!$E$80,Years,0)),0) -> 0 | N136: =IFERROR(SUMIF(Inputs!$H$81:$H$100,$B136,Inputs!T$81:T$100) *INDEX(Inputs!$K$21:$U$21,MATCH(Report_Year,Years,0))/INDEX(Inputs!$K$21:$U$21,MATCH(Inputs!$E$80,Years,0)),0) -> 0 | O136: =IFERROR(SUMIF(Inputs!$H$81:$H$100,$B136,Inputs!U$81:U$100) *INDEX(Inputs!$K$21:$U$21,MATCH(Report_Year,Years,0))/INDEX(Inputs!$K$21:$U$21,MATCH(Inputs!$E$80,Years,0)),0) -> 0 | P136: =SUM(E136:O136) -> 0
B137: Sub-Total | C137: =Inputs!$A$8 -> Real $2023 | D137: $Million | E137: =SUM(E128:E136) -> 0.002751266362 | F137: 0 | G137: 0.1457401803 | H137: 0.000207745095 | I137: 1.988238665 | J137: 7.090893841 | K137: 0 | L137: 0 | M137: 0 | N137: 0 | O137: 0 | P137: 9.227831698
B139: Labour Costs - Forecast
B140: =$B$200 -> Project Management | C140: =Inputs!$A$8 -> Real $2023 | D140: $Million | E140: =IFERROR(SUMIF(Inputs!$H$102:$H$125,$B140,Inputs!K$102:K$125) *INDEX(Inputs!$K$21:$U$21,MATCH(Report_Year,Years,0))/INDEX(Inputs!$K$21:$U$21,MATCH(Inputs!$E$80,Years,0)) *Inputs!K$22/INDEX(Inputs!$K$22:$U$22,MATCH(Inputs!$F$80,Years,0)),0) -> 0 | F140: =IFERROR(SUMIF(Inputs!$H$102:$H$125,$B140,Inputs!L$102:L$125) *INDEX(Inputs!$K$21:$U$21,MATCH(Report_Year,Years,0))/INDEX(Inputs!$K$21:$U$21,MATCH(Inputs!$E$80,Years,0)) *Inputs!L$22/INDEX(Inputs!$K$22:$U$22,MATCH(Inputs!$F$80,Years,0)),0) -> 0 | G140: =IFERROR(SUMIF(Inputs!$H$102:$H$125,$B140,Inputs!M$102:M$125) *INDEX(Inputs!$K$21:$U$21,MATCH(Report_Year,Years,0))/INDEX(Inputs!$K$21:$U$21,MATCH(Inputs!$E$80,Years,0)) *Inputs!M$22/INDEX(Inputs!$K$22:$U$22,MATCH(Inputs!$F$80,Years,0)),0) -> 0 | H140: =IFERROR(SUMIF(Inputs!$H$102:$H$125,$B140,Inputs!N$102:N$125) *INDEX(Inputs!$K$21:$U$21,MATCH(Report_Year,Years,0))/INDEX(Inputs!$K$21:$U$21,MATCH(Inputs!$E$80,Years,0)) *Inputs!N$22/INDEX(Inputs!$K$22:$U$22,MATCH(Inputs!$F$80,Years,0)),0) -> 0 | I140: =IFERROR(SUMIF(Inputs!$H$102:$H$125,$B140,Inputs!O$102:O$125) *INDEX(Inputs!$K$21:$U$21,MATCH(Report_Year,Years,0))/INDEX(Inputs!$K$21:$U$21,MATCH(Inputs!$E$80,Years,0)) *Inputs!O$22/INDEX(Inputs!$K$22:$U$22,MATCH(Inputs!$F$80,Years,0)),0) -> 0 | J140: =IFERROR(SUMIF(Inputs!$H$102:$H$125,$B140,Inputs!P$102:P$125) *INDEX(Inputs!$K$21:$U$21,MATCH(Report_Year,Years,0))/INDEX(Inputs!$K$21:$U$21,MATCH(Inputs!$E$80,Years,0)) *Inputs!P$22/INDEX(Inputs!$K$22:$U$22,MATCH(Inputs!$F$80,Years,0)),0) -> 0 | K140: =IFERROR(SUMIF(Inputs!$H$102:$H$125,$B140,Inputs!Q$102:Q$125) *INDEX(Inputs!$K$21:$U$21,MATCH(Report_Year,Years,0))/INDEX(Inputs!$K$21:$U$21,MATCH(Inputs!$E$80,Years,0)) *Inputs!Q$22/INDEX(Inputs!$K$22:$U$22,MATCH(Inputs!$F$80,Years,0)),0) -> 8.902660419 | L140: =IFERROR(SUMIF(Inputs!$H$102:$H$125,$B140,Inputs!R$102:R$125) *INDEX(Inputs!$K$21:$U$21,MATCH(Report_Year,Years,0))/INDEX(Inputs!$K$21:$U$21,MATCH(Inputs!$E$80,Years,0)) *Inputs!R$22/INDEX(Inputs!$K$22:$U$22,MATCH(Inputs!$F$80,Years,0)),0) -> 7.577790627 | M140: =IFERROR(SUMIF(Inputs!$H$102:$H$125,$B140,Inputs!S$102:S$125) *INDEX(Inputs!$K$21:$U$21,MATCH(Report_Year,Years,0))/INDEX(Inputs!$K$21:$U$21,MATCH(Inputs!$E$80,Years,0)) *Inputs!S$22/INDEX(Inputs!$K$22:$U$22,MATCH(Inputs!$F$80,Years,0)),0) -> 0 | N140: =IFERROR(SUMIF(Inputs!$H$102:$H$125,$B140,Inputs!T$102:T$125) *INDEX(Inputs!$K$21:$U$21,MATCH(Report_Year,Years,0))/INDEX(Inputs!$K$21:$U$21,MATCH(Inputs!$E$80,Years,0)) *Inputs!T$22/INDEX(Inputs!$K$22:$U$22,MATCH(Inputs!$F$80,Years,0)),0) -> 0 | O140: =IFERROR(SUMIF(Inputs!$H$102:$H$125,$B140,Inputs!U$102:U$125) *INDEX(Inputs!$K$21:$U$21,MATCH(Report_Year,Years,0))/INDEX(Inputs!$K$21:$U$21,MATCH(Inputs!$E$80,Years,0)) *Inputs!U$22/INDEX(Inputs!$K$22:$U$22,MATCH(Inputs!$F$80,Years,0)),0) -> 0 | P140: =SUM(E140:O140) -> 16.48045105
B141: =$B$201 -> Project Development | C141: =Inputs!$A$8 -> Real $2023 | D141: $Million | E141: =IFERROR(SUMIF(Inputs!$H$102:$H$125,$B141,Inputs!K$102:K$125) *INDEX(Inputs!$K$21:$U$21,MATCH(Report_Year,Years,0))/INDEX(Inputs!$K$21:$U$21,MATCH(Inputs!$E$80,Years,0)) *Inputs!K$22/INDEX(Inputs!$K$22:$U$22,MATCH(Inputs!$F$80,Years,0)),0) -> 0 | F141: =IFERROR(SUMIF(Inputs!$H$102:$H$125,$B141,Inputs!L$102:L$125) *INDEX(Inputs!$K$21:$U$21,MATCH(Report_Year,Years,0))/INDEX(Inputs!$K$21:$U$21,MATCH(Inputs!$E$80,Years,0)) *Inputs!L$22/INDEX(Inputs!$K$22:$U$22,MATCH(Inputs!$F$80,Years,0)),0) -> 0 | G141: =IFERROR(SUMIF(Inputs!$H$102:$H$125,$B141,Inputs!M$102:M$125) *INDEX(Inputs!$K$21:$U$21,MATCH(Report_Year,Years,0))/INDEX(Inputs!$K$21:$U$21,MATCH(Inputs!$E$80,Years,0)) *Inputs!M$22/INDEX(Inputs!$K$22:$U$22,MATCH(Inputs!$F$80,Years,0)),0) -> 0 | H141: =IFERROR(SUMIF(Inputs!$H$102:$H$125,$B141,Inputs!N$102:N$125) *INDEX(Inputs!$K$21:$U$21,MATCH(Report_Year,Years,0))/INDEX(Inputs!$K$21:$U$21,MATCH(Inputs!$E$80,Years,0)) *Inputs!N$22/INDEX(Inputs!$K$22:$U$22,MATCH(Inputs!$F$80,Years,0)),0) -> 0 | I141: =IFERROR(SUMIF(Inputs!$H$102:$H$125,$B141,Inputs!O$102:O$125) *INDEX(Inputs!$K$21:$U$21,MATCH(Report_Year,Years,0))/INDEX(Inputs!$K$21:$U$21,MATCH(Inputs!$E$80,Years,0)) *Inputs!O$22/INDEX(Inputs!$K$22:$U$22,MATCH(Inputs!$F$80,Years,0)),0) -> 0 | J141: =IFERROR(SUMIF(Inputs!$H$102:$H$125,$B141,Inputs!P$102:P$125) *INDEX(Inputs!$K$21:$U$21,MATCH(Report_Year,Years,0))/INDEX(Inputs!$K$21:$U$21,MATCH(Inputs!$E$80,Years,0)) *Inputs!P$22/INDEX(Inputs!$K$22:$U$22,MATCH(Inputs!$F$80,Years,0)),0) -> 0 | K141: =IFERROR(SUMIF(Inputs!$H$102:$H$125,$B141,Inputs!Q$102:Q$125) *INDEX(Inputs!$K$21:$U$21,MATCH(Report_Year,Years,0))/INDEX(Inputs!$K$21:$U$21,MATCH(Inputs!$E$80,Years,0)) *Inputs!Q$22/INDEX(Inputs!$K$22:$U$22,MATCH(Inputs!$F$80,Years,0)),0) -> 3.885971583 | L141: =IFERROR(SUMIF(Inputs!$H$102:$H$125,$B141,Inputs!R$102:R$125) *INDEX(Inputs!$K$21:$U$21,MATCH(Report_Year,Years,0))/INDEX(Inputs!$K$21:$U$21,MATCH(Inputs!$E$80,Years,0)) *Inputs!R$22/INDEX(Inputs!$K$22:$U$22,MATCH(Inputs!$F$80,Years,0)),0) -> 2.381218608 | M141: =IFERROR(SUMIF(Inputs!$H$102:$H$125,$B141,Inputs!S$102:S$125) *INDEX(Inputs!$K$21:$U$21,MATCH(Report_Year,Years,0))/INDEX(Inputs!$K$21:$U$21,MATCH(Inputs!$E$80,Years,0)) *Inputs!S$22/INDEX(Inputs!$K$22:$U$22,MATCH(Inputs!$F$80,Years,0)),0) -> 0 | N141: =IFERROR(SUMIF(Inputs!$H$102:$H$125,$B141,Inputs!T$102:T$125) *INDEX(Inputs!$K$21:$U$21,MATCH(Report_Year,Years,0))/INDEX(Inputs!$K$21:$U$21,MATCH(Inputs!$E$80,Years,0)) *Inputs!T$22/INDEX(Inputs!$K$22:$U$22,MATCH(Inputs!$F$80,Years,0)),0) -> 0 | O141: =IFERROR(SUMIF(Inputs!$H$102:$H$125,$B141,Inputs!U$102:U$125) *INDEX(Inputs!$K$21:$U$21,MATCH(Report_Year,Years,0))/INDEX(Inputs!$K$21:$U$21,MATCH(Inputs!$E$80,Years,0)) *Inputs!U$22/INDEX(Inputs!$K$22:$U$22,MATCH(Inputs!$F$80,Years,0)),0) -> 0 | P141: 6.267190191
B142: =$B$202 -> Transaction Procurement Support | C142: =Inputs!$A$8 -> Real $2023 | D142: $Million | E142: =IFERROR(SUMIF(Inputs!$H$102:$H$125,$B142,Inputs!K$102:K$125) *INDEX(Inputs!$K$21:$U$21,MATCH(Report_Year,Years,0))/INDEX(Inputs!$K$21:$U$21,MATCH(Inputs!$E$80,Years,0)) *Inputs!K$22/INDEX(Inputs!$K$22:$U$22,MATCH(Inputs!$F$80,Years,0)),0) -> 0 | F142: =IFERROR(SUMIF(Inputs!$H$102:$H$125,$B142,Inputs!L$102:L$125) *INDEX(Inputs!$K$21:$U$21,MATCH(Report_Year,Years,0))/INDEX(Inputs!$K$21:$U$21,MATCH(Inputs!$E$80,Years,0)) *Inputs!L$22/INDEX(Inputs!$K$22:$U$22,MATCH(Inputs!$F$80,Years,0)),0) -> 0 | G142: =IFERROR(SUMIF(Inputs!$H$102:$H$125,$B142,Inputs!M$102:M$125) *INDEX(Inputs!$K$21:$U$21,MATCH(Report_Year,Years,0))/INDEX(Inputs!$K$21:$U$21,MATCH(Inputs!$E$80,Years,0)) *Inputs!M$22/INDEX(Inputs!$K$22:$U$22,MATCH(Inputs!$F$80,Years,0)),0) -> 0 | H142: =IFERROR(SUMIF(Inputs!$H$102:$H$125,$B142,Inputs!N$102:N$125) *INDEX(Inputs!$K$21:$U$21,MATCH(Report_Year,Years,0))/INDEX(Inputs!$K$21:$U$21,MATCH(Inputs!$E$80,Years,0)) *Inputs!N$22/INDEX(Inputs!$K$22:$U$22,MATCH(Inputs!$F$80,Years,0)),0) -> 0 | I142: =IFERROR(SUMIF(Inputs!$H$102:$H$125,$B142,Inputs!O$102:O$125) *INDEX(Inputs!$K$21:$U$21,MATCH(Report_Year,Years,0))/INDEX(Inputs!$K$21:$U$21,MATCH(Inputs!$E$80,Years,0)) *Inputs!O$22/INDEX(Inputs!$K$22:$U$22,MATCH(Inputs!$F$80,Years,0)),0) -> 0 | J142: =IFERROR(SUMIF(Inputs!$H$102:$H$125,$B142,Inputs!P$102:P$125) *INDEX(Inputs!$K$21:$U$21,MATCH(Report_Year,Years,0))/INDEX(Inputs!$K$21:$U$21,MATCH(Inputs!$E$80,Years,0)) *Inputs!P$22/INDEX(Inputs!$K$22:$U$22,MATCH(Inputs!$F$80,Years,0)),0) -> 0 | K142: =IFERROR(SUMIF(Inputs!$H$102:$H$125,$B142,Inputs!Q$102:Q$125) *INDEX(Inputs!$K$21:$U$21,MATCH(Report_Year,Years,0))/INDEX(Inputs!$K$21:$U$21,MATCH(Inputs!$E$80,Years,0)) *Inputs!Q$22/INDEX(Inputs!$K$22:$U$22,MATCH(Inputs!$F$80,Years,0)),0) -> 0.1141034589 | L142: =IFERROR(SUMIF(Inputs!$H$102:$H$125,$B142,Inputs!R$102:R$125) *INDEX(Inputs!$K$21:$U$21,MATCH(Report_Year,Years,0))/INDEX(Inputs!$K$21:$U$21,MATCH(Inputs!$E$80,Years,0)) *Inputs!R$22/INDEX(Inputs!$K$22:$U$22,MATCH(Inputs!$F$80,Years,0)),0) -> 0.3323749663 | M142: =IFERROR(SUMIF(Inputs!$H$102:$H$125,$B142,Inputs!S$102:S$125) *INDEX(Inputs!$K$21:$U$21,MATCH(Report_Year,Years,0))/INDEX(Inputs!$K$21:$U$21,MATCH(Inputs!$E$80,Years,0)) *Inputs!S$22/INDEX(Inputs!$K$22:$U$22,MATCH(Inputs!$F$80,Years,0)),0) -> 0 | N142: =IFERROR(SUMIF(Inputs!$H$102:$H$125,$B142,Inputs!T$102:T$125) *INDEX(Inputs!$K$21:$U$21,MATCH(Report_Year,Years,0))/INDEX(Inputs!$K$21:$U$21,MATCH(Inputs!$E$80,Years,0)) *Inputs!T$22/INDEX(Inputs!$K$22:$U$22,MATCH(Inputs!$F$80,Years,0)),0) -> 0 | O142: =IFERROR(SUMIF(Inputs!$H$102:$H$125,$B142,Inputs!U$102:U$125) *INDEX(Inputs!$K$21:$U$21,MATCH(Report_Year,Years,0))/INDEX(Inputs!$K$21:$U$21,MATCH(Inputs!$E$80,Years,0)) *Inputs!U$22/INDEX(Inputs!$K$22:$U$22,MATCH(Inputs!$F$80,Years,0)),0) -> 0 | P142: 0.4464784253
B143: =$B$203 -> Community and Stakeholder Engagement | C143: =Inputs!$A$8 -> Real $2023 | D143: $Million | E143: =IFERROR(SUMIF(Inputs!$H$102:$H$125,$B143,Inputs!K$102:K$125) *INDEX(Inputs!$K$21:$U$21,MATCH(Report_Year,Years,0))/INDEX(Inputs!$K$21:$U$21,MATCH(Inputs!$E$80,Years,0)) *Inputs!K$22/INDEX(Inputs!$K$22:$U$22,MATCH(Inputs!$F$80,Years,0)),0) -> 0 | F143: =IFERROR(SUMIF(Inputs!$H$102:$H$125,$B143,Inputs!L$102:L$125) *INDEX(Inputs!$K$21:$U$21,MATCH(Report_Year,Years,0))/INDEX(Inputs!$K$21:$U$21,MATCH(Inputs!$E$80,Years,0)) *Inputs!L$22/INDEX(Inputs!$K$22:$U$22,MATCH(Inputs!$F$80,Years,0)),0) -> 0 | G143: =IFERROR(SUMIF(Inputs!$H$102:$H$125,$B143,Inputs!M$102:M$125) *INDEX(Inputs!$K$21:$U$21,MATCH(Report_Year,Years,0))/INDEX(Inputs!$K$21:$U$21,MATCH(Inputs!$E$80,Years,0)) *Inputs!M$22/INDEX(Inputs!$K$22:$U$22,MATCH(Inputs!$F$80,Years,0)),0) -> 0 | H143: =IFERROR(SUMIF(Inputs!$H$102:$H$125,$B143,Inputs!N$102:N$125) *INDEX(Inputs!$K$21:$U$21,MATCH(Report_Year,Years,0))/INDEX(Inputs!$K$21:$U$21,MATCH(Inputs!$E$80,Years,0)) *Inputs!N$22/INDEX(Inputs!$K$22:$U$22,MATCH(Inputs!$F$80,Years,0)),0) -> 0 | I143: =IFERROR(SUMIF(Inputs!$H$102:$H$125,$B143,Inputs!O$102:O$125) *INDEX(Inputs!$K$21:$U$21,MATCH(Report_Year,Years,0))/INDEX(Inputs!$K$21:$U$21,MATCH(Inputs!$E$80,Years,0)) *Inputs!O$22/INDEX(Inputs!$K$22:$U$22,MATCH(Inputs!$F$80,Years,0)),0) -> 0 | J143: =IFERROR(SUMIF(Inputs!$H$102:$H$125,$B143,Inputs!P$102:P$125) *INDEX(Inputs!$K$21:$U$21,MATCH(Report_Year,Years,0))/INDEX(Inputs!$K$21:$U$21,MATCH(Inputs!$E$80,Years,0)) *Inputs!P$22/INDEX(Inputs!$K$22:$U$22,MATCH(Inputs!$F$80,Years,0)),0) -> 0 | K143: =IFERROR(SUMIF(Inputs!$H$102:$H$125,$B143,Inputs!Q$102:Q$125) *INDEX(Inputs!$K$21:$U$21,MATCH(Report_Year,Years,0))/INDEX(Inputs!$K$21:$U$21,MATCH(Inputs!$E$80,Years,0)) *Inputs!Q$22/INDEX(Inputs!$K$22:$U$22,MATCH(Inputs!$F$80,Years,0)),0) -> 4.413164031 | L143: =IFERROR(SUMIF(Inputs!$H$102:$H$125,$B143,Inputs!R$102:R$125) *INDEX(Inputs!$K$21:$U$21,MATCH(Report_Year,Years,0))/INDEX(Inputs!$K$21:$U$21,MATCH(Inputs!$E$80,Years,0)) *Inputs!R$22/INDEX(Inputs!$K$22:$U$22,MATCH(Inputs!$F$80,Years,0)),0) -> 3.644303816 | M143: =IFERROR(SUMIF(Inputs!$H$102:$H$125,$B143,Inputs!S$102:S$125) *INDEX(Inputs!$K$21:$U$21,MATCH(Report_Year,Years,0))/INDEX(Inputs!$K$21:$U$21,MATCH(Inputs!$E$80,Years,0)) *Inputs!S$22/INDEX(Inputs!$K$22:$U$22,MATCH(Inputs!$F$80,Years,0)),0) -> 0 | N143: =IFERROR(SUMIF(Inputs!$H$102:$H$125,$B143,Inputs!T$102:T$125) *INDEX(Inputs!$K$21:$U$21,MATCH(Report_Year,Years,0))/INDEX(Inputs!$K$21:$U$21,MATCH(Inputs!$E$80,Years,0)) *Inputs!T$22/INDEX(Inputs!$K$22:$U$22,MATCH(Inputs!$F$80,Years,0)),0) -> 0 | O143: =IFERROR(SUMIF(Inputs!$H$102:$H$125,$B143,Inputs!U$102:U$125) *INDEX(Inputs!$K$21:$U$21,MATCH(Report_Year,Years,0))/INDEX(Inputs!$K$21:$U$21,MATCH(Inputs!$E$80,Years,0)) *Inputs!U$22/INDEX(Inputs!$K$22:$U$22,MATCH(Inputs!$F$80,Years,0)),0) -> 0 | P143: 8.057467847
B144: =$B$204 -> Land and Environment | C144: =Inputs!$A$8 -> Real $2023 | D144: $Million | E144: =IFERROR(SUMIF(Inputs!$H$102:$H$125,$B144,Inputs!K$102:K$125) *INDEX(Inputs!$K$21:$U$21,MATCH(Report_Year,Years,0))/INDEX(Inputs!$K$21:$U$21,MATCH(Inputs!$E$80,Years,0)) *Inputs!K$22/INDEX(Inputs!$K$22:$U$22,MATCH(Inputs!$F$80,Years,0)),0) -> 0 | F144: =IFERROR(SUMIF(Inputs!$H$102:$H$125,$B144,Inputs!L$102:L$125) *INDEX(Inputs!$K$21:$U$21,MATCH(Report_Year,Years,0))/INDEX(Inputs!$K$21:$U$21,MATCH(Inputs!$E$80,Years,0)) *Inputs!L$22/INDEX(Inputs!$K$22:$U$22,MATCH(Inputs!$F$80,Years,0)),0) -> 0 | G144: =IFERROR(SUMIF(Inputs!$H$102:$H$125,$B144,Inputs!M$102:M$125) *INDEX(Inputs!$K$21:$U$21,MATCH(Report_Year,Years,0))/INDEX(Inputs!$K$21:$U$21,MATCH(Inputs!$E$80,Years,0)) *Inputs!M$22/INDEX(Inputs!$K$22:$U$22,MATCH(Inputs!$F$80,Years,0)),0) -> 0 | H144: =IFERROR(SUMIF(Inputs!$H$102:$H$125,$B144,Inputs!N$102:N$125) *INDEX(Inputs!$K$21:$U$21,MATCH(Report_Year,Years,0))/INDEX(Inputs!$K$21:$U$21,MATCH(Inputs!$E$80,Years,0)) *Inputs!N$22/INDEX(Inputs!$K$22:$U$22,MATCH(Inputs!$F$80,Years,0)),0) -> 0 | I144: =IFERROR(SUMIF(Inputs!$H$102:$H$125,$B144,Inputs!O$102:O$125) *INDEX(Inputs!$K$21:$U$21,MATCH(Report_Year,Years,0))/INDEX(Inputs!$K$21:$U$21,MATCH(Inputs!$E$80,Years,0)) *Inputs!O$22/INDEX(Inputs!$K$22:$U$22,MATCH(Inputs!$F$80,Years,0)),0) -> 0 | J144: =IFERROR(SUMIF(Inputs!$H$102:$H$125,$B144,Inputs!P$102:P$125) *INDEX(Inputs!$K$21:$U$21,MATCH(Report_Year,Years,0))/INDEX(Inputs!$K$21:$U$21,MATCH(Inputs!$E$80,Years,0)) *Inputs!P$22/INDEX(Inputs!$K$22:$U$22,MATCH(Inputs!$F$80,Years,0)),0) -> 0 | K144: =IFERROR(SUMIF(Inputs!$H$102:$H$125,$B144,Inputs!Q$102:Q$125) *INDEX(Inputs!$K$21:$U$21,MATCH(Report_Year,Years,0))/INDEX(Inputs!$K$21:$U$21,MATCH(Inputs!$E$80,Years,0)) *Inputs!Q$22/INDEX(Inputs!$K$22:$U$22,MATCH(Inputs!$F$80,Years,0)),0) -> 2.992063306 | L144: =IFERROR(SUMIF(Inputs!$H$102:$H$125,$B144,Inputs!R$102:R$125) *INDEX(Inputs!$K$21:$U$21,MATCH(Report_Year,Years,0))/INDEX(Inputs!$K$21:$U$21,MATCH(Inputs!$E$80,Years,0)) *Inputs!R$22/INDEX(Inputs!$K$22:$U$22,MATCH(Inputs!$F$80,Years,0)),0) -> 2.692639045 | M144: =IFERROR(SUMIF(Inputs!$H$102:$H$125,$B144,Inputs!S$102:S$125) *INDEX(Inputs!$K$21:$U$21,MATCH(Report_Year,Years,0))/INDEX(Inputs!$K$21:$U$21,MATCH(Inputs!$E$80,Years,0)) *Inputs!S$22/INDEX(Inputs!$K$22:$U$22,MATCH(Inputs!$F$80,Years,0)),0) -> 0 | N144: =IFERROR(SUMIF(Inputs!$H$102:$H$125,$B144,Inputs!T$102:T$125) *INDEX(Inputs!$K$21:$U$21,MATCH(Report_Year,Years,0))/INDEX(Inputs!$K$21:$U$21,MATCH(Inputs!$E$80,Years,0)) *Inputs!T$22/INDEX(Inputs!$K$22:$U$22,MATCH(Inputs!$F$80,Years,0)),0) -> 0 | O144: =IFERROR(SUMIF(Inputs!$H$102:$H$125,$B144,Inputs!U$102:U$125) *INDEX(Inputs!$K$21:$U$21,MATCH(Report_Year,Years,0))/INDEX(Inputs!$K$21:$U$21,MATCH(Inputs!$E$80,Years,0)) *Inputs!U$22/INDEX(Inputs!$K$22:$U$22,MATCH(Inputs!$F$80,Years,0)),0) -> 0 | P144: 5.684702351
B145: =$B$205 -> Regulatory Approvals | C145: =Inputs!$A$8 -> Real $2023 | D145: $Million | E145: =IFERROR(SUMIF(Inputs!$H$102:$H$125,$B145,Inputs!K$102:K$125) *INDEX(Inputs!$K$21:$U$21,MATCH(Report_Year,Years,0))/INDEX(Inputs!$K$21:$U$21,MATCH(Inputs!$E$80,Years,0)) *Inputs!K$22/INDEX(Inputs!$K$22:$U$22,MATCH(Inputs!$F$80,Years,0)),0) -> 0 | F145: =IFERROR(SUMIF(Inputs!$H$102:$H$125,$B145,Inputs!L$102:L$125) *INDEX(Inputs!$K$21:$U$21,MATCH(Report_Year,Years,0))/INDEX(Inputs!$K$21:$U$21,MATCH(Inputs!$E$80,Years,0)) *Inputs!L$22/INDEX(Inputs!$K$22:$U$22,MATCH(Inputs!$F$80,Years,0)),0) -> 0 | G145: =IFERROR(SUMIF(Inputs!$H$102:$H$125,$B145,Inputs!M$102:M$125) *INDEX(Inputs!$K$21:$U$21,MATCH(Report_Year,Years,0))/INDEX(Inputs!$K$21:$U$21,MATCH(Inputs!$E$80,Years,0)) *Inputs!M$22/INDEX(Inputs!$K$22:$U$22,MATCH(Inputs!$F$80,Years,0)),0) -> 0 | H145: =IFERROR(SUMIF(Inputs!$H$102:$H$125,$B145,Inputs!N$102:N$125) *INDEX(Inputs!$K$21:$U$21,MATCH(Report_Year,Years,0))/INDEX(Inputs!$K$21:$U$21,MATCH(Inputs!$E$80,Years,0)) *Inputs!N$22/INDEX(Inputs!$K$22:$U$22,MATCH(Inputs!$F$80,Years,0)),0) -> 0 | I145: =IFERROR(SUMIF(Inputs!$H$102:$H$125,$B145,Inputs!O$102:O$125) *INDEX(Inputs!$K$21:$U$21,MATCH(Report_Year,Years,0))/INDEX(Inputs!$K$21:$U$21,MATCH(Inputs!$E$80,Years,0)) *Inputs!O$22/INDEX(Inputs!$K$22:$U$22,MATCH(Inputs!$F$80,Years,0)),0) -> 0 | J145: =IFERROR(SUMIF(Inputs!$H$102:$H$125,$B145,Inputs!P$102:P$125) *INDEX(Inputs!$K$21:$U$21,MATCH(Report_Year,Years,0))/INDEX(Inputs!$K$21:$U$21,MATCH(Inputs!$E$80,Years,0)) *Inputs!P$22/INDEX(Inputs!$K$22:$U$22,MATCH(Inputs!$F$80,Years,0)),0) -> 0 | K145: =IFERROR(SUMIF(Inputs!$H$102:$H$125,$B145,Inputs!Q$102:Q$125) *INDEX(Inputs!$K$21:$U$21,MATCH(Report_Year,Years,0))/INDEX(Inputs!$K$21:$U$21,MATCH(Inputs!$E$80,Years,0)) *Inputs!Q$22/INDEX(Inputs!$K$22:$U$22,MATCH(Inputs!$F$80,Years,0)),0) -> 0.2948999019 | L145: =IFERROR(SUMIF(Inputs!$H$102:$H$125,$B145,Inputs!R$102:R$125) *INDEX(Inputs!$K$21:$U$21,MATCH(Report_Year,Years,0))/INDEX(Inputs!$K$21:$U$21,MATCH(Inputs!$E$80,Years,0)) *Inputs!R$22/INDEX(Inputs!$K$22:$U$22,MATCH(Inputs!$F$80,Years,0)),0) -> 0.4631579321 | M145: =IFERROR(SUMIF(Inputs!$H$102:$H$125,$B145,Inputs!S$102:S$125) *INDEX(Inputs!$K$21:$U$21,MATCH(Report_Year,Years,0))/INDEX(Inputs!$K$21:$U$21,MATCH(Inputs!$E$80,Years,0)) *Inputs!S$22/INDEX(Inputs!$K$22:$U$22,MATCH(Inputs!$F$80,Years,0)),0) -> 0 | N145: =IFERROR(SUMIF(Inputs!$H$102:$H$125,$B145,Inputs!T$102:T$125) *INDEX(Inputs!$K$21:$U$21,MATCH(Report_Year,Years,0))/INDEX(Inputs!$K$21:$U$21,MATCH(Inputs!$E$80,Years,0)) *Inputs!T$22/INDEX(Inputs!$K$22:$U$22,MATCH(Inputs!$F$80,Years,0)),0) -> 0 | O145: =IFERROR(SUMIF(Inputs!$H$102:$H$125,$B145,Inputs!U$102:U$125) *INDEX(Inputs!$K$21:$U$21,MATCH(Report_Year,Years,0))/INDEX(Inputs!$K$21:$U$21,MATCH(Inputs!$E$80,Years,0)) *Inputs!U$22/INDEX(Inputs!$K$22:$U$22,MATCH(Inputs!$F$80,Years,0)),0) -> 0 | P145: 0.758057834
B146: =$B$206 -> Other Support & Corporate Roles | C146: =Inputs!$A$8 -> Real $2023 | D146: $Million | E146: =IFERROR(SUMIF(Inputs!$H$102:$H$125,$B146,Inputs!K$102:K$125) *INDEX(Inputs!$K$21:$U$21,MATCH(Report_Year,Years,0))/INDEX(Inputs!$K$21:$U$21,MATCH(Inputs!$E$80,Years,0)) *Inputs!K$22/INDEX(Inputs!$K$22:$U$22,MATCH(Inputs!$F$80,Years,0)),0) -> 0 | F146: =IFERROR(SUMIF(Inputs!$H$102:$H$125,$B146,Inputs!L$102:L$125) *INDEX(Inputs!$K$21:$U$21,MATCH(Report_Year,Years,0))/INDEX(Inputs!$K$21:$U$21,MATCH(Inputs!$E$80,Years,0)) *Inputs!L$22/INDEX(Inputs!$K$22:$U$22,MATCH(Inputs!$F$80,Years,0)),0) -> 0 | G146: =IFERROR(SUMIF(Inputs!$H$102:$H$125,$B146,Inputs!M$102:M$125) *INDEX(Inputs!$K$21:$U$21,MATCH(Report_Year,Years,0))/INDEX(Inputs!$K$21:$U$21,MATCH(Inputs!$E$80,Years,0)) *Inputs!M$22/INDEX(Inputs!$K$22:$U$22,MATCH(Inputs!$F$80,Years,0)),0) -> 0 | H146: =IFERROR(SUMIF(Inputs!$H$102:$H$125,$B146,Inputs!N$102:N$125) *INDEX(Inputs!$K$21:$U$21,MATCH(Report_Year,Years,0))/INDEX(Inputs!$K$21:$U$21,MATCH(Inputs!$E$80,Years,0)) *Inputs!N$22/INDEX(Inputs!$K$22:$U$22,MATCH(Inputs!$F$80,Years,0)),0) -> 0 | I146: =IFERROR(SUMIF(Inputs!$H$102:$H$125,$B146,Inputs!O$102:O$125) *INDEX(Inputs!$K$21:$U$21,MATCH(Report_Year,Years,0))/INDEX(Inputs!$K$21:$U$21,MATCH(Inputs!$E$80,Years,0)) *Inputs!O$22/INDEX(Inputs!$K$22:$U$22,MATCH(Inputs!$F$80,Years,0)),0) -> 0 | J146: =IFERROR(SUMIF(Inputs!$H$102:$H$125,$B146,Inputs!P$102:P$125) *INDEX(Inputs!$K$21:$U$21,MATCH(Report_Year,Years,0))/INDEX(Inputs!$K$21:$U$21,MATCH(Inputs!$E$80,Years,0)) *Inputs!P$22/INDEX(Inputs!$K$22:$U$22,MATCH(Inputs!$F$80,Years,0)),0) -> 0 | K146: =IFERROR(SUMIF(Inputs!$H$102:$H$125,$B146,Inputs!Q$102:Q$125) *INDEX(Inputs!$K$21:$U$21,MATCH(Report_Year,Years,0))/INDEX(Inputs!$K$21:$U$21,MATCH(Inputs!$E$80,Years,0)) *Inputs!Q$22/INDEX(Inputs!$K$22:$U$22,MATCH(Inputs!$F$80,Years,0)),0) -> 0.378261188 | L146: =IFERROR(SUMIF(Inputs!$H$102:$H$125,$B146,Inputs!R$102:R$125) *INDEX(Inputs!$K$21:$U$21,MATCH(Report_Year,Years,0))/INDEX(Inputs!$K$21:$U$21,MATCH(Inputs!$E$80,Years,0)) *Inputs!R$22/INDEX(Inputs!$K$22:$U$22,MATCH(Inputs!$F$80,Years,0)),0) -> 0.3918370401 | M146: =IFERROR(SUMIF(Inputs!$H$102:$H$125,$B146,Inputs!S$102:S$125) *INDEX(Inputs!$K$21:$U$21,MATCH(Report_Year,Years,0))/INDEX(Inputs!$K$21:$U$21,MATCH(Inputs!$E$80,Years,0)) *Inputs!S$22/INDEX(Inputs!$K$22:$U$22,MATCH(Inputs!$F$80,Years,0)),0) -> 0 | N146: =IFERROR(SUMIF(Inputs!$H$102:$H$125,$B146,Inputs!T$102:T$125) *INDEX(Inputs!$K$21:$U$21,MATCH(Report_Year,Years,0))/INDEX(Inputs!$K$21:$U$21,MATCH(Inputs!$E$80,Years,0)) *Inputs!T$22/INDEX(Inputs!$K$22:$U$22,MATCH(Inputs!$F$80,Years,0)),0) -> 0 | O146: =IFERROR(SUMIF(Inputs!$H$102:$H$125,$B146,Inputs!U$102:U$125) *INDEX(Inputs!$K$21:$U$21,MATCH(Report_Year,Years,0))/INDEX(Inputs!$K$21:$U$21,MATCH(Inputs!$E$80,Years,0)) *Inputs!U$22/INDEX(Inputs!$K$22:$U$22,MATCH(Inputs!$F$80,Years,0)),0) -> 0 | P146: 0.7700982281
B147: =$B$207 -> Indirect - Proportion of labour and labour-related costs | C147: =Inputs!$A$8 -> Real $2023 | D147: $Million | E147: =IFERROR(SUMIF(Inputs!$H$102:$H$125,$B147,Inputs!K$102:K$125) *INDEX(Inputs!$K$21:$U$21,MATCH(Report_Year,Years,0))/INDEX(Inputs!$K$21:$U$21,MATCH(Inputs!$E$80,Years,0)) *Inputs!K$22/INDEX(Inputs!$K$22:$U$22,MATCH(Inputs!$F$80,Years,0)),0) -> 0 | F147: =IFERROR(SUMIF(Inputs!$H$102:$H$125,$B147,Inputs!L$102:L$125) *INDEX(Inputs!$K$21:$U$21,MATCH(Report_Year,Years,0))/INDEX(Inputs!$K$21:$U$21,MATCH(Inputs!$E$80,Years,0)) *Inputs!L$22/INDEX(Inputs!$K$22:$U$22,MATCH(Inputs!$F$80,Years,0)),0) -> 0 | G147: =IFERROR(SUMIF(Inputs!$H$102:$H$125,$B147,Inputs!M$102:M$125) *INDEX(Inputs!$K$21:$U$21,MATCH(Report_Year,Years,0))/INDEX(Inputs!$K$21:$U$21,MATCH(Inputs!$E$80,Years,0)) *Inputs!M$22/INDEX(Inputs!$K$22:$U$22,MATCH(Inputs!$F$80,Years,0)),0) -> 0 | H147: =IFERROR(SUMIF(Inputs!$H$102:$H$125,$B147,Inputs!N$102:N$125) *INDEX(Inputs!$K$21:$U$21,MATCH(Report_Year,Years,0))/INDEX(Inputs!$K$21:$U$21,MATCH(Inputs!$E$80,Years,0)) *Inputs!N$22/INDEX(Inputs!$K$22:$U$22,MATCH(Inputs!$F$80,Years,0)),0) -> 0 | I147: =IFERROR(SUMIF(Inputs!$H$102:$H$125,$B147,Inputs!O$102:O$125) *INDEX(Inputs!$K$21:$U$21,MATCH(Report_Year,Years,0))/INDEX(Inputs!$K$21:$U$21,MATCH(Inputs!$E$80,Years,0)) *Inputs!O$22/INDEX(Inputs!$K$22:$U$22,MATCH(Inputs!$F$80,Years,0)),0) -> 0 | J147: =IFERROR(SUMIF(Inputs!$H$102:$H$125,$B147,Inputs!P$102:P$125) *INDEX(Inputs!$K$21:$U$21,MATCH(Report_Year,Years,0))/INDEX(Inputs!$K$21:$U$21,MATCH(Inputs!$E$80,Years,0)) *Inputs!P$22/INDEX(Inputs!$K$22:$U$22,MATCH(Inputs!$F$80,Years,0)),0) -> 0 | K147: =IFERROR(SUMIF(Inputs!$H$102:$H$125,$B147,Inputs!Q$102:Q$125) *INDEX(Inputs!$K$21:$U$21,MATCH(Report_Year,Years,0))/INDEX(Inputs!$K$21:$U$21,MATCH(Inputs!$E$80,Years,0)) *Inputs!Q$22/INDEX(Inputs!$K$22:$U$22,MATCH(Inputs!$F$80,Years,0)),0) -> 8.991910238 | L147: =IFERROR(SUMIF(Inputs!$H$102:$H$125,$B147,Inputs!R$102:R$125) *INDEX(Inputs!$K$21:$U$21,MATCH(Report_Year,Years,0))/INDEX(Inputs!$K$21:$U$21,MATCH(Inputs!$E$80,Years,0)) *Inputs!R$22/INDEX(Inputs!$K$22:$U$22,MATCH(Inputs!$F$80,Years,0)),0) -> 7.4928523 | M147: =IFERROR(SUMIF(Inputs!$H$102:$H$125,$B147,Inputs!S$102:S$125) *INDEX(Inputs!$K$21:$U$21,MATCH(Report_Year,Years,0))/INDEX(Inputs!$K$21:$U$21,MATCH(Inputs!$E$80,Years,0)) *Inputs!S$22/INDEX(Inputs!$K$22:$U$22,MATCH(Inputs!$F$80,Years,0)),0) -> 0 | N147: =IFERROR(SUMIF(Inputs!$H$102:$H$125,$B147,Inputs!T$102:T$125) *INDEX(Inputs!$K$21:$U$21,MATCH(Report_Year,Years,0))/INDEX(Inputs!$K$21:$U$21,MATCH(Inputs!$E$80,Years,0)) *Inputs!T$22/INDEX(Inputs!$K$22:$U$22,MATCH(Inputs!$F$80,Years,0)),0) -> 0 | O147: =IFERROR(SUMIF(Inputs!$H$102:$H$125,$B147,Inputs!U$102:U$125) *INDEX(Inputs!$K$21:$U$21,MATCH(Report_Year,Years,0))/INDEX(Inputs!$K$21:$U$21,MATCH(Inputs!$E$80,Years,0)) *Inputs!U$22/INDEX(Inputs!$K$22:$U$22,MATCH(Inputs!$F$80,Years,0)),0) -> 0 | P147: 16.48476254
B148: =$B$208 -> Contingency | C148: =Inputs!$A$8 -> Real $2023 | D148: $Million | E148: =IFERROR(SUMIF(Inputs!$H$102:$H$125,$B148,Inputs!K$102:K$125) *INDEX(Inputs!$K$21:$U$21,MATCH(Report_Year,Years,0))/INDEX(Inputs!$K$21:$U$21,MATCH(Inputs!$E$80,Years,0)) *Inputs!K$22/INDEX(Inputs!$K$22:$U$22,MATCH(Inputs!$F$80,Years,0)),0) -> 0 | F148: =IFERROR(SUMIF(Inputs!$H$102:$H$125,$B148,Inputs!L$102:L$125) *INDEX(Inputs!$K$21:$U$21,MATCH(Report_Year,Years,0))/INDEX(Inputs!$K$21:$U$21,MATCH(Inputs!$E$80,Years,0)) *Inputs!L$22/INDEX(Inputs!$K$22:$U$22,MATCH(Inputs!$F$80,Years,0)),0) -> 0 | G148: =IFERROR(SUMIF(Inputs!$H$102:$H$125,$B148,Inputs!M$102:M$125) *INDEX(Inputs!$K$21:$U$21,MATCH(Report_Year,Years,0))/INDEX(Inputs!$K$21:$U$21,MATCH(Inputs!$E$80,Years,0)) *Inputs!M$22/INDEX(Inputs!$K$22:$U$22,MATCH(Inputs!$F$80,Years,0)),0) -> 0 | H148: =IFERROR(SUMIF(Inputs!$H$102:$H$125,$B148,Inputs!N$102:N$125) *INDEX(Inputs!$K$21:$U$21,MATCH(Report_Year,Years,0))/INDEX(Inputs!$K$21:$U$21,MATCH(Inputs!$E$80,Years,0)) *Inputs!N$22/INDEX(Inputs!$K$22:$U$22,MATCH(Inputs!$F$80,Years,0)),0) -> 0 | I148: =IFERROR(SUMIF(Inputs!$H$102:$H$125,$B148,Inputs!O$102:O$125) *INDEX(Inputs!$K$21:$U$21,MATCH(Report_Year,Years,0))/INDEX(Inputs!$K$21:$U$21,MATCH(Inputs!$E$80,Years,0)) *Inputs!O$22/INDEX(Inputs!$K$22:$U$22,MATCH(Inputs!$F$80,Years,0)),0) -> 0 | J148: =IFERROR(SUMIF(Inputs!$H$102:$H$125,$B148,Inputs!P$102:P$125) *INDEX(Inputs!$K$21:$U$21,MATCH(Report_Year,Years,0))/INDEX(Inputs!$K$21:$U$21,MATCH(Inputs!$E$80,Years,0)) *Inputs!P$22/INDEX(Inputs!$K$22:$U$22,MATCH(Inputs!$F$80,Years,0)),0) -> 0 | K148: =IFERROR(SUMIF(Inputs!$H$102:$H$125,$B148,Inputs!Q$102:Q$125) *INDEX(Inputs!$K$21:$U$21,MATCH(Report_Year,Years,0))/INDEX(Inputs!$K$21:$U$21,MATCH(Inputs!$E$80,Years,0)) *Inputs!Q$22/INDEX(Inputs!$K$22:$U$22,MATCH(Inputs!$F$80,Years,0)),0) -> 0 | L148: =IFERROR(SUMIF(Inputs!$H$102:$H$125,$B148,Inputs!R$102:R$125) *INDEX(Inputs!$K$21:$U$21,MATCH(Report_Year,Years,0))/INDEX(Inputs!$K$21:$U$21,MATCH(Inputs!$E$80,Years,0)) *Inputs!R$22/INDEX(Inputs!$K$22:$U$22,MATCH(Inputs!$F$80,Years,0)),0) -> 0 | M148: =IFERROR(SUMIF(Inputs!$H$102:$H$125,$B148,Inputs!S$102:S$125) *INDEX(Inputs!$K$21:$U$21,MATCH(Report_Year,Years,0))/INDEX(Inputs!$K$21:$U$21,MATCH(Inputs!$E$80,Years,0)) *Inputs!S$22/INDEX(Inputs!$K$22:$U$22,MATCH(Inputs!$F$80,Years,0)),0) -> 0 | N148: =IFERROR(SUMIF(Inputs!$H$102:$H$125,$B148,Inputs!T$102:T$125) *INDEX(Inputs!$K$21:$U$21,MATCH(Report_Year,Years,0))/INDEX(Inputs!$K$21:$U$21,MATCH(Inputs!$E$80,Years,0)) *Inputs!T$22/INDEX(Inputs!$K$22:$U$22,MATCH(Inputs!$F$80,Years,0)),0) -> 0 | O148: =IFERROR(SUMIF(Inputs!$H$102:$H$125,$B148,Inputs!U$102:U$125) *INDEX(Inputs!$K$21:$U$21,MATCH(Report_Year,Years,0))/INDEX(Inputs!$K$21:$U$21,MATCH(Inputs!$E$80,Years,0)) *Inputs!U$22/INDEX(Inputs!$K$22:$U$22,MATCH(Inputs!$F$80,Years,0)),0) -> 0 | P148: =SUM(E148:O148) -> 0
B149: Sub-Total | C149: =Inputs!$A$8 -> Real $2023 | D149: $Million | E149: =SUM(E140:E148) -> 0 | F149: 0 | G149: 0 | H149: 0 | I149: 0 | J149: 0 | K149: 29.97303413 | L149: 24.97617433 | M149: 0 | N149: 0 | O149: 0 | P149: 54.94920846
B151: Labour Costs - Total
B152: =$B$200 -> Project Management | C152: =Inputs!$A$8 -> Real $2023 | D152: $Million | E152: =E128+E140 -> 0 | F152: 0 | G152: =G128+G140 -> 0 | H152: 0 | I152: 1.27277105 | J152: 3.302285308 | K152: 8.902660419 | L152: 7.577790627 | M152: 0 | N152: 0 | O152: 0 | P152: =SUM(E152:O152) -> 21.0555074
B153: =$B$201 -> Project Development | C153: =Inputs!$A$8 -> Real $2023 | D153: $Million | E153: 0.002751266362 | F153: 0 | G153: =G129+G141 -> 0.1453421691 | H153: 0.000207745095 | I153: 0.3073427336 | J153: 0.2398199349 | K153: 3.885971583 | L153: 2.381218608 | M153: 0 | N153: 0 | O153: 0 | P153: 6.96265404
B154: =$B$202 -> Transaction Procurement Support | C154: =Inputs!$A$8 -> Real $2023 | D154: $Million | E154: 0 | F154: 0 | G154: =G130+G142 -> 0 | H154: 0 | I154: 0 | J154: 0 | K154: 0.1141034589 | L154: 0.3323749663 | M154: 0 | N154: 0 | O154: 0 | P154: 0.4464784253
B155: =$B$203 -> Community and Stakeholder Engagement | C155: =Inputs!$A$8 -> Real $2023 | D155: $Million | E155: 0 | F155: 0 | G155: =G131+G143 -> 0 | H155: 0 | I155: 0.171955919 | J155: 1.181373452 | K155: 4.413164031 | L155: 3.644303816 | M155: 0 | N155: 0 | O155: 0 | P155: 9.410797218
B156: =$B$204 -> Land and Environment | C156: =Inputs!$A$8 -> Real $2023 | D156: $Million | E156: 0 | F156: 0 | G156: =G132+G144 -> 0 | H156: 0 | I156: 0.0465462942 | J156: 0.604029823 | K156: 2.992063306 | L156: 2.692639045 | M156: 0 | N156: 0 | O156: 0 | P156: 6.335278468
B157: =$B$205 -> Regulatory Approvals | C157: =Inputs!$A$8 -> Real $2023 | D157: $Million | E157: 0 | F157: 0 | G157: =G133+G145 -> 0 | H157: 0 | I157: 0 | J157: 0.1025486163 | K157: 0.2948999019 | L157: 0.4631579321 | M157: 0 | N157: 0 | O157: 0 | P157: 0.8606064503
B158: =$B$206 -> Other Support & Corporate Roles | C158: =Inputs!$A$8 -> Real $2023 | D158: $Million | E158: 0 | F158: 0 | G158: =G134+G146 -> 0.0003980111585 | H158: 0 | I158: 0.1896226682 | J158: 1.660836707 | K158: 0.378261188 | L158: 0.3918370401 | M158: 0 | N158: 0 | O158: 0 | P158: 2.620955614
B159: =$B$207 -> Indirect - Proportion of labour and labour-related costs | C159: =Inputs!$A$8 -> Real $2023 | D159: $Million | E159: 0 | F159: 0 | G159: =G135+G147 -> 0 | H159: 0 | I159: 0 | J159: 0 | K159: 8.991910238 | L159: 7.4928523 | M159: 0 | N159: 0 | O159: 0 | P159: 16.48476254
B160: =$B$208 -> Contingency | C160: =Inputs!$A$8 -> Real $2023 | D160: $Million | E160: 0 | F160: 0 | G160: 0 | H160: 0 | I160: 0 | J160: 0 | K160: 0 | L160: 0 | M160: 0 | N160: 0 | O160: 0 | P160: =SUM(E160:O160) -> 0
B161: Sub-Total | C161: =Inputs!$A$8 -> Real $2023 | D161: $Million | E161: =SUM(E152:E160) -> 0.002751266362 | F161: 0 | G161: 0.1457401803 | H161: 0.000207745095 | I161: 1.988238665 | J161: 7.090893841 | K161: 29.97303413 | L161: 24.97617433 | M161: 0 | N161: 0 | O161: 0 | P161: 64.17704016
B163: Indirect NL Costs - Actual
B164: =$B$200 -> Project Management | C164: =Inputs!$A$8 -> Real $2023 | D164: $Million | E164: =IFERROR( SUMIF(Inputs!$H$137:$H$156,$B164,Inputs!K$137:K$156) *INDEX(Inputs!$K$21:$U$21,MATCH(Report_Year,Years,0))/INDEX(Inputs!$K$21:$U$21,MATCH(Inputs!$E$136,Years,0)),0) -> 0 | F164: =IFERROR( SUMIF(Inputs!$H$137:$H$156,$B164,Inputs!L$137:L$156) *INDEX(Inputs!$K$21:$U$21,MATCH(Report_Year,Years,0))/INDEX(Inputs!$K$21:$U$21,MATCH(Inputs!$E$136,Years,0)),0) -> 0 | G164: =IFERROR( SUMIF(Inputs!$H$137:$H$156,$B164,Inputs!M$137:M$156) *INDEX(Inputs!$K$21:$U$21,MATCH(Report_Year,Years,0))/INDEX(Inputs!$K$21:$U$21,MATCH(Inputs!$E$136,Years,0)),0) -> 0 | H164: =IFERROR( SUMIF(Inputs!$H$137:$H$156,$B164,Inputs!N$137:N$156) *INDEX(Inputs!$K$21:$U$21,MATCH(Report_Year,Years,0))/INDEX(Inputs!$K$21:$U$21,MATCH(Inputs!$E$136,Years,0)),0) -> 0 | I164: =IFERROR( SUMIF(Inputs!$H$137:$H$156,$B164,Inputs!O$137:O$156) *INDEX(Inputs!$K$21:$U$21,MATCH(Report_Year,Years,0))/INDEX(Inputs!$K$21:$U$21,MATCH(Inputs!$E$136,Years,0)),0) -> 0.6432791958 | J164: =IFERROR( SUMIF(Inputs!$H$137:$H$156,$B164,Inputs!P$137:P$156) *INDEX(Inputs!$K$21:$U$21,MATCH(Report_Year,Years,0))/INDEX(Inputs!$K$21:$U$21,MATCH(Inputs!$E$136,Years,0)),0) -> 0.4465076319 | K164: =IFERROR( SUMIF(Inputs!$H$137:$H$156,$B164,Inputs!Q$137:Q$156) *INDEX(Inputs!$K$21:$U$21,MATCH(Report_Year,Years,0))/INDEX(Inputs!$K$21:$U$21,MATCH(Inputs!$E$136,Years,0)),0) -> 0 | L164: =IFERROR( SUMIF(Inputs!$H$137:$H$156,$B164,Inputs!R$137:R$156) *INDEX(Inputs!$K$21:$U$21,MATCH(Report_Year,Years,0))/INDEX(Inputs!$K$21:$U$21,MATCH(Inputs!$E$136,Years,0)),0) -> 0 | M164: =IFERROR( SUMIF(Inputs!$H$137:$H$156,$B164,Inputs!S$137:S$156) *INDEX(Inputs!$K$21:$U$21,MATCH(Report_Year,Years,0))/INDEX(Inputs!$K$21:$U$21,MATCH(Inputs!$E$136,Years,0)),0) -> 0 | N164: =IFERROR( SUMIF(Inputs!$H$137:$H$156,$B164,Inputs!T$137:T$156) *INDEX(Inputs!$K$21:$U$21,MATCH(Report_Year,Years,0))/INDEX(Inputs!$K$21:$U$21,MATCH(Inputs!$E$136,Years,0)),0) -> 0 | O164: =IFERROR( SUMIF(Inputs!$H$137:$H$156,$B164,Inputs!U$137:U$156) *INDEX(Inputs!$K$21:$U$21,MATCH(Report_Year,Years,0))/INDEX(Inputs!$K$21:$U$21,MATCH(Inputs!$E$136,Years,0)),0) -> 0 | P164: =SUM(E164:O164) -> 1.089786828
B165: =$B$201 -> Project Development | C165: =Inputs!$A$8 -> Real $2023 | D165: $Million | E165: =IFERROR( SUMIF(Inputs!$H$137:$H$156,$B165,Inputs!K$137:K$156) *INDEX(Inputs!$K$21:$U$21,MATCH(Report_Year,Years,0))/INDEX(Inputs!$K$21:$U$21,MATCH(Inputs!$E$136,Years,0)),0) -> 0 | F165: =IFERROR( SUMIF(Inputs!$H$137:$H$156,$B165,Inputs!L$137:L$156) *INDEX(Inputs!$K$21:$U$21,MATCH(Report_Year,Years,0))/INDEX(Inputs!$K$21:$U$21,MATCH(Inputs!$E$136,Years,0)),0) -> 0 | G165: =IFERROR( SUMIF(Inputs!$H$137:$H$156,$B165,Inputs!M$137:M$156) *INDEX(Inputs!$K$21:$U$21,MATCH(Report_Year,Years,0))/INDEX(Inputs!$K$21:$U$21,MATCH(Inputs!$E$136,Years,0)),0) -> 0 | H165: =IFERROR( SUMIF(Inputs!$H$137:$H$156,$B165,Inputs!N$137:N$156) *INDEX(Inputs!$K$21:$U$21,MATCH(Report_Year,Years,0))/INDEX(Inputs!$K$21:$U$21,MATCH(Inputs!$E$136,Years,0)),0) -> 0 | I165: =IFERROR( SUMIF(Inputs!$H$137:$H$156,$B165,Inputs!O$137:O$156) *INDEX(Inputs!$K$21:$U$21,MATCH(Report_Year,Years,0))/INDEX(Inputs!$K$21:$U$21,MATCH(Inputs!$E$136,Years,0)),0) -> 1.884143246 | J165: =IFERROR( SUMIF(Inputs!$H$137:$H$156,$B165,Inputs!P$137:P$156) *INDEX(Inputs!$K$21:$U$21,MATCH(Report_Year,Years,0))/INDEX(Inputs!$K$21:$U$21,MATCH(Inputs!$E$136,Years,0)),0) -> 1.204466206 | K165: =IFERROR( SUMIF(Inputs!$H$137:$H$156,$B165,Inputs!Q$137:Q$156) *INDEX(Inputs!$K$21:$U$21,MATCH(Report_Year,Years,0))/INDEX(Inputs!$K$21:$U$21,MATCH(Inputs!$E$136,Years,0)),0) -> 0 | L165: =IFERROR( SUMIF(Inputs!$H$137:$H$156,$B165,Inputs!R$137:R$156) *INDEX(Inputs!$K$21:$U$21,MATCH(Report_Year,Years,0))/INDEX(Inputs!$K$21:$U$21,MATCH(Inputs!$E$136,Years,0)),0) -> 0 | M165: =IFERROR( SUMIF(Inputs!$H$137:$H$156,$B165,Inputs!S$137:S$156) *INDEX(Inputs!$K$21:$U$21,MATCH(Report_Year,Years,0))/INDEX(Inputs!$K$21:$U$21,MATCH(Inputs!$E$136,Years,0)),0) -> 0 | N165: =IFERROR( SUMIF(Inputs!$H$137:$H$156,$B165,Inputs!T$137:T$156) *INDEX(Inputs!$K$21:$U$21,MATCH(Report_Year,Years,0))/INDEX(Inputs!$K$21:$U$21,MATCH(Inputs!$E$136,Years,0)),0) -> 0 | O165: =IFERROR( SUMIF(Inputs!$H$137:$H$156,$B165,Inputs!U$137:U$156) *INDEX(Inputs!$K$21:$U$21,MATCH(Report_Year,Years,0))/INDEX(Inputs!$K$21:$U$21,MATCH(Inputs!$E$136,Years,0)),0) -> 0 | P165: 3.088609452
B166: =$B$202 -> Transaction Procurement Support | C166: =Inputs!$A$8 -> Real $2023 | D166: $Million | E166: =IFERROR( SUMIF(Inputs!$H$137:$H$156,$B166,Inputs!K$137:K$156) *INDEX(Inputs!$K$21:$U$21,MATCH(Report_Year,Years,0))/INDEX(Inputs!$K$21:$U$21,MATCH(Inputs!$E$136,Years,0)),0) -> 0 | F166: =IFERROR( SUMIF(Inputs!$H$137:$H$156,$B166,Inputs!L$137:L$156) *INDEX(Inputs!$K$21:$U$21,MATCH(Report_Year,Years,0))/INDEX(Inputs!$K$21:$U$21,MATCH(Inputs!$E$136,Years,0)),0) -> 0 | G166: =IFERROR( SUMIF(Inputs!$H$137:$H$156,$B166,Inputs!M$137:M$156) *INDEX(Inputs!$K$21:$U$21,MATCH(Report_Year,Years,0))/INDEX(Inputs!$K$21:$U$21,MATCH(Inputs!$E$136,Years,0)),0) -> 0 | H166: =IFERROR( SUMIF(Inputs!$H$137:$H$156,$B166,Inputs!N$137:N$156) *INDEX(Inputs!$K$21:$U$21,MATCH(Report_Year,Years,0))/INDEX(Inputs!$K$21:$U$21,MATCH(Inputs!$E$136,Years,0)),0) -> 0 | I166: =IFERROR( SUMIF(Inputs!$H$137:$H$156,$B166,Inputs!O$137:O$156) *INDEX(Inputs!$K$21:$U$21,MATCH(Report_Year,Years,0))/INDEX(Inputs!$K$21:$U$21,MATCH(Inputs!$E$136,Years,0)),0) -> 0 | J166: =IFERROR( SUMIF(Inputs!$H$137:$H$156,$B166,Inputs!P$137:P$156) *INDEX(Inputs!$K$21:$U$21,MATCH(Report_Year,Years,0))/INDEX(Inputs!$K$21:$U$21,MATCH(Inputs!$E$136,Years,0)),0) -> 0 | K166: =IFERROR( SUMIF(Inputs!$H$137:$H$156,$B166,Inputs!Q$137:Q$156) *INDEX(Inputs!$K$21:$U$21,MATCH(Report_Year,Years,0))/INDEX(Inputs!$K$21:$U$21,MATCH(Inputs!$E$136,Years,0)),0) -> 0 | L166: =IFERROR( SUMIF(Inputs!$H$137:$H$156,$B166,Inputs!R$137:R$156) *INDEX(Inputs!$K$21:$U$21,MATCH(Report_Year,Years,0))/INDEX(Inputs!$K$21:$U$21,MATCH(Inputs!$E$136,Years,0)),0) -> 0 | M166: =IFERROR( SUMIF(Inputs!$H$137:$H$156,$B166,Inputs!S$137:S$156) *INDEX(Inputs!$K$21:$U$21,MATCH(Report_Year,Years,0))/INDEX(Inputs!$K$21:$U$21,MATCH(Inputs!$E$136,Years,0)),0) -> 0 | N166: =IFERROR( SUMIF(Inputs!$H$137:$H$156,$B166,Inputs!T$137:T$156) *INDEX(Inputs!$K$21:$U$21,MATCH(Report_Year,Years,0))/INDEX(Inputs!$K$21:$U$21,MATCH(Inputs!$E$136,Years,0)),0) -> 0 | O166: =IFERROR( SUMIF(Inputs!$H$137:$H$156,$B166,Inputs!U$137:U$156) *INDEX(Inputs!$K$21:$U$21,MATCH(Report_Year,Years,0))/INDEX(Inputs!$K$21:$U$21,MATCH(Inputs!$E$136,Years,0)),0) -> 0 | P166: 0
B167: =$B$203 -> Community and Stakeholder Engagement | C167: =Inputs!$A$8 -> Real $2023 | D167: $Million | E167: =IFERROR( SUMIF(Inputs!$H$137:$H$156,$B167,Inputs!K$137:K$156) *INDEX(Inputs!$K$21:$U$21,MATCH(Report_Year,Years,0))/INDEX(Inputs!$K$21:$U$21,MATCH(Inputs!$E$136,Years,0)),0) -> 0 | F167: =IFERROR( SUMIF(Inputs!$H$137:$H$156,$B167,Inputs!L$137:L$156) *INDEX(Inputs!$K$21:$U$21,MATCH(Report_Year,Years,0))/INDEX(Inputs!$K$21:$U$21,MATCH(Inputs!$E$136,Years,0)),0) -> 0 | G167: =IFERROR( SUMIF(Inputs!$H$137:$H$156,$B167,Inputs!M$137:M$156) *INDEX(Inputs!$K$21:$U$21,MATCH(Report_Year,Years,0))/INDEX(Inputs!$K$21:$U$21,MATCH(Inputs!$E$136,Years,0)),0) -> 0 | H167: =IFERROR( SUMIF(Inputs!$H$137:$H$156,$B167,Inputs!N$137:N$156) *INDEX(Inputs!$K$21:$U$21,MATCH(Report_Year,Years,0))/INDEX(Inputs!$K$21:$U$21,MATCH(Inputs!$E$136,Years,0)),0) -> 0 | I167: =IFERROR( SUMIF(Inputs!$H$137:$H$156,$B167,Inputs!O$137:O$156) *INDEX(Inputs!$K$21:$U$21,MATCH(Report_Year,Years,0))/INDEX(Inputs!$K$21:$U$21,MATCH(Inputs!$E$136,Years,0)),0) -> 0.233925304 | J167: =IFERROR( SUMIF(Inputs!$H$137:$H$156,$B167,Inputs!P$137:P$156) *INDEX(Inputs!$K$21:$U$21,MATCH(Report_Year,Years,0))/INDEX(Inputs!$K$21:$U$21,MATCH(Inputs!$E$136,Years,0)),0) -> 0.5788559398 | K167: =IFERROR( SUMIF(Inputs!$H$137:$H$156,$B167,Inputs!Q$137:Q$156) *INDEX(Inputs!$K$21:$U$21,MATCH(Report_Year,Years,0))/INDEX(Inputs!$K$21:$U$21,MATCH(Inputs!$E$136,Years,0)),0) -> 0 | L167: =IFERROR( SUMIF(Inputs!$H$137:$H$156,$B167,Inputs!R$137:R$156) *INDEX(Inputs!$K$21:$U$21,MATCH(Report_Year,Years,0))/INDEX(Inputs!$K$21:$U$21,MATCH(Inputs!$E$136,Years,0)),0) -> 0 | M167: =IFERROR( SUMIF(Inputs!$H$137:$H$156,$B167,Inputs!S$137:S$156) *INDEX(Inputs!$K$21:$U$21,MATCH(Report_Year,Years,0))/INDEX(Inputs!$K$21:$U$21,MATCH(Inputs!$E$136,Years,0)),0) -> 0 | N167: =IFERROR( SUMIF(Inputs!$H$137:$H$156,$B167,Inputs!T$137:T$156) *INDEX(Inputs!$K$21:$U$21,MATCH(Report_Year,Years,0))/INDEX(Inputs!$K$21:$U$21,MATCH(Inputs!$E$136,Years,0)),0) -> 0 | O167: =IFERROR( SUMIF(Inputs!$H$137:$H$156,$B167,Inputs!U$137:U$156) *INDEX(Inputs!$K$21:$U$21,MATCH(Report_Year,Years,0))/INDEX(Inputs!$K$21:$U$21,MATCH(Inputs!$E$136,Years,0)),0) -> 0 | P167: 0.8127812438
B168: =$B$204 -> Land and Environment | C168: =Inputs!$A$8 -> Real $2023 | D168: $Million | E168: =IFERROR( SUMIF(Inputs!$H$137:$H$156,$B168,Inputs!K$137:K$156) *INDEX(Inputs!$K$21:$U$21,MATCH(Report_Year,Years,0))/INDEX(Inputs!$K$21:$U$21,MATCH(Inputs!$E$136,Years,0)),0) -> 0 | F168: =IFERROR( SUMIF(Inputs!$H$137:$H$156,$B168,Inputs!L$137:L$156) *INDEX(Inputs!$K$21:$U$21,MATCH(Report_Year,Years,0))/INDEX(Inputs!$K$21:$U$21,MATCH(Inputs!$E$136,Years,0)),0) -> 0 | G168: =IFERROR( SUMIF(Inputs!$H$137:$H$156,$B168,Inputs!M$137:M$156) *INDEX(Inputs!$K$21:$U$21,MATCH(Report_Year,Years,0))/INDEX(Inputs!$K$21:$U$21,MATCH(Inputs!$E$136,Years,0)),0) -> 0 | H168: =IFERROR( SUMIF(Inputs!$H$137:$H$156,$B168,Inputs!N$137:N$156) *INDEX(Inputs!$K$21:$U$21,MATCH(Report_Year,Years,0))/INDEX(Inputs!$K$21:$U$21,MATCH(Inputs!$E$136,Years,0)),0) -> 0 | I168: =IFERROR( SUMIF(Inputs!$H$137:$H$156,$B168,Inputs!O$137:O$156) *INDEX(Inputs!$K$21:$U$21,MATCH(Report_Year,Years,0))/INDEX(Inputs!$K$21:$U$21,MATCH(Inputs!$E$136,Years,0)),0) -> 0.1941627513 | J168: =IFERROR( SUMIF(Inputs!$H$137:$H$156,$B168,Inputs!P$137:P$156) *INDEX(Inputs!$K$21:$U$21,MATCH(Report_Year,Years,0))/INDEX(Inputs!$K$21:$U$21,MATCH(Inputs!$E$136,Years,0)),0) -> 0.613930023 | K168: =IFERROR( SUMIF(Inputs!$H$137:$H$156,$B168,Inputs!Q$137:Q$156) *INDEX(Inputs!$K$21:$U$21,MATCH(Report_Year,Years,0))/INDEX(Inputs!$K$21:$U$21,MATCH(Inputs!$E$136,Years,0)),0) -> 0 | L168: =IFERROR( SUMIF(Inputs!$H$137:$H$156,$B168,Inputs!R$137:R$156) *INDEX(Inputs!$K$21:$U$21,MATCH(Report_Year,Years,0))/INDEX(Inputs!$K$21:$U$21,MATCH(Inputs!$E$136,Years,0)),0) -> 0 | M168: =IFERROR( SUMIF(Inputs!$H$137:$H$156,$B168,Inputs!S$137:S$156) *INDEX(Inputs!$K$21:$U$21,MATCH(Report_Year,Years,0))/INDEX(Inputs!$K$21:$U$21,MATCH(Inputs!$E$136,Years,0)),0) -> 0 | N168: =IFERROR( SUMIF(Inputs!$H$137:$H$156,$B168,Inputs!T$137:T$156) *INDEX(Inputs!$K$21:$U$21,MATCH(Report_Year,Years,0))/INDEX(Inputs!$K$21:$U$21,MATCH(Inputs!$E$136,Years,0)),0) -> 0 | O168: =IFERROR( SUMIF(Inputs!$H$137:$H$156,$B168,Inputs!U$137:U$156) *INDEX(Inputs!$K$21:$U$21,MATCH(Report_Year,Years,0))/INDEX(Inputs!$K$21:$U$21,MATCH(Inputs!$E$136,Years,0)),0) -> 0 | P168: 0.8080927743
B169: =$B$205 -> Regulatory Approvals | C169: =Inputs!$A$8 -> Real $2023 | D169: $Million | E169: =IFERROR( SUMIF(Inputs!$H$137:$H$156,$B169,Inputs!K$137:K$156) *INDEX(Inputs!$K$21:$U$21,MATCH(Report_Year,Years,0))/INDEX(Inputs!$K$21:$U$21,MATCH(Inputs!$E$136,Years,0)),0) -> 0 | F169: =IFERROR( SUMIF(Inputs!$H$137:$H$156,$B169,Inputs!L$137:L$156) *INDEX(Inputs!$K$21:$U$21,MATCH(Report_Year,Years,0))/INDEX(Inputs!$K$21:$U$21,MATCH(Inputs!$E$136,Years,0)),0) -> 0 | G169: =IFERROR( SUMIF(Inputs!$H$137:$H$156,$B169,Inputs!M$137:M$156) *INDEX(Inputs!$K$21:$U$21,MATCH(Report_Year,Years,0))/INDEX(Inputs!$K$21:$U$21,MATCH(Inputs!$E$136,Years,0)),0) -> 0 | H169: =IFERROR( SUMIF(Inputs!$H$137:$H$156,$B169,Inputs!N$137:N$156) *INDEX(Inputs!$K$21:$U$21,MATCH(Report_Year,Years,0))/INDEX(Inputs!$K$21:$U$21,MATCH(Inputs!$E$136,Years,0)),0) -> 0 | I169: =IFERROR( SUMIF(Inputs!$H$137:$H$156,$B169,Inputs!O$137:O$156) *INDEX(Inputs!$K$21:$U$21,MATCH(Report_Year,Years,0))/INDEX(Inputs!$K$21:$U$21,MATCH(Inputs!$E$136,Years,0)),0) -> 0 | J169: =IFERROR( SUMIF(Inputs!$H$137:$H$156,$B169,Inputs!P$137:P$156) *INDEX(Inputs!$K$21:$U$21,MATCH(Report_Year,Years,0))/INDEX(Inputs!$K$21:$U$21,MATCH(Inputs!$E$136,Years,0)),0) -> 0 | K169: =IFERROR( SUMIF(Inputs!$H$137:$H$156,$B169,Inputs!Q$137:Q$156) *INDEX(Inputs!$K$21:$U$21,MATCH(Report_Year,Years,0))/INDEX(Inputs!$K$21:$U$21,MATCH(Inputs!$E$136,Years,0)),0) -> 0 | L169: =IFERROR( SUMIF(Inputs!$H$137:$H$156,$B169,Inputs!R$137:R$156) *INDEX(Inputs!$K$21:$U$21,MATCH(Report_Year,Years,0))/INDEX(Inputs!$K$21:$U$21,MATCH(Inputs!$E$136,Years,0)),0) -> 0 | M169: =IFERROR( SUMIF(Inputs!$H$137:$H$156,$B169,Inputs!S$137:S$156) *INDEX(Inputs!$K$21:$U$21,MATCH(Report_Year,Years,0))/INDEX(Inputs!$K$21:$U$21,MATCH(Inputs!$E$136,Years,0)),0) -> 0 | N169: =IFERROR( SUMIF(Inputs!$H$137:$H$156,$B169,Inputs!T$137:T$156) *INDEX(Inputs!$K$21:$U$21,MATCH(Report_Year,Years,0))/INDEX(Inputs!$K$21:$U$21,MATCH(Inputs!$E$136,Years,0)),0) -> 0 | O169: =IFERROR( SUMIF(Inputs!$H$137:$H$156,$B169,Inputs!U$137:U$156) *INDEX(Inputs!$K$21:$U$21,MATCH(Report_Year,Years,0))/INDEX(Inputs!$K$21:$U$21,MATCH(Inputs!$E$136,Years,0)),0) -> 0 | P169: 0
B170: =$B$206 -> Other Support & Corporate Roles | C170: =Inputs!$A$8 -> Real $2023 | D170: $Million | E170: =IFERROR( SUMIF(Inputs!$H$137:$H$156,$B170,Inputs!K$137:K$156) *INDEX(Inputs!$K$21:$U$21,MATCH(Report_Year,Years,0))/INDEX(Inputs!$K$21:$U$21,MATCH(Inputs!$E$136,Years,0)),0) -> 0 | F170: =IFERROR( SUMIF(Inputs!$H$137:$H$156,$B170,Inputs!L$137:L$156) *INDEX(Inputs!$K$21:$U$21,MATCH(Report_Year,Years,0))/INDEX(Inputs!$K$21:$U$21,MATCH(Inputs!$E$136,Years,0)),0) -> 0 | G170: =IFERROR( SUMIF(Inputs!$H$137:$H$156,$B170,Inputs!M$137:M$156) *INDEX(Inputs!$K$21:$U$21,MATCH(Report_Year,Years,0))/INDEX(Inputs!$K$21:$U$21,MATCH(Inputs!$E$136,Years,0)),0) -> 0 | H170: =IFERROR( SUMIF(Inputs!$H$137:$H$156,$B170,Inputs!N$137:N$156) *INDEX(Inputs!$K$21:$U$21,MATCH(Report_Year,Years,0))/INDEX(Inputs!$K$21:$U$21,MATCH(Inputs!$E$136,Years,0)),0) -> 0 | I170: =IFERROR( SUMIF(Inputs!$H$137:$H$156,$B170,Inputs!O$137:O$156) *INDEX(Inputs!$K$21:$U$21,MATCH(Report_Year,Years,0))/INDEX(Inputs!$K$21:$U$21,MATCH(Inputs!$E$136,Years,0)),0) -> 1.632815023 | J170: =IFERROR( SUMIF(Inputs!$H$137:$H$156,$B170,Inputs!P$137:P$156) *INDEX(Inputs!$K$21:$U$21,MATCH(Report_Year,Years,0))/INDEX(Inputs!$K$21:$U$21,MATCH(Inputs!$E$136,Years,0)),0) -> 5.015472602 | K170: =IFERROR( SUMIF(Inputs!$H$137:$H$156,$B170,Inputs!Q$137:Q$156) *INDEX(Inputs!$K$21:$U$21,MATCH(Report_Year,Years,0))/INDEX(Inputs!$K$21:$U$21,MATCH(Inputs!$E$136,Years,0)),0) -> 0 | L170: =IFERROR( SUMIF(Inputs!$H$137:$H$156,$B170,Inputs!R$137:R$156) *INDEX(Inputs!$K$21:$U$21,MATCH(Report_Year,Years,0))/INDEX(Inputs!$K$21:$U$21,MATCH(Inputs!$E$136,Years,0)),0) -> 0 | M170: =IFERROR( SUMIF(Inputs!$H$137:$H$156,$B170,Inputs!S$137:S$156) *INDEX(Inputs!$K$21:$U$21,MATCH(Report_Year,Years,0))/INDEX(Inputs!$K$21:$U$21,MATCH(Inputs!$E$136,Years,0)),0) -> 0 | N170: =IFERROR( SUMIF(Inputs!$H$137:$H$156,$B170,Inputs!T$137:T$156) *INDEX(Inputs!$K$21:$U$21,MATCH(Report_Year,Years,0))/INDEX(Inputs!$K$21:$U$21,MATCH(Inputs!$E$136,Years,0)),0) -> 0 | O170: =IFERROR( SUMIF(Inputs!$H$137:$H$156,$B170,Inputs!U$137:U$156) *INDEX(Inputs!$K$21:$U$21,MATCH(Report_Year,Years,0))/INDEX(Inputs!$K$21:$U$21,MATCH(Inputs!$E$136,Years,0)),0) -> 0 | P170: 6.648287625
B171: =$B$207 -> Indirect - Proportion of labour and labour-related costs | C171: =Inputs!$A$8 -> Real $2023 | D171: $Million | E171: =IFERROR( SUMIF(Inputs!$H$137:$H$156,$B171,Inputs!K$137:K$156) *INDEX(Inputs!$K$21:$U$21,MATCH(Report_Year,Years,0))/INDEX(Inputs!$K$21:$U$21,MATCH(Inputs!$E$136,Years,0)),0) -> 0 | F171: =IFERROR( SUMIF(Inputs!$H$137:$H$156,$B171,Inputs!L$137:L$156) *INDEX(Inputs!$K$21:$U$21,MATCH(Report_Year,Years,0))/INDEX(Inputs!$K$21:$U$21,MATCH(Inputs!$E$136,Years,0)),0) -> 0 | G171: =IFERROR( SUMIF(Inputs!$H$137:$H$156,$B171,Inputs!M$137:M$156) *INDEX(Inputs!$K$21:$U$21,MATCH(Report_Year,Years,0))/INDEX(Inputs!$K$21:$U$21,MATCH(Inputs!$E$136,Years,0)),0) -> 0 | H171: =IFERROR( SUMIF(Inputs!$H$137:$H$156,$B171,Inputs!N$137:N$156) *INDEX(Inputs!$K$21:$U$21,MATCH(Report_Year,Years,0))/INDEX(Inputs!$K$21:$U$21,MATCH(Inputs!$E$136,Years,0)),0) -> 0 | I171: =IFERROR( SUMIF(Inputs!$H$137:$H$156,$B171,Inputs!O$137:O$156) *INDEX(Inputs!$K$21:$U$21,MATCH(Report_Year,Years,0))/INDEX(Inputs!$K$21:$U$21,MATCH(Inputs!$E$136,Years,0)),0) -> 0 | J171: =IFERROR( SUMIF(Inputs!$H$137:$H$156,$B171,Inputs!P$137:P$156) *INDEX(Inputs!$K$21:$U$21,MATCH(Report_Year,Years,0))/INDEX(Inputs!$K$21:$U$21,MATCH(Inputs!$E$136,Years,0)),0) -> 0 | K171: =IFERROR( SUMIF(Inputs!$H$137:$H$156,$B171,Inputs!Q$137:Q$156) *INDEX(Inputs!$K$21:$U$21,MATCH(Report_Year,Years,0))/INDEX(Inputs!$K$21:$U$21,MATCH(Inputs!$E$136,Years,0)),0) -> 0 | L171: =IFERROR( SUMIF(Inputs!$H$137:$H$156,$B171,Inputs!R$137:R$156) *INDEX(Inputs!$K$21:$U$21,MATCH(Report_Year,Years,0))/INDEX(Inputs!$K$21:$U$21,MATCH(Inputs!$E$136,Years,0)),0) -> 0 | M171: =IFERROR( SUMIF(Inputs!$H$137:$H$156,$B171,Inputs!S$137:S$156) *INDEX(Inputs!$K$21:$U$21,MATCH(Report_Year,Years,0))/INDEX(Inputs!$K$21:$U$21,MATCH(Inputs!$E$136,Years,0)),0) -> 0 | N171: =IFERROR( SUMIF(Inputs!$H$137:$H$156,$B171,Inputs!T$137:T$156) *INDEX(Inputs!$K$21:$U$21,MATCH(Report_Year,Years,0))/INDEX(Inputs!$K$21:$U$21,MATCH(Inputs!$E$136,Years,0)),0) -> 0 | O171: =IFERROR( SUMIF(Inputs!$H$137:$H$156,$B171,Inputs!U$137:U$156) *INDEX(Inputs!$K$21:$U$21,MATCH(Report_Year,Years,0))/INDEX(Inputs!$K$21:$U$21,MATCH(Inputs!$E$136,Years,0)),0) -> 0 | P171: 0
B172: =$B$208 -> Contingency | C172: =Inputs!$A$8 -> Real $2023 | D172: $Million | E172: =IFERROR( SUMIF(Inputs!$H$137:$H$156,$B172,Inputs!K$137:K$156) *INDEX(Inputs!$K$21:$U$21,MATCH(Report_Year,Years,0))/INDEX(Inputs!$K$21:$U$21,MATCH(Inputs!$E$136,Years,0)),0) -> 0 | F172: =IFERROR( SUMIF(Inputs!$H$137:$H$156,$B172,Inputs!L$137:L$156) *INDEX(Inputs!$K$21:$U$21,MATCH(Report_Year,Years,0))/INDEX(Inputs!$K$21:$U$21,MATCH(Inputs!$E$136,Years,0)),0) -> 0 | G172: =IFERROR( SUMIF(Inputs!$H$137:$H$156,$B172,Inputs!M$137:M$156) *INDEX(Inputs!$K$21:$U$21,MATCH(Report_Year,Years,0))/INDEX(Inputs!$K$21:$U$21,MATCH(Inputs!$E$136,Years,0)),0) -> 0 | H172: =IFERROR( SUMIF(Inputs!$H$137:$H$156,$B172,Inputs!N$137:N$156) *INDEX(Inputs!$K$21:$U$21,MATCH(Report_Year,Years,0))/INDEX(Inputs!$K$21:$U$21,MATCH(Inputs!$E$136,Years,0)),0) -> 0 | I172: =IFERROR( SUMIF(Inputs!$H$137:$H$156,$B172,Inputs!O$137:O$156) *INDEX(Inputs!$K$21:$U$21,MATCH(Report_Year,Years,0))/INDEX(Inputs!$K$21:$U$21,MATCH(Inputs!$E$136,Years,0)),0) -> 0 | J172: =IFERROR( SUMIF(Inputs!$H$137:$H$156,$B172,Inputs!P$137:P$156) *INDEX(Inputs!$K$21:$U$21,MATCH(Report_Year,Years,0))/INDEX(Inputs!$K$21:$U$21,MATCH(Inputs!$E$136,Years,0)),0) -> 0 | K172: =IFERROR( SUMIF(Inputs!$H$137:$H$156,$B172,Inputs!Q$137:Q$156) *INDEX(Inputs!$K$21:$U$21,MATCH(Report_Year,Years,0))/INDEX(Inputs!$K$21:$U$21,MATCH(Inputs!$E$136,Years,0)),0) -> 0 | L172: =IFERROR( SUMIF(Inputs!$H$137:$H$156,$B172,Inputs!R$137:R$156) *INDEX(Inputs!$K$21:$U$21,MATCH(Report_Year,Years,0))/INDEX(Inputs!$K$21:$U$21,MATCH(Inputs!$E$136,Years,0)),0) -> 0 | M172: =IFERROR( SUMIF(Inputs!$H$137:$H$156,$B172,Inputs!S$137:S$156) *INDEX(Inputs!$K$21:$U$21,MATCH(Report_Year,Years,0))/INDEX(Inputs!$K$21:$U$21,MATCH(Inputs!$E$136,Years,0)),0) -> 0 | N172: =IFERROR( SUMIF(Inputs!$H$137:$H$156,$B172,Inputs!T$137:T$156) *INDEX(Inputs!$K$21:$U$21,MATCH(Report_Year,Years,0))/INDEX(Inputs!$K$21:$U$21,MATCH(Inputs!$E$136,Years,0)),0) -> 0 | O172: =IFERROR( SUMIF(Inputs!$H$137:$H$156,$B172,Inputs!U$137:U$156) *INDEX(Inputs!$K$21:$U$21,MATCH(Report_Year,Years,0))/INDEX(Inputs!$K$21:$U$21,MATCH(Inputs!$E$136,Years,0)),0) -> 0 | P172: =SUM(E172:O172) -> 0
B173: Sub-Total | C173: =Inputs!$A$8 -> Real $2023 | D173: $Million | E173: =SUM(E164:E172) -> 0 | F173: 0 | G173: 0 | H173: 0 | I173: 4.58832552 | J173: 7.859232402 | K173: 0 | L173: 0 | M173: 0 | N173: 0 | O173: 0 | P173: 12.44755792
B175: Indirect NL Costs - Forecast
B176: =$B$200 -> Project Management | C176: =Inputs!$A$8 -> Real $2023 | D176: $Million | E176: =IFERROR( SUMIF(Inputs!$H$158:$H$177,$B176,Inputs!K$158:K$171) *INDEX(Inputs!$K$21:$U$21,MATCH(Report_Year,Years,0))/INDEX(Inputs!$K$21:$U$21,MATCH(Inputs!$E$136,Years,0)),0) -> 0 | F176: =IFERROR( SUMIF(Inputs!$H$158:$H$177,$B176,Inputs!L$158:L$171) *INDEX(Inputs!$K$21:$U$21,MATCH(Report_Year,Years,0))/INDEX(Inputs!$K$21:$U$21,MATCH(Inputs!$E$136,Years,0)),0) -> 0 | G176: =IFERROR( SUMIF(Inputs!$H$158:$H$181,$B176,Inputs!M$158:M$181) *INDEX(Inputs!$K$21:$U$21,MATCH(Report_Year,Years,0))/INDEX(Inputs!$K$21:$U$21,MATCH(Inputs!$E$136,Years,0)),0) -> 0 | H176: =IFERROR( SUMIF(Inputs!$H$158:$H$181,$B176,Inputs!N$158:N$181) *INDEX(Inputs!$K$21:$U$21,MATCH(Report_Year,Years,0))/INDEX(Inputs!$K$21:$U$21,MATCH(Inputs!$E$136,Years,0)),0) -> 0 | I176: =IFERROR( SUMIF(Inputs!$H$158:$H$181,$B176,Inputs!O$158:O$181) *INDEX(Inputs!$K$21:$U$21,MATCH(Report_Year,Years,0))/INDEX(Inputs!$K$21:$U$21,MATCH(Inputs!$E$136,Years,0)),0) -> 0 | J176: =IFERROR( SUMIF(Inputs!$H$158:$H$181,$B176,Inputs!P$158:P$181) *INDEX(Inputs!$K$21:$U$21,MATCH(Report_Year,Years,0))/INDEX(Inputs!$K$21:$U$21,MATCH(Inputs!$E$136,Years,0)),0) -> 0 | K176: =IFERROR( SUMIF(Inputs!$H$158:$H$181,$B176,Inputs!Q$158:Q$181) *INDEX(Inputs!$K$21:$U$21,MATCH(Report_Year,Years,0))/INDEX(Inputs!$K$21:$U$21,MATCH(Inputs!$E$136,Years,0)),0) -> 3.35476 | L176: =IFERROR( SUMIF(Inputs!$H$158:$H$181,$B176,Inputs!R$158:R$181) *INDEX(Inputs!$K$21:$U$21,MATCH(Report_Year,Years,0))/INDEX(Inputs!$K$21:$U$21,MATCH(Inputs!$E$136,Years,0)),0) -> 2.522083333 | M176: =IFERROR( SUMIF(Inputs!$H$158:$H$181,$B176,Inputs!S$158:S$181) *INDEX(Inputs!$K$21:$U$21,MATCH(Report_Year,Years,0))/INDEX(Inputs!$K$21:$U$21,MATCH(Inputs!$E$136,Years,0)),0) -> 0 | N176: =IFERROR( SUMIF(Inputs!$H$158:$H$181,$B176,Inputs!T$158:T$181) *INDEX(Inputs!$K$21:$U$21,MATCH(Report_Year,Years,0))/INDEX(Inputs!$K$21:$U$21,MATCH(Inputs!$E$136,Years,0)),0) -> 0 | O176: =IFERROR( SUMIF(Inputs!$H$158:$H$181,$B176,Inputs!U$158:U$181) *INDEX(Inputs!$K$21:$U$21,MATCH(Report_Year,Years,0))/INDEX(Inputs!$K$21:$U$21,MATCH(Inputs!$E$136,Years,0)),0) -> 0 | P176: =SUM(E176:O176) -> 5.876843333
B177: =$B$201 -> Project Development | C177: =Inputs!$A$8 -> Real $2023 | D177: $Million | E177: =IFERROR( SUMIF(Inputs!$H$158:$H$177,$B177,Inputs!K$158:K$171) *INDEX(Inputs!$K$21:$U$21,MATCH(Report_Year,Years,0))/INDEX(Inputs!$K$21:$U$21,MATCH(Inputs!$E$136,Years,0)),0) -> 0 | F177: =IFERROR( SUMIF(Inputs!$H$158:$H$177,$B177,Inputs!L$158:L$171) *INDEX(Inputs!$K$21:$U$21,MATCH(Report_Year,Years,0))/INDEX(Inputs!$K$21:$U$21,MATCH(Inputs!$E$136,Years,0)),0) -> 0 | G177: =IFERROR( SUMIF(Inputs!$H$158:$H$181,$B177,Inputs!M$158:M$181) *INDEX(Inputs!$K$21:$U$21,MATCH(Report_Year,Years,0))/INDEX(Inputs!$K$21:$U$21,MATCH(Inputs!$E$136,Years,0)),0) -> 0 | H177: =IFERROR( SUMIF(Inputs!$H$158:$H$181,$B177,Inputs!N$158:N$181) *INDEX(Inputs!$K$21:$U$21,MATCH(Report_Year,Years,0))/INDEX(Inputs!$K$21:$U$21,MATCH(Inputs!$E$136,Years,0)),0) -> 0 | I177: =IFERROR( SUMIF(Inputs!$H$158:$H$181,$B177,Inputs!O$158:O$181) *INDEX(Inputs!$K$21:$U$21,MATCH(Report_Year,Years,0))/INDEX(Inputs!$K$21:$U$21,MATCH(Inputs!$E$136,Years,0)),0) -> 0 | J177: =IFERROR( SUMIF(Inputs!$H$158:$H$181,$B177,Inputs!P$158:P$181) *INDEX(Inputs!$K$21:$U$21,MATCH(Report_Year,Years,0))/INDEX(Inputs!$K$21:$U$21,MATCH(Inputs!$E$136,Years,0)),0) -> 0 | K177: =IFERROR( SUMIF(Inputs!$H$158:$H$181,$B177,Inputs!Q$158:Q$181) *INDEX(Inputs!$K$21:$U$21,MATCH(Report_Year,Years,0))/INDEX(Inputs!$K$21:$U$21,MATCH(Inputs!$E$136,Years,0)),0) -> 9.225415616 | L177: =IFERROR( SUMIF(Inputs!$H$158:$H$181,$B177,Inputs!R$158:R$181) *INDEX(Inputs!$K$21:$U$21,MATCH(Report_Year,Years,0))/INDEX(Inputs!$K$21:$U$21,MATCH(Inputs!$E$136,Years,0)),0) -> 24.8279602 | M177: =IFERROR( SUMIF(Inputs!$H$158:$H$181,$B177,Inputs!S$158:S$181) *INDEX(Inputs!$K$21:$U$21,MATCH(Report_Year,Years,0))/INDEX(Inputs!$K$21:$U$21,MATCH(Inputs!$E$136,Years,0)),0) -> 0 | N177: =IFERROR( SUMIF(Inputs!$H$158:$H$181,$B177,Inputs!T$158:T$181) *INDEX(Inputs!$K$21:$U$21,MATCH(Report_Year,Years,0))/INDEX(Inputs!$K$21:$U$21,MATCH(Inputs!$E$136,Years,0)),0) -> 0 | O177: =IFERROR( SUMIF(Inputs!$H$158:$H$181,$B177,Inputs!U$158:U$181) *INDEX(Inputs!$K$21:$U$21,MATCH(Report_Year,Years,0))/INDEX(Inputs!$K$21:$U$21,MATCH(Inputs!$E$136,Years,0)),0) -> 0 | P177: 34.05337582
B178: =$B$202 -> Transaction Procurement Support | C178: =Inputs!$A$8 -> Real $2023 | D178: $Million | E178: =IFERROR( SUMIF(Inputs!$H$158:$H$177,$B178,Inputs!K$158:K$171) *INDEX(Inputs!$K$21:$U$21,MATCH(Report_Year,Years,0))/INDEX(Inputs!$K$21:$U$21,MATCH(Inputs!$E$136,Years,0)),0) -> 0 | F178: =IFERROR( SUMIF(Inputs!$H$158:$H$177,$B178,Inputs!L$158:L$171) *INDEX(Inputs!$K$21:$U$21,MATCH(Report_Year,Years,0))/INDEX(Inputs!$K$21:$U$21,MATCH(Inputs!$E$136,Years,0)),0) -> 0 | G178: =IFERROR( SUMIF(Inputs!$H$158:$H$181,$B178,Inputs!M$158:M$181) *INDEX(Inputs!$K$21:$U$21,MATCH(Report_Year,Years,0))/INDEX(Inputs!$K$21:$U$21,MATCH(Inputs!$E$136,Years,0)),0) -> 0 | H178: =IFERROR( SUMIF(Inputs!$H$158:$H$181,$B178,Inputs!N$158:N$181) *INDEX(Inputs!$K$21:$U$21,MATCH(Report_Year,Years,0))/INDEX(Inputs!$K$21:$U$21,MATCH(Inputs!$E$136,Years,0)),0) -> 0 | I178: =IFERROR( SUMIF(Inputs!$H$158:$H$181,$B178,Inputs!O$158:O$181) *INDEX(Inputs!$K$21:$U$21,MATCH(Report_Year,Years,0))/INDEX(Inputs!$K$21:$U$21,MATCH(Inputs!$E$136,Years,0)),0) -> 0 | J178: =IFERROR( SUMIF(Inputs!$H$158:$H$181,$B178,Inputs!P$158:P$181) *INDEX(Inputs!$K$21:$U$21,MATCH(Report_Year,Years,0))/INDEX(Inputs!$K$21:$U$21,MATCH(Inputs!$E$136,Years,0)),0) -> 0 | K178: =IFERROR( SUMIF(Inputs!$H$158:$H$181,$B178,Inputs!Q$158:Q$181) *INDEX(Inputs!$K$21:$U$21,MATCH(Report_Year,Years,0))/INDEX(Inputs!$K$21:$U$21,MATCH(Inputs!$E$136,Years,0)),0) -> 1.981494 | L178: =IFERROR( SUMIF(Inputs!$H$158:$H$181,$B178,Inputs!R$158:R$181) *INDEX(Inputs!$K$21:$U$21,MATCH(Report_Year,Years,0))/INDEX(Inputs!$K$21:$U$21,MATCH(Inputs!$E$136,Years,0)),0) -> 20.706033 | M178: =IFERROR( SUMIF(Inputs!$H$158:$H$181,$B178,Inputs!S$158:S$181) *INDEX(Inputs!$K$21:$U$21,MATCH(Report_Year,Years,0))/INDEX(Inputs!$K$21:$U$21,MATCH(Inputs!$E$136,Years,0)),0) -> 0 | N178: =IFERROR( SUMIF(Inputs!$H$158:$H$181,$B178,Inputs!T$158:T$181) *INDEX(Inputs!$K$21:$U$21,MATCH(Report_Year,Years,0))/INDEX(Inputs!$K$21:$U$21,MATCH(Inputs!$E$136,Years,0)),0) -> 0 | O178: =IFERROR( SUMIF(Inputs!$H$158:$H$181,$B178,Inputs!U$158:U$181) *INDEX(Inputs!$K$21:$U$21,MATCH(Report_Year,Years,0))/INDEX(Inputs!$K$21:$U$21,MATCH(Inputs!$E$136,Years,0)),0) -> 0 | P178: 22.687527
B179: =$B$203 -> Community and Stakeholder Engagement | C179: =Inputs!$A$8 -> Real $2023 | D179: $Million | E179: =IFERROR( SUMIF(Inputs!$H$158:$H$177,$B179,Inputs!K$158:K$171) *INDEX(Inputs!$K$21:$U$21,MATCH(Report_Year,Years,0))/INDEX(Inputs!$K$21:$U$21,MATCH(Inputs!$E$136,Years,0)),0) -> 0 | F179: =IFERROR( SUMIF(Inputs!$H$158:$H$177,$B179,Inputs!L$158:L$171) *INDEX(Inputs!$K$21:$U$21,MATCH(Report_Year,Years,0))/INDEX(Inputs!$K$21:$U$21,MATCH(Inputs!$E$136,Years,0)),0) -> 0 | G179: =IFERROR( SUMIF(Inputs!$H$158:$H$181,$B179,Inputs!M$158:M$181) *INDEX(Inputs!$K$21:$U$21,MATCH(Report_Year,Years,0))/INDEX(Inputs!$K$21:$U$21,MATCH(Inputs!$E$136,Years,0)),0) -> 0 | H179: =IFERROR( SUMIF(Inputs!$H$158:$H$181,$B179,Inputs!N$158:N$181) *INDEX(Inputs!$K$21:$U$21,MATCH(Report_Year,Years,0))/INDEX(Inputs!$K$21:$U$21,MATCH(Inputs!$E$136,Years,0)),0) -> 0 | I179: =IFERROR( SUMIF(Inputs!$H$158:$H$181,$B179,Inputs!O$158:O$181) *INDEX(Inputs!$K$21:$U$21,MATCH(Report_Year,Years,0))/INDEX(Inputs!$K$21:$U$21,MATCH(Inputs!$E$136,Years,0)),0) -> 0 | J179: =IFERROR( SUMIF(Inputs!$H$158:$H$181,$B179,Inputs!P$158:P$181) *INDEX(Inputs!$K$21:$U$21,MATCH(Report_Year,Years,0))/INDEX(Inputs!$K$21:$U$21,MATCH(Inputs!$E$136,Years,0)),0) -> 0 | K179: =IFERROR( SUMIF(Inputs!$H$158:$H$181,$B179,Inputs!Q$158:Q$181) *INDEX(Inputs!$K$21:$U$21,MATCH(Report_Year,Years,0))/INDEX(Inputs!$K$21:$U$21,MATCH(Inputs!$E$136,Years,0)),0) -> 0.3944199611 | L179: =IFERROR( SUMIF(Inputs!$H$158:$H$181,$B179,Inputs!R$158:R$181) *INDEX(Inputs!$K$21:$U$21,MATCH(Report_Year,Years,0))/INDEX(Inputs!$K$21:$U$21,MATCH(Inputs!$E$136,Years,0)),0) -> 0.2870086407 | M179: =IFERROR( SUMIF(Inputs!$H$158:$H$181,$B179,Inputs!S$158:S$181) *INDEX(Inputs!$K$21:$U$21,MATCH(Report_Year,Years,0))/INDEX(Inputs!$K$21:$U$21,MATCH(Inputs!$E$136,Years,0)),0) -> 0 | N179: =IFERROR( SUMIF(Inputs!$H$158:$H$181,$B179,Inputs!T$158:T$181) *INDEX(Inputs!$K$21:$U$21,MATCH(Report_Year,Years,0))/INDEX(Inputs!$K$21:$U$21,MATCH(Inputs!$E$136,Years,0)),0) -> 0 | O179: =IFERROR( SUMIF(Inputs!$H$158:$H$181,$B179,Inputs!U$158:U$181) *INDEX(Inputs!$K$21:$U$21,MATCH(Report_Year,Years,0))/INDEX(Inputs!$K$21:$U$21,MATCH(Inputs!$E$136,Years,0)),0) -> 0 | P179: 0.6814286019
B180: =$B$204 -> Land and Environment | C180: =Inputs!$A$8 -> Real $2023 | D180: $Million | E180: =IFERROR( SUMIF(Inputs!$H$158:$H$177,$B180,Inputs!K$158:K$171) *INDEX(Inputs!$K$21:$U$21,MATCH(Report_Year,Years,0))/INDEX(Inputs!$K$21:$U$21,MATCH(Inputs!$E$136,Years,0)),0) -> 0 | F180: =IFERROR( SUMIF(Inputs!$H$158:$H$177,$B180,Inputs!L$158:L$171) *INDEX(Inputs!$K$21:$U$21,MATCH(Report_Year,Years,0))/INDEX(Inputs!$K$21:$U$21,MATCH(Inputs!$E$136,Years,0)),0) -> 0 | G180: =IFERROR( SUMIF(Inputs!$H$158:$H$181,$B180,Inputs!M$158:M$181) *INDEX(Inputs!$K$21:$U$21,MATCH(Report_Year,Years,0))/INDEX(Inputs!$K$21:$U$21,MATCH(Inputs!$E$136,Years,0)),0) -> 0 | H180: =IFERROR( SUMIF(Inputs!$H$158:$H$181,$B180,Inputs!N$158:N$181) *INDEX(Inputs!$K$21:$U$21,MATCH(Report_Year,Years,0))/INDEX(Inputs!$K$21:$U$21,MATCH(Inputs!$E$136,Years,0)),0) -> 0 | I180: =IFERROR( SUMIF(Inputs!$H$158:$H$181,$B180,Inputs!O$158:O$181) *INDEX(Inputs!$K$21:$U$21,MATCH(Report_Year,Years,0))/INDEX(Inputs!$K$21:$U$21,MATCH(Inputs!$E$136,Years,0)),0) -> 0 | J180: =IFERROR( SUMIF(Inputs!$H$158:$H$181,$B180,Inputs!P$158:P$181) *INDEX(Inputs!$K$21:$U$21,MATCH(Report_Year,Years,0))/INDEX(Inputs!$K$21:$U$21,MATCH(Inputs!$E$136,Years,0)),0) -> 0 | K180: =IFERROR( SUMIF(Inputs!$H$158:$H$181,$B180,Inputs!Q$158:Q$181) *INDEX(Inputs!$K$21:$U$21,MATCH(Report_Year,Years,0))/INDEX(Inputs!$K$21:$U$21,MATCH(Inputs!$E$136,Years,0)),0) -> 7.99259667 | L180: =IFERROR( SUMIF(Inputs!$H$158:$H$181,$B180,Inputs!R$158:R$181) *INDEX(Inputs!$K$21:$U$21,MATCH(Report_Year,Years,0))/INDEX(Inputs!$K$21:$U$21,MATCH(Inputs!$E$136,Years,0)),0) -> 9.077483372 | M180: =IFERROR( SUMIF(Inputs!$H$158:$H$181,$B180,Inputs!S$158:S$181) *INDEX(Inputs!$K$21:$U$21,MATCH(Report_Year,Years,0))/INDEX(Inputs!$K$21:$U$21,MATCH(Inputs!$E$136,Years,0)),0) -> 0 | N180: =IFERROR( SUMIF(Inputs!$H$158:$H$181,$B180,Inputs!T$158:T$181) *INDEX(Inputs!$K$21:$U$21,MATCH(Report_Year,Years,0))/INDEX(Inputs!$K$21:$U$21,MATCH(Inputs!$E$136,Years,0)),0) -> 0 | O180: =IFERROR( SUMIF(Inputs!$H$158:$H$181,$B180,Inputs!U$158:U$181) *INDEX(Inputs!$K$21:$U$21,MATCH(Report_Year,Years,0))/INDEX(Inputs!$K$21:$U$21,MATCH(Inputs!$E$136,Years,0)),0) -> 0 | P180: 17.07008004
B181: =$B$205 -> Regulatory Approvals | C181: =Inputs!$A$8 -> Real $2023 | D181: $Million | E181: =IFERROR( SUMIF(Inputs!$H$158:$H$177,$B181,Inputs!K$158:K$171) *INDEX(Inputs!$K$21:$U$21,MATCH(Report_Year,Years,0))/INDEX(Inputs!$K$21:$U$21,MATCH(Inputs!$E$136,Years,0)),0) -> 0 | F181: =IFERROR( SUMIF(Inputs!$H$158:$H$177,$B181,Inputs!L$158:L$171) *INDEX(Inputs!$K$21:$U$21,MATCH(Report_Year,Years,0))/INDEX(Inputs!$K$21:$U$21,MATCH(Inputs!$E$136,Years,0)),0) -> 0 | G181: =IFERROR( SUMIF(Inputs!$H$158:$H$181,$B181,Inputs!M$158:M$181) *INDEX(Inputs!$K$21:$U$21,MATCH(Report_Year,Years,0))/INDEX(Inputs!$K$21:$U$21,MATCH(Inputs!$E$136,Years,0)),0) -> 0 | H181: =IFERROR( SUMIF(Inputs!$H$158:$H$181,$B181,Inputs!N$158:N$181) *INDEX(Inputs!$K$21:$U$21,MATCH(Report_Year,Years,0))/INDEX(Inputs!$K$21:$U$21,MATCH(Inputs!$E$136,Years,0)),0) -> 0 | I181: =IFERROR( SUMIF(Inputs!$H$158:$H$181,$B181,Inputs!O$158:O$181) *INDEX(Inputs!$K$21:$U$21,MATCH(Report_Year,Years,0))/INDEX(Inputs!$K$21:$U$21,MATCH(Inputs!$E$136,Years,0)),0) -> 0 | J181: =IFERROR( SUMIF(Inputs!$H$158:$H$181,$B181,Inputs!P$158:P$181) *INDEX(Inputs!$K$21:$U$21,MATCH(Report_Year,Years,0))/INDEX(Inputs!$K$21:$U$21,MATCH(Inputs!$E$136,Years,0)),0) -> 0 | K181: =IFERROR( SUMIF(Inputs!$H$158:$H$181,$B181,Inputs!Q$158:Q$181) *INDEX(Inputs!$K$21:$U$21,MATCH(Report_Year,Years,0))/INDEX(Inputs!$K$21:$U$21,MATCH(Inputs!$E$136,Years,0)),0) -> 0.397866 | L181: =IFERROR( SUMIF(Inputs!$H$158:$H$181,$B181,Inputs!R$158:R$181) *INDEX(Inputs!$K$21:$U$21,MATCH(Report_Year,Years,0))/INDEX(Inputs!$K$21:$U$21,MATCH(Inputs!$E$136,Years,0)),0) -> 5.846319619 | M181: =IFERROR( SUMIF(Inputs!$H$158:$H$181,$B181,Inputs!S$158:S$181) *INDEX(Inputs!$K$21:$U$21,MATCH(Report_Year,Years,0))/INDEX(Inputs!$K$21:$U$21,MATCH(Inputs!$E$136,Years,0)),0) -> 0 | N181: =IFERROR( SUMIF(Inputs!$H$158:$H$181,$B181,Inputs!T$158:T$181) *INDEX(Inputs!$K$21:$U$21,MATCH(Report_Year,Years,0))/INDEX(Inputs!$K$21:$U$21,MATCH(Inputs!$E$136,Years,0)),0) -> 0 | O181: =IFERROR( SUMIF(Inputs!$H$158:$H$181,$B181,Inputs!U$158:U$181) *INDEX(Inputs!$K$21:$U$21,MATCH(Report_Year,Years,0))/INDEX(Inputs!$K$21:$U$21,MATCH(Inputs!$E$136,Years,0)),0) -> 0 | P181: 6.244185619
B182: =$B$206 -> Other Support & Corporate Roles | C182: =Inputs!$A$8 -> Real $2023 | D182: $Million | E182: =IFERROR( SUMIF(Inputs!$H$158:$H$177,$B182,Inputs!K$158:K$171) *INDEX(Inputs!$K$21:$U$21,MATCH(Report_Year,Years,0))/INDEX(Inputs!$K$21:$U$21,MATCH(Inputs!$E$136,Years,0)),0) -> 0 | F182: =IFERROR( SUMIF(Inputs!$H$158:$H$177,$B182,Inputs!L$158:L$171) *INDEX(Inputs!$K$21:$U$21,MATCH(Report_Year,Years,0))/INDEX(Inputs!$K$21:$U$21,MATCH(Inputs!$E$136,Years,0)),0) -> 0 | G182: =IFERROR( SUMIF(Inputs!$H$158:$H$181,$B182,Inputs!M$158:M$181) *INDEX(Inputs!$K$21:$U$21,MATCH(Report_Year,Years,0))/INDEX(Inputs!$K$21:$U$21,MATCH(Inputs!$E$136,Years,0)),0) -> 0 | H182: =IFERROR( SUMIF(Inputs!$H$158:$H$181,$B182,Inputs!N$158:N$181) *INDEX(Inputs!$K$21:$U$21,MATCH(Report_Year,Years,0))/INDEX(Inputs!$K$21:$U$21,MATCH(Inputs!$E$136,Years,0)),0) -> 0 | I182: =IFERROR( SUMIF(Inputs!$H$158:$H$181,$B182,Inputs!O$158:O$181) *INDEX(Inputs!$K$21:$U$21,MATCH(Report_Year,Years,0))/INDEX(Inputs!$K$21:$U$21,MATCH(Inputs!$E$136,Years,0)),0) -> 0 | J182: =IFERROR( SUMIF(Inputs!$H$158:$H$181,$B182,Inputs!P$158:P$181) *INDEX(Inputs!$K$21:$U$21,MATCH(Report_Year,Years,0))/INDEX(Inputs!$K$21:$U$21,MATCH(Inputs!$E$136,Years,0)),0) -> 0 | K182: =IFERROR( SUMIF(Inputs!$H$158:$H$181,$B182,Inputs!Q$158:Q$181) *INDEX(Inputs!$K$21:$U$21,MATCH(Report_Year,Years,0))/INDEX(Inputs!$K$21:$U$21,MATCH(Inputs!$E$136,Years,0)),0) -> 14.93511943 | L182: =IFERROR( SUMIF(Inputs!$H$158:$H$181,$B182,Inputs!R$158:R$181) *INDEX(Inputs!$K$21:$U$21,MATCH(Report_Year,Years,0))/INDEX(Inputs!$K$21:$U$21,MATCH(Inputs!$E$136,Years,0)),0) -> 11.51481639 | M182: =IFERROR( SUMIF(Inputs!$H$158:$H$181,$B182,Inputs!S$158:S$181) *INDEX(Inputs!$K$21:$U$21,MATCH(Report_Year,Years,0))/INDEX(Inputs!$K$21:$U$21,MATCH(Inputs!$E$136,Years,0)),0) -> 0 | N182: =IFERROR( SUMIF(Inputs!$H$158:$H$181,$B182,Inputs!T$158:T$181) *INDEX(Inputs!$K$21:$U$21,MATCH(Report_Year,Years,0))/INDEX(Inputs!$K$21:$U$21,MATCH(Inputs!$E$136,Years,0)),0) -> 0 | O182: =IFERROR( SUMIF(Inputs!$H$158:$H$181,$B182,Inputs!U$158:U$181) *INDEX(Inputs!$K$21:$U$21,MATCH(Report_Year,Years,0))/INDEX(Inputs!$K$21:$U$21,MATCH(Inputs!$E$136,Years,0)),0) -> 0 | P182: 26.44993582
B183: =$B$207 -> Indirect - Proportion of labour and labour-related costs | C183: =Inputs!$A$8 -> Real $2023 | D183: $Million | E183: =IFERROR( SUMIF(Inputs!$H$158:$H$177,$B183,Inputs!K$158:K$171) *INDEX(Inputs!$K$21:$U$21,MATCH(Report_Year,Years,0))/INDEX(Inputs!$K$21:$U$21,MATCH(Inputs!$E$136,Years,0)),0) -> 0 | F183: =IFERROR( SUMIF(Inputs!$H$158:$H$177,$B183,Inputs!L$158:L$171) *INDEX(Inputs!$K$21:$U$21,MATCH(Report_Year,Years,0))/INDEX(Inputs!$K$21:$U$21,MATCH(Inputs!$E$136,Years,0)),0) -> 0 | G183: =IFERROR( SUMIF(Inputs!$H$158:$H$181,$B183,Inputs!M$158:M$181) *INDEX(Inputs!$K$21:$U$21,MATCH(Report_Year,Years,0))/INDEX(Inputs!$K$21:$U$21,MATCH(Inputs!$E$136,Years,0)),0) -> 0 | H183: =IFERROR( SUMIF(Inputs!$H$158:$H$181,$B183,Inputs!N$158:N$181) *INDEX(Inputs!$K$21:$U$21,MATCH(Report_Year,Years,0))/INDEX(Inputs!$K$21:$U$21,MATCH(Inputs!$E$136,Years,0)),0) -> 0 | I183: =IFERROR( SUMIF(Inputs!$H$158:$H$181,$B183,Inputs!O$158:O$181) *INDEX(Inputs!$K$21:$U$21,MATCH(Report_Year,Years,0))/INDEX(Inputs!$K$21:$U$21,MATCH(Inputs!$E$136,Years,0)),0) -> 0 | J183: =IFERROR( SUMIF(Inputs!$H$158:$H$181,$B183,Inputs!P$158:P$181) *INDEX(Inputs!$K$21:$U$21,MATCH(Report_Year,Years,0))/INDEX(Inputs!$K$21:$U$21,MATCH(Inputs!$E$136,Years,0)),0) -> 0 | K183: =IFERROR( SUMIF(Inputs!$H$158:$H$181,$B183,Inputs!Q$158:Q$181) *INDEX(Inputs!$K$21:$U$21,MATCH(Report_Year,Years,0))/INDEX(Inputs!$K$21:$U$21,MATCH(Inputs!$E$136,Years,0)),0) -> 0 | L183: =IFERROR( SUMIF(Inputs!$H$158:$H$181,$B183,Inputs!R$158:R$181) *INDEX(Inputs!$K$21:$U$21,MATCH(Report_Year,Years,0))/INDEX(Inputs!$K$21:$U$21,MATCH(Inputs!$E$136,Years,0)),0) -> 0 | M183: =IFERROR( SUMIF(Inputs!$H$158:$H$181,$B183,Inputs!S$158:S$181) *INDEX(Inputs!$K$21:$U$21,MATCH(Report_Year,Years,0))/INDEX(Inputs!$K$21:$U$21,MATCH(Inputs!$E$136,Years,0)),0) -> 0 | N183: =IFERROR( SUMIF(Inputs!$H$158:$H$181,$B183,Inputs!T$158:T$181) *INDEX(Inputs!$K$21:$U$21,MATCH(Report_Year,Years,0))/INDEX(Inputs!$K$21:$U$21,MATCH(Inputs!$E$136,Years,0)),0) -> 0 | O183: =IFERROR( SUMIF(Inputs!$H$158:$H$181,$B183,Inputs!U$158:U$181) *INDEX(Inputs!$K$21:$U$21,MATCH(Report_Year,Years,0))/INDEX(Inputs!$K$21:$U$21,MATCH(Inputs!$E$136,Years,0)),0) -> 0 | P183: 0
B184: =$B$208 -> Contingency | C184: =Inputs!$A$8 -> Real $2023 | D184: $Million | E184: =IFERROR( SUMIF(Inputs!$H$158:$H$177,$B184,Inputs!K$158:K$171) *INDEX(Inputs!$K$21:$U$21,MATCH(Report_Year,Years,0))/INDEX(Inputs!$K$21:$U$21,MATCH(Inputs!$E$136,Years,0)),0) -> 0 | F184: =IFERROR( SUMIF(Inputs!$H$158:$H$177,$B184,Inputs!L$158:L$171) *INDEX(Inputs!$K$21:$U$21,MATCH(Report_Year,Years,0))/INDEX(Inputs!$K$21:$U$21,MATCH(Inputs!$E$136,Years,0)),0) -> 0 | G184: =IFERROR( SUMIF(Inputs!$H$158:$H$181,$B184,Inputs!M$158:M$181) *INDEX(Inputs!$K$21:$U$21,MATCH(Report_Year,Years,0))/INDEX(Inputs!$K$21:$U$21,MATCH(Inputs!$E$136,Years,0)),0) -> 0 | H184: =IFERROR( SUMIF(Inputs!$H$158:$H$181,$B184,Inputs!N$158:N$181) *INDEX(Inputs!$K$21:$U$21,MATCH(Report_Year,Years,0))/INDEX(Inputs!$K$21:$U$21,MATCH(Inputs!$E$136,Years,0)),0) -> 0 | I184: =IFERROR( SUMIF(Inputs!$H$158:$H$181,$B184,Inputs!O$158:O$181) *INDEX(Inputs!$K$21:$U$21,MATCH(Report_Year,Years,0))/INDEX(Inputs!$K$21:$U$21,MATCH(Inputs!$E$136,Years,0)),0) -> 0 | J184: =IFERROR( SUMIF(Inputs!$H$158:$H$181,$B184,Inputs!P$158:P$181) *INDEX(Inputs!$K$21:$U$21,MATCH(Report_Year,Years,0))/INDEX(Inputs!$K$21:$U$21,MATCH(Inputs!$E$136,Years,0)),0) -> 0 | K184: =IFERROR( SUMIF(Inputs!$H$158:$H$181,$B184,Inputs!Q$158:Q$181) *INDEX(Inputs!$K$21:$U$21,MATCH(Report_Year,Years,0))/INDEX(Inputs!$K$21:$U$21,MATCH(Inputs!$E$136,Years,0)),0) -> 0 | L184: =IFERROR( SUMIF(Inputs!$H$158:$H$181,$B184,Inputs!R$158:R$181) *INDEX(Inputs!$K$21:$U$21,MATCH(Report_Year,Years,0))/INDEX(Inputs!$K$21:$U$21,MATCH(Inputs!$E$136,Years,0)),0) -> 0 | M184: =IFERROR( SUMIF(Inputs!$H$158:$H$181,$B184,Inputs!S$158:S$181) *INDEX(Inputs!$K$21:$U$21,MATCH(Report_Year,Years,0))/INDEX(Inputs!$K$21:$U$21,MATCH(Inputs!$E$136,Years,0)),0) -> 0 | N184: =IFERROR( SUMIF(Inputs!$H$158:$H$181,$B184,Inputs!T$158:T$181) *INDEX(Inputs!$K$21:$U$21,MATCH(Report_Year,Years,0))/INDEX(Inputs!$K$21:$U$21,MATCH(Inputs!$E$136,Years,0)),0) -> 0 | O184: =IFERROR( SUMIF(Inputs!$H$158:$H$181,$B184,Inputs!U$158:U$181) *INDEX(Inputs!$K$21:$U$21,MATCH(Report_Year,Years,0))/INDEX(Inputs!$K$21:$U$21,MATCH(Inputs!$E$136,Years,0)),0) -> 0 | P184: =SUM(E184:O184) -> 0
B185: Sub-Total | C185: =Inputs!$A$8 -> Real $2023 | D185: $Million | E185: =SUM(E176:E184) -> 0 | F185: 0 | G185: 0 | H185: 0 | I185: 0 | J185: 0 | K185: 38.28167168 | L185: 74.78170456 | M185: 0 | N185: 0 | O185: 0 | P185: 113.0633762
B187: Indirect NL Costs - Total
B188: =$B$200 -> Project Management | C188: =Inputs!$A$8 -> Real $2023 | D188: $Million | E188: =E164+E176 -> 0 | F188: 0 | G188: =G164+G176 -> 0 | H188: 0 | I188: 0.6432791958 | J188: 0.4465076319 | K188: 3.35476 | L188: 2.522083333 | M188: 0 | N188: 0 | O188: 0 | P188: =SUM(E188:O188) -> 6.966630161
B189: =$B$201 -> Project Development | C189: =Inputs!$A$8 -> Real $2023 | D189: $Million | E189: 0 | F189: 0 | G189: =G165+G177 -> 0 | H189: 0 | I189: 1.884143246 | J189: 1.204466206 | K189: 9.225415616 | L189: 24.8279602 | M189: 0 | N189: 0 | O189: 0 | P189: 37.14198527
B190: =$B$202 -> Transaction Procurement Support | C190: =Inputs!$A$8 -> Real $2023 | D190: $Million | E190: 0 | F190: 0 | G190: =G166+G178 -> 0 | H190: 0 | I190: 0 | J190: 0 | K190: 1.981494 | L190: 20.706033 | M190: 0 | N190: 0 | O190: 0 | P190: 22.687527
B191: =$B$203 -> Community and Stakeholder Engagement | C191: =Inputs!$A$8 -> Real $2023 | D191: $Million | E191: 0 | F191: 0 | G191: =G167+G179 -> 0 | H191: 0 | I191: 0.233925304 | J191: 0.5788559398 | K191: 0.3944199611 | L191: 0.2870086407 | M191: 0 | N191: 0 | O191: 0 | P191: 1.494209846
B192: =$B$204 -> Land and Environment | C192: =Inputs!$A$8 -> Real $2023 | D192: $Million | E192: 0 | F192: 0 | G192: =G168+G180 -> 0 | H192: 0 | I192: 0.1941627513 | J192: 0.613930023 | K192: 7.99259667 | L192: 9.077483372 | M192: 0 | N192: 0 | O192: 0 | P192: 17.87817282
B193: =$B$205 -> Regulatory Approvals | C193: =Inputs!$A$8 -> Real $2023 | D193: $Million | E193: 0 | F193: 0 | G193: =G169+G181 -> 0 | H193: 0 | I193: 0 | J193: 0 | K193: 0.397866 | L193: 5.846319619 | M193: 0 | N193: 0 | O193: 0 | P193: 6.244185619
B194: =$B$206 -> Other Support & Corporate Roles | C194: =Inputs!$A$8 -> Real $2023 | D194: $Million | E194: 0 | F194: 0 | G194: =G170+G182 -> 0 | H194: 0 | I194: 1.632815023 | J194: 5.015472602 | K194: 14.93511943 | L194: 11.51481639 | M194: 0 | N194: 0 | O194: 0 | P194: 33.09822344
B195: =$B$207 -> Indirect - Proportion of labour and labour-related costs | C195: =Inputs!$A$8 -> Real $2023 | D195: $Million | E195: 0 | F195: 0 | G195: =G171+G183 -> 0 | H195: 0 | I195: 0 | J195: 0 | K195: 0 | L195: 0 | M195: 0 | N195: 0 | O195: 0 | P195: 0
B196: =$B$208 -> Contingency | C196: =Inputs!$A$8 -> Real $2023 | D196: $Million | E196: 0 | F196: 0 | G196: 0 | H196: 0 | I196: 0 | J196: 0 | K196: 0 | L196: 0 | M196: 0 | N196: 0 | O196: 0 | P196: =SUM(E196:O196) -> 0
B197: Sub-Total | C197: =Inputs!$A$8 -> Real $2023 | D197: $Million | E197: =SUM(E188:E196) -> 0 | F197: 0 | G197: 0 | H197: 0 | I197: 4.58832552 | J197: 7.859232402 | K197: 38.28167168 | L197: 74.78170456 | M197: 0 | N197: 0 | O197: 0 | P197: 125.5109342
B199: Total
B200: =Inputs!A210 -> Project Management | C200: =Inputs!$A$8 -> Real $2023 | D200: $Million | E200: =SUMIF($B$186:$B$197,$B200,E$186:E$197)+SUMIF($B$150:$B$161,$B200,E$150:E$161)+SUMIF($B$114:$B$125,$B200,E$114:E$125) -> 0 | F200: 0 | G200: 0 | H200: 0 | I200: 2.376544593 | J200: 7.500689214 | K200: 85.56891225 | L200: 37.4519534 | M200: 9.486791159 | N200: 0 | O200: 0 | P200: =SUM(E200:O200) -> 142.3848906
B201: =Inputs!A211 -> Project Development | C201: =Inputs!$A$8 -> Real $2023 | D201: $Million | E201: 0.002751266362 | F201: 0 | G201: 0.1453421691 | H201: 0.000207745095 | I201: 2.718177233 | J201: 2.889767894 | K201: 91.53044462 | L201: 100.8960014 | M201: 14.93146272 | N201: 0 | O201: 0 | P201: 213.114155
B202: =Inputs!A212 -> Transaction Procurement Support | C202: =Inputs!$A$8 -> Real $2023 | D202: $Million | E202: 0 | F202: 0 | G202: 0 | H202: 0 | I202: 0 | J202: 0 | K202: 14.62934198 | L202: 78.01379283 | M202: 7.83193208 | N202: 0 | O202: 0 | P202: 100.4750669
B203: =Inputs!A213 -> Community and Stakeholder Engagement | C203: =Inputs!$A$8 -> Real $2023 | D203: $Million | E203: 0 | F203: 0 | G203: 0 | H203: 0 | I203: 0.503428774 | J203: 3.521915941 | K203: 33.56168906 | L203: 14.57793746 | M203: 3.691849858 | N203: 0 | O203: 0 | P203: 55.85682109
B204: =Inputs!A214 -> Land and Environment | C204: =Inputs!$A$8 -> Real $2023 | D204: $Million | E204: 0 | F204: 0 | G204: 0 | H204: 0 | I204: 0.2985599056 | J204: 2.436927947 | K204: 76.6837861 | L204: 43.64550271 | M204: 8.197374488 | N204: 0 | O204: 0 | P204: 131.2621512
B205: =Inputs!A215 -> Regulatory Approvals | C205: =Inputs!$A$8 -> Real $2023 | D205: $Million | E205: 0 | F205: 0 | G205: 0 | H205: 0 | I205: 0 | J205: 0.2051821247 | K205: 4.836190866 | L205: 23.39655526 | M205: 2.40530111 | N205: 0 | O205: 0 | P205: 30.84322936
B206: =Inputs!A216 -> Other Support & Corporate Roles | C206: =Inputs!$A$8 -> Real $2023 | D206: $Million | E206: 0 | F206: 0 | G206: 0.0003980111585 | H206: 0 | I206: 2.260433646 | J206: 13.35814542 | K206: 106.9025356 | L206: 44.15178161 | M206: 12.09259612 | N206: 0 | O206: 0 | P206: 178.7658904
B207: =Inputs!A217 -> Indirect - Proportion of labour and labour-related costs | C207: =Inputs!$A$8 -> Real $2023 | D207: $Million | E207: 0 | F207: 0 | G207: 0 | H207: 0 | I207: 0 | J207: 0 | K207: 62.7724229 | L207: 27.78469873 | M207: 5.580855463 | N207: 0 | O207: 0 | P207: 96.13797709
B208: Contingency | C208: =Inputs!$A$8 -> Real $2023 | D208: $Million | E208: 0 | F208: 0 | G208: 0 | H208: 0 | I208: 0 | J208: 0 | K208: 0 | L208: 0 | M208: 0 | N208: 0 | O208: 0 | P208: =SUM(E208:O208) -> 0
B209: Total | C209: =Inputs!$A$8 -> Real $2023 | D209: $Million | E209: =SUM(E200:E208) -> 0.002751266362 | F209: =SUM(F200:F208) -> 0 | G209: 0.1457401803 | H209: 0.000207745095 | I209: 8.157144152 | J209: 29.91262854 | K209: 476.4853234 | L209: 369.9182234 | M209: 64.218163 | N209: 0 | O209: 0 | P209: 948.8401816
A211: =IF(SUM(G211:O211)=0,0,1) -> 0 | B211: ="Check "&$B$89 -> Check Direct Non-Labour | E211: =IF(ROUND(E$23-E125,3)=0,0,1) -> 0 | F211: =IF(ROUND(F$23-F125,3)=0,0,1) -> 0 | G211: =IF(ROUND(G$23-G125,3)=0,0,1) -> 0 | H211: 0 | I211: 0 | J211: 0 | K211: =IF(ROUND(K$23-K125,3)=0,0,1) -> 0 | L211: 0 | M211: 0 | N211: 0 | O211: 0
A212: =IF(SUM(G212:O212)=0,0,1) -> 0 | B212: ="Check "&$B$93 -> Check Labour Costs | E212: =IF(ROUND(E$42-E161,3)=0,0,1) -> 0 | F212: =IF(ROUND(F$42-F161,3)=0,0,1) -> 0 | G212: =IF(ROUND(G$42-G161,3)=0,0,1) -> 0 | H212: 0 | I212: 0 | J212: 0 | K212: 0 | L212: 0 | M212: 0 | N212: 0 | O212: 0
A213: =IF(SUM(G213:O213)=0,0,1) -> 0 | B213: ="Check "&$B$98 -> Check Indirect Non-Labour Costs | E213: =IF(ROUND(E$61-E197,3)=0,0,1) -> 0 | F213: =IF(ROUND(F$61-F197,3)=0,0,1) -> 0 | G213: =IF(ROUND(G$61-G197,3)=0,0,1) -> 0 | H213: 0 | I213: 0 | J213: 0 | K213: 0 | L213: 0 | M213: 0 | N213: 0 | O213: 0
B215: Incremental Capital Expenditure (Excluding Equity Raising Costs) by Component | P215: Total
B216: Component | C216: Dollar basis | D216: Units | E216: =Inputs!K$20 -> 2018 | F216: =Inputs!L$20 -> 2019 | G216: =Inputs!M$20 -> 2020 | H216: =Inputs!N$20 -> 2021 | I216: =Inputs!O$20 -> 2022 | J216: =Inputs!P$20 -> 2023 | K216: =Inputs!Q$20 -> 2024 | L216: =Inputs!R$20 -> 2025 | M216: =Inputs!S$20 -> 2026 | N216: =Inputs!T$20 -> 2027 | O216: =Inputs!U$20 -> 2028
B218: Total Capex
B219: Actual | C219: =Inputs!$A$8 -> Real $2023 | D219: $Million | E219: =SUM(Inputs!K81:K100)*INDEX(Inputs!$K$21:$U$21,MATCH(Report_Year,Years,0))/INDEX(Inputs!$K$21:$U$21,MATCH(Inputs!$E$80,Years,0)) +SUM(Inputs!K137:K156)*INDEX(Inputs!$K$21:$U$21,MATCH(Report_Year,Years,0))/INDEX(Inputs!$K$21:$U$21,MATCH(Inputs!$E$136,Years,0)) +E91 -> 0.002751266362 | F219: =SUM(Inputs!L81:L100)*INDEX(Inputs!$K$21:$U$21,MATCH(Report_Year,Years,0))/INDEX(Inputs!$K$21:$U$21,MATCH(Inputs!$E$80,Years,0)) +SUM(Inputs!L137:L156)*INDEX(Inputs!$K$21:$U$21,MATCH(Report_Year,Years,0))/INDEX(Inputs!$K$21:$U$21,MATCH(Inputs!$E$136,Years,0)) +F91 -> 0 | G219: =SUM(Inputs!M81:M100)*INDEX(Inputs!$K$21:$U$21,MATCH(Report_Year,Years,0))/INDEX(Inputs!$K$21:$U$21,MATCH(Inputs!$E$80,Years,0)) +SUM(Inputs!M137:M156)*INDEX(Inputs!$K$21:$U$21,MATCH(Report_Year,Years,0))/INDEX(Inputs!$K$21:$U$21,MATCH(Inputs!$E$136,Years,0)) +G91 -> 0.1457401803 | H219: =SUM(Inputs!N81:N100)*INDEX(Inputs!$K$21:$U$21,MATCH(Report_Year,Years,0))/INDEX(Inputs!$K$21:$U$21,MATCH(Inputs!$E$80,Years,0)) +SUM(Inputs!N137:N156)*INDEX(Inputs!$K$21:$U$21,MATCH(Report_Year,Years,0))/INDEX(Inputs!$K$21:$U$21,MATCH(Inputs!$E$136,Years,0)) +H91 -> 0.000207745095 | I219: =SUM(Inputs!O81:O100)*INDEX(Inputs!$K$21:$U$21,MATCH(Report_Year,Years,0))/INDEX(Inputs!$K$21:$U$21,MATCH(Inputs!$E$80,Years,0)) +SUM(Inputs!O137:O156)*INDEX(Inputs!$K$21:$U$21,MATCH(Report_Year,Years,0))/INDEX(Inputs!$K$21:$U$21,MATCH(Inputs!$E$136,Years,0)) +I91 -> 8.157144152 | J219: =SUM(Inputs!P81:P100)*INDEX(Inputs!$K$21:$U$21,MATCH(Report_Year,Years,0))/INDEX(Inputs!$K$21:$U$21,MATCH(Inputs!$E$80,Years,0)) +SUM(Inputs!P137:P156)*INDEX(Inputs!$K$21:$U$21,MATCH(Report_Year,Years,0))/INDEX(Inputs!$K$21:$U$21,MATCH(Inputs!$E$136,Years,0)) -> 14.95012624 | P219: =SUM(E219:O219) -> 23.25596959
B220: Forecast | C220: =Inputs!$A$8 -> Real $2023 | D220: $Million | J220: =SUM(Inputs!P102:P121,Inputs!P124:P125)*(Inputs!P$22/INDEX(Inputs!$K$22:$U$22,MATCH(Inputs!$F$80,Years,0)))*INDEX(Inputs!$K$21:$U$21,MATCH(Report_Year,Years,0))/INDEX(Inputs!$K$21:$U$21,MATCH(Inputs!$E$80,Years,0)) +SUM(Inputs!P158:P177,Inputs!P180:P181)*INDEX(Inputs!$K$21:$U$21,MATCH(Report_Year,Years,0))/INDEX(Inputs!$K$21:$U$21,MATCH(Inputs!$E$136,Years,0)) +J91 -> 14.96250229 | K220: =SUM(Inputs!Q102:Q121,Inputs!Q124:Q125)*(Inputs!Q$22/INDEX(Inputs!$K$22:$U$22,MATCH(Inputs!$F$80,Years,0)))*INDEX(Inputs!$K$21:$U$21,MATCH(Report_Year,Years,0))/INDEX(Inputs!$K$21:$U$21,MATCH(Inputs!$E$80,Years,0)) +SUM(Inputs!Q158:Q177,Inputs!Q180:Q181)*INDEX(Inputs!$K$21:$U$21,MATCH(Report_Year,Years,0))/INDEX(Inputs!$K$21:$U$21,MATCH(Inputs!$E$136,Years,0)) +K91 -> 476.4853234 | L220: =SUM(Inputs!R102:R121,Inputs!R124:R125)*(Inputs!R$22/INDEX(Inputs!$K$22:$U$22,MATCH(Inputs!$F$80,Years,0)))*INDEX(Inputs!$K$21:$U$21,MATCH(Report_Year,Years,0))/INDEX(Inputs!$K$21:$U$21,MATCH(Inputs!$E$80,Years,0)) +SUM(Inputs!R158:R177,Inputs!R180:R181)*INDEX(Inputs!$K$21:$U$21,MATCH(Report_Year,Years,0))/INDEX(Inputs!$K$21:$U$21,MATCH(Inputs!$E$136,Years,0)) +L91 -> 369.9182234 | M220: =SUM(Inputs!S102:S121,Inputs!S124:S125)*(Inputs!S$22/INDEX(Inputs!$K$22:$U$22,MATCH(Inputs!$F$80,Years,0)))*INDEX(Inputs!$K$21:$U$21,MATCH(Report_Year,Years,0))/INDEX(Inputs!$K$21:$U$21,MATCH(Inputs!$E$80,Years,0)) +SUM(Inputs!S158:S177,Inputs!S180:S181)*INDEX(Inputs!$K$21:$U$21,MATCH(Report_Year,Years,0))/INDEX(Inputs!$K$21:$U$21,MATCH(Inputs!$E$136,Years,0)) +M91 -> 64.218163 | N220: =SUM(Inputs!T102:T121,Inputs!T124:T125)*(Inputs!T$22/INDEX(Inputs!$K$22:$U$22,MATCH(Inputs!$F$80,Years,0)))*INDEX(Inputs!$K$21:$U$21,MATCH(Report_Year,Years,0))/INDEX(Inputs!$K$21:$U$21,MATCH(Inputs!$E$80,Years,0)) +SUM(Inputs!T158:T177,Inputs!T180:T181)*INDEX(Inputs!$K$21:$U$21,MATCH(Report_Year,Years,0))/INDEX(Inputs!$K$21:$U$21,MATCH(Inputs!$E$136,Years,0)) +N91 -> 0 | O220: =SUM(Inputs!U102:U121,Inputs!U124:U125)*(Inputs!U$22/INDEX(Inputs!$K$22:$U$22,MATCH(Inputs!$F$80,Years,0)))*INDEX(Inputs!$K$21:$U$21,MATCH(Report_Year,Years,0))/INDEX(Inputs!$K$21:$U$21,MATCH(Inputs!$E$80,Years,0)) +SUM(Inputs!U158:U177,Inputs!U180:U181)*INDEX(Inputs!$K$21:$U$21,MATCH(Report_Year,Years,0))/INDEX(Inputs!$K$21:$U$21,MATCH(Inputs!$E$136,Years,0)) +O91 -> 0 | P220: =SUM(E220:O220) -> 925.584212
B221: Sub-Total | C221: =Inputs!$A$8 -> Real $2023 | D221: $Million | E221: =SUM(E219:E220) -> 0.002751266362 | F221: =SUM(F219:F220) -> 0 | G221: =SUM(G219:G220) -> 0.1457401803 | H221: =SUM(H219:H220) -> 0.000207745095 | I221: 8.157144152 | J221: 29.91262854 | K221: 476.4853234 | L221: 369.9182234 | M221: 64.218163 | N221: 0 | O221: 0 | P221: 948.8401816
A223: =IF(SUM(G223:O223)=0,0,1) -> 0 | B223: ="Check "&B218 -> Check Total Capex | E223: =IF(ROUND(E$80-E221,3)=0,0,1) -> 0 | F223: 0 | G223: 0 | H223: 0 | I223: 0 | J223: 0 | K223: 0 | L223: 0 | M223: 0 | N223: 0 | O223: 0
A225: End

Sheet Outputs|Models
A1: Outputs | Models
A3: Outputs | PTRM
B5: As Incurred | D5: Dollar basis | E5: Units | F5: =Inputs!K$20 -> 2018 | G5: =F5+1 -> 2019 | H5: 2020 | I5: 2021 | J5: 2022 | K5: 2023 | L5: 2024 | M5: 2025 | N5: 2026 | O5: 2027 | P5: 2028 | Q5: Total
B6: Capex
B7: =Inputs!$A$191 -> Transmission Lines | D7: =Inputs!$A$8 -> Real $2023 | E7: $Million | L7: =L97 -> 257.6629808 | M7: 159.8096693 | N7: =N97 -> 53.4282242 | O7: 0 | P7: 0 | Q7: =SUM(F7:P7) -> 470.9008743
B8: =Inputs!$A$192 -> Underground Cables | D8: =Inputs!$A$8 -> Real $2023 | E8: $Million | L8: 0 | M8: 0 | N8: 0 | O8: 0 | P8: 0 | Q8: 0
B9: =Inputs!$A$193 -> Substations | D9: =Inputs!$A$8 -> Real $2023 | E9: $Million | L9: 164.6955296 | M9: 183.6178423 | N9: 9.881440612 | O9: 0 | P9: 0 | Q9: 358.1948125
B10: =Inputs!$A$194 -> Secondary Systems | D10: =Inputs!$A$8 -> Real $2023 | E10: $Million | L10: 0 | M10: 0 | N10: 0 | O10: 0 | P10: 0 | Q10: 0
B11: =Inputs!$A$195 -> Communications (short life) | D11: =Inputs!$A$8 -> Real $2023 | E11: $Million | L11: 0 | M11: 0 | N11: 0 | O11: 0 | P11: 0 | Q11: 0
B12: =Inputs!$A$196 -> Business IT | D12: =Inputs!$A$8 -> Real $2023 | E12: $Million | L12: 0 | M12: 0 | N12: 0 | O12: 0 | P12: 0 | Q12: 0
B13: =Inputs!$A$197 -> Minor Plant, Motor Vehicles & Mobile Plant | D13: =Inputs!$A$8 -> Real $2023 | E13: $Million | L13: 0 | M13: 0 | N13: =N103 -> 0 | O13: 0 | P13: 0 | Q13: 0
B14: =Inputs!$A$198 -> Transmission Line Life Extension | D14: =Inputs!$A$8 -> Real $2023 | E14: $Million | L14: 0 | M14: 0 | N14: 0 | O14: 0 | P14: 0 | Q14: 0
B15: =Inputs!$A$199 -> Land and Easements | D15: =Inputs!$A$8 -> Real $2023 | E15: $Million | L15: 50.22760894 | M15: 1.923014718 | N15: 0 | O15: 0 | P15: 0 | Q15: 52.15062366
B16: =Inputs!$A$200 -> Synchronous Condensers | D16: =Inputs!$A$8 -> Real $2023 | E16: $Million | L16: 0 | M16: 0 | N16: 0 | O16: 0 | P16: 0 | Q16: 0
B17: =Inputs!$A$201 -> Leasehold Land and Property | D17: =Inputs!$A$8 -> Real $2023 | E17: $Million | L17: 0 | M17: 0 | N17: 0 | O17: 0 | P17: 0 | Q17: 0
B18: =Inputs!$A$202 -> Biodiversity Offsets (Stewardship sites) | D18: =Inputs!$A$8 -> Real $2023 | E18: $Million | L18: 1.213371455 | M18: 13.06544661 | N18: 0.9084981859 | O18: 0 | P18: 0 | Q18: 15.18731625
B19: =Inputs!$A$203 -> Biodiversity Offsets (Direct payments and other costs) | D19: =Inputs!$A$8 -> Real $2023 | E19: $Million | L19: 2.685832543 | M19: 11.50225042 | N19: 0 | O19: 0 | P19: 0 | Q19: =SUM(F19:P19) -> 14.18808296
B20: =Inputs!$A$204 -> Buildings - capital works | D20: =Inputs!$A$8 -> Real $2023 | E20: $Million | L20: =L110 -> 0 | M20: 0 | N20: =N110 -> 0 | O20: 0 | P20: 0 | Q20: 0
B21: =Inputs!$A$205 -> In-house software | D21: =Inputs!$A$8 -> Real $2023 | E21: $Million | L21: 0 | M21: 0 | N21: 0 | O21: 0 | P21: 0 | Q21: 0
B22: =Inputs!$A$206 -> [Spare] | D22: =Inputs!$A$8 -> Real $2023 | E22: $Million | L22: 0 | M22: 0 | N22: 0 | O22: 0 | P22: 0 | Q22: 0
B23: Total | D23: =Inputs!$A$8 -> Real $2023 | E23: $Million | F23: =SUM(F7:F22) -> 0 | G23: 0 | H23: 0 | I23: 0 | J23: 0 | K23: 0 | L23: 476.4853234 | M23: 369.9182234 | N23: =SUM(N7:N22) -> 64.218163 | O23: =SUM(O7:O22) -> 0 | P23: =SUM(P7:P22) -> 0 | Q23: 910.6217097
B25: As Commissioned | D25: =D5 -> Dollar basis | E25: =E5 -> Units | F25: =Inputs!K$20 -> 2018 | G25: =F25+1 -> 2019 | H25: =G25+1 -> 2020 | I25: =H25+1 -> 2021 | J25: 2022 | K25: 2023 | L25: =K25+1 -> 2024 | M25: =L25+1 -> 2025 | N25: 2026 | O25: 2027 | P25: 2028 | Q25: =Q5 -> Total
B26: =B6 -> Capex
B27: =Inputs!$A$191 -> Transmission Lines | D27: =D7 -> Real $2023 | E27: $Million | L27: =L121 -> 109.6844695 | M27: 273.6220771 | N27: =N121 -> 98.90598216 | O27: 0 | P27: 0 | Q27: =SUM(F27:P27) -> 482.2125287
B28: =Inputs!$A$192 -> Underground Cables | D28: Real $2023 | E28: $Million | L28: 0 | M28: 0 | N28: 0 | O28: 0 | P28: 0 | Q28: 0
B29: =Inputs!$A$193 -> Substations | D29: Real $2023 | E29: $Million | L29: 0 | M29: 22.90053595 | N29: 338.116242 | O29: 0 | P29: 0 | Q29: 361.0167779
B30: =Inputs!$A$194 -> Secondary Systems | D30: Real $2023 | E30: $Million | L30: 0 | M30: 0 | N30: 0 | O30: 0 | P30: 0 | Q30: 0
B31: =Inputs!$A$195 -> Communications (short life) | D31: Real $2023 | E31: $Million | L31: 0 | M31: 0 | N31: 0 | O31: 0 | P31: 0 | Q31: 0
B32: =Inputs!$A$196 -> Business IT | D32: Real $2023 | E32: $Million | L32: 0 | M32: 0 | N32: 0 | O32: 0 | P32: 0 | Q32: 0
B33: =Inputs!$A$197 -> Minor Plant, Motor Vehicles & Mobile Plant | D33: Real $2023 | E33: $Million | L33: 0 | M33: 0 | N33: =N127 -> 0 | O33: 0 | P33: 0 | Q33: 0
B34: =Inputs!$A$198 -> Transmission Line Life Extension | D34: Real $2023 | E34: $Million | L34: 0 | M34: 0 | N34: 0 | O34: 0 | P34: 0 | Q34: 0
B35: =Inputs!$A$199 -> Land and Easements | D35: Real $2023 | E35: $Million | L35: 56.76373044 | M35: 1.948672012 | N35: 0 | O35: 0 | P35: 0 | Q35: 58.71240245
B36: =Inputs!$A$200 -> Synchronous Condensers | D36: Real $2023 | E36: $Million | L36: 0 | M36: 0 | N36: 0 | O36: 0 | P36: 0 | Q36: 0
B37: =Inputs!$A$201 -> Leasehold Land and Property | D37: Real $2023 | E37: $Million | L37: 0 | M37: 0 | N37: 0 | O37: 0 | P37: 0 | Q37: 0
B38: =Inputs!$A$202 -> Biodiversity Offsets (Stewardship sites) | D38: Real $2023 | E38: $Million | L38: 1.213371455 | M38: 13.06544661 | N38: 0.9084981859 | O38: 0 | P38: 0 | Q38: 15.18731625
B39: =Inputs!$A$203 -> Biodiversity Offsets (Direct payments and other costs) | D39: Real $2023 | E39: $Million | L39: 2.685832543 | M39: 11.50225042 | N39: 0 | O39: 0 | P39: 0 | Q39: =SUM(F39:P39) -> 14.18808296
B40: =Inputs!$A$204 -> Buildings - capital works | D40: Real $2023 | E40: $Million | L40: =L134 -> 0 | M40: 0 | N40: =N134 -> 0 | O40: 0 | P40: 0 | Q40: 0
B41: =Inputs!$A$205 -> In-house software | D41: Real $2023 | E41: $Million | L41: 0 | M41: 0 | N41: 0 | O41: 0 | P41: 0 | Q41: 0
B42: =Inputs!$A$206 -> [Spare] | D42: Real $2023 | E42: $Million | L42: 0 | M42: 0 | N42: 0 | O42: 0 | P42: 0 | Q42: 0
B43: =B23 -> Total | D43: Real $2023 | E43: $Million | F43: =SUM(F27:F42) -> 0 | G43: 0 | H43: 0 | I43: 0 | J43: 0 | K43: 0 | L43: =SUM(L27:L42) -> 170.3474039 | M43: =SUM(M27:M42) -> 323.0389821 | N43: 437.9307223 | O43: 0 | P43: 0 | Q43: 931.3171084
A45: =IF(SUM(H45:P45)=0,0,1) -> 0 | B45: Check - As incurred | L45: =IF(ROUND(L23-L$113,3)=0,0,1) -> 0 | M45: =IF(ROUND(M23-M$113,3)=0,0,1) -> 0 | N45: =IF(ROUND(N23-N$113,3)=0,0,1) -> 0 | O45: =IF(ROUND(O23-O$113,3)=0,0,1) -> 0 | P45: =IF(ROUND(P23-P$113,3)=0,0,1) -> 0
A46: =IF(SUM(H46:P46)=0,0,1) -> 0 | B46: Check - As commissioned | L46: =IF(ROUND(L43-L$137,3)=0,0,1) -> 0 | M46: =IF(ROUND(M43-M$137,3)=0,0,1) -> 0 | N46: =IF(ROUND(N43-N$137,3)=0,0,1) -> 0 | O46: =IF(ROUND(O43-O$137,3)=0,0,1) -> 0 | P46: =IF(ROUND(P43-P$137,3)=0,0,1) -> 0
A48: Outputs | RFM
B50: As Incurred | D50: Dollar basis | E50: Units | F50: =Inputs!K$20 -> 2018 | G50: =F50+1 -> 2019 | H50: =G50+1 -> 2020 | I50: =H50+1 -> 2021 | J50: 2022 | K50: =J50+1 -> 2023 | L50: =K50+1 -> 2024 | M50: =L50+1 -> 2025 | N50: 2026 | O50: 2027 | P50: 2028 | Q50: Total
B51: Capex
B52: =Inputs!$A$191 -> Transmission Lines | D52: $Nominal | E52: $Million | F52: =F97*F$145 -> 0.001138109111 | G52: 0 | H52: 0.06251400191 | I52: 9.031289447e-05 | J52: 4.91141707 | K52: 5.634794613 | Q52: =SUM(F52:P52) -> 10.60995411
B53: =Inputs!$A$192 -> Underground Cables | D53: $Nominal | E53: $Million | F53: 0 | G53: 0 | H53: 0 | I53: 0 | J53: 0 | K53: 0 | Q53: 0
B54: =Inputs!$A$193 -> Substations | D54: $Nominal | E54: $Million | F54: 0.0008282958825 | G54: 0 | H54: 0.04549659594 | I54: 6.572814318e-05 | J54: 2.524329843 | K54: 0 | Q54: 2.570720463
B55: =Inputs!$A$194 -> Secondary Systems | D55: $Nominal | E55: $Million | F55: 0 | G55: 0 | H55: 0 | I55: 0 | J55: 0 | K55: 0 | Q55: 0
B56: =Inputs!$A$195 -> Communications (short life) | D56: $Nominal | E56: $Million | F56: 0 | G56: 0 | H56: 0 | I56: 0 | J56: 0 | K56: 0 | Q56: 0
B57: =Inputs!$A$196 -> Business IT | D57: $Nominal | E57: $Million | F57: 0 | G57: 0 | H57: 0 | I57: 0 | J57: 0 | K57: 0 | Q57: 0
B58: =Inputs!$A$197 -> Minor Plant, Motor Vehicles & Mobile Plant | D58: $Nominal | E58: $Million | F58: 0 | G58: 0 | H58: 0 | I58: 0 | J58: 0 | K58: 0 | Q58: 0
B59: =Inputs!$A$198 -> Transmission Line Life Extension | D59: $Nominal | E59: $Million | F59: 0 | G59: 0 | H59: 0 | I59: 0 | J59: 0 | K59: 0 | Q59: 0
B60: =Inputs!$A$199 -> Land and Easements | D60: $Nominal | E60: $Million | F60: 0.000161149294 | G60: 0 | H60: 0.008851600582 | I60: 1.278775386e-05 | J60: 0 | K60: 22.76467516 | Q60: 22.7737007
B61: =Inputs!$A$200 -> Synchronous Condensers | D61: $Nominal | E61: $Million | F61: 0 | G61: 0 | H61: 0 | I61: 0 | J61: 0 | K61: 0 | Q61: 0
B62: =Inputs!$A$201 -> Leasehold Land and Property | D62: $Nominal | E62: $Million | F62: =F107*F$145 -> 0 | G62: 0 | H62: 0 | I62: 0 | J62: 0 | K62: 0 | Q62: 0
B63: =Inputs!$A$202 -> Biodiversity Offsets (Stewardship sites) | D63: $Nominal | E63: $Million | F63: 5.251683543e-05 | G63: 0 | H63: 0.002884642182 | I63: 4.167392536e-06 | J63: 0 | K63: 0 | Q63: 0.00294132641
B64: =Inputs!$A$203 -> Biodiversity Offsets (Direct payments and other costs) | D64: $Nominal | E64: $Million | F64: 0.0001556664301 | G64: 0 | H64: 0.008550438101 | I64: 1.235266965e-05 | J64: 0 | K64: 0.4064075136 | Q64: =SUM(F64:P64) -> 0.4151259708
B65: =Inputs!$A$204 -> Buildings - capital works | D65: $Nominal | E65: $Million | F65: 0 | G65: 0 | H65: 0 | I65: 0 | J65: 0 | K65: 0 | Q65: 0
B66: =Inputs!$A$205 -> In-house software | D66: $Nominal | E66: $Million | F66: 0 | G66: 0 | H66: 0 | I66: 0 | J66: 0 | K66: 0 | Q66: 0
B67: =Inputs!$A$206 -> [Spare] | D67: $Nominal | E67: $Million | F67: 0 | G67: 0 | H67: 0 | I67: 0 | J67: 0 | K67: 0 | Q67: 0
B68: Total | D68: $Nominal | E68: $Million | F68: =SUM(F52:F67) -> 0.002335737554 | G68: 0 | H68: 0.1282972787 | I68: 0.0001853488537 | J68: 7.435746912 | K68: 28.80587729 | L68: =SUM(L51:L67) -> 0 | M68: =SUM(M51:M67) -> 0 | N68: =SUM(N51:N67) -> 0 | O68: =SUM(O51:O67) -> 0 | P68: =SUM(P51:P67) -> 0 | Q68: 36.37244256
B70: As Commissioned | D70: =D50 -> Dollar basis | E70: =E50 -> Units | F70: =Inputs!K$20 -> 2018 | G70: =Inputs!L$20 -> 2019 | H70: =Inputs!M$20 -> 2020 | I70: =H70+1 -> 2021 | J70: 2022 | K70: =J70+1 -> 2023 | L70: =K70+1 -> 2024 | M70: =L70+1 -> 2025 | N70: 2026 | O70: 2027 | P70: 2028 | Q70: Total
B71: Capex
B72: =Inputs!$A$191 -> Transmission Lines | D72: =D52 -> $Nominal | E72: $Million | F72: =F121*F$145 -> 0 | G72: 0 | H72: 0 | I72: 0 | J72: 0 | K72: 0 | Q72: =SUM(F72:P72) -> 0
B73: =Inputs!$A$192 -> Underground Cables | D73: $Nominal | E73: $Million | F73: 0 | G73: 0 | H73: 0 | I73: 0 | J73: 0 | K73: 0 | Q73: 0
B74: =Inputs!$A$193 -> Substations | D74: $Nominal | E74: $Million | F74: 0 | G74: 0 | H74: 0 | I74: 0 | J74: 0 | K74: 0 | Q74: 0
B75: =Inputs!$A$194 -> Secondary Systems | D75: $Nominal | E75: $Million | F75: 0 | G75: 0 | H75: 0 | I75: 0 | J75: 0 | K75: 0 | Q75: 0
B76: =Inputs!$A$195 -> Communications (short life) | D76: $Nominal | E76: $Million | F76: 0 | G76: 0 | H76: 0 | I76: 0 | J76: 0 | K76: 0 | Q76: 0
B77: =Inputs!$A$196 -> Business IT | D77: $Nominal | E77: $Million | F77: 0 | G77: 0 | H77: 0 | I77: 0 | J77: 0 | K77: 0 | Q77: 0
B78: =Inputs!$A$197 -> Minor Plant, Motor Vehicles & Mobile Plant | D78: $Nominal | E78: $Million | F78: 0 | G78: 0 | H78: 0 | I78: 0 | J78: 0 | K78: 0 | Q78: 0
B79: =Inputs!$A$198 -> Transmission Line Life Extension | D79: $Nominal | E79: $Million | F79: 0 | G79: 0 | H79: 0 | I79: 0 | J79: 0 | K79: 0 | Q79: 0
B80: =Inputs!$A$199 -> Land and Easements | D80: $Nominal | E80: $Million | F80: 0 | G80: 0 | H80: 0 | I80: 0 | J80: 0 | K80: 16.45555828 | Q80: 16.45555828
B81: =Inputs!$A$200 -> Synchronous Condensers | D81: $Nominal | E81: $Million | F81: 0 | G81: 0 | H81: 0 | I81: 0 | J81: 0 | K81: 0 | Q81: 0
B82: =Inputs!$A$201 -> Leasehold Land and Property | D82: $Nominal | E82: $Million | F82: =F131*F$145 -> 0 | G82: 0 | H82: 0 | I82: 0 | J82: 0 | K82: 0 | Q82: 0
B83: =Inputs!$A$202 -> Biodiversity Offsets (Stewardship sites) | D83: $Nominal | E83: $Million | F83: 0 | G83: 0 | H83: 0 | I83: 0 | J83: 0 | K83: 0.003219657253 | Q83: 0.003219657253
B84: =Inputs!$A$203 -> Biodiversity Offsets (Direct payments and other costs) | D84: $Nominal | E84: $Million | F84: 0 | G84: 0 | H84: 0 | I84: 0 | J84: 0 | K84: 0.415950978 | Q84: =SUM(F84:P84) -> 0.415950978
B85: =Inputs!$A$204 -> Buildings - capital works | D85: $Nominal | E85: $Million | F85: 0 | G85: 0 | H85: 0 | I85: 0 | J85: 0 | K85: 0 | Q85: 0
B86: =Inputs!$A$205 -> In-house software | D86: $Nominal | E86: $Million | F86: 0 | G86: 0 | H86: 0 | I86: 0 | J86: 0 | K86: 0 | Q86: 0
B87: =Inputs!$A$206 -> [Spare] | D87: $Nominal | E87: $Million | F87: 0 | G87: 0 | H87: 0 | I87: 0 | J87: 0 | K87: 0 | Q87: 0
B88: Total | D88: =D68 -> $Nominal | E88: $Million | F88: =SUM(F72:F87) -> 0 | G88: 0 | H88: 0 | I88: 0 | J88: 0 | K88: 16.87472891 | L88: =SUM(L71:L87) -> 0 | M88: =SUM(M71:M87) -> 0 | N88: =SUM(N71:N87) -> 0 | O88: =SUM(O71:O87) -> 0 | P88: =SUM(P71:P87) -> 0 | Q88: 16.87472891
A90: =IF(SUM(H90:P90)=0,0,1) -> 0 | B90: Check - As incurred | F90: =IF(ROUND(F68-F$113*F$145,3)=0,0,1) -> 0 | G90: 0 | H90: 0 | I90: 0 | J90: 0 | K90: 0
A91: =IF(SUM(H91:P91)=0,0,1) -> 0 | B91: Check - As commissioned | F91: =IF(ROUND(F88-F$137*F$145,3)=0,0,1) -> 0 | G91: 0 | H91: 0 | I91: 0 | J91: 0 | K91: 0
A93: Output | As Incurred Capex by RAB Asset Class
B95: As Incurred | D95: Dollar basis | E95: Units | F95: =Inputs!K$20 -> 2018 | G95: =F95+1 -> 2019 | H95: =Inputs!M$20 -> 2020 | I95: =H95+1 -> 2021 | J95: 2022 | K95: 2023 | L95: 2024 | M95: 2025 | N95: 2026 | O95: 2027 | P95: 2028 | Q95: Total | S95: Std Life
B96: Capex
B97: =Inputs!$A$191 -> Transmission Lines | D97: =Inputs!$A$8 -> Real $2023 | E97: $Million | F97: =Calculations!E64 -> 0.001340579257 | G97: =Calculations!F64 -> 0 | H97: =Calculations!G64 -> 0.07101321245 | I97: =Calculations!H64 -> 0.0001012256643 | J97: =Calculations!I64 -> 5.387910253 | K97: =Calculations!J64 -> 5.851289182 | L97: =Calculations!K64 -> 257.6629808 | M97: =Calculations!L64 -> 159.8096693 | N97: =Calculations!M64 -> 53.4282242 | O97: =Calculations!N64 -> 0 | P97: =Calculations!O64 -> 0 | Q97: =SUM(F97:P97) -> 482.2125287 | S97: =Inputs!C191 -> 50
B98: =Inputs!$A$192 -> Underground Cables | D98: =Inputs!$A$8 -> Real $2023 | E98: $Million | F98: =Calculations!E65 -> 0 | G98: =Calculations!F65 -> 0 | H98: =Calculations!G65 -> 0 | I98: =Calculations!H65 -> 0 | J98: =Calculations!I65 -> 0 | K98: =Calculations!J65 -> 0 | L98: =Calculations!K65 -> 0 | M98: =Calculations!L65 -> 0 | N98: =Calculations!M65 -> 0 | O98: =Calculations!N65 -> 0 | P98: =Calculations!O65 -> 0 | Q98: 0 | S98: =Inputs!C192 -> 45
B99: =Inputs!$A$193 -> Substations | D99: =Inputs!$A$8 -> Real $2023 | E99: $Million | F99: =Calculations!E66 -> 0.0009756501094 | G99: =Calculations!F66 -> 0 | H99: =Calculations!G66 -> 0.05168217255 | I99: =Calculations!H66 -> 7.367026596e-05 | J99: =Calculations!I66 -> 2.769233899 | K99: =Calculations!J66 -> 0 | L99: =Calculations!K66 -> 164.6955296 | M99: =Calculations!L66 -> 183.6178423 | N99: =Calculations!M66 -> 9.881440612 | O99: =Calculations!N66 -> 0 | P99: =Calculations!O66 -> 0 | Q99: 361.0167779 | S99: =Inputs!C193 -> 40
B100: =Inputs!$A$194 -> Secondary Systems | D100: =Inputs!$A$8 -> Real $2023 | E100: $Million | F100: =Calculations!E67 -> 0 | G100: =Calculations!F67 -> 0 | H100: =Calculations!G67 -> 0 | I100: =Calculations!H67 -> 0 | J100: =Calculations!I67 -> 0 | K100: =Calculations!J67 -> 0 | L100: =Calculations!K67 -> 0 | M100: =Calculations!L67 -> 0 | N100: =Calculations!M67 -> 0 | O100: =Calculations!N67 -> 0 | P100: =Calculations!O67 -> 0 | Q100: 0 | S100: =Inputs!C194 -> 15
B101: =Inputs!$A$195 -> Communications (short life) | D101: =Inputs!$A$8 -> Real $2023 | E101: $Million | F101: =Calculations!E68 -> 0 | G101: =Calculations!F68 -> 0 | H101: =Calculations!G68 -> 0 | I101: =Calculations!H68 -> 0 | J101: =Calculations!I68 -> 0 | K101: =Calculations!J68 -> 0 | L101: =Calculations!K68 -> 0 | M101: =Calculations!L68 -> 0 | N101: =Calculations!M68 -> 0 | O101: =Calculations!N68 -> 0 | P101: =Calculations!O68 -> 0 | Q101: 0 | S101: =Inputs!C195 -> 10
B102: =Inputs!$A$196 -> Business IT | D102: =Inputs!$A$8 -> Real $2023 | E102: $Million | F102: =Calculations!E69 -> 0 | G102: =Calculations!F69 -> 0 | H102: =Calculations!G69 -> 0 | I102: =Calculations!H69 -> 0 | J102: =Calculations!I69 -> 0 | K102: =Calculations!J69 -> 0 | L102: =Calculations!K69 -> 0 | M102: =Calculations!L69 -> 0 | N102: =Calculations!M69 -> 0 | O102: =Calculations!N69 -> 0 | P102: =Calculations!O69 -> 0 | Q102: 0 | S102: =Inputs!C196 -> 4
B103: =Inputs!$A$197 -> Minor Plant, Motor Vehicles & Mobile Plant | D103: =Inputs!$A$8 -> Real $2023 | E103: $Million | F103: =Calculations!E70 -> 0 | G103: =Calculations!F70 -> 0 | H103: =Calculations!G70 -> 0 | I103: =Calculations!H70 -> 0 | J103: =Calculations!I70 -> 0 | K103: =Calculations!J70 -> 0 | L103: =Calculations!K70 -> 0 | M103: =Calculations!L70 -> 0 | N103: =Calculations!M70 -> 0 | O103: =Calculations!N70 -> 0 | P103: =Calculations!O70 -> 0 | Q103: 0 | S103: =Inputs!C197 -> 8
B104: =Inputs!$A$198 -> Transmission Line Life Extension | D104: =Inputs!$A$8 -> Real $2023 | E104: $Million | F104: =Calculations!E71 -> 0 | G104: =Calculations!F71 -> 0 | H104: =Calculations!G71 -> 0 | I104: =Calculations!H71 -> 0 | J104: =Calculations!I71 -> 0 | K104: =Calculations!J71 -> 0 | L104: =Calculations!K71 -> 0 | M104: =Calculations!L71 -> 0 | N104: =Calculations!M71 -> 0 | O104: =Calculations!N71 -> 0 | P104: =Calculations!O71 -> 0 | Q104: 0 | S104: =Inputs!C198 -> 35
B105: =Inputs!$A$199 -> Land and Easements | D105: =Inputs!$A$8 -> Real $2023 | E105: $Million | F105: =Calculations!E72 -> 0.0001898178292 | G105: =Calculations!F72 -> 0 | H105: =Calculations!G72 -> 0.01005503685 | I105: =Calculations!H72 -> 1.433293537e-05 | J105: =Calculations!I72 -> 0 | K105: =Calculations!J72 -> 23.63931725 | L105: =Calculations!K72 -> 50.22760894 | M105: =Calculations!L72 -> 1.923014718 | N105: =Calculations!M72 -> 0 | O105: =Calculations!N72 -> 0 | P105: =Calculations!O72 -> 0 | Q105: 75.8002001
B106: =Inputs!$A$200 -> Synchronous Condensers | D106: =Inputs!$A$8 -> Real $2023 | E106: $Million | F106: =Calculations!E73 -> 0 | G106: =Calculations!F73 -> 0 | H106: =Calculations!G73 -> 0 | I106: =Calculations!H73 -> 0 | J106: =Calculations!I73 -> 0 | K106: =Calculations!J73 -> 0 | L106: =Calculations!K73 -> 0 | M106: =Calculations!L73 -> 0 | N106: =Calculations!M73 -> 0 | O106: =Calculations!N73 -> 0 | P106: =Calculations!O73 -> 0 | Q106: 0 | S106: =Inputs!C200 -> 40
B107: =Inputs!$A$201 -> Leasehold Land and Property | D107: =Inputs!$A$8 -> Real $2023 | E107: $Million | F107: =Calculations!E74 -> 0 | G107: =Calculations!F74 -> 0 | H107: =Calculations!G74 -> 0 | I107: =Calculations!H74 -> 0 | J107: =Calculations!I74 -> 0 | K107: =Calculations!J74 -> 0 | L107: =Calculations!K74 -> 0 | M107: =Calculations!L74 -> 0 | N107: =Calculations!M74 -> 0 | O107: =Calculations!N74 -> 0 | P107: =Calculations!O74 -> 0 | Q107: 0 | S107: =Inputs!C201 -> 5
B108: =Inputs!$A$202 -> Biodiversity Offsets (Stewardship sites) | D108: =Inputs!$A$8 -> Real $2023 | E108: $Million | F108: =Calculations!E75 -> 6.185960514e-05 | G108: =Calculations!F75 -> 0 | H108: =Calculations!G75 -> 0.00327682922 | I108: =Calculations!H75 -> 4.670950702e-06 | J108: =Calculations!I75 -> 0 | K108: =Calculations!J75 -> 0 | L108: =Calculations!K75 -> 1.213371455 | M108: =Calculations!L75 -> 13.06544661 | N108: =Calculations!M75 -> 0.9084981859 | O108: =Calculations!N75 -> 0 | P108: =Calculations!O75 -> 0 | Q108: 15.19065961 | S108: =(SUMPRODUCT(Q97:Q104,S97:S104)+SUMPRODUCT(Q106:Q107,S106:S107)+SUMPRODUCT(Q110:Q111,S110:S111))/SUM(Q97:Q104,Q106:Q107,Q110:Q111) -> 45.71864053 | T108: ◄ Calculated as the weighted average standard life of other depreciating assets
B109: =Inputs!$A$203 -> Biodiversity Offsets (Direct payments and other costs) | D109: =Inputs!$A$8 -> Real $2023 | E109: $Million | F109: =Calculations!E76 -> 0.0001833595612 | G109: =Calculations!F76 -> 0 | H109: =Calculations!G76 -> 0.009712929246 | I109: =Calculations!H76 -> 1.384527866e-05 | J109: =Calculations!I76 -> 0 | K109: =Calculations!J76 -> 0.4220221057 | L109: =Calculations!K76 -> 2.685832543 | M109: =Calculations!L76 -> 11.50225042 | N109: =Calculations!M76 -> 0 | O109: =Calculations!N76 -> 0 | P109: =Calculations!O76 -> 0 | Q109: =SUM(F109:P109) -> 14.6200152 | S109: =S108 -> 45.71864053 | T109: ◄ Calculated as the weighted average standard life of other depreciating assets
B110: =Inputs!$A$204 -> Buildings - capital works | D110: =Inputs!$A$8 -> Real $2023 | E110: $Million | F110: =Calculations!E77 -> 0 | G110: =Calculations!F77 -> 0 | H110: =Calculations!G77 -> 0 | I110: =Calculations!H77 -> 0 | J110: =Calculations!I77 -> 0 | K110: =Calculations!J77 -> 0 | L110: =Calculations!K77 -> 0 | M110: =Calculations!L77 -> 0 | N110: =Calculations!M77 -> 0 | O110: =Calculations!N77 -> 0 | P110: =Calculations!O77 -> 0 | Q110: 0 | S110: =Inputs!C204 -> 40
B111: =Inputs!$A$205 -> In-house software | D111: =Inputs!$A$8 -> Real $2023 | E111: $Million | F111: =Calculations!E78 -> 0 | G111: =Calculations!F78 -> 0 | H111: =Calculations!G78 -> 0 | I111: =Calculations!H78 -> 0 | J111: =Calculations!I78 -> 0 | K111: =Calculations!J78 -> 0 | L111: =Calculations!K78 -> 0 | M111: =Calculations!L78 -> 0 | N111: =Calculations!M78 -> 0 | O111: =Calculations!N78 -> 0 | P111: =Calculations!O78 -> 0 | Q111: 0 | S111: =Inputs!C205 -> 15
B112: =Inputs!$A$206 -> [Spare] | D112: =Inputs!$A$8 -> Real $2023 | E112: $Million | F112: =Calculations!E79 -> 0 | G112: =Calculations!F79 -> 0 | H112: =Calculations!G79 -> 0 | I112: =Calculations!H79 -> 0 | J112: =Calculations!I79 -> 0 | K112: =Calculations!J79 -> 0 | L112: =Calculations!K79 -> 0 | M112: =Calculations!L79 -> 0 | N112: =Calculations!M79 -> 0 | O112: =Calculations!N79 -> 0 | P112: =Calculations!O79 -> 0 | Q112: 0
B113: Total | D113: =Inputs!$A$8 -> Real $2023 | E113: $Million | F113: =SUM(F97:F112) -> 0.002751266362 | G113: =SUM(G97:G112) -> 0 | H113: =SUM(H97:H112) -> 0.1457401803 | I113: 0.000207745095 | J113: 8.157144152 | K113: 29.91262854 | L113: 476.4853234 | M113: 369.9182234 | N113: 64.218163 | O113: 0 | P113: 0 | Q113: 948.8401816
A115: =IF(SUM(H115:P115)=0,0,1) -> 0 | B115: Check - As incurred | F115: =IF(ROUND(Calculations!E$80-F113,3)=0,0,1) -> 0 | G115: =IF(ROUND(Calculations!F$80-G113,3)=0,0,1) -> 0 | H115: =IF(ROUND(Calculations!G$80-H113,3)=0,0,1) -> 0 | I115: =IF(ROUND(Calculations!H$80-I113,3)=0,0,1) -> 0 | J115: =IF(ROUND(Calculations!I$80-J113,3)=0,0,1) -> 0 | K115: =IF(ROUND(Calculations!J$80-K113,3)=0,0,1) -> 0 | L115: =IF(ROUND(Calculations!K$80-L113,3)=0,0,1) -> 0 | M115: =IF(ROUND(Calculations!L$80-M113,3)=0,0,1) -> 0 | N115: =IF(ROUND(Calculations!M$80-N113,3)=0,0,1) -> 0 | O115: =IF(ROUND(Calculations!N$80-O113,3)=0,0,1) -> 0 | P115: =IF(ROUND(Calculations!O$80-P113,3)=0,0,1) -> 0
A117: Output | As Commissioned Capex by RAB Asset Class
B119: As Commissioned | D119: Dollar basis | E119: Units | F119: =Inputs!K$20 -> 2018 | G119: =Inputs!L$20 -> 2019 | H119: =Inputs!M$20 -> 2020 | I119: =H119+1 -> 2021 | J119: 2022 | K119: 2023 | L119: 2024 | M119: 2025 | N119: 2026 | O119: 2027 | P119: 2028 | Q119: Total
B120: Capex
B121: =Inputs!$A$191 -> Transmission Lines | D121: =Inputs!$A$8 -> Real $2023 | E121: $Million | K121: =SUM(Calculations!R64:W64) -> 0 | L121: =Calculations!X64 -> 109.6844695 | M121: =Calculations!Y64 -> 273.6220771 | N121: =Calculations!Z64 -> 98.90598216 | O121: =Calculations!AA64 -> 0 | P121: =Calculations!AB64 -> 0 | Q121: =SUM(F121:P121) -> 482.2125287
B122: =Inputs!$A$192 -> Underground Cables | D122: =Inputs!$A$8 -> Real $2023 | E122: $Million | K122: =SUM(Calculations!R65:W65) -> 0 | L122: =Calculations!X65 -> 0 | M122: =Calculations!Y65 -> 0 | N122: =Calculations!Z65 -> 0 | O122: =Calculations!AA65 -> 0 | P122: =Calculations!AB65 -> 0 | Q122: 0
B123: =Inputs!$A$193 -> Substations | D123: =Inputs!$A$8 -> Real $2023 | E123: $Million | K123: =SUM(Calculations!R66:W66) -> 0 | L123: =Calculations!X66 -> 0 | M123: =Calculations!Y66 -> 22.90053595 | N123: =Calculations!Z66 -> 338.116242 | O123: =Calculations!AA66 -> 0 | P123: =Calculations!AB66 -> 0 | Q123: 361.0167779
B124: =Inputs!$A$194 -> Secondary Systems | D124: =Inputs!$A$8 -> Real $2023 | E124: $Million | K124: =SUM(Calculations!R67:W67) -> 0 | L124: =Calculations!X67 -> 0 | M124: =Calculations!Y67 -> 0 | N124: =Calculations!Z67 -> 0 | O124: =Calculations!AA67 -> 0 | P124: =Calculations!AB67 -> 0 | Q124: 0
B125: =Inputs!$A$195 -> Communications (short life) | D125: =Inputs!$A$8 -> Real $2023 | E125: $Million | K125: =SUM(Calculations!R68:W68) -> 0 | L125: =Calculations!X68 -> 0 | M125: =Calculations!Y68 -> 0 | N125: =Calculations!Z68 -> 0 | O125: =Calculations!AA68 -> 0 | P125: =Calculations!AB68 -> 0 | Q125: 0
B126: =Inputs!$A$196 -> Business IT | D126: =Inputs!$A$8 -> Real $2023 | E126: $Million | K126: =SUM(Calculations!R69:W69) -> 0 | L126: =Calculations!X69 -> 0 | M126: =Calculations!Y69 -> 0 | N126: =Calculations!Z69 -> 0 | O126: =Calculations!AA69 -> 0 | P126: =Calculations!AB69 -> 0 | Q126: 0
